Workbook

Sheet Total Program Inputs
A1: MONTANA-DAKOTA UTILITIES CO.
A2: GAS UTILITY - SOUTH DAKOTA
A3: DSM SUMMARY
A4: 2022 ACTUAL
A6: Incentive Year: | C6: 2022
I8: Incentive | K8: Admin | M8: Admin | O8: Total
E9: Participants | G9: Dk Savings | I9: Expense | K9: Allocation | M9: Expense 1/ | O9: Expense | Q9: Incentive | S9: dk/part.
A10: Residential
A11: High Efficiency Furnace - 95%+ (new) | E11: 79 | G11: 444 | I11: 11850 | K11: =+ROUND(I11/$I$27,4) -> 0.118 | M11: =+ROUND(K11*$E$32,0)+1 -> 2102 | O11: =+I11+M11 -> 13952 | Q11: 150 | S11: =ROUND(+G11/E11,1) -> 5.6
A12: High Efficiency Furnace - 95%+ (replacement) | E12: 236 | G12: 4258 | I12: 70800 | K12: =+ROUND(I12/$I$27,4) -> 0.7053 | M12: =+ROUND(K12*$E$32,0) -> 12557 | O12: =+I12+M12 -> 83357 | Q12: 300 | S12: =ROUND(+G12/E12,1) -> 18
A13: Programmable Thermostats - Tier 1 | E13: 64 | G13: 147 | I13: 960 | K13: =+ROUND(I13/$I$27,4) -> 0.0096 | M13: =+ROUND(K13*$E$32,0) -> 171 | O13: =+I13+M13 -> 1131 | Q13: 15 | S13: 2.3
A14: Programmable Thermostats - Tier 2 | E14: 173 | G14: 1103 | I14: 10324 | K14: =+ROUND(I14/$I$27,4) -> 0.1028 | M14: =+ROUND(K14*$E$32,0) -> 1830 | O14: =+I14+M14 -> 12154 | Q14: 60 | S14: =ROUND(+G14/E14,1) -> 6.4
A15: Total Residential | E15: =SUM(E11:E14) -> 552 | G15: =SUM(G11:G14) -> 5952 | I15: =SUM(I11:I14) -> 93934 | K15: =SUM(K11:K14) -> 0.9357 | M15: =SUM(M11:M14) -> 16660 | O15: =SUM(O11:O14) -> 110594
A17: Commmercial & Industrial
A18: High Efficiency Furnace - 95%+ (new) | E18: 1 | G18: 8 | I18: 150 | K18: =+ROUND(I18/$I$27,4) -> 0.0015 | M18: =+ROUNDDOWN(K18*$E$32,0) -> 26 | O18: =+I18+M18 -> 176 | Q18: 150 | S18: =ROUND(+G18/E18,1) -> 8
A19: High Efficiency Furnace - 95%+ (replacement) | E19: 21 | G19: 516 | I19: 6300 | K19: =+ROUND(I19/$I$27,4) -> 0.0628 | M19: =+ROUND(K19*$E$32,0) -> 1118 | O19: =+I19+M19 -> 7418 | Q19: 300 | S19: =ROUND(+G19/E19,1) -> 24.6
A20: Custom | E20: 0 | G20: 0 | I20: 0 | K20: 0 | M20: =+ROUND(K20*$E$32,0) -> 0 | O20: =+I20+M20 -> 0 | Q20: =+I20 -> 0 | S20: =ROUND(+G20/E20,1) -> 
A21: Total Commercial and Industrial | E21: =SUM(E18:E20) -> 22 | G21: =SUM(G18:G20) -> 524 | I21: =SUM(I18:I20) -> 6450 | K21: =SUM(K18:K20) -> 0.0643 | M21: =SUM(M18:M20) -> 1144 | O21: =SUM(O18:O20) -> 7594
A23: Subtotal | E23: =+E21+E15 -> 574 | G23: =+G21+G15 -> 6476 | I23: =+I21+I15 -> 100384 | K23: =+K21+K15 -> 1 | M23: =+M21+M15 -> 17804 | O23: =+O21+O15 -> 118188
A25: Energy Audits | E25: 0 | G25: 0 | I25: 0 | K25: =+ROUND(I25/$I$27,4) -> 0 | M25: =+ROUND(K25*$E$32,0) -> 0 | O25: =+I25+M25 -> 0
A27: Total South Dakota | E27: =+E25+E23 -> 574 | G27: =+G25+G23 -> 6476 | I27: =+I25+I23 -> 100384 | K27: =+K25+K23 -> 1 | M27: =+M25+M23 -> 17804 | O27: =+O25+O23 -> 118188
A30: 1/ Administration expense allocated on incentive and program costs.
A32: Admin costs | E32: 17804

Sheet Database Inputs
A1: South Dakota Natural Gas DSM Programs
A2: Technical Assumptions
I3: Cost Assumptions
H5: Average | M5: Year 1 | N5: Total
C6: # of | F6: Average | G6: Average | H6: Non-Energy | L6: Avg | M6: Total | N6: Operating/ | O6: Admin &
B7: Customer | C7: Particip | D7: Project | E7: Baseline | F7: High | G7: dk Saved | H7: Benefits | I7: Cost | J7: Cost High | K7: Increm | L7: Incentive | M7: Admin | N7: Marketing | O7: Promo | R7: Total | S7: Total | T7: Total
A8: 2021 - 2023 Program Years | B8: Class | C8: =+'Total Program Inputs'!C6 -> 2022 | D8: Life | E8: Efficiency | F8: Efficiency | G8: / part | H8: / Part | I8: Std Equip | J8: Eff Equip | K8: Cost | L8: / Part | M8: Costs | N8: Costs | O8: Cost Yr. 1 | P8: Technical Notes | Q8: Participation Notes | R8: Incentives | S8: Incentives | T8: Incentives
A9: Residential | R9: Year 1 | S9: Year 2 | T9: Year 3
A10: Furnace Tier 2 - 95%+ AFUE - New | B10: Res | C10: =+'Total Program Inputs'!E11 -> 79 | D10: 20 | E10: 90 | F10: 95 | G10: =+'Total Program Inputs'!S11 -> 5.6 | H10: 0 | I10: 1380 | J10: 2000 | K10: 165 | L10: 150 | M10: =+'Res .95+% Res Furnace - NEW'!$F$11 -> 2102 | N10: 0 | O10: =+'Total Program Inputs'!M11 -> 2102 | P10: 75,000 btuh Average | Q10: Past program History | R10: =ROUND(L10*C10,0) -> 11850 | S10: =ROUND(#REF!*L10,0) ->  | T10: =ROUND(L10*#REF!,0) ->  | V10: Updated incremental costs to the 2020 MN TRM
A11: Furnace Tier 2 - 95%+ AFUE - Replacement | B11: Res | C11: =+'Total Program Inputs'!E12 -> 236 | D11: 20 | E11: 80 | F11: 95 | G11: =+'Total Program Inputs'!S12 -> 18 | H11: 720 | I11: 880 | J11: 2000 | K11: 736 | L11: 300 | M11: =+'Res .95+% Res Furnace - Replace'!$F$11 -> 12557 | N11: 0 | O11: =+'Total Program Inputs'!M12 -> 12557 | P11: 75,000 btuh Average | Q11: Past program History | R11: =ROUND(L11*C11,0) -> 70800 | S11: =ROUND(#REF!*L11,0) ->  | T11: =ROUND(L11*#REF!,0) ->  | V11: Updated incremental costs to the 2020 MN TRM
A12: Programmable Thermostats - Tier 1 | B12: Res | C12: =+'Total Program Inputs'!E13 -> 64 | D12: 10 | E12: NA | F12: NA | G12: =+'Total Program Inputs'!S13 -> 2.3 | H12: 0 | I12: NA | J12: NA | K12: 30 | L12: 15 | M12: ='Programmable Tstats - Tier 1'!$F$11 -> 171 | N12: 0 | O12: =+'Total Program Inputs'!M13 -> 171 | P12: 1 showerhead, 1kitchen, 2 faucet | Q12: assume 50% app rate | R12: =ROUND(L12*C12,0) -> 960 | S12: =ROUND(#REF!*L12,0) ->  | T12: =ROUND(L12*#REF!,0) -> 
A13: Programmable Thermostats - Tier 2 | B13: Res | C13: =+'Total Program Inputs'!E14 -> 173 | D13: 10 | E13: NA | F13: NA | G13: =+'Total Program Inputs'!S14 -> 6.4 | H13: 41 | K13: =0.35*91+0.65*189 -> 154.7 | L13: 60 | O13: =+'Total Program Inputs'!M14 -> 1830 | S13: =ROUND(#REF!*L13,0) ->  | V13: 35% Tier 2, 65% Tier 3 per the table in the TRM
A14: Commercial
A15: Furnace Tier 2 - 95%+ AFUE - New | B15: Comm | C15: =+'Total Program Inputs'!E18 -> 1 | D15: 20 | E15: 90 | F15: 95 | G15: =+'Total Program Inputs'!S18 -> 8 | H15: 0 | I15: 880 | J15: 2000 | K15: 165 | L15: 150 | M15: =+'Comm 95+% Furnace - NEW'!$F$11 -> 26 | N15: 0 | O15: =+'Total Program Inputs'!M18 -> 26 | P15: 75,000 btuh Average | Q15: Market Information | R15: =ROUND(L15*C15,0) -> 150 | S15: =ROUND(#REF!*L15,0) ->  | T15: =ROUND(L15*#REF!,0) ->  | V15: Updated incremental costs to the 2020 MN TRM, used the costs of Residental furnaces for commercial due to rebate amount at 120,000 dkt or less (essentially residential)
A16: Furnace Tier 2 - 95%+ AFUE - Replacement | B16: Comm | C16: =+'Total Program Inputs'!E19 -> 21 | D16: 20 | E16: 80 | F16: 95 | G16: =+'Total Program Inputs'!S19 -> 24.6 | H16: 720 | I16: 880 | J16: 2000 | K16: 736 | L16: 300 | M16: =+'Comm 95+% Furnace - Replace'!$F$11 -> 1118 | N16: 0 | O16: =+'Total Program Inputs'!M19 -> 1118 | P16: 75,000 btuh Average | Q16: Market Information | R16: =ROUND(L16*C16,0) -> 6300 | S16: =ROUND(#REF!*L16,0) ->  | T16: =ROUND(L16*#REF!,0) ->  | V16: Updated incremental costs to the 2020 MN TRM, used the costs of Residental furnaces for commercial due to rebate amount at 120,000 dkt or less (essentially residential)
A17: Custom Efficiency | B17: Comm | C17: =+'Total Program Inputs'!E20 -> 0 | D17: 15 | E17: NA | F17: NA | G17: 0 | H17: 0 | I17: NA | J17: NA | K17: 15000 | L17: 3000 | M17: =+'Comm Custom'!F11 -> 0 | N17: 0 | O17: =+'Total Program Inputs'!M20 -> 0 | R17: =ROUND(L17*C17,0) -> 0 | S17: =ROUND(#REF!*L17,0) ->  | T17: =ROUND(L17*#REF!,0) -> 
A18: Totals | B18: =SUM(C18:C18) -> 574 | C18: =SUM(C10:C17) -> 574 | Q18: Total Incentives
Q19: Customer Education/info

Sheet Gas Input Table Summary
A1: Montana-Dakota Utilities Co.
A2: 2023 Input Data Summary
A3: South Dakota Natural Gas Conservation Model
A6: Input No. | B6: Input Data Description | C6: Information Source | D6: SD Res. | E6: SD Comm.
A7: 1 | B7: Retail Rate ($/dk) | C7: Projected average 2023 Cost of Gas plus authorized Distribution Delivery Charge. | D7: =+'Gas Costs'!C11 -> 7.99 | E7: =+'Gas Costs'!E11 -> 7.084
B8: Escalation Rate | D8: 0.03 | E8: 0.03
A9: 2 | B9: Non-Gas Fuel Retail ($/fuel/unit) | C9: Average retail cost of non gas fuel if measures also saves kWh, gallons of water, etc. (for analysis purposes, used electric as Non-Gas Fuel Retail Rate) | D9: =+'Gas Costs'!G39 -> 0.12936 | E9: =+'Gas Costs'!G52 -> 0.12552
B10: Escalation Rate | D10: 0.03 | E10: 0.03
B11: Non-Gas Fuel Units (ie. kWh, Gallons, etc) | D11: Kwh | E11: Kwh
A12: 3 | B12: Commodity Cost ($/dk) | C12: Estimated gas costs using projected 2023 winter gas costs February 2023 pipeline commodity | D12: =+'Gas Costs'!E16 -> 4.357 | E12: =+D12 -> 4.357
B13: Escalation Rate | D13: 0.03 | E13: 0.03
A14: 4 | B14: Demand Cost ($/dk/Yr) | C14: Annual cost of firm capacity on pipeline | D14: =+'Gas Costs'!C23 -> 149.39 | E14: =+D14 -> 149.39
B15: Escalation Rate | D15: 0.01 | E15: 0.01
A16: 5 | B16: Peak Reduction Factor | C16: Estimated average peak day reduction factor caused by implementing the measure (s) | D16: 0.01 | E16: 0.01
A17: 6 | B17: Variable O&M ($/dk) | C17: Estimated variable O&M that will be avoided due the implementing the measure | D17: 0 | E17: 0
B18: Escalation Rate | D18: 0 | E18: 0
A19: 7 | B19: Non-Gas Fuel Cost ($/Fuel Unit) | C19: Average commodity cost of non gas fuel if measures also saves kWh, gallons of water, etc. (for analysis purposes, used electric as Non-Gas Fuel Cost) | D19: =+'Gas Costs'!C55 -> 0.02736 | E19: =+D19 -> 0.02736
B20: Escalation Rate | D20: 0.03 | E20: 0.03
A21: 8 | B21: Non-Gas Fuel Loss Factor | C21: Non-Gas fuel loss factor (for analysis purposes, used Montana-Dakota Utilities 12 month average ending November 2019 line loss factor) | D21: 0.073 | E21: 0.073
A22: 9 | B22: Gas Environmental Damage Factor | C22: Per Minnesota CIP triennium 2021-2023 | D22: 2.07 | E22: 2.07
B23: Escalation Rate | D23: 0.023 | E23: 0.023
A24: 10 | B24: Non Gas Fuel Environmental Damage Factor | C24: Not Applicable | D24: 0 | E24: 0
B25: Escalation Rate | D25: 0 | E25: 0
A26: 11 | B26: Participant Discount Rate | C26: Federal Reserve Consumer Credit Interest Rate 12 Months ended December 31, 2019 | D26: 0.1032 | E26: =+D26 -> 0.1032
A27: 12 | B27: Utility Discount Rate | C27: Montana-Dakota's authorized average cost of capital | D27: 0.07216 | E27: 0.07216
A28: 13 | B28: Societal Discount Rate | C28: Equal to the 30 year T-Bill rate average for Twelve Months Ending December 31, 2022 | D28: ='T bill'!B71/100 -> 0.0224 | E28: =D28 -> 0.0224
A29: 14 | B29: General Input Data Year = | C29: Year data was input | D29: =+'Total Program Inputs'!C6 -> 2022 | E29: =+D29 -> 2022
A30: 15 | B30: Project Analysis Year | C30: Year(s) program will be implemented | D30: ='Total Program Inputs'!C6 -> 2022 | E30: =+D30 -> 2022
D31: =D30+1 -> 2023 | E31: =+D31 -> 2023
D32: 2024 | E32: =+D32 -> 2024
A33: 16 | B33: Utility Project Costs | C33: Total direct cost to the utility caused by implementing the program(s)
A34: 17 | B34: Direct Participant Costs ($/Part.) | C34: Direct costs that the participant would have to participate in the program
A35: 18 | B35: Participant Non-Energy Costs (Annual $/Part.) Yr. 1 | C35: Annual participant non-energy costs if applicable caused by implementing the measure (Not Applicable) | D35: 0 | E35: 0
B36: Yr. 2 | D36: 0 | E36: 0
B37: Yr. 3 | D37: 0 | E37: 0
B38: Escalation Rate Yr. 1 | D38: 0 | E38: 0
B39: Escalation Rate Yr. 2 | D39: 0 | E39: 0
B40: Escalation Rate Yr. 3 | D40: 0 | E40: 0
A41: 19 | B41: Participant Non-Energy Savings (Annual $/Part) Yr. 1 | C41: Participant non energy savings if applicable caused by implementing the measure (Not Applicable) | D41: 0 | E41: 0
B42: Yr. 2 | D42: 0 | E42: 0
B43: Yr. 3 | D43: 0 | E43: 0
B44: Escalation Rate Yr. 1 | D44: 0 | E44: 0
B45: Escalation Rate Yr. 2 | D45: 0 | E45: 0
B46: Escalation Rate Yr. 3 | D46: 0 | E46: 0
A47: 20 | B47: Project Life (Years) | C47: Based on the estimated useful life of the energy saving equipment (20 years maximum)
A48: 21 | B48: Avg. Dk/Part. Saved | C48: Avg energy reduction (Dk) caused by the program(s)
A49: 22 | B49: Avg Non-Gas Fuel Units/Part. Saved Yr. 1 | C49: Average non-gas fuel units saved or added due to implementing the measure (for analysis purposes, used Kwh)
B50: Yr. 2 | D50: 0 | E50: 0
B51: Yr. 3 | D51: 0 | E51: 0
A52: 22a | B52: Avg Additional Non-Gas Fuel Units/ Part. Used Yr. 1 | D52: 0 | E52: 0
B53: Yr. 2 | D53: 0 | E53: 0
B54: Yr. 3 | D54: 0 | E54: 0
A55: 23 | B55: Number of Participants | C55: Total number of expected participants is the program(s)
A56: 24 | B56: Total Annual Dk Saved | C56: Total Dk saved from the program in the year implemented
A57: 25 | B57: Incentive/Participant | C57: Incentive provided to the participant
A58: 26 | B58: Distribution Delivery Charge | C58: Weighted Average of Montana-Dakota's Distribution Delivery Charge | D58: =+'Gas Costs'!C10 -> 1.836 | E58: =+'Gas Costs'!E10 -> 0.93
A59: 27 | B59: Effective Fed & State Income Tax Rate | C59: Montana-Dakota's effective tax rate | D59: 0.21 | E59: 0.21

Sheet Gas Costs
A1: MONTANA-DAKOTA UTILITIES CO.
A2: GAS UTILITY - SOUTH DAKOTA
A3: PROJECTED COST OF GAS - 2023
C6: South Dakota
C7: Residential | E7: Firm General
A8: Retail Rate
A9: Average cost of gas 1/ | C9: 6.154 | E9: =+C9 -> 6.154
A10: Margin | C10: 1.836 | E10: 0.93 | F10: 2/
A11: Total Retail Rate | C11: =SUM(C9:C10) -> 7.99 | E11: =SUM(E9:E10) -> 7.084
A14: Gas Commodity | C14: 29739221
A15: Non-gas commodity | C15: 960937
A16: Total | C16: =SUM(C14:C15) -> 30700158 | E16: =ROUND(+C16/C18/0.99,3) -> 4.357 | F16: per dk adj. for losses
A18: Dk deliveries | C18: 7118052
A20: Demand Cost (Avoided Capacity) ($/dk/yr)
A21: Total Demand Charges (February 2023 PGA) | C21: 12485700
A22: Capacity requirements 3/ | C22: 83579
A23: Demand Costs | C23: =+ROUND(C21/C22,2) -> 149.39
A26: 1/ Based on February 2023 PGA adjusted to reflect the projected annual 2023 gas commodity cost.
A27: 2/ Meters rated < 500 cubic feet.
A28: 3/ FT-1, FT-1 negotiated contract and T-FTG-1 capacity.
A31: Electric - Black Hills Power
A32: Residential
A33: Base Rate | B33: 2020-01-01 | C33: 12 | E33: 12 | G33: 0 | H33: 4/
A34: Energy Charge
A35: All Kwh | C35: 12000 | E35: 0.08827 | G35: =C35*E35 -> 1059.24
A36: Cost Adjustment | C36: 12000 | E36: 0.04109 | G36: =C36*E36 -> 493.08
A37: Total Bill | G37: =SUM(G33:G36) -> 1552.32
A39: Average Realization | G39: =ROUND(G37/C35,5) -> 0.12936
A41: Commercial (Small general service)
A42: Base Rate | C42: 12 | E42: 15 | G42: 0 | H42: 4/
A43: Energy Charge
A44: First 3000 Kwh | C44: 3000 | E44: 0.077 | G44: =C44*E44 -> 231
A45: Over 3,000 Kwh | C45: 69000 | E45: 0.06026 | G45: =C45*E45 -> 4157.94
A46: Cost Adjustment | C46: =SUM(C44:C45) -> 72000 | E46: 0.04299 | G46: =C46*E46 -> 3095.28
A47: Demand Charge
A48: First 50 KW | C48: 50 | E48: 8 | G48: =C48*E48 -> 400
A49: Over 50 KW | C49: 150 | E49: 7.69 | G49: =C49*E49 -> 1153.5
A50: Total Bill | G50: =SUM(G42:G49) -> 9037.72
A52: Average Realization | G52: =ROUND(G50/C46,5) -> 0.12552
A54: Cost of Fuel
A55: Base | C55: 0.02736
A57: 4/ Base charge not included for conservation calculations as it has no relation to savings
A58: on consumption.

Sheet T bill
A2: Website Hyperlink: | B2: https://www.federalreserve.gov/datadownload/Choose.aspx?rel=H15
A4: Then follow instructions to "build your package"
A6: Download Page | B6: H.15 Selected Interest Rates for Nov 09, 2016
A7: Series Description | B7: 3-month Treasury bill secondary market rate discount basis
A8: Unit: | B8: Percent:_Per_Year
A9: Multiplier: | B9: 1
A10: Currency: | B10: NA
A11: Unique Identifier: | B11: H15/H15/RIFSGFSM03_N.A
A12: Time Period | B12: RIFSGFSM03_N.A
A13: 1966 | B13: 4.86
A14: 1967 | B14: 4.29
A15: 1968 | B15: 5.34
A16: 1969 | B16: 6.67
A17: 1970 | B17: 6.39
A18: 1971 | B18: 4.33
A19: 1972 | B19: 4.06
A20: 1973 | B20: 7.04
A21: 1974 | B21: 7.85
A22: 1975 | B22: 5.79
A23: 1976 | B23: 4.98
A24: 1977 | B24: 5.26
A25: 1978 | B25: 7.18
A26: 1979 | B26: 10.05
A27: 1980 | B27: 11.39
A28: 1981 | B28: 14.04
A29: 1982 | B29: 10.6
A30: 1983 | B30: 8.62
A31: 1984 | B31: 9.54
A32: 1985 | B32: 7.47
A33: 1986 | B33: 5.97
A34: 1987 | B34: 5.78
A35: 1988 | B35: 6.67
A36: 1989 | B36: 8.11
A37: 1990 | B37: 7.5
A38: 1991 | B38: 5.38
A39: 1992 | B39: 3.43
A40: 1993 | B40: 3
A41: 1994 | B41: 4.25
A42: 1995 | B42: 5.49
A43: 1996 | B43: 5.01
A44: 1997 | B44: 5.06
A45: 1998 | B45: 4.78
A46: 1999 | B46: 4.64
A47: 2000 | B47: 5.82
A48: 2001 | B48: 3.4
A49: 2002 | B49: 1.61
A50: 2003 | B50: 1.01
A51: 2004 | B51: 1.37
A52: 2005 | B52: 3.15
A53: 2006 | B53: 4.73
A54: 2007 | B54: 4.36
A55: 2008 | B55: 1.37
A56: 2009 | B56: 0.15
A57: 2010 | B57: 0.14
A58: 2011 | B58: 0.05
A59: 2012 | B59: 0.09
A60: 2013 | B60: 0.06
A61: 2014 | B61: 0.03
A62: 2015 | B62: 0.05
A63: 2016 | B63: 0.32
A64: 2017 | B64: 0.93
A65: 2018 | B65: 1.94
A66: 2019 | B66: 2.06
A67: 2020 | B67: 0.37
A68: 2021 | B68: 0.04
A69: 2022 | B69: 2.02
A71: 30 Year Average | B71: =ROUND(AVERAGE(B40:B69),2) -> 2.24

Sheet Summary of Ratios
A1: Montana-Dakota Utilities Co.
A2: South Dakota Gas DSM Program Summary
B6: Customer | G6: Total Resource
A7: Program | B7: Class | C7: RIM | D7: Utility | E7: Societal | F7: Participant | G7: Cost
A8: Total Portfolio | C8: ='Total Program'!G42 -> 2.02 | D8: ='Total Program'!G43 -> 4.01 | E8: ='Total Program'!G44 -> 4.28 | F8: ='Total Program'!G45 -> 3.960253065 | G8: ='Total Program'!G46 -> 2.22
A10: Furnace (95+%) - New | B10: Residential | C10: ='Res .95+% Res Furnace - NEW'!G42 -> 1.52 | D10: ='Res .95+% Res Furnace - NEW'!G43 -> 2.51 | E10: ='Res .95+% Res Furnace - NEW'!G44 -> 4.74 | F10: ='Res .95+% Res Furnace - NEW'!G45 -> 3.97 | G10: ='Res .95+% Res Furnace - NEW'!G46 -> 2.32
A11: Furnace (95+%) - Replacement | B11: Residential | C11: ='Res .95+% Res Furnace - Replace'!G42 -> 1.98 | D11: ='Res .95+% Res Furnace - Replace'!G43 -> 4.04 | E11: ='Res .95+% Res Furnace - Replace'!G44 -> 4.28 | F11: ='Res .95+% Res Furnace - Replace'!G45 -> 4.04 | G11: ='Res .95+% Res Furnace - Replace'!G46 -> 2.19
A12: ='Database Inputs'!A12 -> Programmable Thermostats - Tier 1 | B12: Residential | C12: ='Programmable Tstats - Tier 1'!G42 -> 2.44 | D12: =+'Programmable Tstats - Tier 1'!AG42 -> 6.3 | E12: ='Programmable Tstats - Tier 1'!G44 -> 5.64 | F12: ='Programmable Tstats - Tier 1'!G45 -> 5.08 | G12: ='Programmable Tstats - Tier 1'!G46 -> 3.41
A13: ='Database Inputs'!A13 -> Programmable Thermostats - Tier 2 | B13: Residential | C13: ='Programmable Tstats - Tier 2'!G42 -> 2.08 | D13: ='Programmable Tstats - Tier 2'!G43 -> 4.37 | E13: ='Programmable Tstats - Tier 2'!G44 -> 3.15 | F13: ='Programmable Tstats - Tier 2'!G45 -> 3.1 | G13: ='Programmable Tstats - Tier 2'!G46 -> 1.92
A14: Furnace (95+%) - New | B14: Commercial | C14: ='Comm 95+% Furnace - NEW'!G42 -> 2.59 | D14: ='Comm 95+% Furnace - NEW'!G43 -> 3.8 | E14: ='Comm 95+% Furnace - NEW'!G44 -> 7.06 | F14: ='Comm 95+% Furnace - NEW'!G45 -> 4.78 | G14: ='Comm 95+% Furnace - NEW'!G46 -> 3.5
A15: Furnace (95+%) - Replacement | B15: Commercial | C15: ='Comm 95+% Furnace - Replace'!G42 -> 3.21 | D15: ='Comm 95+% Furnace - Replace'!G43 -> 5.51 | E15: ='Comm 95+% Furnace - Replace'!G44 -> 5.62 | F15: ='Comm 95+% Furnace - Replace'!G45 -> 4.45 | G15: ='Comm 95+% Furnace - Replace'!G46 -> 2.84
A16: Custom Efficiency | B16: Commercial | C16: 0 | D16: 0 | E16: 0 | F16: 0 | G16: 0

Sheet Total Program
A1: NATURAL GAS CONSERVATION PROGRAMS/DEMAND-SIDE MANAGEMENT | K1: Table 1 | AD1: Table 2 | AP1: Table 3 | BG1: Table 4 | BV1: Table 5
A2: BEN/COST ANALYSIS FOR GAS CONSERVATION | K2: Ratepayer Impact Measure Test | AD2: Utility Cost Test | AP2: Societal Test | BG2: Participant Test | BV2: Total Resource Cost Test
A4: Company: | B4: Montana-Dakota Utilities Co. | K4: Company: | M4: =B4 -> Montana-Dakota Utilities Co. | AD4: Company: | AF4: =B4 -> Montana-Dakota Utilities Co. | AP4: Company: | AR4: =AF4 -> Montana-Dakota Utilities Co. | BH4: Company: | BI4: =AR4 -> Montana-Dakota Utilities Co. | BW4: Company: | BX4: =BI4 -> Montana-Dakota Utilities Co.
A5: Project: | B5: Total South Dakota Program | K5: Project: | M5: =$B$5 -> Total South Dakota Program | AD5: Project: | AF5: =$B$5 -> Total South Dakota Program | AP5: Project: | AR5: =$B$5 -> Total South Dakota Program | BH5: Project: | BI5: =$B$5 -> Total South Dakota Program | BW5: Project: | BX5: =$B$5 -> Total South Dakota Program
A6: Program Years: | B6: =+'Total Program Inputs'!C6 -> 2022
N7: Benefits | X7: Costs | AF7: Benefits | AJ7: Costs | AR7: Benefits | BB7: Costs | BI7: Benefits | BR7: Costs | BX7: Benefits | CC7: Costs
A8: Input Data | F8: =+'Total Program Inputs'!C6 -> 2022 | AB8: Annual | AN8: Annual | AT8: Non-Gas | BE8: Annual | BT8: Annual | CG8: Annual
M9: Total | N9: Gas | O9: Gas | P9: Variable | Q9: Variable | R9: Total | S9: Peak Dk | T9: Dmd | U9: Total | W9: Distribution | Y9: Program | AA9: Total | AB9: Benefits | AF9: Total | AG9: Total | AH9: Annual | AJ9: Program | AL9: Utility | AN9: Benefits | AR9: Total | AS9: Total | AT9: Energy | AU9: Non-Gas | AV9: Environmental | AW9: Environmental | AZ9: Annual | BB9: Utility | BC9: Participants' | BD9: Annual | BE9: Benefits | BJ9: Total | BL9: Gas | BM9: Non-Gas | BN9: Non-Gas | BP9: Total | BR9: Direct | BT9: Benefits | BX9: Total | BY9: Total | BZ9: Non-Gas | CA9: Total | CC9: Utility | CD9: Participants' | CG9: Benefits
A10: 1) Retail Rate ($/Dk) = | E10: 16) Utility Project Costs | M10: Energy | N10: Commodity | O10: Commodity | P10: O & M | Q10: O & M | R10: Energy | S10: Demand | T10: Savings | U10: Demand | V10: Total | W10: Delivery | X10: Lost | Y10: Admin | Z10: Incentive | AA10: Program | AB10: Less | AF10: Energy | AG10: Demand | AH10: Total | AJ10: Admin | AK10: Incentive | AL10: Program | AN10: Less | AR10: Energy | AS10: Demand | AT10: Savings | AU10: Energy | AV10: Damage | AW10: Damage | AZ10: Total | BB10: Program | BC10: Costs Net | BD10: Total | BE10: Less | BI10: Incentives | BJ10: Energy | BK10: Retail | BL10: Bill | BM10: Fuel | BN10: Energy | BP10: Annual | BR10: Participant | BT10: Less | BX10: Energy | BY10: Demand | BZ10: Energy | CA10: Annual | CC10: Program | CD10: Costs Net | CE10: Total | CG10: Less
A11: Escalation Rate = | E11: 16a) Administrative & Operating Costs = 1/ | F11: =+'Res .95+% Res Furnace - NEW'!F11+'Res .95+% Res Furnace - Replace'!F11+'Programmable Tstats - Tier 1'!F11+'Programmable Tstats - Tier 2'!F11+'Comm 95+% Furnace - NEW'!F11+'Comm 95+% Furnace - Replace'!F11+'Comm Custom'!F11 -> 17804 | J11: t | M11: Reduction | N11: Cost/Dk | O11: Savings | P11: Cost/Dk | Q11: Savings | R11: Savings | S11: Reduction | T11: '/ Unit | U11: Savings | V11: Savings | W11: Charge | X11: Margin | Y11: Costs | Z11: Costs | AA11: Costs | AB11: Costs | AF11: Savings | AG11: Savings | AH11: Savings | AJ11: Costs | AK11: Costs | AL11: Costs | AN11: Costs | AR11: Savings | AS11: Savings | AT11: ($/Part.) | AU11: Savings | AV11: Savings/Dk | AW11: Savings | AZ11: Savings | BB11: Costs | BC11: of Rebate | BD11: Costs | BE11: Costs | BI11: Received | BJ11: Reduction | BK11: Rate | BL11: Savings | BM11: Retail Rate | BN11: Savings | BP11: Benefits | BR11: Costs | BT11: Costs | BX11: Savings | BY11: Savings | BZ11: Savings | CA11: Benefits | CC11: Costs | CD11: of Rebate | CE11: Costs | CG11: Costs
E12: 16b) Incentive Costs = | F12: =+'Res .95+% Res Furnace - NEW'!F12+'Res .95+% Res Furnace - Replace'!F12+'Programmable Tstats - Tier 1'!F12+'Programmable Tstats - Tier 2'!F12+'Comm 95+% Furnace - NEW'!F12+'Comm 95+% Furnace - Replace'!F12+'Comm Custom'!F12 -> 100384 | L12: Year | M12: (A) | N12: (B) | O12: (C) | P12: (D) | Q12: (E) | R12: (F) | S12: (G) | T12: (H) | U12: (I) | V12: (J) | W12: (K) | X12: (L) | Y12: (M) | Z12: (N) | AA12: (O) | AB12: (P) | AE12: Year | AF12: (A) | AG12: (B) | AH12: (C) | AJ12: (D) | AK12: (E) | AL12: (F) | AN12: (G) | AQ12: Year | AR12: (A) | AS12: (B) | AT12: (C) | AU12: (D) | AV12: (E) | AW12: (F) | AZ12: (G) | BB12: (H) | BC12: (I) | BD12: (J) | BE12: (K) | BH12: Year | BI12: (A) | BJ12: (B) | BK12: (C) | BL12: (D) | BM12: (E) | BN12: (F) | BP12: (G) | BR12: (H) | BT12: (I) | BW12: Year | BX12: (A) | BY12: (B) | BZ12: (C) | CA12: (D) | CC12: (E) | CD12: (F) | CE12: (G) | CG12: (H)
A13: 2) Non-Gas Fuel Retail Rate ($/Fuel Unit) = | E13: 16c) Total Utility Project Costs = | F13: =SUM(F11:F12) -> 118188
A14: Escalation Rate = | J14: =$C$47-$C$45 -> 0 | L14: =$C$47 -> 2022 | M14: =ROUND(+'Res .95+% Res Furnace - NEW'!M14+'Res .95+% Res Furnace - Replace'!M14+'Programmable Tstats - Tier 1'!M14+'Programmable Tstats - Tier 2'!M14+'Comm 95+% Furnace - NEW'!M14+'Comm 95+% Furnace - Replace'!M14+'Comm Custom'!M14,0) -> 6476 | O14: =ROUND(+'Res .95+% Res Furnace - NEW'!O14+'Res .95+% Res Furnace - Replace'!O14+'Programmable Tstats - Tier 1'!O14+'Programmable Tstats - Tier 2'!O14+'Comm 95+% Furnace - NEW'!O14+'Comm 95+% Furnace - Replace'!O14+'Comm Custom'!O14,0) -> 28216 | Q14: =ROUND(+'Res .95+% Res Furnace - NEW'!Q14+'Res .95+% Res Furnace - Replace'!Q14+'Programmable Tstats - Tier 1'!Q14+'Programmable Tstats - Tier 2'!Q14+'Comm 95+% Furnace - NEW'!Q14+'Comm 95+% Furnace - Replace'!Q14+'Comm Custom'!Q14,0) -> 0 | R14: =ROUND(+'Res .95+% Res Furnace - NEW'!R14+'Res .95+% Res Furnace - Replace'!R14+'Programmable Tstats - Tier 1'!R14+'Programmable Tstats - Tier 2'!R14+'Comm 95+% Furnace - NEW'!R14+'Comm 95+% Furnace - Replace'!R14+'Comm Custom'!R14,0) -> 28216 | S14: =ROUND(+'Res .95+% Res Furnace - NEW'!S14+'Res .95+% Res Furnace - Replace'!S14+'Programmable Tstats - Tier 1'!S14+'Programmable Tstats - Tier 2'!S14+'Comm 95+% Furnace - NEW'!S14+'Comm 95+% Furnace - Replace'!S14+'Comm Custom'!S14,0) -> 65 | U14: =ROUND(+'Res .95+% Res Furnace - NEW'!U14+'Res .95+% Res Furnace - Replace'!U14+'Programmable Tstats - Tier 1'!U14+'Programmable Tstats - Tier 2'!U14+'Comm 95+% Furnace - NEW'!U14+'Comm 95+% Furnace - Replace'!U14+'Comm Custom'!U14,0) -> 9656 | V14: =ROUND(+'Res .95+% Res Furnace - NEW'!V14+'Res .95+% Res Furnace - Replace'!V14+'Programmable Tstats - Tier 1'!V14+'Programmable Tstats - Tier 2'!V14+'Comm 95+% Furnace - NEW'!V14+'Comm 95+% Furnace - Replace'!V14+'Comm Custom'!V14,0) -> 37872 | X14: =ROUND(+'Res .95+% Res Furnace - NEW'!X14+'Res .95+% Res Furnace - Replace'!X14+'Programmable Tstats - Tier 1'!X14+'Programmable Tstats - Tier 2'!X14+'Comm 95+% Furnace - NEW'!X14+'Comm 95+% Furnace - Replace'!X14+'Comm Custom'!X14,0) -> 9018 | Y14: =ROUND(+'Res .95+% Res Furnace - NEW'!Y14+'Res .95+% Res Furnace - Replace'!Y14+'Programmable Tstats - Tier 1'!Y14+'Programmable Tstats - Tier 2'!Y14+'Comm 95+% Furnace - NEW'!Y14+'Comm 95+% Furnace - Replace'!Y14+'Comm Custom'!Y14,0) -> 17804 | Z14: =ROUND(+'Res .95+% Res Furnace - NEW'!Z14+'Res .95+% Res Furnace - Replace'!Z14+'Programmable Tstats - Tier 1'!Z14+'Programmable Tstats - Tier 2'!Z14+'Comm 95+% Furnace - NEW'!Z14+'Comm 95+% Furnace - Replace'!Z14+'Comm Custom'!Z14,0) -> 100384 | AA14: =ROUND(+'Res .95+% Res Furnace - NEW'!AA14+'Res .95+% Res Furnace - Replace'!AA14+'Programmable Tstats - Tier 1'!AA14+'Programmable Tstats - Tier 2'!AA14+'Comm 95+% Furnace - NEW'!AA14+'Comm 95+% Furnace - Replace'!AA14+'Comm Custom'!AA14,0) -> 127206 | AB14: =ROUND(+'Res .95+% Res Furnace - NEW'!AB14+'Res .95+% Res Furnace - Replace'!AB14+'Programmable Tstats - Tier 1'!AB14+'Programmable Tstats - Tier 2'!AB14+'Comm 95+% Furnace - NEW'!AB14+'Comm 95+% Furnace - Replace'!AB14+'Comm Custom'!AB14,0) -> -89334 | AE14: =$C$47 -> 2022 | AF14: =+R14 -> 28216 | AG14: =+U14 -> 9656 | AH14: =+AG14+AF14 -> 37872 | AJ14: =ROUND(Y14,0) -> 17804 | AK14: =ROUND(Z14,0) -> 100384 | AL14: =SUM(AJ14:AK14) -> 118188 | AN14: =+AH14-AL14 -> -80316 | AQ14: =$C$47 -> 2022 | AR14: =AF14 -> 28216 | AS14: =+AG14 -> 9656 | AU14: =ROUND(+'Res .95+% Res Furnace - NEW'!AU14+'Res .95+% Res Furnace - Replace'!AU14+'Programmable Tstats - Tier 1'!AU14+'Programmable Tstats - Tier 2'!AU14+'Comm 95+% Furnace - NEW'!AU14+'Comm 95+% Furnace - Replace'!AU14+'Comm Custom'!AU14,0) -> 5765 | AW14: =ROUND(+'Res .95+% Res Furnace - NEW'!AW14+'Res .95+% Res Furnace - Replace'!AW14+'Programmable Tstats - Tier 1'!AW14+'Programmable Tstats - Tier 2'!AW14+'Comm 95+% Furnace - NEW'!AW14+'Comm 95+% Furnace - Replace'!AW14+'Comm Custom'!AW14,0) -> 13405 | AZ14: =ROUND(AR14+AS14+AU14+AW14+AY14,0) -> 57042 | BB14: =ROUND(+'Res .95+% Res Furnace - NEW'!BB14+'Res .95+% Res Furnace - Replace'!BB14+'Programmable Tstats - Tier 1'!BB14+'Programmable Tstats - Tier 2'!BB14+'Comm 95+% Furnace - NEW'!BB14+'Comm 95+% Furnace - Replace'!BB14+'Comm Custom'!BB14,0) -> 118188 | BC14: =ROUND(+'Res .95+% Res Furnace - NEW'!BC14+'Res .95+% Res Furnace - Replace'!BC14+'Programmable Tstats - Tier 1'!BC14+'Programmable Tstats - Tier 2'!BC14+'Comm 95+% Furnace - NEW'!BC14+'Comm 95+% Furnace - Replace'!BC14+'Comm Custom'!BC14,0) -> 130703 | BD14: =BB14+BC14 -> 248891 | BE14: =AZ14-BD14 -> -191849 | BH14: =$C$47 -> 2022 | BI14: =ROUND(+'Res .95+% Res Furnace - NEW'!BI14+'Res .95+% Res Furnace - Replace'!BI14+'Programmable Tstats - Tier 1'!BI14+'Programmable Tstats - Tier 2'!BI14+'Comm 95+% Furnace - NEW'!BI14+'Comm 95+% Furnace - Replace'!BI14+'Comm Custom'!BI14,0) -> 100384 | BJ14: =ROUND(+'Res .95+% Res Furnace - NEW'!BJ14+'Res .95+% Res Furnace - Replace'!BJ14+'Programmable Tstats - Tier 1'!BJ14+'Programmable Tstats - Tier 2'!BJ14+'Comm 95+% Furnace - NEW'!BJ14+'Comm 95+% Furnace - Replace'!BJ14+'Comm Custom'!BJ14,0) -> 6476 | BL14: =ROUND(+'Res .95+% Res Furnace - NEW'!BL14+'Res .95+% Res Furnace - Replace'!BL14+'Programmable Tstats - Tier 1'!BL14+'Programmable Tstats - Tier 2'!BL14+'Comm 95+% Furnace - NEW'!BL14+'Comm 95+% Furnace - Replace'!BL14+'Comm Custom'!BL14,0) -> 51269 | BN14: =ROUND(+'Res .95+% Res Furnace - NEW'!BN14+'Res .95+% Res Furnace - Replace'!BN14+'Programmable Tstats - Tier 1'!BN14+'Programmable Tstats - Tier 2'!BN14+'Comm 95+% Furnace - NEW'!BN14+'Comm 95+% Furnace - Replace'!BN14+'Comm Custom'!BN14,0) -> 24740 | BP14: =BI14+BL14+BN14+BO14 -> 176393 | BR14: =ROUND(+'Res .95+% Res Furnace - NEW'!BR14+'Res .95+% Res Furnace - Replace'!BR14+'Programmable Tstats - Tier 1'!BR14+'Programmable Tstats - Tier 2'!BR14+'Comm 95+% Furnace - NEW'!BR14+'Comm 95+% Furnace - Replace'!BR14+'Comm Custom'!BR14,0) -> 231087 | BT14: =BP14-BR14 -> -54694 | BW14: =$C$47 -> 2022 | BX14: =$R14 -> 28216 | BY14: =U14 -> 9656 | BZ14: =AU14 -> 5765 | CA14: =SUM(BX14:BZ14) -> 43637 | CC14: =BB14 -> 118188 | CD14: =BC14 -> 130703 | CE14: =SUM(CC14:CD14) -> 248891 | CG14: =CA14-CE14 -> -205254
A15: Non-Gas Fuel Units (ie. kWh,Gallons, etc) = | E15: 17) Direct Participant Costs ($/Part.) = | J15: =J14+1 -> 1 | L15: =L14+1 -> 2023 | M15: =ROUND(+'Res .95+% Res Furnace - NEW'!M15+'Res .95+% Res Furnace - Replace'!M15+'Programmable Tstats - Tier 1'!M15+'Programmable Tstats - Tier 2'!M15+'Comm 95+% Furnace - NEW'!M15+'Comm 95+% Furnace - Replace'!M15+'Comm Custom'!M15,0) -> 6476 | O15: =ROUND(+'Res .95+% Res Furnace - NEW'!O15+'Res .95+% Res Furnace - Replace'!O15+'Programmable Tstats - Tier 1'!O15+'Programmable Tstats - Tier 2'!O15+'Comm 95+% Furnace - NEW'!O15+'Comm 95+% Furnace - Replace'!O15+'Comm Custom'!O15,0) -> 29065 | Q15: =ROUND(+'Res .95+% Res Furnace - NEW'!Q15+'Res .95+% Res Furnace - Replace'!Q15+'Programmable Tstats - Tier 1'!Q15+'Programmable Tstats - Tier 2'!Q15+'Comm 95+% Furnace - NEW'!Q15+'Comm 95+% Furnace - Replace'!Q15+'Comm Custom'!Q15,0) -> 0 | R15: =ROUND(+'Res .95+% Res Furnace - NEW'!R15+'Res .95+% Res Furnace - Replace'!R15+'Programmable Tstats - Tier 1'!R15+'Programmable Tstats - Tier 2'!R15+'Comm 95+% Furnace - NEW'!R15+'Comm 95+% Furnace - Replace'!R15+'Comm Custom'!R15,0) -> 29065 | S15: =ROUND(+'Res .95+% Res Furnace - NEW'!S15+'Res .95+% Res Furnace - Replace'!S15+'Programmable Tstats - Tier 1'!S15+'Programmable Tstats - Tier 2'!S15+'Comm 95+% Furnace - NEW'!S15+'Comm 95+% Furnace - Replace'!S15+'Comm Custom'!S15,0) -> 65 | U15: =ROUND(+'Res .95+% Res Furnace - NEW'!U15+'Res .95+% Res Furnace - Replace'!U15+'Programmable Tstats - Tier 1'!U15+'Programmable Tstats - Tier 2'!U15+'Comm 95+% Furnace - NEW'!U15+'Comm 95+% Furnace - Replace'!U15+'Comm Custom'!U15,0) -> 9785 | V15: =ROUND(+'Res .95+% Res Furnace - NEW'!V15+'Res .95+% Res Furnace - Replace'!V15+'Programmable Tstats - Tier 1'!V15+'Programmable Tstats - Tier 2'!V15+'Comm 95+% Furnace - NEW'!V15+'Comm 95+% Furnace - Replace'!V15+'Comm Custom'!V15,0) -> 38850 | X15: =ROUND(+'Res .95+% Res Furnace - NEW'!X15+'Res .95+% Res Furnace - Replace'!X15+'Programmable Tstats - Tier 1'!X15+'Programmable Tstats - Tier 2'!X15+'Comm 95+% Furnace - NEW'!X15+'Comm 95+% Furnace - Replace'!X15+'Comm Custom'!X15,0) -> 9289 | Y15: =ROUND(+'Res .95+% Res Furnace - NEW'!Y15+'Res .95+% Res Furnace - Replace'!Y15+'Programmable Tstats - Tier 1'!Y15+'Programmable Tstats - Tier 2'!Y15+'Comm 95+% Furnace - NEW'!Y15+'Comm 95+% Furnace - Replace'!Y15+'Comm Custom'!Y15,0) -> 0 | Z15: =ROUND(+'Res .95+% Res Furnace - NEW'!Z15+'Res .95+% Res Furnace - Replace'!Z15+'Programmable Tstats - Tier 1'!Z15+'Programmable Tstats - Tier 2'!Z15+'Comm 95+% Furnace - NEW'!Z15+'Comm 95+% Furnace - Replace'!Z15+'Comm Custom'!Z15,0) -> 0 | AA15: =ROUND(+'Res .95+% Res Furnace - NEW'!AA15+'Res .95+% Res Furnace - Replace'!AA15+'Programmable Tstats - Tier 1'!AA15+'Programmable Tstats - Tier 2'!AA15+'Comm 95+% Furnace - NEW'!AA15+'Comm 95+% Furnace - Replace'!AA15+'Comm Custom'!AA15,0) -> 9289 | AB15: =ROUND(+'Res .95+% Res Furnace - NEW'!AB15+'Res .95+% Res Furnace - Replace'!AB15+'Programmable Tstats - Tier 1'!AB15+'Programmable Tstats - Tier 2'!AB15+'Comm 95+% Furnace - NEW'!AB15+'Comm 95+% Furnace - Replace'!AB15+'Comm Custom'!AB15,0) -> 29561 | AE15: =AE14+1 -> 2023 | AF15: 29065 | AG15: 9785 | AH15: =+AG15+AF15 -> 38850 | AJ15: =ROUND(Y15,0) -> 0 | AK15: 0 | AL15: 0 | AN15: =+AH15-AL15 -> 38850 | AQ15: =AQ14+1 -> 2023 | AR15: =AF15 -> 29065 | AS15: =+AG15 -> 9785 | AU15: =ROUND(+'Res .95+% Res Furnace - NEW'!AU15+'Res .95+% Res Furnace - Replace'!AU15+'Programmable Tstats - Tier 1'!AU15+'Programmable Tstats - Tier 2'!AU15+'Comm 95+% Furnace - NEW'!AU15+'Comm 95+% Furnace - Replace'!AU15+'Comm Custom'!AU15,0) -> 5765 | AW15: =ROUND(+'Res .95+% Res Furnace - NEW'!AW15+'Res .95+% Res Furnace - Replace'!AW15+'Programmable Tstats - Tier 1'!AW15+'Programmable Tstats - Tier 2'!AW15+'Comm 95+% Furnace - NEW'!AW15+'Comm 95+% Furnace - Replace'!AW15+'Comm Custom'!AW15,0) -> 13715 | AZ15: =ROUND(AR15+AS15+AU15+AW15+AY15,0) -> 58330 | BB15: =ROUND(+'Res .95+% Res Furnace - NEW'!BB15+'Res .95+% Res Furnace - Replace'!BB15+'Programmable Tstats - Tier 1'!BB15+'Programmable Tstats - Tier 2'!BB15+'Comm 95+% Furnace - NEW'!BB15+'Comm 95+% Furnace - Replace'!BB15+'Comm Custom'!BB15,0) -> 0 | BC15: =ROUND(+'Res .95+% Res Furnace - NEW'!BC15+'Res .95+% Res Furnace - Replace'!BC15+'Programmable Tstats - Tier 1'!BC15+'Programmable Tstats - Tier 2'!BC15+'Comm 95+% Furnace - NEW'!BC15+'Comm 95+% Furnace - Replace'!BC15+'Comm Custom'!BC15,0) -> 0 | BD15: =BB15+BC15 -> 0 | BE15: =AZ15-BD15 -> 58330 | BH15: =BH14+1 -> 2023 | BI15: =ROUND(+'Res .95+% Res Furnace - NEW'!BI15+'Res .95+% Res Furnace - Replace'!BI15+'Programmable Tstats - Tier 1'!BI15+'Programmable Tstats - Tier 2'!BI15+'Comm 95+% Furnace - NEW'!BI15+'Comm 95+% Furnace - Replace'!BI15+'Comm Custom'!BI15,0) -> 0 | BJ15: =ROUND(+'Res .95+% Res Furnace - NEW'!BJ15+'Res .95+% Res Furnace - Replace'!BJ15+'Programmable Tstats - Tier 1'!BJ15+'Programmable Tstats - Tier 2'!BJ15+'Comm 95+% Furnace - NEW'!BJ15+'Comm 95+% Furnace - Replace'!BJ15+'Comm Custom'!BJ15,0) -> 6476 | BL15: =ROUND(+'Res .95+% Res Furnace - NEW'!BL15+'Res .95+% Res Furnace - Replace'!BL15+'Programmable Tstats - Tier 1'!BL15+'Programmable Tstats - Tier 2'!BL15+'Comm 95+% Furnace - NEW'!BL15+'Comm 95+% Furnace - Replace'!BL15+'Comm Custom'!BL15,0) -> 52808 | BN15: =ROUND(+'Res .95+% Res Furnace - NEW'!BN15+'Res .95+% Res Furnace - Replace'!BN15+'Programmable Tstats - Tier 1'!BN15+'Programmable Tstats - Tier 2'!BN15+'Comm 95+% Furnace - NEW'!BN15+'Comm 95+% Furnace - Replace'!BN15+'Comm Custom'!BN15,0) -> 25492 | BP15: =BI15+BL15+BN15+BO15 -> 78300 | BR15: =ROUND(+'Res .95+% Res Furnace - NEW'!BR15+'Res .95+% Res Furnace - Replace'!BR15+'Programmable Tstats - Tier 1'!BR15+'Programmable Tstats - Tier 2'!BR15+'Comm 95+% Furnace - NEW'!BR15+'Comm 95+% Furnace - Replace'!BR15+'Comm Custom'!BR15,0) -> 0 | BT15: =BP15-BR15 -> 78300 | BW15: =BW14+1 -> 2023 | BX15: =$R15 -> 29065 | BY15: =U15 -> 9785 | BZ15: =AU15 -> 5765 | CA15: =SUM(BX15:BZ15) -> 44615 | CC15: =BB15 -> 0 | CD15: =BC15 -> 0 | CE15: =SUM(CC15:CD15) -> 0 | CG15: =CA15-CE15 -> 44615
J16: 2 | L16: 2024 | M16: =ROUND(+'Res .95+% Res Furnace - NEW'!M16+'Res .95+% Res Furnace - Replace'!M16+'Programmable Tstats - Tier 1'!M16+'Programmable Tstats - Tier 2'!M16+'Comm 95+% Furnace - NEW'!M16+'Comm 95+% Furnace - Replace'!M16+'Comm Custom'!M16,0) -> 6476 | O16: =ROUND(+'Res .95+% Res Furnace - NEW'!O16+'Res .95+% Res Furnace - Replace'!O16+'Programmable Tstats - Tier 1'!O16+'Programmable Tstats - Tier 2'!O16+'Comm 95+% Furnace - NEW'!O16+'Comm 95+% Furnace - Replace'!O16+'Comm Custom'!O16,0) -> 29931 | Q16: =ROUND(+'Res .95+% Res Furnace - NEW'!Q16+'Res .95+% Res Furnace - Replace'!Q16+'Programmable Tstats - Tier 1'!Q16+'Programmable Tstats - Tier 2'!Q16+'Comm 95+% Furnace - NEW'!Q16+'Comm 95+% Furnace - Replace'!Q16+'Comm Custom'!Q16,0) -> 0 | R16: =ROUND(+'Res .95+% Res Furnace - NEW'!R16+'Res .95+% Res Furnace - Replace'!R16+'Programmable Tstats - Tier 1'!R16+'Programmable Tstats - Tier 2'!R16+'Comm 95+% Furnace - NEW'!R16+'Comm 95+% Furnace - Replace'!R16+'Comm Custom'!R16,0) -> 29931 | S16: =ROUND(+'Res .95+% Res Furnace - NEW'!S16+'Res .95+% Res Furnace - Replace'!S16+'Programmable Tstats - Tier 1'!S16+'Programmable Tstats - Tier 2'!S16+'Comm 95+% Furnace - NEW'!S16+'Comm 95+% Furnace - Replace'!S16+'Comm Custom'!S16,0) -> 65 | U16: =ROUND(+'Res .95+% Res Furnace - NEW'!U16+'Res .95+% Res Furnace - Replace'!U16+'Programmable Tstats - Tier 1'!U16+'Programmable Tstats - Tier 2'!U16+'Comm 95+% Furnace - NEW'!U16+'Comm 95+% Furnace - Replace'!U16+'Comm Custom'!U16,0) -> 9849 | V16: =ROUND(+'Res .95+% Res Furnace - NEW'!V16+'Res .95+% Res Furnace - Replace'!V16+'Programmable Tstats - Tier 1'!V16+'Programmable Tstats - Tier 2'!V16+'Comm 95+% Furnace - NEW'!V16+'Comm 95+% Furnace - Replace'!V16+'Comm Custom'!V16,0) -> 39780 | X16: =ROUND(+'Res .95+% Res Furnace - NEW'!X16+'Res .95+% Res Furnace - Replace'!X16+'Programmable Tstats - Tier 1'!X16+'Programmable Tstats - Tier 2'!X16+'Comm 95+% Furnace - NEW'!X16+'Comm 95+% Furnace - Replace'!X16+'Comm Custom'!X16,0) -> 9567 | Y16: =ROUND(+'Res .95+% Res Furnace - NEW'!Y16+'Res .95+% Res Furnace - Replace'!Y16+'Programmable Tstats - Tier 1'!Y16+'Programmable Tstats - Tier 2'!Y16+'Comm 95+% Furnace - NEW'!Y16+'Comm 95+% Furnace - Replace'!Y16+'Comm Custom'!Y16,0) -> 0 | Z16: =ROUND(+'Res .95+% Res Furnace - NEW'!Z16+'Res .95+% Res Furnace - Replace'!Z16+'Programmable Tstats - Tier 1'!Z16+'Programmable Tstats - Tier 2'!Z16+'Comm 95+% Furnace - NEW'!Z16+'Comm 95+% Furnace - Replace'!Z16+'Comm Custom'!Z16,0) -> 0 | AA16: =ROUND(+'Res .95+% Res Furnace - NEW'!AA16+'Res .95+% Res Furnace - Replace'!AA16+'Programmable Tstats - Tier 1'!AA16+'Programmable Tstats - Tier 2'!AA16+'Comm 95+% Furnace - NEW'!AA16+'Comm 95+% Furnace - Replace'!AA16+'Comm Custom'!AA16,0) -> 9567 | AB16: =ROUND(+'Res .95+% Res Furnace - NEW'!AB16+'Res .95+% Res Furnace - Replace'!AB16+'Programmable Tstats - Tier 1'!AB16+'Programmable Tstats - Tier 2'!AB16+'Comm 95+% Furnace - NEW'!AB16+'Comm 95+% Furnace - Replace'!AB16+'Comm Custom'!AB16,0) -> 30213 | AE16: 2024 | AF16: 29931 | AG16: 9849 | AH16: =+AG16+AF16 -> 39780 | AJ16: 0 | AK16: 0 | AL16: 0 | AN16: 39780 | AQ16: 2024 | AR16: 29931 | AS16: 9849 | AU16: =ROUND(+'Res .95+% Res Furnace - NEW'!AU16+'Res .95+% Res Furnace - Replace'!AU16+'Programmable Tstats - Tier 1'!AU16+'Programmable Tstats - Tier 2'!AU16+'Comm 95+% Furnace - NEW'!AU16+'Comm 95+% Furnace - Replace'!AU16+'Comm Custom'!AU16,0) -> 5957 | AW16: =ROUND(+'Res .95+% Res Furnace - NEW'!AW16+'Res .95+% Res Furnace - Replace'!AW16+'Programmable Tstats - Tier 1'!AW16+'Programmable Tstats - Tier 2'!AW16+'Comm 95+% Furnace - NEW'!AW16+'Comm 95+% Furnace - Replace'!AW16+'Comm Custom'!AW16,0) -> 14027 | AZ16: 59764 | BB16: =ROUND(+'Res .95+% Res Furnace - NEW'!BB16+'Res .95+% Res Furnace - Replace'!BB16+'Programmable Tstats - Tier 1'!BB16+'Programmable Tstats - Tier 2'!BB16+'Comm 95+% Furnace - NEW'!BB16+'Comm 95+% Furnace - Replace'!BB16+'Comm Custom'!BB16,0) -> 0 | BC16: =ROUND(+'Res .95+% Res Furnace - NEW'!BC16+'Res .95+% Res Furnace - Replace'!BC16+'Programmable Tstats - Tier 1'!BC16+'Programmable Tstats - Tier 2'!BC16+'Comm 95+% Furnace - NEW'!BC16+'Comm 95+% Furnace - Replace'!BC16+'Comm Custom'!BC16,0) -> 0 | BD16: 0 | BE16: 59764 | BH16: 2024 | BI16: =ROUND(+'Res .95+% Res Furnace - NEW'!BI16+'Res .95+% Res Furnace - Replace'!BI16+'Programmable Tstats - Tier 1'!BI16+'Programmable Tstats - Tier 2'!BI16+'Comm 95+% Furnace - NEW'!BI16+'Comm 95+% Furnace - Replace'!BI16+'Comm Custom'!BI16,0) -> 0 | BJ16: =ROUND(+'Res .95+% Res Furnace - NEW'!BJ16+'Res .95+% Res Furnace - Replace'!BJ16+'Programmable Tstats - Tier 1'!BJ16+'Programmable Tstats - Tier 2'!BJ16+'Comm 95+% Furnace - NEW'!BJ16+'Comm 95+% Furnace - Replace'!BJ16+'Comm Custom'!BJ16,0) -> 6476 | BL16: =ROUND(+'Res .95+% Res Furnace - NEW'!BL16+'Res .95+% Res Furnace - Replace'!BL16+'Programmable Tstats - Tier 1'!BL16+'Programmable Tstats - Tier 2'!BL16+'Comm 95+% Furnace - NEW'!BL16+'Comm 95+% Furnace - Replace'!BL16+'Comm Custom'!BL16,0) -> 54393 | BN16: =ROUND(+'Res .95+% Res Furnace - NEW'!BN16+'Res .95+% Res Furnace - Replace'!BN16+'Programmable Tstats - Tier 1'!BN16+'Programmable Tstats - Tier 2'!BN16+'Comm 95+% Furnace - NEW'!BN16+'Comm 95+% Furnace - Replace'!BN16+'Comm Custom'!BN16,0) -> 26262 | BP16: 80655 | BR16: =ROUND(+'Res .95+% Res Furnace - NEW'!BR16+'Res .95+% Res Furnace - Replace'!BR16+'Programmable Tstats - Tier 1'!BR16+'Programmable Tstats - Tier 2'!BR16+'Comm 95+% Furnace - NEW'!BR16+'Comm 95+% Furnace - Replace'!BR16+'Comm Custom'!BR16,0) -> 0 | BT16: 80655 | BW16: 2024 | BX16: 29931 | BY16: =U16 -> 9849 | BZ16: 5957 | CA16: 45737 | CC16: =BB16 -> 0 | CD16: 0 | CE16: =SUM(CC16:CD16) -> 0 | CG16: =CA16-CE16 -> 45737
A17: 3) Commodity Cost ($/Dk) = | E17: 18) Participant Non-Energy Costs (Annual $/Part.) = | J17: 3 | L17: 2025 | M17: =ROUND(+'Res .95+% Res Furnace - NEW'!M17+'Res .95+% Res Furnace - Replace'!M17+'Programmable Tstats - Tier 1'!M17+'Programmable Tstats - Tier 2'!M17+'Comm 95+% Furnace - NEW'!M17+'Comm 95+% Furnace - Replace'!M17+'Comm Custom'!M17,0) -> 6476 | O17: =ROUND(+'Res .95+% Res Furnace - NEW'!O17+'Res .95+% Res Furnace - Replace'!O17+'Programmable Tstats - Tier 1'!O17+'Programmable Tstats - Tier 2'!O17+'Comm 95+% Furnace - NEW'!O17+'Comm 95+% Furnace - Replace'!O17+'Comm Custom'!O17,0) -> 30832 | Q17: =ROUND(+'Res .95+% Res Furnace - NEW'!Q17+'Res .95+% Res Furnace - Replace'!Q17+'Programmable Tstats - Tier 1'!Q17+'Programmable Tstats - Tier 2'!Q17+'Comm 95+% Furnace - NEW'!Q17+'Comm 95+% Furnace - Replace'!Q17+'Comm Custom'!Q17,0) -> 0 | R17: =ROUND(+'Res .95+% Res Furnace - NEW'!R17+'Res .95+% Res Furnace - Replace'!R17+'Programmable Tstats - Tier 1'!R17+'Programmable Tstats - Tier 2'!R17+'Comm 95+% Furnace - NEW'!R17+'Comm 95+% Furnace - Replace'!R17+'Comm Custom'!R17,0) -> 30832 | S17: =ROUND(+'Res .95+% Res Furnace - NEW'!S17+'Res .95+% Res Furnace - Replace'!S17+'Programmable Tstats - Tier 1'!S17+'Programmable Tstats - Tier 2'!S17+'Comm 95+% Furnace - NEW'!S17+'Comm 95+% Furnace - Replace'!S17+'Comm Custom'!S17,0) -> 65 | U17: =ROUND(+'Res .95+% Res Furnace - NEW'!U17+'Res .95+% Res Furnace - Replace'!U17+'Programmable Tstats - Tier 1'!U17+'Programmable Tstats - Tier 2'!U17+'Comm 95+% Furnace - NEW'!U17+'Comm 95+% Furnace - Replace'!U17+'Comm Custom'!U17,0) -> 9979 | V17: =ROUND(+'Res .95+% Res Furnace - NEW'!V17+'Res .95+% Res Furnace - Replace'!V17+'Programmable Tstats - Tier 1'!V17+'Programmable Tstats - Tier 2'!V17+'Comm 95+% Furnace - NEW'!V17+'Comm 95+% Furnace - Replace'!V17+'Comm Custom'!V17,0) -> 40811 | X17: =ROUND(+'Res .95+% Res Furnace - NEW'!X17+'Res .95+% Res Furnace - Replace'!X17+'Programmable Tstats - Tier 1'!X17+'Programmable Tstats - Tier 2'!X17+'Comm 95+% Furnace - NEW'!X17+'Comm 95+% Furnace - Replace'!X17+'Comm Custom'!X17,0) -> 9853 | Y17: =ROUND(+'Res .95+% Res Furnace - NEW'!Y17+'Res .95+% Res Furnace - Replace'!Y17+'Programmable Tstats - Tier 1'!Y17+'Programmable Tstats - Tier 2'!Y17+'Comm 95+% Furnace - NEW'!Y17+'Comm 95+% Furnace - Replace'!Y17+'Comm Custom'!Y17,0) -> 0 | Z17: =ROUND(+'Res .95+% Res Furnace - NEW'!Z17+'Res .95+% Res Furnace - Replace'!Z17+'Programmable Tstats - Tier 1'!Z17+'Programmable Tstats - Tier 2'!Z17+'Comm 95+% Furnace - NEW'!Z17+'Comm 95+% Furnace - Replace'!Z17+'Comm Custom'!Z17,0) -> 0 | AA17: =ROUND(+'Res .95+% Res Furnace - NEW'!AA17+'Res .95+% Res Furnace - Replace'!AA17+'Programmable Tstats - Tier 1'!AA17+'Programmable Tstats - Tier 2'!AA17+'Comm 95+% Furnace - NEW'!AA17+'Comm 95+% Furnace - Replace'!AA17+'Comm Custom'!AA17,0) -> 9853 | AB17: =ROUND(+'Res .95+% Res Furnace - NEW'!AB17+'Res .95+% Res Furnace - Replace'!AB17+'Programmable Tstats - Tier 1'!AB17+'Programmable Tstats - Tier 2'!AB17+'Comm 95+% Furnace - NEW'!AB17+'Comm 95+% Furnace - Replace'!AB17+'Comm Custom'!AB17,0) -> 30958 | AE17: 2025 | AF17: 30832 | AG17: 9979 | AH17: 40811 | AJ17: 0 | AK17: 0 | AL17: 0 | AN17: 40811 | AQ17: 2025 | AR17: 30832 | AS17: 9979 | AU17: =ROUND(+'Res .95+% Res Furnace - NEW'!AU17+'Res .95+% Res Furnace - Replace'!AU17+'Programmable Tstats - Tier 1'!AU17+'Programmable Tstats - Tier 2'!AU17+'Comm 95+% Furnace - NEW'!AU17+'Comm 95+% Furnace - Replace'!AU17+'Comm Custom'!AU17,0) -> 6148 | AW17: =ROUND(+'Res .95+% Res Furnace - NEW'!AW17+'Res .95+% Res Furnace - Replace'!AW17+'Programmable Tstats - Tier 1'!AW17+'Programmable Tstats - Tier 2'!AW17+'Comm 95+% Furnace - NEW'!AW17+'Comm 95+% Furnace - Replace'!AW17+'Comm Custom'!AW17,0) -> 14351 | AZ17: 61310 | BB17: =ROUND(+'Res .95+% Res Furnace - NEW'!BB17+'Res .95+% Res Furnace - Replace'!BB17+'Programmable Tstats - Tier 1'!BB17+'Programmable Tstats - Tier 2'!BB17+'Comm 95+% Furnace - NEW'!BB17+'Comm 95+% Furnace - Replace'!BB17+'Comm Custom'!BB17,0) -> 0 | BC17: =ROUND(+'Res .95+% Res Furnace - NEW'!BC17+'Res .95+% Res Furnace - Replace'!BC17+'Programmable Tstats - Tier 1'!BC17+'Programmable Tstats - Tier 2'!BC17+'Comm 95+% Furnace - NEW'!BC17+'Comm 95+% Furnace - Replace'!BC17+'Comm Custom'!BC17,0) -> 0 | BD17: 0 | BE17: 61310 | BH17: 2025 | BI17: =ROUND(+'Res .95+% Res Furnace - NEW'!BI17+'Res .95+% Res Furnace - Replace'!BI17+'Programmable Tstats - Tier 1'!BI17+'Programmable Tstats - Tier 2'!BI17+'Comm 95+% Furnace - NEW'!BI17+'Comm 95+% Furnace - Replace'!BI17+'Comm Custom'!BI17,0) -> 0 | BJ17: =ROUND(+'Res .95+% Res Furnace - NEW'!BJ17+'Res .95+% Res Furnace - Replace'!BJ17+'Programmable Tstats - Tier 1'!BJ17+'Programmable Tstats - Tier 2'!BJ17+'Comm 95+% Furnace - NEW'!BJ17+'Comm 95+% Furnace - Replace'!BJ17+'Comm Custom'!BJ17,0) -> 6476 | BL17: =ROUND(+'Res .95+% Res Furnace - NEW'!BL17+'Res .95+% Res Furnace - Replace'!BL17+'Programmable Tstats - Tier 1'!BL17+'Programmable Tstats - Tier 2'!BL17+'Comm 95+% Furnace - NEW'!BL17+'Comm 95+% Furnace - Replace'!BL17+'Comm Custom'!BL17,0) -> 56023 | BN17: =ROUND(+'Res .95+% Res Furnace - NEW'!BN17+'Res .95+% Res Furnace - Replace'!BN17+'Programmable Tstats - Tier 1'!BN17+'Programmable Tstats - Tier 2'!BN17+'Comm 95+% Furnace - NEW'!BN17+'Comm 95+% Furnace - Replace'!BN17+'Comm Custom'!BN17,0) -> 27030 | BP17: 83053 | BR17: =ROUND(+'Res .95+% Res Furnace - NEW'!BR17+'Res .95+% Res Furnace - Replace'!BR17+'Programmable Tstats - Tier 1'!BR17+'Programmable Tstats - Tier 2'!BR17+'Comm 95+% Furnace - NEW'!BR17+'Comm 95+% Furnace - Replace'!BR17+'Comm Custom'!BR17,0) -> 0 | BT17: 83053 | BW17: 2025 | BX17: 30832 | BY17: 9979 | BZ17: 6148 | CA17: 46959 | CC17: 0 | CD17: 0 | CE17: =SUM(CC17:CD17) -> 0 | CG17: 46959
A18: Escalation Rate = | E18: Escalation Rate = | J18: 4 | L18: 2026 | M18: =ROUND(+'Res .95+% Res Furnace - NEW'!M18+'Res .95+% Res Furnace - Replace'!M18+'Programmable Tstats - Tier 1'!M18+'Programmable Tstats - Tier 2'!M18+'Comm 95+% Furnace - NEW'!M18+'Comm 95+% Furnace - Replace'!M18+'Comm Custom'!M18,0) -> 6476 | O18: =ROUND(+'Res .95+% Res Furnace - NEW'!O18+'Res .95+% Res Furnace - Replace'!O18+'Programmable Tstats - Tier 1'!O18+'Programmable Tstats - Tier 2'!O18+'Comm 95+% Furnace - NEW'!O18+'Comm 95+% Furnace - Replace'!O18+'Comm Custom'!O18,0) -> 31757 | Q18: =ROUND(+'Res .95+% Res Furnace - NEW'!Q18+'Res .95+% Res Furnace - Replace'!Q18+'Programmable Tstats - Tier 1'!Q18+'Programmable Tstats - Tier 2'!Q18+'Comm 95+% Furnace - NEW'!Q18+'Comm 95+% Furnace - Replace'!Q18+'Comm Custom'!Q18,0) -> 0 | R18: =ROUND(+'Res .95+% Res Furnace - NEW'!R18+'Res .95+% Res Furnace - Replace'!R18+'Programmable Tstats - Tier 1'!R18+'Programmable Tstats - Tier 2'!R18+'Comm 95+% Furnace - NEW'!R18+'Comm 95+% Furnace - Replace'!R18+'Comm Custom'!R18,0) -> 31757 | S18: =ROUND(+'Res .95+% Res Furnace - NEW'!S18+'Res .95+% Res Furnace - Replace'!S18+'Programmable Tstats - Tier 1'!S18+'Programmable Tstats - Tier 2'!S18+'Comm 95+% Furnace - NEW'!S18+'Comm 95+% Furnace - Replace'!S18+'Comm Custom'!S18,0) -> 65 | U18: =ROUND(+'Res .95+% Res Furnace - NEW'!U18+'Res .95+% Res Furnace - Replace'!U18+'Programmable Tstats - Tier 1'!U18+'Programmable Tstats - Tier 2'!U18+'Comm 95+% Furnace - NEW'!U18+'Comm 95+% Furnace - Replace'!U18+'Comm Custom'!U18,0) -> 10045 | V18: =ROUND(+'Res .95+% Res Furnace - NEW'!V18+'Res .95+% Res Furnace - Replace'!V18+'Programmable Tstats - Tier 1'!V18+'Programmable Tstats - Tier 2'!V18+'Comm 95+% Furnace - NEW'!V18+'Comm 95+% Furnace - Replace'!V18+'Comm Custom'!V18,0) -> 41802 | X18: =ROUND(+'Res .95+% Res Furnace - NEW'!X18+'Res .95+% Res Furnace - Replace'!X18+'Programmable Tstats - Tier 1'!X18+'Programmable Tstats - Tier 2'!X18+'Comm 95+% Furnace - NEW'!X18+'Comm 95+% Furnace - Replace'!X18+'Comm Custom'!X18,0) -> 10149 | Y18: =ROUND(+'Res .95+% Res Furnace - NEW'!Y18+'Res .95+% Res Furnace - Replace'!Y18+'Programmable Tstats - Tier 1'!Y18+'Programmable Tstats - Tier 2'!Y18+'Comm 95+% Furnace - NEW'!Y18+'Comm 95+% Furnace - Replace'!Y18+'Comm Custom'!Y18,0) -> 0 | Z18: =ROUND(+'Res .95+% Res Furnace - NEW'!Z18+'Res .95+% Res Furnace - Replace'!Z18+'Programmable Tstats - Tier 1'!Z18+'Programmable Tstats - Tier 2'!Z18+'Comm 95+% Furnace - NEW'!Z18+'Comm 95+% Furnace - Replace'!Z18+'Comm Custom'!Z18,0) -> 0 | AA18: =ROUND(+'Res .95+% Res Furnace - NEW'!AA18+'Res .95+% Res Furnace - Replace'!AA18+'Programmable Tstats - Tier 1'!AA18+'Programmable Tstats - Tier 2'!AA18+'Comm 95+% Furnace - NEW'!AA18+'Comm 95+% Furnace - Replace'!AA18+'Comm Custom'!AA18,0) -> 10149 | AB18: =ROUND(+'Res .95+% Res Furnace - NEW'!AB18+'Res .95+% Res Furnace - Replace'!AB18+'Programmable Tstats - Tier 1'!AB18+'Programmable Tstats - Tier 2'!AB18+'Comm 95+% Furnace - NEW'!AB18+'Comm 95+% Furnace - Replace'!AB18+'Comm Custom'!AB18,0) -> 31653 | AE18: 2026 | AF18: 31757 | AG18: 10045 | AH18: 41802 | AJ18: 0 | AK18: 0 | AL18: 0 | AN18: 41802 | AQ18: 2026 | AR18: 31757 | AS18: 10045 | AU18: =ROUND(+'Res .95+% Res Furnace - NEW'!AU18+'Res .95+% Res Furnace - Replace'!AU18+'Programmable Tstats - Tier 1'!AU18+'Programmable Tstats - Tier 2'!AU18+'Comm 95+% Furnace - NEW'!AU18+'Comm 95+% Furnace - Replace'!AU18+'Comm Custom'!AU18,0) -> 6340 | AW18: =ROUND(+'Res .95+% Res Furnace - NEW'!AW18+'Res .95+% Res Furnace - Replace'!AW18+'Programmable Tstats - Tier 1'!AW18+'Programmable Tstats - Tier 2'!AW18+'Comm 95+% Furnace - NEW'!AW18+'Comm 95+% Furnace - Replace'!AW18+'Comm Custom'!AW18,0) -> 14682 | AZ18: 62824 | BB18: =ROUND(+'Res .95+% Res Furnace - NEW'!BB18+'Res .95+% Res Furnace - Replace'!BB18+'Programmable Tstats - Tier 1'!BB18+'Programmable Tstats - Tier 2'!BB18+'Comm 95+% Furnace - NEW'!BB18+'Comm 95+% Furnace - Replace'!BB18+'Comm Custom'!BB18,0) -> 0 | BC18: =ROUND(+'Res .95+% Res Furnace - NEW'!BC18+'Res .95+% Res Furnace - Replace'!BC18+'Programmable Tstats - Tier 1'!BC18+'Programmable Tstats - Tier 2'!BC18+'Comm 95+% Furnace - NEW'!BC18+'Comm 95+% Furnace - Replace'!BC18+'Comm Custom'!BC18,0) -> 0 | BD18: 0 | BE18: 62824 | BH18: 2026 | BI18: =ROUND(+'Res .95+% Res Furnace - NEW'!BI18+'Res .95+% Res Furnace - Replace'!BI18+'Programmable Tstats - Tier 1'!BI18+'Programmable Tstats - Tier 2'!BI18+'Comm 95+% Furnace - NEW'!BI18+'Comm 95+% Furnace - Replace'!BI18+'Comm Custom'!BI18,0) -> 0 | BJ18: =ROUND(+'Res .95+% Res Furnace - NEW'!BJ18+'Res .95+% Res Furnace - Replace'!BJ18+'Programmable Tstats - Tier 1'!BJ18+'Programmable Tstats - Tier 2'!BJ18+'Comm 95+% Furnace - NEW'!BJ18+'Comm 95+% Furnace - Replace'!BJ18+'Comm Custom'!BJ18,0) -> 6476 | BL18: =ROUND(+'Res .95+% Res Furnace - NEW'!BL18+'Res .95+% Res Furnace - Replace'!BL18+'Programmable Tstats - Tier 1'!BL18+'Programmable Tstats - Tier 2'!BL18+'Comm 95+% Furnace - NEW'!BL18+'Comm 95+% Furnace - Replace'!BL18+'Comm Custom'!BL18,0) -> 57704 | BN18: =ROUND(+'Res .95+% Res Furnace - NEW'!BN18+'Res .95+% Res Furnace - Replace'!BN18+'Programmable Tstats - Tier 1'!BN18+'Programmable Tstats - Tier 2'!BN18+'Comm 95+% Furnace - NEW'!BN18+'Comm 95+% Furnace - Replace'!BN18+'Comm Custom'!BN18,0) -> 27976 | BP18: 85680 | BR18: =ROUND(+'Res .95+% Res Furnace - NEW'!BR18+'Res .95+% Res Furnace - Replace'!BR18+'Programmable Tstats - Tier 1'!BR18+'Programmable Tstats - Tier 2'!BR18+'Comm 95+% Furnace - NEW'!BR18+'Comm 95+% Furnace - Replace'!BR18+'Comm Custom'!BR18,0) -> 0 | BT18: 85680 | BW18: 2026 | BX18: 31757 | BY18: 10045 | BZ18: 6340 | CA18: =SUM(BX18:BZ18) -> 48142 | CC18: 0 | CD18: 0 | CE18: 0 | CG18: 48142 | DB18: t
J19: 5 | L19: 2027 | M19: =ROUND(+'Res .95+% Res Furnace - NEW'!M19+'Res .95+% Res Furnace - Replace'!M19+'Programmable Tstats - Tier 1'!M19+'Programmable Tstats - Tier 2'!M19+'Comm 95+% Furnace - NEW'!M19+'Comm 95+% Furnace - Replace'!M19+'Comm Custom'!M19,0) -> 6476 | O19: =ROUND(+'Res .95+% Res Furnace - NEW'!O19+'Res .95+% Res Furnace - Replace'!O19+'Programmable Tstats - Tier 1'!O19+'Programmable Tstats - Tier 2'!O19+'Comm 95+% Furnace - NEW'!O19+'Comm 95+% Furnace - Replace'!O19+'Comm Custom'!O19,0) -> 32709 | Q19: =ROUND(+'Res .95+% Res Furnace - NEW'!Q19+'Res .95+% Res Furnace - Replace'!Q19+'Programmable Tstats - Tier 1'!Q19+'Programmable Tstats - Tier 2'!Q19+'Comm 95+% Furnace - NEW'!Q19+'Comm 95+% Furnace - Replace'!Q19+'Comm Custom'!Q19,0) -> 0 | R19: =ROUND(+'Res .95+% Res Furnace - NEW'!R19+'Res .95+% Res Furnace - Replace'!R19+'Programmable Tstats - Tier 1'!R19+'Programmable Tstats - Tier 2'!R19+'Comm 95+% Furnace - NEW'!R19+'Comm 95+% Furnace - Replace'!R19+'Comm Custom'!R19,0) -> 32709 | S19: =ROUND(+'Res .95+% Res Furnace - NEW'!S19+'Res .95+% Res Furnace - Replace'!S19+'Programmable Tstats - Tier 1'!S19+'Programmable Tstats - Tier 2'!S19+'Comm 95+% Furnace - NEW'!S19+'Comm 95+% Furnace - Replace'!S19+'Comm Custom'!S19,0) -> 65 | U19: =ROUND(+'Res .95+% Res Furnace - NEW'!U19+'Res .95+% Res Furnace - Replace'!U19+'Programmable Tstats - Tier 1'!U19+'Programmable Tstats - Tier 2'!U19+'Comm 95+% Furnace - NEW'!U19+'Comm 95+% Furnace - Replace'!U19+'Comm Custom'!U19,0) -> 10174 | V19: =ROUND(+'Res .95+% Res Furnace - NEW'!V19+'Res .95+% Res Furnace - Replace'!V19+'Programmable Tstats - Tier 1'!V19+'Programmable Tstats - Tier 2'!V19+'Comm 95+% Furnace - NEW'!V19+'Comm 95+% Furnace - Replace'!V19+'Comm Custom'!V19,0) -> 42883 | X19: =ROUND(+'Res .95+% Res Furnace - NEW'!X19+'Res .95+% Res Furnace - Replace'!X19+'Programmable Tstats - Tier 1'!X19+'Programmable Tstats - Tier 2'!X19+'Comm 95+% Furnace - NEW'!X19+'Comm 95+% Furnace - Replace'!X19+'Comm Custom'!X19,0) -> 10451 | Y19: =ROUND(+'Res .95+% Res Furnace - NEW'!Y19+'Res .95+% Res Furnace - Replace'!Y19+'Programmable Tstats - Tier 1'!Y19+'Programmable Tstats - Tier 2'!Y19+'Comm 95+% Furnace - NEW'!Y19+'Comm 95+% Furnace - Replace'!Y19+'Comm Custom'!Y19,0) -> 0 | Z19: =ROUND(+'Res .95+% Res Furnace - NEW'!Z19+'Res .95+% Res Furnace - Replace'!Z19+'Programmable Tstats - Tier 1'!Z19+'Programmable Tstats - Tier 2'!Z19+'Comm 95+% Furnace - NEW'!Z19+'Comm 95+% Furnace - Replace'!Z19+'Comm Custom'!Z19,0) -> 0 | AA19: =ROUND(+'Res .95+% Res Furnace - NEW'!AA19+'Res .95+% Res Furnace - Replace'!AA19+'Programmable Tstats - Tier 1'!AA19+'Programmable Tstats - Tier 2'!AA19+'Comm 95+% Furnace - NEW'!AA19+'Comm 95+% Furnace - Replace'!AA19+'Comm Custom'!AA19,0) -> 10451 | AB19: =ROUND(+'Res .95+% Res Furnace - NEW'!AB19+'Res .95+% Res Furnace - Replace'!AB19+'Programmable Tstats - Tier 1'!AB19+'Programmable Tstats - Tier 2'!AB19+'Comm 95+% Furnace - NEW'!AB19+'Comm 95+% Furnace - Replace'!AB19+'Comm Custom'!AB19,0) -> 32432 | AE19: 2027 | AF19: 32709 | AG19: 10174 | AH19: 42883 | AJ19: 0 | AK19: 0 | AL19: 0 | AN19: 42883 | AQ19: 2027 | AR19: 32709 | AS19: 10174 | AU19: =ROUND(+'Res .95+% Res Furnace - NEW'!AU19+'Res .95+% Res Furnace - Replace'!AU19+'Programmable Tstats - Tier 1'!AU19+'Programmable Tstats - Tier 2'!AU19+'Comm 95+% Furnace - NEW'!AU19+'Comm 95+% Furnace - Replace'!AU19+'Comm Custom'!AU19,0) -> 6532 | AW19: =ROUND(+'Res .95+% Res Furnace - NEW'!AW19+'Res .95+% Res Furnace - Replace'!AW19+'Programmable Tstats - Tier 1'!AW19+'Programmable Tstats - Tier 2'!AW19+'Comm 95+% Furnace - NEW'!AW19+'Comm 95+% Furnace - Replace'!AW19+'Comm Custom'!AW19,0) -> 15019 | AZ19: 64434 | BB19: =ROUND(+'Res .95+% Res Furnace - NEW'!BB19+'Res .95+% Res Furnace - Replace'!BB19+'Programmable Tstats - Tier 1'!BB19+'Programmable Tstats - Tier 2'!BB19+'Comm 95+% Furnace - NEW'!BB19+'Comm 95+% Furnace - Replace'!BB19+'Comm Custom'!BB19,0) -> 0 | BC19: =ROUND(+'Res .95+% Res Furnace - NEW'!BC19+'Res .95+% Res Furnace - Replace'!BC19+'Programmable Tstats - Tier 1'!BC19+'Programmable Tstats - Tier 2'!BC19+'Comm 95+% Furnace - NEW'!BC19+'Comm 95+% Furnace - Replace'!BC19+'Comm Custom'!BC19,0) -> 0 | BD19: 0 | BE19: 64434 | BH19: 2027 | BI19: =ROUND(+'Res .95+% Res Furnace - NEW'!BI19+'Res .95+% Res Furnace - Replace'!BI19+'Programmable Tstats - Tier 1'!BI19+'Programmable Tstats - Tier 2'!BI19+'Comm 95+% Furnace - NEW'!BI19+'Comm 95+% Furnace - Replace'!BI19+'Comm Custom'!BI19,0) -> 0 | BJ19: =ROUND(+'Res .95+% Res Furnace - NEW'!BJ19+'Res .95+% Res Furnace - Replace'!BJ19+'Programmable Tstats - Tier 1'!BJ19+'Programmable Tstats - Tier 2'!BJ19+'Comm 95+% Furnace - NEW'!BJ19+'Comm 95+% Furnace - Replace'!BJ19+'Comm Custom'!BJ19,0) -> 6476 | BL19: =ROUND(+'Res .95+% Res Furnace - NEW'!BL19+'Res .95+% Res Furnace - Replace'!BL19+'Programmable Tstats - Tier 1'!BL19+'Programmable Tstats - Tier 2'!BL19+'Comm 95+% Furnace - NEW'!BL19+'Comm 95+% Furnace - Replace'!BL19+'Comm Custom'!BL19,0) -> 59437 | BN19: =ROUND(+'Res .95+% Res Furnace - NEW'!BN19+'Res .95+% Res Furnace - Replace'!BN19+'Programmable Tstats - Tier 1'!BN19+'Programmable Tstats - Tier 2'!BN19+'Comm 95+% Furnace - NEW'!BN19+'Comm 95+% Furnace - Replace'!BN19+'Comm Custom'!BN19,0) -> 28760 | BP19: 88197 | BR19: =ROUND(+'Res .95+% Res Furnace - NEW'!BR19+'Res .95+% Res Furnace - Replace'!BR19+'Programmable Tstats - Tier 1'!BR19+'Programmable Tstats - Tier 2'!BR19+'Comm 95+% Furnace - NEW'!BR19+'Comm 95+% Furnace - Replace'!BR19+'Comm Custom'!BR19,0) -> 0 | BT19: 88197 | BW19: 2027 | BX19: 32709 | BY19: 10174 | BZ19: 6532 | CA19: 49415 | CC19: 0 | CD19: 0 | CE19: 0 | CG19: 49415
A20: 4) Demand Cost ($/Unit/Yr) = | E20: 19) Participant Non-Energy Savings (Annual $/Part) = | J20: 6 | L20: 2028 | M20: =ROUND(+'Res .95+% Res Furnace - NEW'!M20+'Res .95+% Res Furnace - Replace'!M20+'Programmable Tstats - Tier 1'!M20+'Programmable Tstats - Tier 2'!M20+'Comm 95+% Furnace - NEW'!M20+'Comm 95+% Furnace - Replace'!M20+'Comm Custom'!M20,0) -> 6476 | O20: =ROUND(+'Res .95+% Res Furnace - NEW'!O20+'Res .95+% Res Furnace - Replace'!O20+'Programmable Tstats - Tier 1'!O20+'Programmable Tstats - Tier 2'!O20+'Comm 95+% Furnace - NEW'!O20+'Comm 95+% Furnace - Replace'!O20+'Comm Custom'!O20,0) -> 33689 | Q20: =ROUND(+'Res .95+% Res Furnace - NEW'!Q20+'Res .95+% Res Furnace - Replace'!Q20+'Programmable Tstats - Tier 1'!Q20+'Programmable Tstats - Tier 2'!Q20+'Comm 95+% Furnace - NEW'!Q20+'Comm 95+% Furnace - Replace'!Q20+'Comm Custom'!Q20,0) -> 0 | R20: =ROUND(+'Res .95+% Res Furnace - NEW'!R20+'Res .95+% Res Furnace - Replace'!R20+'Programmable Tstats - Tier 1'!R20+'Programmable Tstats - Tier 2'!R20+'Comm 95+% Furnace - NEW'!R20+'Comm 95+% Furnace - Replace'!R20+'Comm Custom'!R20,0) -> 33689 | S20: =ROUND(+'Res .95+% Res Furnace - NEW'!S20+'Res .95+% Res Furnace - Replace'!S20+'Programmable Tstats - Tier 1'!S20+'Programmable Tstats - Tier 2'!S20+'Comm 95+% Furnace - NEW'!S20+'Comm 95+% Furnace - Replace'!S20+'Comm Custom'!S20,0) -> 65 | U20: =ROUND(+'Res .95+% Res Furnace - NEW'!U20+'Res .95+% Res Furnace - Replace'!U20+'Programmable Tstats - Tier 1'!U20+'Programmable Tstats - Tier 2'!U20+'Comm 95+% Furnace - NEW'!U20+'Comm 95+% Furnace - Replace'!U20+'Comm Custom'!U20,0) -> 10304 | V20: =ROUND(+'Res .95+% Res Furnace - NEW'!V20+'Res .95+% Res Furnace - Replace'!V20+'Programmable Tstats - Tier 1'!V20+'Programmable Tstats - Tier 2'!V20+'Comm 95+% Furnace - NEW'!V20+'Comm 95+% Furnace - Replace'!V20+'Comm Custom'!V20,0) -> 43993 | X20: =ROUND(+'Res .95+% Res Furnace - NEW'!X20+'Res .95+% Res Furnace - Replace'!X20+'Programmable Tstats - Tier 1'!X20+'Programmable Tstats - Tier 2'!X20+'Comm 95+% Furnace - NEW'!X20+'Comm 95+% Furnace - Replace'!X20+'Comm Custom'!X20,0) -> 10766 | Y20: =ROUND(+'Res .95+% Res Furnace - NEW'!Y20+'Res .95+% Res Furnace - Replace'!Y20+'Programmable Tstats - Tier 1'!Y20+'Programmable Tstats - Tier 2'!Y20+'Comm 95+% Furnace - NEW'!Y20+'Comm 95+% Furnace - Replace'!Y20+'Comm Custom'!Y20,0) -> 0 | Z20: =ROUND(+'Res .95+% Res Furnace - NEW'!Z20+'Res .95+% Res Furnace - Replace'!Z20+'Programmable Tstats - Tier 1'!Z20+'Programmable Tstats - Tier 2'!Z20+'Comm 95+% Furnace - NEW'!Z20+'Comm 95+% Furnace - Replace'!Z20+'Comm Custom'!Z20,0) -> 0 | AA20: =ROUND(+'Res .95+% Res Furnace - NEW'!AA20+'Res .95+% Res Furnace - Replace'!AA20+'Programmable Tstats - Tier 1'!AA20+'Programmable Tstats - Tier 2'!AA20+'Comm 95+% Furnace - NEW'!AA20+'Comm 95+% Furnace - Replace'!AA20+'Comm Custom'!AA20,0) -> 10766 | AB20: =ROUND(+'Res .95+% Res Furnace - NEW'!AB20+'Res .95+% Res Furnace - Replace'!AB20+'Programmable Tstats - Tier 1'!AB20+'Programmable Tstats - Tier 2'!AB20+'Comm 95+% Furnace - NEW'!AB20+'Comm 95+% Furnace - Replace'!AB20+'Comm Custom'!AB20,0) -> 33227 | AE20: 2028 | AF20: 33689 | AG20: 10304 | AH20: 43993 | AJ20: 0 | AK20: 0 | AL20: 0 | AN20: 43993 | AQ20: 2028 | AR20: 33689 | AS20: 10304 | AU20: =ROUND(+'Res .95+% Res Furnace - NEW'!AU20+'Res .95+% Res Furnace - Replace'!AU20+'Programmable Tstats - Tier 1'!AU20+'Programmable Tstats - Tier 2'!AU20+'Comm 95+% Furnace - NEW'!AU20+'Comm 95+% Furnace - Replace'!AU20+'Comm Custom'!AU20,0) -> 6724 | AW20: =ROUND(+'Res .95+% Res Furnace - NEW'!AW20+'Res .95+% Res Furnace - Replace'!AW20+'Programmable Tstats - Tier 1'!AW20+'Programmable Tstats - Tier 2'!AW20+'Comm 95+% Furnace - NEW'!AW20+'Comm 95+% Furnace - Replace'!AW20+'Comm Custom'!AW20,0) -> 15367 | AZ20: 66084 | BB20: =ROUND(+'Res .95+% Res Furnace - NEW'!BB20+'Res .95+% Res Furnace - Replace'!BB20+'Programmable Tstats - Tier 1'!BB20+'Programmable Tstats - Tier 2'!BB20+'Comm 95+% Furnace - NEW'!BB20+'Comm 95+% Furnace - Replace'!BB20+'Comm Custom'!BB20,0) -> 0 | BC20: =ROUND(+'Res .95+% Res Furnace - NEW'!BC20+'Res .95+% Res Furnace - Replace'!BC20+'Programmable Tstats - Tier 1'!BC20+'Programmable Tstats - Tier 2'!BC20+'Comm 95+% Furnace - NEW'!BC20+'Comm 95+% Furnace - Replace'!BC20+'Comm Custom'!BC20,0) -> 0 | BD20: 0 | BE20: 66084 | BH20: 2028 | BI20: =ROUND(+'Res .95+% Res Furnace - NEW'!BI20+'Res .95+% Res Furnace - Replace'!BI20+'Programmable Tstats - Tier 1'!BI20+'Programmable Tstats - Tier 2'!BI20+'Comm 95+% Furnace - NEW'!BI20+'Comm 95+% Furnace - Replace'!BI20+'Comm Custom'!BI20,0) -> 0 | BJ20: =ROUND(+'Res .95+% Res Furnace - NEW'!BJ20+'Res .95+% Res Furnace - Replace'!BJ20+'Programmable Tstats - Tier 1'!BJ20+'Programmable Tstats - Tier 2'!BJ20+'Comm 95+% Furnace - NEW'!BJ20+'Comm 95+% Furnace - Replace'!BJ20+'Comm Custom'!BJ20,0) -> 6476 | BL20: =ROUND(+'Res .95+% Res Furnace - NEW'!BL20+'Res .95+% Res Furnace - Replace'!BL20+'Programmable Tstats - Tier 1'!BL20+'Programmable Tstats - Tier 2'!BL20+'Comm 95+% Furnace - NEW'!BL20+'Comm 95+% Furnace - Replace'!BL20+'Comm Custom'!BL20,0) -> 61215 | BN20: =ROUND(+'Res .95+% Res Furnace - NEW'!BN20+'Res .95+% Res Furnace - Replace'!BN20+'Programmable Tstats - Tier 1'!BN20+'Programmable Tstats - Tier 2'!BN20+'Comm 95+% Furnace - NEW'!BN20+'Comm 95+% Furnace - Replace'!BN20+'Comm Custom'!BN20,0) -> 29528 | BP20: 90743 | BR20: =ROUND(+'Res .95+% Res Furnace - NEW'!BR20+'Res .95+% Res Furnace - Replace'!BR20+'Programmable Tstats - Tier 1'!BR20+'Programmable Tstats - Tier 2'!BR20+'Comm 95+% Furnace - NEW'!BR20+'Comm 95+% Furnace - Replace'!BR20+'Comm Custom'!BR20,0) -> 0 | BT20: 90743 | BW20: 2028 | BX20: 33689 | BY20: 10304 | BZ20: 6724 | CA20: 50717 | CC20: 0 | CD20: 0 | CE20: 0 | CG20: 50717
A21: Escalation Rate = | E21: Escalation Rate = | J21: 7 | L21: 2029 | M21: =ROUND(+'Res .95+% Res Furnace - NEW'!M21+'Res .95+% Res Furnace - Replace'!M21+'Programmable Tstats - Tier 1'!M21+'Programmable Tstats - Tier 2'!M21+'Comm 95+% Furnace - NEW'!M21+'Comm 95+% Furnace - Replace'!M21+'Comm Custom'!M21,0) -> 6476 | O21: =ROUND(+'Res .95+% Res Furnace - NEW'!O21+'Res .95+% Res Furnace - Replace'!O21+'Programmable Tstats - Tier 1'!O21+'Programmable Tstats - Tier 2'!O21+'Comm 95+% Furnace - NEW'!O21+'Comm 95+% Furnace - Replace'!O21+'Comm Custom'!O21,0) -> 34705 | Q21: =ROUND(+'Res .95+% Res Furnace - NEW'!Q21+'Res .95+% Res Furnace - Replace'!Q21+'Programmable Tstats - Tier 1'!Q21+'Programmable Tstats - Tier 2'!Q21+'Comm 95+% Furnace - NEW'!Q21+'Comm 95+% Furnace - Replace'!Q21+'Comm Custom'!Q21,0) -> 0 | R21: =ROUND(+'Res .95+% Res Furnace - NEW'!R21+'Res .95+% Res Furnace - Replace'!R21+'Programmable Tstats - Tier 1'!R21+'Programmable Tstats - Tier 2'!R21+'Comm 95+% Furnace - NEW'!R21+'Comm 95+% Furnace - Replace'!R21+'Comm Custom'!R21,0) -> 34705 | S21: =ROUND(+'Res .95+% Res Furnace - NEW'!S21+'Res .95+% Res Furnace - Replace'!S21+'Programmable Tstats - Tier 1'!S21+'Programmable Tstats - Tier 2'!S21+'Comm 95+% Furnace - NEW'!S21+'Comm 95+% Furnace - Replace'!S21+'Comm Custom'!S21,0) -> 65 | U21: =ROUND(+'Res .95+% Res Furnace - NEW'!U21+'Res .95+% Res Furnace - Replace'!U21+'Programmable Tstats - Tier 1'!U21+'Programmable Tstats - Tier 2'!U21+'Comm 95+% Furnace - NEW'!U21+'Comm 95+% Furnace - Replace'!U21+'Comm Custom'!U21,0) -> 10368 | V21: =ROUND(+'Res .95+% Res Furnace - NEW'!V21+'Res .95+% Res Furnace - Replace'!V21+'Programmable Tstats - Tier 1'!V21+'Programmable Tstats - Tier 2'!V21+'Comm 95+% Furnace - NEW'!V21+'Comm 95+% Furnace - Replace'!V21+'Comm Custom'!V21,0) -> 45073 | X21: =ROUND(+'Res .95+% Res Furnace - NEW'!X21+'Res .95+% Res Furnace - Replace'!X21+'Programmable Tstats - Tier 1'!X21+'Programmable Tstats - Tier 2'!X21+'Comm 95+% Furnace - NEW'!X21+'Comm 95+% Furnace - Replace'!X21+'Comm Custom'!X21,0) -> 11091 | Y21: =ROUND(+'Res .95+% Res Furnace - NEW'!Y21+'Res .95+% Res Furnace - Replace'!Y21+'Programmable Tstats - Tier 1'!Y21+'Programmable Tstats - Tier 2'!Y21+'Comm 95+% Furnace - NEW'!Y21+'Comm 95+% Furnace - Replace'!Y21+'Comm Custom'!Y21,0) -> 0 | Z21: =ROUND(+'Res .95+% Res Furnace - NEW'!Z21+'Res .95+% Res Furnace - Replace'!Z21+'Programmable Tstats - Tier 1'!Z21+'Programmable Tstats - Tier 2'!Z21+'Comm 95+% Furnace - NEW'!Z21+'Comm 95+% Furnace - Replace'!Z21+'Comm Custom'!Z21,0) -> 0 | AA21: =ROUND(+'Res .95+% Res Furnace - NEW'!AA21+'Res .95+% Res Furnace - Replace'!AA21+'Programmable Tstats - Tier 1'!AA21+'Programmable Tstats - Tier 2'!AA21+'Comm 95+% Furnace - NEW'!AA21+'Comm 95+% Furnace - Replace'!AA21+'Comm Custom'!AA21,0) -> 11091 | AB21: =ROUND(+'Res .95+% Res Furnace - NEW'!AB21+'Res .95+% Res Furnace - Replace'!AB21+'Programmable Tstats - Tier 1'!AB21+'Programmable Tstats - Tier 2'!AB21+'Comm 95+% Furnace - NEW'!AB21+'Comm 95+% Furnace - Replace'!AB21+'Comm Custom'!AB21,0) -> 33982 | AE21: 2029 | AF21: 34705 | AG21: 10368 | AH21: 45073 | AJ21: 0 | AK21: 0 | AL21: 0 | AN21: 45073 | AQ21: 2029 | AR21: 34705 | AS21: 10368 | AU21: =ROUND(+'Res .95+% Res Furnace - NEW'!AU21+'Res .95+% Res Furnace - Replace'!AU21+'Programmable Tstats - Tier 1'!AU21+'Programmable Tstats - Tier 2'!AU21+'Comm 95+% Furnace - NEW'!AU21+'Comm 95+% Furnace - Replace'!AU21+'Comm Custom'!AU21,0) -> 6916 | AW21: =ROUND(+'Res .95+% Res Furnace - NEW'!AW21+'Res .95+% Res Furnace - Replace'!AW21+'Programmable Tstats - Tier 1'!AW21+'Programmable Tstats - Tier 2'!AW21+'Comm 95+% Furnace - NEW'!AW21+'Comm 95+% Furnace - Replace'!AW21+'Comm Custom'!AW21,0) -> 15717 | AZ21: 67706 | BB21: =ROUND(+'Res .95+% Res Furnace - NEW'!BB21+'Res .95+% Res Furnace - Replace'!BB21+'Programmable Tstats - Tier 1'!BB21+'Programmable Tstats - Tier 2'!BB21+'Comm 95+% Furnace - NEW'!BB21+'Comm 95+% Furnace - Replace'!BB21+'Comm Custom'!BB21,0) -> 0 | BC21: =ROUND(+'Res .95+% Res Furnace - NEW'!BC21+'Res .95+% Res Furnace - Replace'!BC21+'Programmable Tstats - Tier 1'!BC21+'Programmable Tstats - Tier 2'!BC21+'Comm 95+% Furnace - NEW'!BC21+'Comm 95+% Furnace - Replace'!BC21+'Comm Custom'!BC21,0) -> 0 | BD21: 0 | BE21: 67706 | BH21: 2029 | BI21: =ROUND(+'Res .95+% Res Furnace - NEW'!BI21+'Res .95+% Res Furnace - Replace'!BI21+'Programmable Tstats - Tier 1'!BI21+'Programmable Tstats - Tier 2'!BI21+'Comm 95+% Furnace - NEW'!BI21+'Comm 95+% Furnace - Replace'!BI21+'Comm Custom'!BI21,0) -> 0 | BJ21: =ROUND(+'Res .95+% Res Furnace - NEW'!BJ21+'Res .95+% Res Furnace - Replace'!BJ21+'Programmable Tstats - Tier 1'!BJ21+'Programmable Tstats - Tier 2'!BJ21+'Comm 95+% Furnace - NEW'!BJ21+'Comm 95+% Furnace - Replace'!BJ21+'Comm Custom'!BJ21,0) -> 6476 | BL21: =ROUND(+'Res .95+% Res Furnace - NEW'!BL21+'Res .95+% Res Furnace - Replace'!BL21+'Programmable Tstats - Tier 1'!BL21+'Programmable Tstats - Tier 2'!BL21+'Comm 95+% Furnace - NEW'!BL21+'Comm 95+% Furnace - Replace'!BL21+'Comm Custom'!BL21,0) -> 63055 | BN21: =ROUND(+'Res .95+% Res Furnace - NEW'!BN21+'Res .95+% Res Furnace - Replace'!BN21+'Programmable Tstats - Tier 1'!BN21+'Programmable Tstats - Tier 2'!BN21+'Comm 95+% Furnace - NEW'!BN21+'Comm 95+% Furnace - Replace'!BN21+'Comm Custom'!BN21,0) -> 30473 | BP21: 93528 | BR21: =ROUND(+'Res .95+% Res Furnace - NEW'!BR21+'Res .95+% Res Furnace - Replace'!BR21+'Programmable Tstats - Tier 1'!BR21+'Programmable Tstats - Tier 2'!BR21+'Comm 95+% Furnace - NEW'!BR21+'Comm 95+% Furnace - Replace'!BR21+'Comm Custom'!BR21,0) -> 0 | BT21: 93528 | BW21: 2029 | BX21: 34705 | BY21: 10368 | BZ21: 6916 | CA21: 51989 | CC21: 0 | CD21: 0 | CE21: 0 | CG21: 51989 | DB21: =$J14 -> 0
J22: 8 | L22: 2030 | M22: =ROUND(+'Res .95+% Res Furnace - NEW'!M22+'Res .95+% Res Furnace - Replace'!M22+'Programmable Tstats - Tier 1'!M22+'Programmable Tstats - Tier 2'!M22+'Comm 95+% Furnace - NEW'!M22+'Comm 95+% Furnace - Replace'!M22+'Comm Custom'!M22,0) -> 6476 | O22: =ROUND(+'Res .95+% Res Furnace - NEW'!O22+'Res .95+% Res Furnace - Replace'!O22+'Programmable Tstats - Tier 1'!O22+'Programmable Tstats - Tier 2'!O22+'Comm 95+% Furnace - NEW'!O22+'Comm 95+% Furnace - Replace'!O22+'Comm Custom'!O22,0) -> 35740 | Q22: =ROUND(+'Res .95+% Res Furnace - NEW'!Q22+'Res .95+% Res Furnace - Replace'!Q22+'Programmable Tstats - Tier 1'!Q22+'Programmable Tstats - Tier 2'!Q22+'Comm 95+% Furnace - NEW'!Q22+'Comm 95+% Furnace - Replace'!Q22+'Comm Custom'!Q22,0) -> 0 | R22: =ROUND(+'Res .95+% Res Furnace - NEW'!R22+'Res .95+% Res Furnace - Replace'!R22+'Programmable Tstats - Tier 1'!R22+'Programmable Tstats - Tier 2'!R22+'Comm 95+% Furnace - NEW'!R22+'Comm 95+% Furnace - Replace'!R22+'Comm Custom'!R22,0) -> 35740 | S22: =ROUND(+'Res .95+% Res Furnace - NEW'!S22+'Res .95+% Res Furnace - Replace'!S22+'Programmable Tstats - Tier 1'!S22+'Programmable Tstats - Tier 2'!S22+'Comm 95+% Furnace - NEW'!S22+'Comm 95+% Furnace - Replace'!S22+'Comm Custom'!S22,0) -> 65 | U22: =ROUND(+'Res .95+% Res Furnace - NEW'!U22+'Res .95+% Res Furnace - Replace'!U22+'Programmable Tstats - Tier 1'!U22+'Programmable Tstats - Tier 2'!U22+'Comm 95+% Furnace - NEW'!U22+'Comm 95+% Furnace - Replace'!U22+'Comm Custom'!U22,0) -> 10497 | V22: =ROUND(+'Res .95+% Res Furnace - NEW'!V22+'Res .95+% Res Furnace - Replace'!V22+'Programmable Tstats - Tier 1'!V22+'Programmable Tstats - Tier 2'!V22+'Comm 95+% Furnace - NEW'!V22+'Comm 95+% Furnace - Replace'!V22+'Comm Custom'!V22,0) -> 46237 | X22: =ROUND(+'Res .95+% Res Furnace - NEW'!X22+'Res .95+% Res Furnace - Replace'!X22+'Programmable Tstats - Tier 1'!X22+'Programmable Tstats - Tier 2'!X22+'Comm 95+% Furnace - NEW'!X22+'Comm 95+% Furnace - Replace'!X22+'Comm Custom'!X22,0) -> 11424 | Y22: =ROUND(+'Res .95+% Res Furnace - NEW'!Y22+'Res .95+% Res Furnace - Replace'!Y22+'Programmable Tstats - Tier 1'!Y22+'Programmable Tstats - Tier 2'!Y22+'Comm 95+% Furnace - NEW'!Y22+'Comm 95+% Furnace - Replace'!Y22+'Comm Custom'!Y22,0) -> 0 | Z22: =ROUND(+'Res .95+% Res Furnace - NEW'!Z22+'Res .95+% Res Furnace - Replace'!Z22+'Programmable Tstats - Tier 1'!Z22+'Programmable Tstats - Tier 2'!Z22+'Comm 95+% Furnace - NEW'!Z22+'Comm 95+% Furnace - Replace'!Z22+'Comm Custom'!Z22,0) -> 0 | AA22: =ROUND(+'Res .95+% Res Furnace - NEW'!AA22+'Res .95+% Res Furnace - Replace'!AA22+'Programmable Tstats - Tier 1'!AA22+'Programmable Tstats - Tier 2'!AA22+'Comm 95+% Furnace - NEW'!AA22+'Comm 95+% Furnace - Replace'!AA22+'Comm Custom'!AA22,0) -> 11424 | AB22: =ROUND(+'Res .95+% Res Furnace - NEW'!AB22+'Res .95+% Res Furnace - Replace'!AB22+'Programmable Tstats - Tier 1'!AB22+'Programmable Tstats - Tier 2'!AB22+'Comm 95+% Furnace - NEW'!AB22+'Comm 95+% Furnace - Replace'!AB22+'Comm Custom'!AB22,0) -> 34813 | AE22: 2030 | AF22: 35740 | AG22: 10497 | AH22: 46237 | AJ22: 0 | AK22: 0 | AL22: 0 | AN22: 46237 | AQ22: 2030 | AR22: 35740 | AS22: 10497 | AU22: =ROUND(+'Res .95+% Res Furnace - NEW'!AU22+'Res .95+% Res Furnace - Replace'!AU22+'Programmable Tstats - Tier 1'!AU22+'Programmable Tstats - Tier 2'!AU22+'Comm 95+% Furnace - NEW'!AU22+'Comm 95+% Furnace - Replace'!AU22+'Comm Custom'!AU22,0) -> 7108 | AW22: =ROUND(+'Res .95+% Res Furnace - NEW'!AW22+'Res .95+% Res Furnace - Replace'!AW22+'Programmable Tstats - Tier 1'!AW22+'Programmable Tstats - Tier 2'!AW22+'Comm 95+% Furnace - NEW'!AW22+'Comm 95+% Furnace - Replace'!AW22+'Comm Custom'!AW22,0) -> 16080 | AZ22: 69425 | BB22: =ROUND(+'Res .95+% Res Furnace - NEW'!BB22+'Res .95+% Res Furnace - Replace'!BB22+'Programmable Tstats - Tier 1'!BB22+'Programmable Tstats - Tier 2'!BB22+'Comm 95+% Furnace - NEW'!BB22+'Comm 95+% Furnace - Replace'!BB22+'Comm Custom'!BB22,0) -> 0 | BC22: =ROUND(+'Res .95+% Res Furnace - NEW'!BC22+'Res .95+% Res Furnace - Replace'!BC22+'Programmable Tstats - Tier 1'!BC22+'Programmable Tstats - Tier 2'!BC22+'Comm 95+% Furnace - NEW'!BC22+'Comm 95+% Furnace - Replace'!BC22+'Comm Custom'!BC22,0) -> 0 | BD22: 0 | BE22: 69425 | BH22: 2030 | BI22: =ROUND(+'Res .95+% Res Furnace - NEW'!BI22+'Res .95+% Res Furnace - Replace'!BI22+'Programmable Tstats - Tier 1'!BI22+'Programmable Tstats - Tier 2'!BI22+'Comm 95+% Furnace - NEW'!BI22+'Comm 95+% Furnace - Replace'!BI22+'Comm Custom'!BI22,0) -> 0 | BJ22: =ROUND(+'Res .95+% Res Furnace - NEW'!BJ22+'Res .95+% Res Furnace - Replace'!BJ22+'Programmable Tstats - Tier 1'!BJ22+'Programmable Tstats - Tier 2'!BJ22+'Comm 95+% Furnace - NEW'!BJ22+'Comm 95+% Furnace - Replace'!BJ22+'Comm Custom'!BJ22,0) -> 6476 | BL22: =ROUND(+'Res .95+% Res Furnace - NEW'!BL22+'Res .95+% Res Furnace - Replace'!BL22+'Programmable Tstats - Tier 1'!BL22+'Programmable Tstats - Tier 2'!BL22+'Comm 95+% Furnace - NEW'!BL22+'Comm 95+% Furnace - Replace'!BL22+'Comm Custom'!BL22,0) -> 64943 | BN22: =ROUND(+'Res .95+% Res Furnace - NEW'!BN22+'Res .95+% Res Furnace - Replace'!BN22+'Programmable Tstats - Tier 1'!BN22+'Programmable Tstats - Tier 2'!BN22+'Comm 95+% Furnace - NEW'!BN22+'Comm 95+% Furnace - Replace'!BN22+'Comm Custom'!BN22,0) -> 31434 | BP22: 96377 | BR22: =ROUND(+'Res .95+% Res Furnace - NEW'!BR22+'Res .95+% Res Furnace - Replace'!BR22+'Programmable Tstats - Tier 1'!BR22+'Programmable Tstats - Tier 2'!BR22+'Comm 95+% Furnace - NEW'!BR22+'Comm 95+% Furnace - Replace'!BR22+'Comm Custom'!BR22,0) -> 0 | BT22: 96377 | BW22: 2030 | BX22: 35740 | BY22: 10497 | BZ22: 7108 | CA22: 53345 | CC22: 0 | CD22: 0 | CE22: 0 | CG22: 53345 | DB22: =$J15 -> 1
A23: 5) Peak Reduction Factor = | E23: 20) Project Life (Years) = | J23: 9 | L23: 2031 | M23: =ROUND(+'Res .95+% Res Furnace - NEW'!M23+'Res .95+% Res Furnace - Replace'!M23+'Programmable Tstats - Tier 1'!M23+'Programmable Tstats - Tier 2'!M23+'Comm 95+% Furnace - NEW'!M23+'Comm 95+% Furnace - Replace'!M23+'Comm Custom'!M23,0) -> 6476 | O23: =ROUND(+'Res .95+% Res Furnace - NEW'!O23+'Res .95+% Res Furnace - Replace'!O23+'Programmable Tstats - Tier 1'!O23+'Programmable Tstats - Tier 2'!O23+'Comm 95+% Furnace - NEW'!O23+'Comm 95+% Furnace - Replace'!O23+'Comm Custom'!O23,0) -> 36816 | Q23: =ROUND(+'Res .95+% Res Furnace - NEW'!Q23+'Res .95+% Res Furnace - Replace'!Q23+'Programmable Tstats - Tier 1'!Q23+'Programmable Tstats - Tier 2'!Q23+'Comm 95+% Furnace - NEW'!Q23+'Comm 95+% Furnace - Replace'!Q23+'Comm Custom'!Q23,0) -> 0 | R23: =ROUND(+'Res .95+% Res Furnace - NEW'!R23+'Res .95+% Res Furnace - Replace'!R23+'Programmable Tstats - Tier 1'!R23+'Programmable Tstats - Tier 2'!R23+'Comm 95+% Furnace - NEW'!R23+'Comm 95+% Furnace - Replace'!R23+'Comm Custom'!R23,0) -> 36816 | S23: =ROUND(+'Res .95+% Res Furnace - NEW'!S23+'Res .95+% Res Furnace - Replace'!S23+'Programmable Tstats - Tier 1'!S23+'Programmable Tstats - Tier 2'!S23+'Comm 95+% Furnace - NEW'!S23+'Comm 95+% Furnace - Replace'!S23+'Comm Custom'!S23,0) -> 65 | U23: =ROUND(+'Res .95+% Res Furnace - NEW'!U23+'Res .95+% Res Furnace - Replace'!U23+'Programmable Tstats - Tier 1'!U23+'Programmable Tstats - Tier 2'!U23+'Comm 95+% Furnace - NEW'!U23+'Comm 95+% Furnace - Replace'!U23+'Comm Custom'!U23,0) -> 10563 | V23: =ROUND(+'Res .95+% Res Furnace - NEW'!V23+'Res .95+% Res Furnace - Replace'!V23+'Programmable Tstats - Tier 1'!V23+'Programmable Tstats - Tier 2'!V23+'Comm 95+% Furnace - NEW'!V23+'Comm 95+% Furnace - Replace'!V23+'Comm Custom'!V23,0) -> 47379 | X23: =ROUND(+'Res .95+% Res Furnace - NEW'!X23+'Res .95+% Res Furnace - Replace'!X23+'Programmable Tstats - Tier 1'!X23+'Programmable Tstats - Tier 2'!X23+'Comm 95+% Furnace - NEW'!X23+'Comm 95+% Furnace - Replace'!X23+'Comm Custom'!X23,0) -> 11768 | Y23: =ROUND(+'Res .95+% Res Furnace - NEW'!Y23+'Res .95+% Res Furnace - Replace'!Y23+'Programmable Tstats - Tier 1'!Y23+'Programmable Tstats - Tier 2'!Y23+'Comm 95+% Furnace - NEW'!Y23+'Comm 95+% Furnace - Replace'!Y23+'Comm Custom'!Y23,0) -> 0 | Z23: =ROUND(+'Res .95+% Res Furnace - NEW'!Z23+'Res .95+% Res Furnace - Replace'!Z23+'Programmable Tstats - Tier 1'!Z23+'Programmable Tstats - Tier 2'!Z23+'Comm 95+% Furnace - NEW'!Z23+'Comm 95+% Furnace - Replace'!Z23+'Comm Custom'!Z23,0) -> 0 | AA23: =ROUND(+'Res .95+% Res Furnace - NEW'!AA23+'Res .95+% Res Furnace - Replace'!AA23+'Programmable Tstats - Tier 1'!AA23+'Programmable Tstats - Tier 2'!AA23+'Comm 95+% Furnace - NEW'!AA23+'Comm 95+% Furnace - Replace'!AA23+'Comm Custom'!AA23,0) -> 11768 | AB23: =ROUND(+'Res .95+% Res Furnace - NEW'!AB23+'Res .95+% Res Furnace - Replace'!AB23+'Programmable Tstats - Tier 1'!AB23+'Programmable Tstats - Tier 2'!AB23+'Comm 95+% Furnace - NEW'!AB23+'Comm 95+% Furnace - Replace'!AB23+'Comm Custom'!AB23,0) -> 35611 | AE23: 2031 | AF23: 36816 | AG23: 10563 | AH23: 47379 | AJ23: 0 | AK23: 0 | AL23: 0 | AN23: 47379 | AQ23: 2031 | AR23: 36816 | AS23: 10563 | AU23: =ROUND(+'Res .95+% Res Furnace - NEW'!AU23+'Res .95+% Res Furnace - Replace'!AU23+'Programmable Tstats - Tier 1'!AU23+'Programmable Tstats - Tier 2'!AU23+'Comm 95+% Furnace - NEW'!AU23+'Comm 95+% Furnace - Replace'!AU23+'Comm Custom'!AU23,0) -> 7494 | AW23: =ROUND(+'Res .95+% Res Furnace - NEW'!AW23+'Res .95+% Res Furnace - Replace'!AW23+'Programmable Tstats - Tier 1'!AW23+'Programmable Tstats - Tier 2'!AW23+'Comm 95+% Furnace - NEW'!AW23+'Comm 95+% Furnace - Replace'!AW23+'Comm Custom'!AW23,0) -> 16449 | AZ23: 71322 | BB23: =ROUND(+'Res .95+% Res Furnace - NEW'!BB23+'Res .95+% Res Furnace - Replace'!BB23+'Programmable Tstats - Tier 1'!BB23+'Programmable Tstats - Tier 2'!BB23+'Comm 95+% Furnace - NEW'!BB23+'Comm 95+% Furnace - Replace'!BB23+'Comm Custom'!BB23,0) -> 0 | BC23: =ROUND(+'Res .95+% Res Furnace - NEW'!BC23+'Res .95+% Res Furnace - Replace'!BC23+'Programmable Tstats - Tier 1'!BC23+'Programmable Tstats - Tier 2'!BC23+'Comm 95+% Furnace - NEW'!BC23+'Comm 95+% Furnace - Replace'!BC23+'Comm Custom'!BC23,0) -> 0 | BD23: 0 | BE23: 71322 | BH23: 2031 | BI23: =ROUND(+'Res .95+% Res Furnace - NEW'!BI23+'Res .95+% Res Furnace - Replace'!BI23+'Programmable Tstats - Tier 1'!BI23+'Programmable Tstats - Tier 2'!BI23+'Comm 95+% Furnace - NEW'!BI23+'Comm 95+% Furnace - Replace'!BI23+'Comm Custom'!BI23,0) -> 0 | BJ23: =ROUND(+'Res .95+% Res Furnace - NEW'!BJ23+'Res .95+% Res Furnace - Replace'!BJ23+'Programmable Tstats - Tier 1'!BJ23+'Programmable Tstats - Tier 2'!BJ23+'Comm 95+% Furnace - NEW'!BJ23+'Comm 95+% Furnace - Replace'!BJ23+'Comm Custom'!BJ23,0) -> 6476 | BL23: =ROUND(+'Res .95+% Res Furnace - NEW'!BL23+'Res .95+% Res Furnace - Replace'!BL23+'Programmable Tstats - Tier 1'!BL23+'Programmable Tstats - Tier 2'!BL23+'Comm 95+% Furnace - NEW'!BL23+'Comm 95+% Furnace - Replace'!BL23+'Comm Custom'!BL23,0) -> 66893 | BN23: =ROUND(+'Res .95+% Res Furnace - NEW'!BN23+'Res .95+% Res Furnace - Replace'!BN23+'Programmable Tstats - Tier 1'!BN23+'Programmable Tstats - Tier 2'!BN23+'Comm 95+% Furnace - NEW'!BN23+'Comm 95+% Furnace - Replace'!BN23+'Comm Custom'!BN23,0) -> 32395 | BP23: 99288 | BR23: =ROUND(+'Res .95+% Res Furnace - NEW'!BR23+'Res .95+% Res Furnace - Replace'!BR23+'Programmable Tstats - Tier 1'!BR23+'Programmable Tstats - Tier 2'!BR23+'Comm 95+% Furnace - NEW'!BR23+'Comm 95+% Furnace - Replace'!BR23+'Comm Custom'!BR23,0) -> 0 | BT23: 99288 | BW23: 2031 | BX23: 36816 | BY23: 10563 | BZ23: 7494 | CA23: 54873 | CC23: 0 | CD23: 0 | CE23: 0 | CG23: 54873 | DB23: =$J16 -> 2
J24: 10 | L24: 2032 | M24: =ROUND(+'Res .95+% Res Furnace - NEW'!M24+'Res .95+% Res Furnace - Replace'!M24+'Programmable Tstats - Tier 1'!M24+'Programmable Tstats - Tier 2'!M24+'Comm 95+% Furnace - NEW'!M24+'Comm 95+% Furnace - Replace'!M24+'Comm Custom'!M24,0) -> 5226 | O24: =ROUND(+'Res .95+% Res Furnace - NEW'!O24+'Res .95+% Res Furnace - Replace'!O24+'Programmable Tstats - Tier 1'!O24+'Programmable Tstats - Tier 2'!O24+'Comm 95+% Furnace - NEW'!O24+'Comm 95+% Furnace - Replace'!O24+'Comm Custom'!O24,0) -> 30599 | Q24: =ROUND(+'Res .95+% Res Furnace - NEW'!Q24+'Res .95+% Res Furnace - Replace'!Q24+'Programmable Tstats - Tier 1'!Q24+'Programmable Tstats - Tier 2'!Q24+'Comm 95+% Furnace - NEW'!Q24+'Comm 95+% Furnace - Replace'!Q24+'Comm Custom'!Q24,0) -> 0 | R24: =ROUND(+'Res .95+% Res Furnace - NEW'!R24+'Res .95+% Res Furnace - Replace'!R24+'Programmable Tstats - Tier 1'!R24+'Programmable Tstats - Tier 2'!R24+'Comm 95+% Furnace - NEW'!R24+'Comm 95+% Furnace - Replace'!R24+'Comm Custom'!R24,0) -> 30599 | S24: =ROUND(+'Res .95+% Res Furnace - NEW'!S24+'Res .95+% Res Furnace - Replace'!S24+'Programmable Tstats - Tier 1'!S24+'Programmable Tstats - Tier 2'!S24+'Comm 95+% Furnace - NEW'!S24+'Comm 95+% Furnace - Replace'!S24+'Comm Custom'!S24,0) -> 52 | U24: =ROUND(+'Res .95+% Res Furnace - NEW'!U24+'Res .95+% Res Furnace - Replace'!U24+'Programmable Tstats - Tier 1'!U24+'Programmable Tstats - Tier 2'!U24+'Comm 95+% Furnace - NEW'!U24+'Comm 95+% Furnace - Replace'!U24+'Comm Custom'!U24,0) -> 8630 | V24: =ROUND(+'Res .95+% Res Furnace - NEW'!V24+'Res .95+% Res Furnace - Replace'!V24+'Programmable Tstats - Tier 1'!V24+'Programmable Tstats - Tier 2'!V24+'Comm 95+% Furnace - NEW'!V24+'Comm 95+% Furnace - Replace'!V24+'Comm Custom'!V24,0) -> 39229 | X24: =ROUND(+'Res .95+% Res Furnace - NEW'!X24+'Res .95+% Res Furnace - Replace'!X24+'Programmable Tstats - Tier 1'!X24+'Programmable Tstats - Tier 2'!X24+'Comm 95+% Furnace - NEW'!X24+'Comm 95+% Furnace - Replace'!X24+'Comm Custom'!X24,0) -> 9682 | Y24: =ROUND(+'Res .95+% Res Furnace - NEW'!Y24+'Res .95+% Res Furnace - Replace'!Y24+'Programmable Tstats - Tier 1'!Y24+'Programmable Tstats - Tier 2'!Y24+'Comm 95+% Furnace - NEW'!Y24+'Comm 95+% Furnace - Replace'!Y24+'Comm Custom'!Y24,0) -> 0 | Z24: =ROUND(+'Res .95+% Res Furnace - NEW'!Z24+'Res .95+% Res Furnace - Replace'!Z24+'Programmable Tstats - Tier 1'!Z24+'Programmable Tstats - Tier 2'!Z24+'Comm 95+% Furnace - NEW'!Z24+'Comm 95+% Furnace - Replace'!Z24+'Comm Custom'!Z24,0) -> 0 | AA24: =ROUND(+'Res .95+% Res Furnace - NEW'!AA24+'Res .95+% Res Furnace - Replace'!AA24+'Programmable Tstats - Tier 1'!AA24+'Programmable Tstats - Tier 2'!AA24+'Comm 95+% Furnace - NEW'!AA24+'Comm 95+% Furnace - Replace'!AA24+'Comm Custom'!AA24,0) -> 9682 | AB24: =ROUND(+'Res .95+% Res Furnace - NEW'!AB24+'Res .95+% Res Furnace - Replace'!AB24+'Programmable Tstats - Tier 1'!AB24+'Programmable Tstats - Tier 2'!AB24+'Comm 95+% Furnace - NEW'!AB24+'Comm 95+% Furnace - Replace'!AB24+'Comm Custom'!AB24,0) -> 29547 | AE24: 2032 | AF24: 30599 | AG24: 8630 | AH24: 39229 | AJ24: 0 | AK24: 0 | AL24: 0 | AN24: 39229 | AQ24: 2032 | AR24: 30599 | AS24: 8630 | AU24: =ROUND(+'Res .95+% Res Furnace - NEW'!AU24+'Res .95+% Res Furnace - Replace'!AU24+'Programmable Tstats - Tier 1'!AU24+'Programmable Tstats - Tier 2'!AU24+'Comm 95+% Furnace - NEW'!AU24+'Comm 95+% Furnace - Replace'!AU24+'Comm Custom'!AU24,0) -> 7402 | AW24: =ROUND(+'Res .95+% Res Furnace - NEW'!AW24+'Res .95+% Res Furnace - Replace'!AW24+'Programmable Tstats - Tier 1'!AW24+'Programmable Tstats - Tier 2'!AW24+'Comm 95+% Furnace - NEW'!AW24+'Comm 95+% Furnace - Replace'!AW24+'Comm Custom'!AW24,0) -> 13583 | AZ24: 60214 | BB24: =ROUND(+'Res .95+% Res Furnace - NEW'!BB24+'Res .95+% Res Furnace - Replace'!BB24+'Programmable Tstats - Tier 1'!BB24+'Programmable Tstats - Tier 2'!BB24+'Comm 95+% Furnace - NEW'!BB24+'Comm 95+% Furnace - Replace'!BB24+'Comm Custom'!BB24,0) -> 0 | BC24: =ROUND(+'Res .95+% Res Furnace - NEW'!BC24+'Res .95+% Res Furnace - Replace'!BC24+'Programmable Tstats - Tier 1'!BC24+'Programmable Tstats - Tier 2'!BC24+'Comm 95+% Furnace - NEW'!BC24+'Comm 95+% Furnace - Replace'!BC24+'Comm Custom'!BC24,0) -> 0 | BD24: 0 | BE24: 60214 | BH24: 2032 | BI24: =ROUND(+'Res .95+% Res Furnace - NEW'!BI24+'Res .95+% Res Furnace - Replace'!BI24+'Programmable Tstats - Tier 1'!BI24+'Programmable Tstats - Tier 2'!BI24+'Comm 95+% Furnace - NEW'!BI24+'Comm 95+% Furnace - Replace'!BI24+'Comm Custom'!BI24,0) -> 0 | BJ24: =ROUND(+'Res .95+% Res Furnace - NEW'!BJ24+'Res .95+% Res Furnace - Replace'!BJ24+'Programmable Tstats - Tier 1'!BJ24+'Programmable Tstats - Tier 2'!BJ24+'Comm 95+% Furnace - NEW'!BJ24+'Comm 95+% Furnace - Replace'!BJ24+'Comm Custom'!BJ24,0) -> 5226 | BL24: =ROUND(+'Res .95+% Res Furnace - NEW'!BL24+'Res .95+% Res Furnace - Replace'!BL24+'Programmable Tstats - Tier 1'!BL24+'Programmable Tstats - Tier 2'!BL24+'Comm 95+% Furnace - NEW'!BL24+'Comm 95+% Furnace - Replace'!BL24+'Comm Custom'!BL24,0) -> 55478 | BN24: =ROUND(+'Res .95+% Res Furnace - NEW'!BN24+'Res .95+% Res Furnace - Replace'!BN24+'Programmable Tstats - Tier 1'!BN24+'Programmable Tstats - Tier 2'!BN24+'Comm 95+% Furnace - NEW'!BN24+'Comm 95+% Furnace - Replace'!BN24+'Comm Custom'!BN24,0) -> 32121 | BP24: 87599 | BR24: =ROUND(+'Res .95+% Res Furnace - NEW'!BR24+'Res .95+% Res Furnace - Replace'!BR24+'Programmable Tstats - Tier 1'!BR24+'Programmable Tstats - Tier 2'!BR24+'Comm 95+% Furnace - NEW'!BR24+'Comm 95+% Furnace - Replace'!BR24+'Comm Custom'!BR24,0) -> 0 | BT24: 87599 | BW24: 2032 | BX24: 30599 | BY24: 8630 | BZ24: 7402 | CA24: 46631 | CC24: 0 | CD24: 0 | CE24: 0 | CG24: 46631 | DB24: =$J17 -> 3
A25: 6) Variable O&M ($/Dk) = | E25: 21) Avg. Dk/Part. Saved = | J25: 11 | L25: 2033 | M25: =ROUND(+'Res .95+% Res Furnace - NEW'!M25+'Res .95+% Res Furnace - Replace'!M25+'Programmable Tstats - Tier 1'!M25+'Programmable Tstats - Tier 2'!M25+'Comm 95+% Furnace - NEW'!M25+'Comm 95+% Furnace - Replace'!M25+'Comm Custom'!M25,0) -> 5226 | O25: =ROUND(+'Res .95+% Res Furnace - NEW'!O25+'Res .95+% Res Furnace - Replace'!O25+'Programmable Tstats - Tier 1'!O25+'Programmable Tstats - Tier 2'!O25+'Comm 95+% Furnace - NEW'!O25+'Comm 95+% Furnace - Replace'!O25+'Comm Custom'!O25,0) -> 31518 | Q25: =ROUND(+'Res .95+% Res Furnace - NEW'!Q25+'Res .95+% Res Furnace - Replace'!Q25+'Programmable Tstats - Tier 1'!Q25+'Programmable Tstats - Tier 2'!Q25+'Comm 95+% Furnace - NEW'!Q25+'Comm 95+% Furnace - Replace'!Q25+'Comm Custom'!Q25,0) -> 0 | R25: =ROUND(+'Res .95+% Res Furnace - NEW'!R25+'Res .95+% Res Furnace - Replace'!R25+'Programmable Tstats - Tier 1'!R25+'Programmable Tstats - Tier 2'!R25+'Comm 95+% Furnace - NEW'!R25+'Comm 95+% Furnace - Replace'!R25+'Comm Custom'!R25,0) -> 31518 | S25: =ROUND(+'Res .95+% Res Furnace - NEW'!S25+'Res .95+% Res Furnace - Replace'!S25+'Programmable Tstats - Tier 1'!S25+'Programmable Tstats - Tier 2'!S25+'Comm 95+% Furnace - NEW'!S25+'Comm 95+% Furnace - Replace'!S25+'Comm Custom'!S25,0) -> 52 | U25: =ROUND(+'Res .95+% Res Furnace - NEW'!U25+'Res .95+% Res Furnace - Replace'!U25+'Programmable Tstats - Tier 1'!U25+'Programmable Tstats - Tier 2'!U25+'Comm 95+% Furnace - NEW'!U25+'Comm 95+% Furnace - Replace'!U25+'Comm Custom'!U25,0) -> 8734 | V25: =ROUND(+'Res .95+% Res Furnace - NEW'!V25+'Res .95+% Res Furnace - Replace'!V25+'Programmable Tstats - Tier 1'!V25+'Programmable Tstats - Tier 2'!V25+'Comm 95+% Furnace - NEW'!V25+'Comm 95+% Furnace - Replace'!V25+'Comm Custom'!V25,0) -> 40252 | X25: =ROUND(+'Res .95+% Res Furnace - NEW'!X25+'Res .95+% Res Furnace - Replace'!X25+'Programmable Tstats - Tier 1'!X25+'Programmable Tstats - Tier 2'!X25+'Comm 95+% Furnace - NEW'!X25+'Comm 95+% Furnace - Replace'!X25+'Comm Custom'!X25,0) -> 9971 | Y25: =ROUND(+'Res .95+% Res Furnace - NEW'!Y25+'Res .95+% Res Furnace - Replace'!Y25+'Programmable Tstats - Tier 1'!Y25+'Programmable Tstats - Tier 2'!Y25+'Comm 95+% Furnace - NEW'!Y25+'Comm 95+% Furnace - Replace'!Y25+'Comm Custom'!Y25,0) -> 0 | Z25: =ROUND(+'Res .95+% Res Furnace - NEW'!Z25+'Res .95+% Res Furnace - Replace'!Z25+'Programmable Tstats - Tier 1'!Z25+'Programmable Tstats - Tier 2'!Z25+'Comm 95+% Furnace - NEW'!Z25+'Comm 95+% Furnace - Replace'!Z25+'Comm Custom'!Z25,0) -> 0 | AA25: =ROUND(+'Res .95+% Res Furnace - NEW'!AA25+'Res .95+% Res Furnace - Replace'!AA25+'Programmable Tstats - Tier 1'!AA25+'Programmable Tstats - Tier 2'!AA25+'Comm 95+% Furnace - NEW'!AA25+'Comm 95+% Furnace - Replace'!AA25+'Comm Custom'!AA25,0) -> 9971 | AB25: =ROUND(+'Res .95+% Res Furnace - NEW'!AB25+'Res .95+% Res Furnace - Replace'!AB25+'Programmable Tstats - Tier 1'!AB25+'Programmable Tstats - Tier 2'!AB25+'Comm 95+% Furnace - NEW'!AB25+'Comm 95+% Furnace - Replace'!AB25+'Comm Custom'!AB25,0) -> 30281 | AE25: 2033 | AF25: 31518 | AG25: 8734 | AH25: 40252 | AJ25: 0 | AK25: 0 | AL25: 0 | AN25: 40252 | AQ25: 2033 | AR25: 31518 | AS25: 8734 | AU25: =ROUND(+'Res .95+% Res Furnace - NEW'!AU25+'Res .95+% Res Furnace - Replace'!AU25+'Programmable Tstats - Tier 1'!AU25+'Programmable Tstats - Tier 2'!AU25+'Comm 95+% Furnace - NEW'!AU25+'Comm 95+% Furnace - Replace'!AU25+'Comm Custom'!AU25,0) -> 7587 | AW25: =ROUND(+'Res .95+% Res Furnace - NEW'!AW25+'Res .95+% Res Furnace - Replace'!AW25+'Programmable Tstats - Tier 1'!AW25+'Programmable Tstats - Tier 2'!AW25+'Comm 95+% Furnace - NEW'!AW25+'Comm 95+% Furnace - Replace'!AW25+'Comm Custom'!AW25,0) -> 13891 | AZ25: 61730 | BB25: =ROUND(+'Res .95+% Res Furnace - NEW'!BB25+'Res .95+% Res Furnace - Replace'!BB25+'Programmable Tstats - Tier 1'!BB25+'Programmable Tstats - Tier 2'!BB25+'Comm 95+% Furnace - NEW'!BB25+'Comm 95+% Furnace - Replace'!BB25+'Comm Custom'!BB25,0) -> 0 | BC25: =ROUND(+'Res .95+% Res Furnace - NEW'!BC25+'Res .95+% Res Furnace - Replace'!BC25+'Programmable Tstats - Tier 1'!BC25+'Programmable Tstats - Tier 2'!BC25+'Comm 95+% Furnace - NEW'!BC25+'Comm 95+% Furnace - Replace'!BC25+'Comm Custom'!BC25,0) -> 0 | BD25: 0 | BE25: 61730 | BH25: 2033 | BI25: =ROUND(+'Res .95+% Res Furnace - NEW'!BI25+'Res .95+% Res Furnace - Replace'!BI25+'Programmable Tstats - Tier 1'!BI25+'Programmable Tstats - Tier 2'!BI25+'Comm 95+% Furnace - NEW'!BI25+'Comm 95+% Furnace - Replace'!BI25+'Comm Custom'!BI25,0) -> 0 | BJ25: =ROUND(+'Res .95+% Res Furnace - NEW'!BJ25+'Res .95+% Res Furnace - Replace'!BJ25+'Programmable Tstats - Tier 1'!BJ25+'Programmable Tstats - Tier 2'!BJ25+'Comm 95+% Furnace - NEW'!BJ25+'Comm 95+% Furnace - Replace'!BJ25+'Comm Custom'!BJ25,0) -> 5226 | BL25: =ROUND(+'Res .95+% Res Furnace - NEW'!BL25+'Res .95+% Res Furnace - Replace'!BL25+'Programmable Tstats - Tier 1'!BL25+'Programmable Tstats - Tier 2'!BL25+'Comm 95+% Furnace - NEW'!BL25+'Comm 95+% Furnace - Replace'!BL25+'Comm Custom'!BL25,0) -> 57142 | BN25: =ROUND(+'Res .95+% Res Furnace - NEW'!BN25+'Res .95+% Res Furnace - Replace'!BN25+'Programmable Tstats - Tier 1'!BN25+'Programmable Tstats - Tier 2'!BN25+'Comm 95+% Furnace - NEW'!BN25+'Comm 95+% Furnace - Replace'!BN25+'Comm Custom'!BN25,0) -> 33047 | BP25: 90189 | BR25: =ROUND(+'Res .95+% Res Furnace - NEW'!BR25+'Res .95+% Res Furnace - Replace'!BR25+'Programmable Tstats - Tier 1'!BR25+'Programmable Tstats - Tier 2'!BR25+'Comm 95+% Furnace - NEW'!BR25+'Comm 95+% Furnace - Replace'!BR25+'Comm Custom'!BR25,0) -> 0 | BT25: 90189 | BW25: 2033 | BX25: 31518 | BY25: 8734 | BZ25: 7587 | CA25: 47839 | CC25: 0 | CD25: 0 | CE25: 0 | CG25: 47839
A26: Escalation Rate = | J26: 12 | L26: 2034 | M26: =ROUND(+'Res .95+% Res Furnace - NEW'!M26+'Res .95+% Res Furnace - Replace'!M26+'Programmable Tstats - Tier 1'!M26+'Programmable Tstats - Tier 2'!M26+'Comm 95+% Furnace - NEW'!M26+'Comm 95+% Furnace - Replace'!M26+'Comm Custom'!M26,0) -> 5226 | O26: =ROUND(+'Res .95+% Res Furnace - NEW'!O26+'Res .95+% Res Furnace - Replace'!O26+'Programmable Tstats - Tier 1'!O26+'Programmable Tstats - Tier 2'!O26+'Comm 95+% Furnace - NEW'!O26+'Comm 95+% Furnace - Replace'!O26+'Comm Custom'!O26,0) -> 32464 | Q26: =ROUND(+'Res .95+% Res Furnace - NEW'!Q26+'Res .95+% Res Furnace - Replace'!Q26+'Programmable Tstats - Tier 1'!Q26+'Programmable Tstats - Tier 2'!Q26+'Comm 95+% Furnace - NEW'!Q26+'Comm 95+% Furnace - Replace'!Q26+'Comm Custom'!Q26,0) -> 0 | R26: =ROUND(+'Res .95+% Res Furnace - NEW'!R26+'Res .95+% Res Furnace - Replace'!R26+'Programmable Tstats - Tier 1'!R26+'Programmable Tstats - Tier 2'!R26+'Comm 95+% Furnace - NEW'!R26+'Comm 95+% Furnace - Replace'!R26+'Comm Custom'!R26,0) -> 32464 | S26: =ROUND(+'Res .95+% Res Furnace - NEW'!S26+'Res .95+% Res Furnace - Replace'!S26+'Programmable Tstats - Tier 1'!S26+'Programmable Tstats - Tier 2'!S26+'Comm 95+% Furnace - NEW'!S26+'Comm 95+% Furnace - Replace'!S26+'Comm Custom'!S26,0) -> 52 | U26: =ROUND(+'Res .95+% Res Furnace - NEW'!U26+'Res .95+% Res Furnace - Replace'!U26+'Programmable Tstats - Tier 1'!U26+'Programmable Tstats - Tier 2'!U26+'Comm 95+% Furnace - NEW'!U26+'Comm 95+% Furnace - Replace'!U26+'Comm Custom'!U26,0) -> 8787 | V26: =ROUND(+'Res .95+% Res Furnace - NEW'!V26+'Res .95+% Res Furnace - Replace'!V26+'Programmable Tstats - Tier 1'!V26+'Programmable Tstats - Tier 2'!V26+'Comm 95+% Furnace - NEW'!V26+'Comm 95+% Furnace - Replace'!V26+'Comm Custom'!V26,0) -> 41251 | X26: =ROUND(+'Res .95+% Res Furnace - NEW'!X26+'Res .95+% Res Furnace - Replace'!X26+'Programmable Tstats - Tier 1'!X26+'Programmable Tstats - Tier 2'!X26+'Comm 95+% Furnace - NEW'!X26+'Comm 95+% Furnace - Replace'!X26+'Comm Custom'!X26,0) -> 10273 | Y26: =ROUND(+'Res .95+% Res Furnace - NEW'!Y26+'Res .95+% Res Furnace - Replace'!Y26+'Programmable Tstats - Tier 1'!Y26+'Programmable Tstats - Tier 2'!Y26+'Comm 95+% Furnace - NEW'!Y26+'Comm 95+% Furnace - Replace'!Y26+'Comm Custom'!Y26,0) -> 0 | Z26: =ROUND(+'Res .95+% Res Furnace - NEW'!Z26+'Res .95+% Res Furnace - Replace'!Z26+'Programmable Tstats - Tier 1'!Z26+'Programmable Tstats - Tier 2'!Z26+'Comm 95+% Furnace - NEW'!Z26+'Comm 95+% Furnace - Replace'!Z26+'Comm Custom'!Z26,0) -> 0 | AA26: =ROUND(+'Res .95+% Res Furnace - NEW'!AA26+'Res .95+% Res Furnace - Replace'!AA26+'Programmable Tstats - Tier 1'!AA26+'Programmable Tstats - Tier 2'!AA26+'Comm 95+% Furnace - NEW'!AA26+'Comm 95+% Furnace - Replace'!AA26+'Comm Custom'!AA26,0) -> 10273 | AB26: =ROUND(+'Res .95+% Res Furnace - NEW'!AB26+'Res .95+% Res Furnace - Replace'!AB26+'Programmable Tstats - Tier 1'!AB26+'Programmable Tstats - Tier 2'!AB26+'Comm 95+% Furnace - NEW'!AB26+'Comm 95+% Furnace - Replace'!AB26+'Comm Custom'!AB26,0) -> 30978 | AE26: 2034 | AF26: 32464 | AG26: 8787 | AH26: 41251 | AJ26: 0 | AK26: 0 | AL26: 0 | AN26: 41251 | AQ26: 2034 | AR26: 32464 | AS26: 8787 | AU26: =ROUND(+'Res .95+% Res Furnace - NEW'!AU26+'Res .95+% Res Furnace - Replace'!AU26+'Programmable Tstats - Tier 1'!AU26+'Programmable Tstats - Tier 2'!AU26+'Comm 95+% Furnace - NEW'!AU26+'Comm 95+% Furnace - Replace'!AU26+'Comm Custom'!AU26,0) -> 7772 | AW26: =ROUND(+'Res .95+% Res Furnace - NEW'!AW26+'Res .95+% Res Furnace - Replace'!AW26+'Programmable Tstats - Tier 1'!AW26+'Programmable Tstats - Tier 2'!AW26+'Comm 95+% Furnace - NEW'!AW26+'Comm 95+% Furnace - Replace'!AW26+'Comm Custom'!AW26,0) -> 14210 | AZ26: 63233 | BB26: =ROUND(+'Res .95+% Res Furnace - NEW'!BB26+'Res .95+% Res Furnace - Replace'!BB26+'Programmable Tstats - Tier 1'!BB26+'Programmable Tstats - Tier 2'!BB26+'Comm 95+% Furnace - NEW'!BB26+'Comm 95+% Furnace - Replace'!BB26+'Comm Custom'!BB26,0) -> 0 | BC26: =ROUND(+'Res .95+% Res Furnace - NEW'!BC26+'Res .95+% Res Furnace - Replace'!BC26+'Programmable Tstats - Tier 1'!BC26+'Programmable Tstats - Tier 2'!BC26+'Comm 95+% Furnace - NEW'!BC26+'Comm 95+% Furnace - Replace'!BC26+'Comm Custom'!BC26,0) -> 0 | BD26: 0 | BE26: 63233 | BH26: 2034 | BI26: =ROUND(+'Res .95+% Res Furnace - NEW'!BI26+'Res .95+% Res Furnace - Replace'!BI26+'Programmable Tstats - Tier 1'!BI26+'Programmable Tstats - Tier 2'!BI26+'Comm 95+% Furnace - NEW'!BI26+'Comm 95+% Furnace - Replace'!BI26+'Comm Custom'!BI26,0) -> 0 | BJ26: =ROUND(+'Res .95+% Res Furnace - NEW'!BJ26+'Res .95+% Res Furnace - Replace'!BJ26+'Programmable Tstats - Tier 1'!BJ26+'Programmable Tstats - Tier 2'!BJ26+'Comm 95+% Furnace - NEW'!BJ26+'Comm 95+% Furnace - Replace'!BJ26+'Comm Custom'!BJ26,0) -> 5226 | BL26: =ROUND(+'Res .95+% Res Furnace - NEW'!BL26+'Res .95+% Res Furnace - Replace'!BL26+'Programmable Tstats - Tier 1'!BL26+'Programmable Tstats - Tier 2'!BL26+'Comm 95+% Furnace - NEW'!BL26+'Comm 95+% Furnace - Replace'!BL26+'Comm Custom'!BL26,0) -> 58858 | BN26: =ROUND(+'Res .95+% Res Furnace - NEW'!BN26+'Res .95+% Res Furnace - Replace'!BN26+'Programmable Tstats - Tier 1'!BN26+'Programmable Tstats - Tier 2'!BN26+'Comm 95+% Furnace - NEW'!BN26+'Comm 95+% Furnace - Replace'!BN26+'Comm Custom'!BN26,0) -> 33971 | BP26: 92829 | BR26: =ROUND(+'Res .95+% Res Furnace - NEW'!BR26+'Res .95+% Res Furnace - Replace'!BR26+'Programmable Tstats - Tier 1'!BR26+'Programmable Tstats - Tier 2'!BR26+'Comm 95+% Furnace - NEW'!BR26+'Comm 95+% Furnace - Replace'!BR26+'Comm Custom'!BR26,0) -> 0 | BT26: 92829 | BW26: 2034 | BX26: 32464 | BY26: 8787 | BZ26: 7772 | CA26: 49023 | CC26: 0 | CD26: 0 | CE26: 0 | CG26: 49023
E27: 22) Avg Non-Gas Fuel Units/Part. Saved = | J27: 13 | L27: 2035 | M27: =ROUND(+'Res .95+% Res Furnace - NEW'!M27+'Res .95+% Res Furnace - Replace'!M27+'Programmable Tstats - Tier 1'!M27+'Programmable Tstats - Tier 2'!M27+'Comm 95+% Furnace - NEW'!M27+'Comm 95+% Furnace - Replace'!M27+'Comm Custom'!M27,0) -> 5226 | O27: =ROUND(+'Res .95+% Res Furnace - NEW'!O27+'Res .95+% Res Furnace - Replace'!O27+'Programmable Tstats - Tier 1'!O27+'Programmable Tstats - Tier 2'!O27+'Comm 95+% Furnace - NEW'!O27+'Comm 95+% Furnace - Replace'!O27+'Comm Custom'!O27,0) -> 33436 | Q27: =ROUND(+'Res .95+% Res Furnace - NEW'!Q27+'Res .95+% Res Furnace - Replace'!Q27+'Programmable Tstats - Tier 1'!Q27+'Programmable Tstats - Tier 2'!Q27+'Comm 95+% Furnace - NEW'!Q27+'Comm 95+% Furnace - Replace'!Q27+'Comm Custom'!Q27,0) -> 0 | R27: =ROUND(+'Res .95+% Res Furnace - NEW'!R27+'Res .95+% Res Furnace - Replace'!R27+'Programmable Tstats - Tier 1'!R27+'Programmable Tstats - Tier 2'!R27+'Comm 95+% Furnace - NEW'!R27+'Comm 95+% Furnace - Replace'!R27+'Comm Custom'!R27,0) -> 33436 | S27: =ROUND(+'Res .95+% Res Furnace - NEW'!S27+'Res .95+% Res Furnace - Replace'!S27+'Programmable Tstats - Tier 1'!S27+'Programmable Tstats - Tier 2'!S27+'Comm 95+% Furnace - NEW'!S27+'Comm 95+% Furnace - Replace'!S27+'Comm Custom'!S27,0) -> 52 | U27: =ROUND(+'Res .95+% Res Furnace - NEW'!U27+'Res .95+% Res Furnace - Replace'!U27+'Programmable Tstats - Tier 1'!U27+'Programmable Tstats - Tier 2'!U27+'Comm 95+% Furnace - NEW'!U27+'Comm 95+% Furnace - Replace'!U27+'Comm Custom'!U27,0) -> 8891 | V27: =ROUND(+'Res .95+% Res Furnace - NEW'!V27+'Res .95+% Res Furnace - Replace'!V27+'Programmable Tstats - Tier 1'!V27+'Programmable Tstats - Tier 2'!V27+'Comm 95+% Furnace - NEW'!V27+'Comm 95+% Furnace - Replace'!V27+'Comm Custom'!V27,0) -> 42327 | X27: =ROUND(+'Res .95+% Res Furnace - NEW'!X27+'Res .95+% Res Furnace - Replace'!X27+'Programmable Tstats - Tier 1'!X27+'Programmable Tstats - Tier 2'!X27+'Comm 95+% Furnace - NEW'!X27+'Comm 95+% Furnace - Replace'!X27+'Comm Custom'!X27,0) -> 10581 | Y27: =ROUND(+'Res .95+% Res Furnace - NEW'!Y27+'Res .95+% Res Furnace - Replace'!Y27+'Programmable Tstats - Tier 1'!Y27+'Programmable Tstats - Tier 2'!Y27+'Comm 95+% Furnace - NEW'!Y27+'Comm 95+% Furnace - Replace'!Y27+'Comm Custom'!Y27,0) -> 0 | Z27: =ROUND(+'Res .95+% Res Furnace - NEW'!Z27+'Res .95+% Res Furnace - Replace'!Z27+'Programmable Tstats - Tier 1'!Z27+'Programmable Tstats - Tier 2'!Z27+'Comm 95+% Furnace - NEW'!Z27+'Comm 95+% Furnace - Replace'!Z27+'Comm Custom'!Z27,0) -> 0 | AA27: =ROUND(+'Res .95+% Res Furnace - NEW'!AA27+'Res .95+% Res Furnace - Replace'!AA27+'Programmable Tstats - Tier 1'!AA27+'Programmable Tstats - Tier 2'!AA27+'Comm 95+% Furnace - NEW'!AA27+'Comm 95+% Furnace - Replace'!AA27+'Comm Custom'!AA27,0) -> 10581 | AB27: =ROUND(+'Res .95+% Res Furnace - NEW'!AB27+'Res .95+% Res Furnace - Replace'!AB27+'Programmable Tstats - Tier 1'!AB27+'Programmable Tstats - Tier 2'!AB27+'Comm 95+% Furnace - NEW'!AB27+'Comm 95+% Furnace - Replace'!AB27+'Comm Custom'!AB27,0) -> 31746 | AE27: 2035 | AF27: 33436 | AG27: 8891 | AH27: 42327 | AJ27: 0 | AK27: 0 | AL27: 0 | AN27: 42327 | AQ27: 2035 | AR27: 33436 | AS27: 8891 | AU27: =ROUND(+'Res .95+% Res Furnace - NEW'!AU27+'Res .95+% Res Furnace - Replace'!AU27+'Programmable Tstats - Tier 1'!AU27+'Programmable Tstats - Tier 2'!AU27+'Comm 95+% Furnace - NEW'!AU27+'Comm 95+% Furnace - Replace'!AU27+'Comm Custom'!AU27,0) -> 7957 | AW27: =ROUND(+'Res .95+% Res Furnace - NEW'!AW27+'Res .95+% Res Furnace - Replace'!AW27+'Programmable Tstats - Tier 1'!AW27+'Programmable Tstats - Tier 2'!AW27+'Comm 95+% Furnace - NEW'!AW27+'Comm 95+% Furnace - Replace'!AW27+'Comm Custom'!AW27,0) -> 14539 | AZ27: 64823 | BB27: =ROUND(+'Res .95+% Res Furnace - NEW'!BB27+'Res .95+% Res Furnace - Replace'!BB27+'Programmable Tstats - Tier 1'!BB27+'Programmable Tstats - Tier 2'!BB27+'Comm 95+% Furnace - NEW'!BB27+'Comm 95+% Furnace - Replace'!BB27+'Comm Custom'!BB27,0) -> 0 | BC27: =ROUND(+'Res .95+% Res Furnace - NEW'!BC27+'Res .95+% Res Furnace - Replace'!BC27+'Programmable Tstats - Tier 1'!BC27+'Programmable Tstats - Tier 2'!BC27+'Comm 95+% Furnace - NEW'!BC27+'Comm 95+% Furnace - Replace'!BC27+'Comm Custom'!BC27,0) -> 0 | BD27: 0 | BE27: 64823 | BH27: 2035 | BI27: =ROUND(+'Res .95+% Res Furnace - NEW'!BI27+'Res .95+% Res Furnace - Replace'!BI27+'Programmable Tstats - Tier 1'!BI27+'Programmable Tstats - Tier 2'!BI27+'Comm 95+% Furnace - NEW'!BI27+'Comm 95+% Furnace - Replace'!BI27+'Comm Custom'!BI27,0) -> 0 | BJ27: =ROUND(+'Res .95+% Res Furnace - NEW'!BJ27+'Res .95+% Res Furnace - Replace'!BJ27+'Programmable Tstats - Tier 1'!BJ27+'Programmable Tstats - Tier 2'!BJ27+'Comm 95+% Furnace - NEW'!BJ27+'Comm 95+% Furnace - Replace'!BJ27+'Comm Custom'!BJ27,0) -> 5226 | BL27: =ROUND(+'Res .95+% Res Furnace - NEW'!BL27+'Res .95+% Res Furnace - Replace'!BL27+'Programmable Tstats - Tier 1'!BL27+'Programmable Tstats - Tier 2'!BL27+'Comm 95+% Furnace - NEW'!BL27+'Comm 95+% Furnace - Replace'!BL27+'Comm Custom'!BL27,0) -> 60624 | BN27: =ROUND(+'Res .95+% Res Furnace - NEW'!BN27+'Res .95+% Res Furnace - Replace'!BN27+'Programmable Tstats - Tier 1'!BN27+'Programmable Tstats - Tier 2'!BN27+'Comm 95+% Furnace - NEW'!BN27+'Comm 95+% Furnace - Replace'!BN27+'Comm Custom'!BN27,0) -> 35067 | BP27: 95691 | BR27: =ROUND(+'Res .95+% Res Furnace - NEW'!BR27+'Res .95+% Res Furnace - Replace'!BR27+'Programmable Tstats - Tier 1'!BR27+'Programmable Tstats - Tier 2'!BR27+'Comm 95+% Furnace - NEW'!BR27+'Comm 95+% Furnace - Replace'!BR27+'Comm Custom'!BR27,0) -> 0 | BT27: 95691 | BW27: 2035 | BX27: 33436 | BY27: 8891 | BZ27: 7957 | CA27: 50284 | CC27: 0 | CD27: 0 | CE27: 0 | CG27: 50284
A28: 7) Non-Gas Fuel Cost ($/Fuel Unit) = | E28: 22a) Avg Additional Non-Gas Fuel Units/ Part. Used = | J28: 14 | L28: 2036 | M28: =ROUND(+'Res .95+% Res Furnace - NEW'!M28+'Res .95+% Res Furnace - Replace'!M28+'Programmable Tstats - Tier 1'!M28+'Programmable Tstats - Tier 2'!M28+'Comm 95+% Furnace - NEW'!M28+'Comm 95+% Furnace - Replace'!M28+'Comm Custom'!M28,0) -> 5226 | O28: =ROUND(+'Res .95+% Res Furnace - NEW'!O28+'Res .95+% Res Furnace - Replace'!O28+'Programmable Tstats - Tier 1'!O28+'Programmable Tstats - Tier 2'!O28+'Comm 95+% Furnace - NEW'!O28+'Comm 95+% Furnace - Replace'!O28+'Comm Custom'!O28,0) -> 34439 | Q28: =ROUND(+'Res .95+% Res Furnace - NEW'!Q28+'Res .95+% Res Furnace - Replace'!Q28+'Programmable Tstats - Tier 1'!Q28+'Programmable Tstats - Tier 2'!Q28+'Comm 95+% Furnace - NEW'!Q28+'Comm 95+% Furnace - Replace'!Q28+'Comm Custom'!Q28,0) -> 0 | R28: =ROUND(+'Res .95+% Res Furnace - NEW'!R28+'Res .95+% Res Furnace - Replace'!R28+'Programmable Tstats - Tier 1'!R28+'Programmable Tstats - Tier 2'!R28+'Comm 95+% Furnace - NEW'!R28+'Comm 95+% Furnace - Replace'!R28+'Comm Custom'!R28,0) -> 34439 | S28: =ROUND(+'Res .95+% Res Furnace - NEW'!S28+'Res .95+% Res Furnace - Replace'!S28+'Programmable Tstats - Tier 1'!S28+'Programmable Tstats - Tier 2'!S28+'Comm 95+% Furnace - NEW'!S28+'Comm 95+% Furnace - Replace'!S28+'Comm Custom'!S28,0) -> 52 | U28: =ROUND(+'Res .95+% Res Furnace - NEW'!U28+'Res .95+% Res Furnace - Replace'!U28+'Programmable Tstats - Tier 1'!U28+'Programmable Tstats - Tier 2'!U28+'Comm 95+% Furnace - NEW'!U28+'Comm 95+% Furnace - Replace'!U28+'Comm Custom'!U28,0) -> 8995 | V28: =ROUND(+'Res .95+% Res Furnace - NEW'!V28+'Res .95+% Res Furnace - Replace'!V28+'Programmable Tstats - Tier 1'!V28+'Programmable Tstats - Tier 2'!V28+'Comm 95+% Furnace - NEW'!V28+'Comm 95+% Furnace - Replace'!V28+'Comm Custom'!V28,0) -> 43434 | X28: =ROUND(+'Res .95+% Res Furnace - NEW'!X28+'Res .95+% Res Furnace - Replace'!X28+'Programmable Tstats - Tier 1'!X28+'Programmable Tstats - Tier 2'!X28+'Comm 95+% Furnace - NEW'!X28+'Comm 95+% Furnace - Replace'!X28+'Comm Custom'!X28,0) -> 10898 | Y28: =ROUND(+'Res .95+% Res Furnace - NEW'!Y28+'Res .95+% Res Furnace - Replace'!Y28+'Programmable Tstats - Tier 1'!Y28+'Programmable Tstats - Tier 2'!Y28+'Comm 95+% Furnace - NEW'!Y28+'Comm 95+% Furnace - Replace'!Y28+'Comm Custom'!Y28,0) -> 0 | Z28: =ROUND(+'Res .95+% Res Furnace - NEW'!Z28+'Res .95+% Res Furnace - Replace'!Z28+'Programmable Tstats - Tier 1'!Z28+'Programmable Tstats - Tier 2'!Z28+'Comm 95+% Furnace - NEW'!Z28+'Comm 95+% Furnace - Replace'!Z28+'Comm Custom'!Z28,0) -> 0 | AA28: =ROUND(+'Res .95+% Res Furnace - NEW'!AA28+'Res .95+% Res Furnace - Replace'!AA28+'Programmable Tstats - Tier 1'!AA28+'Programmable Tstats - Tier 2'!AA28+'Comm 95+% Furnace - NEW'!AA28+'Comm 95+% Furnace - Replace'!AA28+'Comm Custom'!AA28,0) -> 10898 | AB28: =ROUND(+'Res .95+% Res Furnace - NEW'!AB28+'Res .95+% Res Furnace - Replace'!AB28+'Programmable Tstats - Tier 1'!AB28+'Programmable Tstats - Tier 2'!AB28+'Comm 95+% Furnace - NEW'!AB28+'Comm 95+% Furnace - Replace'!AB28+'Comm Custom'!AB28,0) -> 32536 | AE28: 2036 | AF28: 34439 | AG28: 8995 | AH28: 43434 | AJ28: 0 | AK28: 0 | AL28: 0 | AN28: 43434 | AQ28: 2036 | AR28: 34439 | AS28: 8995 | AU28: =ROUND(+'Res .95+% Res Furnace - NEW'!AU28+'Res .95+% Res Furnace - Replace'!AU28+'Programmable Tstats - Tier 1'!AU28+'Programmable Tstats - Tier 2'!AU28+'Comm 95+% Furnace - NEW'!AU28+'Comm 95+% Furnace - Replace'!AU28+'Comm Custom'!AU28,0) -> 8326 | AW28: =ROUND(+'Res .95+% Res Furnace - NEW'!AW28+'Res .95+% Res Furnace - Replace'!AW28+'Programmable Tstats - Tier 1'!AW28+'Programmable Tstats - Tier 2'!AW28+'Comm 95+% Furnace - NEW'!AW28+'Comm 95+% Furnace - Replace'!AW28+'Comm Custom'!AW28,0) -> 14874 | AZ28: 66634 | BB28: =ROUND(+'Res .95+% Res Furnace - NEW'!BB28+'Res .95+% Res Furnace - Replace'!BB28+'Programmable Tstats - Tier 1'!BB28+'Programmable Tstats - Tier 2'!BB28+'Comm 95+% Furnace - NEW'!BB28+'Comm 95+% Furnace - Replace'!BB28+'Comm Custom'!BB28,0) -> 0 | BC28: =ROUND(+'Res .95+% Res Furnace - NEW'!BC28+'Res .95+% Res Furnace - Replace'!BC28+'Programmable Tstats - Tier 1'!BC28+'Programmable Tstats - Tier 2'!BC28+'Comm 95+% Furnace - NEW'!BC28+'Comm 95+% Furnace - Replace'!BC28+'Comm Custom'!BC28,0) -> 0 | BD28: 0 | BE28: 66634 | BH28: 2036 | BI28: =ROUND(+'Res .95+% Res Furnace - NEW'!BI28+'Res .95+% Res Furnace - Replace'!BI28+'Programmable Tstats - Tier 1'!BI28+'Programmable Tstats - Tier 2'!BI28+'Comm 95+% Furnace - NEW'!BI28+'Comm 95+% Furnace - Replace'!BI28+'Comm Custom'!BI28,0) -> 0 | BJ28: =ROUND(+'Res .95+% Res Furnace - NEW'!BJ28+'Res .95+% Res Furnace - Replace'!BJ28+'Programmable Tstats - Tier 1'!BJ28+'Programmable Tstats - Tier 2'!BJ28+'Comm 95+% Furnace - NEW'!BJ28+'Comm 95+% Furnace - Replace'!BJ28+'Comm Custom'!BJ28,0) -> 5226 | BL28: =ROUND(+'Res .95+% Res Furnace - NEW'!BL28+'Res .95+% Res Furnace - Replace'!BL28+'Programmable Tstats - Tier 1'!BL28+'Programmable Tstats - Tier 2'!BL28+'Comm 95+% Furnace - NEW'!BL28+'Comm 95+% Furnace - Replace'!BL28+'Comm Custom'!BL28,0) -> 62443 | BN28: =ROUND(+'Res .95+% Res Furnace - NEW'!BN28+'Res .95+% Res Furnace - Replace'!BN28+'Programmable Tstats - Tier 1'!BN28+'Programmable Tstats - Tier 2'!BN28+'Comm 95+% Furnace - NEW'!BN28+'Comm 95+% Furnace - Replace'!BN28+'Comm Custom'!BN28,0) -> 36177 | BP28: 98620 | BR28: =ROUND(+'Res .95+% Res Furnace - NEW'!BR28+'Res .95+% Res Furnace - Replace'!BR28+'Programmable Tstats - Tier 1'!BR28+'Programmable Tstats - Tier 2'!BR28+'Comm 95+% Furnace - NEW'!BR28+'Comm 95+% Furnace - Replace'!BR28+'Comm Custom'!BR28,0) -> 0 | BT28: 98620 | BW28: 2036 | BX28: 34439 | BY28: 8995 | BZ28: 8326 | CA28: 51760 | CC28: 0 | CD28: 0 | CE28: 0 | CG28: 51760
A29: Escalation Rate = | J29: 15 | L29: 2037 | M29: =ROUND(+'Res .95+% Res Furnace - NEW'!M29+'Res .95+% Res Furnace - Replace'!M29+'Programmable Tstats - Tier 1'!M29+'Programmable Tstats - Tier 2'!M29+'Comm 95+% Furnace - NEW'!M29+'Comm 95+% Furnace - Replace'!M29+'Comm Custom'!M29,0) -> 5226 | O29: =ROUND(+'Res .95+% Res Furnace - NEW'!O29+'Res .95+% Res Furnace - Replace'!O29+'Programmable Tstats - Tier 1'!O29+'Programmable Tstats - Tier 2'!O29+'Comm 95+% Furnace - NEW'!O29+'Comm 95+% Furnace - Replace'!O29+'Comm Custom'!O29,0) -> 35474 | Q29: =ROUND(+'Res .95+% Res Furnace - NEW'!Q29+'Res .95+% Res Furnace - Replace'!Q29+'Programmable Tstats - Tier 1'!Q29+'Programmable Tstats - Tier 2'!Q29+'Comm 95+% Furnace - NEW'!Q29+'Comm 95+% Furnace - Replace'!Q29+'Comm Custom'!Q29,0) -> 0 | R29: =ROUND(+'Res .95+% Res Furnace - NEW'!R29+'Res .95+% Res Furnace - Replace'!R29+'Programmable Tstats - Tier 1'!R29+'Programmable Tstats - Tier 2'!R29+'Comm 95+% Furnace - NEW'!R29+'Comm 95+% Furnace - Replace'!R29+'Comm Custom'!R29,0) -> 35474 | S29: =ROUND(+'Res .95+% Res Furnace - NEW'!S29+'Res .95+% Res Furnace - Replace'!S29+'Programmable Tstats - Tier 1'!S29+'Programmable Tstats - Tier 2'!S29+'Comm 95+% Furnace - NEW'!S29+'Comm 95+% Furnace - Replace'!S29+'Comm Custom'!S29,0) -> 52 | U29: =ROUND(+'Res .95+% Res Furnace - NEW'!U29+'Res .95+% Res Furnace - Replace'!U29+'Programmable Tstats - Tier 1'!U29+'Programmable Tstats - Tier 2'!U29+'Comm 95+% Furnace - NEW'!U29+'Comm 95+% Furnace - Replace'!U29+'Comm Custom'!U29,0) -> 9048 | V29: =ROUND(+'Res .95+% Res Furnace - NEW'!V29+'Res .95+% Res Furnace - Replace'!V29+'Programmable Tstats - Tier 1'!V29+'Programmable Tstats - Tier 2'!V29+'Comm 95+% Furnace - NEW'!V29+'Comm 95+% Furnace - Replace'!V29+'Comm Custom'!V29,0) -> 44522 | X29: =ROUND(+'Res .95+% Res Furnace - NEW'!X29+'Res .95+% Res Furnace - Replace'!X29+'Programmable Tstats - Tier 1'!X29+'Programmable Tstats - Tier 2'!X29+'Comm 95+% Furnace - NEW'!X29+'Comm 95+% Furnace - Replace'!X29+'Comm Custom'!X29,0) -> 11224 | Y29: =ROUND(+'Res .95+% Res Furnace - NEW'!Y29+'Res .95+% Res Furnace - Replace'!Y29+'Programmable Tstats - Tier 1'!Y29+'Programmable Tstats - Tier 2'!Y29+'Comm 95+% Furnace - NEW'!Y29+'Comm 95+% Furnace - Replace'!Y29+'Comm Custom'!Y29,0) -> 0 | Z29: =ROUND(+'Res .95+% Res Furnace - NEW'!Z29+'Res .95+% Res Furnace - Replace'!Z29+'Programmable Tstats - Tier 1'!Z29+'Programmable Tstats - Tier 2'!Z29+'Comm 95+% Furnace - NEW'!Z29+'Comm 95+% Furnace - Replace'!Z29+'Comm Custom'!Z29,0) -> 0 | AA29: =ROUND(+'Res .95+% Res Furnace - NEW'!AA29+'Res .95+% Res Furnace - Replace'!AA29+'Programmable Tstats - Tier 1'!AA29+'Programmable Tstats - Tier 2'!AA29+'Comm 95+% Furnace - NEW'!AA29+'Comm 95+% Furnace - Replace'!AA29+'Comm Custom'!AA29,0) -> 11224 | AB29: =ROUND(+'Res .95+% Res Furnace - NEW'!AB29+'Res .95+% Res Furnace - Replace'!AB29+'Programmable Tstats - Tier 1'!AB29+'Programmable Tstats - Tier 2'!AB29+'Comm 95+% Furnace - NEW'!AB29+'Comm 95+% Furnace - Replace'!AB29+'Comm Custom'!AB29,0) -> 33298 | AE29: 2037 | AF29: 35474 | AG29: 9048 | AH29: 44522 | AJ29: 0 | AK29: 0 | AL29: 0 | AN29: 44522 | AQ29: 2037 | AR29: 35474 | AS29: 9048 | AU29: =ROUND(+'Res .95+% Res Furnace - NEW'!AU29+'Res .95+% Res Furnace - Replace'!AU29+'Programmable Tstats - Tier 1'!AU29+'Programmable Tstats - Tier 2'!AU29+'Comm 95+% Furnace - NEW'!AU29+'Comm 95+% Furnace - Replace'!AU29+'Comm Custom'!AU29,0) -> 8512 | AW29: =ROUND(+'Res .95+% Res Furnace - NEW'!AW29+'Res .95+% Res Furnace - Replace'!AW29+'Programmable Tstats - Tier 1'!AW29+'Programmable Tstats - Tier 2'!AW29+'Comm 95+% Furnace - NEW'!AW29+'Comm 95+% Furnace - Replace'!AW29+'Comm Custom'!AW29,0) -> 15212 | AZ29: 68246 | BB29: =ROUND(+'Res .95+% Res Furnace - NEW'!BB29+'Res .95+% Res Furnace - Replace'!BB29+'Programmable Tstats - Tier 1'!BB29+'Programmable Tstats - Tier 2'!BB29+'Comm 95+% Furnace - NEW'!BB29+'Comm 95+% Furnace - Replace'!BB29+'Comm Custom'!BB29,0) -> 0 | BC29: =ROUND(+'Res .95+% Res Furnace - NEW'!BC29+'Res .95+% Res Furnace - Replace'!BC29+'Programmable Tstats - Tier 1'!BC29+'Programmable Tstats - Tier 2'!BC29+'Comm 95+% Furnace - NEW'!BC29+'Comm 95+% Furnace - Replace'!BC29+'Comm Custom'!BC29,0) -> 0 | BD29: 0 | BE29: 68246 | BH29: 2037 | BI29: =ROUND(+'Res .95+% Res Furnace - NEW'!BI29+'Res .95+% Res Furnace - Replace'!BI29+'Programmable Tstats - Tier 1'!BI29+'Programmable Tstats - Tier 2'!BI29+'Comm 95+% Furnace - NEW'!BI29+'Comm 95+% Furnace - Replace'!BI29+'Comm Custom'!BI29,0) -> 0 | BJ29: =ROUND(+'Res .95+% Res Furnace - NEW'!BJ29+'Res .95+% Res Furnace - Replace'!BJ29+'Programmable Tstats - Tier 1'!BJ29+'Programmable Tstats - Tier 2'!BJ29+'Comm 95+% Furnace - NEW'!BJ29+'Comm 95+% Furnace - Replace'!BJ29+'Comm Custom'!BJ29,0) -> 5226 | BL29: =ROUND(+'Res .95+% Res Furnace - NEW'!BL29+'Res .95+% Res Furnace - Replace'!BL29+'Programmable Tstats - Tier 1'!BL29+'Programmable Tstats - Tier 2'!BL29+'Comm 95+% Furnace - NEW'!BL29+'Comm 95+% Furnace - Replace'!BL29+'Comm Custom'!BL29,0) -> 64314 | BN29: =ROUND(+'Res .95+% Res Furnace - NEW'!BN29+'Res .95+% Res Furnace - Replace'!BN29+'Programmable Tstats - Tier 1'!BN29+'Programmable Tstats - Tier 2'!BN29+'Comm 95+% Furnace - NEW'!BN29+'Comm 95+% Furnace - Replace'!BN29+'Comm Custom'!BN29,0) -> 37288 | BP29: 101602 | BR29: =ROUND(+'Res .95+% Res Furnace - NEW'!BR29+'Res .95+% Res Furnace - Replace'!BR29+'Programmable Tstats - Tier 1'!BR29+'Programmable Tstats - Tier 2'!BR29+'Comm 95+% Furnace - NEW'!BR29+'Comm 95+% Furnace - Replace'!BR29+'Comm Custom'!BR29,0) -> 0 | BT29: 101602 | BW29: 2037 | BX29: 35474 | BY29: 9048 | BZ29: 8512 | CA29: 53034 | CC29: 0 | CD29: 0 | CE29: 0 | CG29: 53034
E30: 23) Number of Participants = | F30: =+'Res .95+% Res Furnace - NEW'!F30+'Res .95+% Res Furnace - Replace'!F30+'Programmable Tstats - Tier 1'!F30+'Programmable Tstats - Tier 2'!F30+'Comm 95+% Furnace - NEW'!F30+'Comm 95+% Furnace - Replace'!F30+'Comm Custom'!F30 -> 574 | J30: 16 | L30: 2038 | M30: =ROUND(+'Res .95+% Res Furnace - NEW'!M30+'Res .95+% Res Furnace - Replace'!M30+'Programmable Tstats - Tier 1'!M30+'Programmable Tstats - Tier 2'!M30+'Comm 95+% Furnace - NEW'!M30+'Comm 95+% Furnace - Replace'!M30+'Comm Custom'!M30,0) -> 5226 | O30: =ROUND(+'Res .95+% Res Furnace - NEW'!O30+'Res .95+% Res Furnace - Replace'!O30+'Programmable Tstats - Tier 1'!O30+'Programmable Tstats - Tier 2'!O30+'Comm 95+% Furnace - NEW'!O30+'Comm 95+% Furnace - Replace'!O30+'Comm Custom'!O30,0) -> 36540 | Q30: =ROUND(+'Res .95+% Res Furnace - NEW'!Q30+'Res .95+% Res Furnace - Replace'!Q30+'Programmable Tstats - Tier 1'!Q30+'Programmable Tstats - Tier 2'!Q30+'Comm 95+% Furnace - NEW'!Q30+'Comm 95+% Furnace - Replace'!Q30+'Comm Custom'!Q30,0) -> 0 | R30: =ROUND(+'Res .95+% Res Furnace - NEW'!R30+'Res .95+% Res Furnace - Replace'!R30+'Programmable Tstats - Tier 1'!R30+'Programmable Tstats - Tier 2'!R30+'Comm 95+% Furnace - NEW'!R30+'Comm 95+% Furnace - Replace'!R30+'Comm Custom'!R30,0) -> 36540 | S30: =ROUND(+'Res .95+% Res Furnace - NEW'!S30+'Res .95+% Res Furnace - Replace'!S30+'Programmable Tstats - Tier 1'!S30+'Programmable Tstats - Tier 2'!S30+'Comm 95+% Furnace - NEW'!S30+'Comm 95+% Furnace - Replace'!S30+'Comm Custom'!S30,0) -> 52 | U30: =ROUND(+'Res .95+% Res Furnace - NEW'!U30+'Res .95+% Res Furnace - Replace'!U30+'Programmable Tstats - Tier 1'!U30+'Programmable Tstats - Tier 2'!U30+'Comm 95+% Furnace - NEW'!U30+'Comm 95+% Furnace - Replace'!U30+'Comm Custom'!U30,0) -> 9153 | V30: =ROUND(+'Res .95+% Res Furnace - NEW'!V30+'Res .95+% Res Furnace - Replace'!V30+'Programmable Tstats - Tier 1'!V30+'Programmable Tstats - Tier 2'!V30+'Comm 95+% Furnace - NEW'!V30+'Comm 95+% Furnace - Replace'!V30+'Comm Custom'!V30,0) -> 45693 | X30: =ROUND(+'Res .95+% Res Furnace - NEW'!X30+'Res .95+% Res Furnace - Replace'!X30+'Programmable Tstats - Tier 1'!X30+'Programmable Tstats - Tier 2'!X30+'Comm 95+% Furnace - NEW'!X30+'Comm 95+% Furnace - Replace'!X30+'Comm Custom'!X30,0) -> 11560 | Y30: =ROUND(+'Res .95+% Res Furnace - NEW'!Y30+'Res .95+% Res Furnace - Replace'!Y30+'Programmable Tstats - Tier 1'!Y30+'Programmable Tstats - Tier 2'!Y30+'Comm 95+% Furnace - NEW'!Y30+'Comm 95+% Furnace - Replace'!Y30+'Comm Custom'!Y30,0) -> 0 | Z30: =ROUND(+'Res .95+% Res Furnace - NEW'!Z30+'Res .95+% Res Furnace - Replace'!Z30+'Programmable Tstats - Tier 1'!Z30+'Programmable Tstats - Tier 2'!Z30+'Comm 95+% Furnace - NEW'!Z30+'Comm 95+% Furnace - Replace'!Z30+'Comm Custom'!Z30,0) -> 0 | AA30: =ROUND(+'Res .95+% Res Furnace - NEW'!AA30+'Res .95+% Res Furnace - Replace'!AA30+'Programmable Tstats - Tier 1'!AA30+'Programmable Tstats - Tier 2'!AA30+'Comm 95+% Furnace - NEW'!AA30+'Comm 95+% Furnace - Replace'!AA30+'Comm Custom'!AA30,0) -> 11560 | AB30: =ROUND(+'Res .95+% Res Furnace - NEW'!AB30+'Res .95+% Res Furnace - Replace'!AB30+'Programmable Tstats - Tier 1'!AB30+'Programmable Tstats - Tier 2'!AB30+'Comm 95+% Furnace - NEW'!AB30+'Comm 95+% Furnace - Replace'!AB30+'Comm Custom'!AB30,0) -> 34133 | AE30: 2038 | AF30: 36540 | AG30: 9153 | AH30: 45693 | AJ30: 0 | AK30: 0 | AL30: 0 | AN30: 45693 | AQ30: 2038 | AR30: 36540 | AS30: 9153 | AU30: =ROUND(+'Res .95+% Res Furnace - NEW'!AU30+'Res .95+% Res Furnace - Replace'!AU30+'Programmable Tstats - Tier 1'!AU30+'Programmable Tstats - Tier 2'!AU30+'Comm 95+% Furnace - NEW'!AU30+'Comm 95+% Furnace - Replace'!AU30+'Comm Custom'!AU30,0) -> 8697 | AW30: =ROUND(+'Res .95+% Res Furnace - NEW'!AW30+'Res .95+% Res Furnace - Replace'!AW30+'Programmable Tstats - Tier 1'!AW30+'Programmable Tstats - Tier 2'!AW30+'Comm 95+% Furnace - NEW'!AW30+'Comm 95+% Furnace - Replace'!AW30+'Comm Custom'!AW30,0) -> 15563 | AZ30: 69953 | BB30: =ROUND(+'Res .95+% Res Furnace - NEW'!BB30+'Res .95+% Res Furnace - Replace'!BB30+'Programmable Tstats - Tier 1'!BB30+'Programmable Tstats - Tier 2'!BB30+'Comm 95+% Furnace - NEW'!BB30+'Comm 95+% Furnace - Replace'!BB30+'Comm Custom'!BB30,0) -> 0 | BC30: =ROUND(+'Res .95+% Res Furnace - NEW'!BC30+'Res .95+% Res Furnace - Replace'!BC30+'Programmable Tstats - Tier 1'!BC30+'Programmable Tstats - Tier 2'!BC30+'Comm 95+% Furnace - NEW'!BC30+'Comm 95+% Furnace - Replace'!BC30+'Comm Custom'!BC30,0) -> 0 | BD30: 0 | BE30: 69953 | BH30: 2038 | BI30: =ROUND(+'Res .95+% Res Furnace - NEW'!BI30+'Res .95+% Res Furnace - Replace'!BI30+'Programmable Tstats - Tier 1'!BI30+'Programmable Tstats - Tier 2'!BI30+'Comm 95+% Furnace - NEW'!BI30+'Comm 95+% Furnace - Replace'!BI30+'Comm Custom'!BI30,0) -> 0 | BJ30: =ROUND(+'Res .95+% Res Furnace - NEW'!BJ30+'Res .95+% Res Furnace - Replace'!BJ30+'Programmable Tstats - Tier 1'!BJ30+'Programmable Tstats - Tier 2'!BJ30+'Comm 95+% Furnace - NEW'!BJ30+'Comm 95+% Furnace - Replace'!BJ30+'Comm Custom'!BJ30,0) -> 5226 | BL30: =ROUND(+'Res .95+% Res Furnace - NEW'!BL30+'Res .95+% Res Furnace - Replace'!BL30+'Programmable Tstats - Tier 1'!BL30+'Programmable Tstats - Tier 2'!BL30+'Comm 95+% Furnace - NEW'!BL30+'Comm 95+% Furnace - Replace'!BL30+'Comm Custom'!BL30,0) -> 66246 | BN30: =ROUND(+'Res .95+% Res Furnace - NEW'!BN30+'Res .95+% Res Furnace - Replace'!BN30+'Programmable Tstats - Tier 1'!BN30+'Programmable Tstats - Tier 2'!BN30+'Comm 95+% Furnace - NEW'!BN30+'Comm 95+% Furnace - Replace'!BN30+'Comm Custom'!BN30,0) -> 38382 | BP30: 104628 | BR30: =ROUND(+'Res .95+% Res Furnace - NEW'!BR30+'Res .95+% Res Furnace - Replace'!BR30+'Programmable Tstats - Tier 1'!BR30+'Programmable Tstats - Tier 2'!BR30+'Comm 95+% Furnace - NEW'!BR30+'Comm 95+% Furnace - Replace'!BR30+'Comm Custom'!BR30,0) -> 0 | BT30: 104628 | BW30: 2038 | BX30: 36540 | BY30: 9153 | BZ30: 8697 | CA30: 54390 | CC30: 0 | CD30: 0 | CE30: 0 | CG30: 54390 | DB30: =$J18 -> 4
A31: 8) Non-Gas Fuel Loss Factor | J31: 17 | L31: 2039 | M31: =ROUND(+'Res .95+% Res Furnace - NEW'!M31+'Res .95+% Res Furnace - Replace'!M31+'Programmable Tstats - Tier 1'!M31+'Programmable Tstats - Tier 2'!M31+'Comm 95+% Furnace - NEW'!M31+'Comm 95+% Furnace - Replace'!M31+'Comm Custom'!M31,0) -> 5226 | O31: =ROUND(+'Res .95+% Res Furnace - NEW'!O31+'Res .95+% Res Furnace - Replace'!O31+'Programmable Tstats - Tier 1'!O31+'Programmable Tstats - Tier 2'!O31+'Comm 95+% Furnace - NEW'!O31+'Comm 95+% Furnace - Replace'!O31+'Comm Custom'!O31,0) -> 37633 | Q31: =ROUND(+'Res .95+% Res Furnace - NEW'!Q31+'Res .95+% Res Furnace - Replace'!Q31+'Programmable Tstats - Tier 1'!Q31+'Programmable Tstats - Tier 2'!Q31+'Comm 95+% Furnace - NEW'!Q31+'Comm 95+% Furnace - Replace'!Q31+'Comm Custom'!Q31,0) -> 0 | R31: =ROUND(+'Res .95+% Res Furnace - NEW'!R31+'Res .95+% Res Furnace - Replace'!R31+'Programmable Tstats - Tier 1'!R31+'Programmable Tstats - Tier 2'!R31+'Comm 95+% Furnace - NEW'!R31+'Comm 95+% Furnace - Replace'!R31+'Comm Custom'!R31,0) -> 37633 | S31: =ROUND(+'Res .95+% Res Furnace - NEW'!S31+'Res .95+% Res Furnace - Replace'!S31+'Programmable Tstats - Tier 1'!S31+'Programmable Tstats - Tier 2'!S31+'Comm 95+% Furnace - NEW'!S31+'Comm 95+% Furnace - Replace'!S31+'Comm Custom'!S31,0) -> 52 | U31: =ROUND(+'Res .95+% Res Furnace - NEW'!U31+'Res .95+% Res Furnace - Replace'!U31+'Programmable Tstats - Tier 1'!U31+'Programmable Tstats - Tier 2'!U31+'Comm 95+% Furnace - NEW'!U31+'Comm 95+% Furnace - Replace'!U31+'Comm Custom'!U31,0) -> 9257 | V31: =ROUND(+'Res .95+% Res Furnace - NEW'!V31+'Res .95+% Res Furnace - Replace'!V31+'Programmable Tstats - Tier 1'!V31+'Programmable Tstats - Tier 2'!V31+'Comm 95+% Furnace - NEW'!V31+'Comm 95+% Furnace - Replace'!V31+'Comm Custom'!V31,0) -> 46890 | X31: =ROUND(+'Res .95+% Res Furnace - NEW'!X31+'Res .95+% Res Furnace - Replace'!X31+'Programmable Tstats - Tier 1'!X31+'Programmable Tstats - Tier 2'!X31+'Comm 95+% Furnace - NEW'!X31+'Comm 95+% Furnace - Replace'!X31+'Comm Custom'!X31,0) -> 11911 | Y31: =ROUND(+'Res .95+% Res Furnace - NEW'!Y31+'Res .95+% Res Furnace - Replace'!Y31+'Programmable Tstats - Tier 1'!Y31+'Programmable Tstats - Tier 2'!Y31+'Comm 95+% Furnace - NEW'!Y31+'Comm 95+% Furnace - Replace'!Y31+'Comm Custom'!Y31,0) -> 0 | Z31: =ROUND(+'Res .95+% Res Furnace - NEW'!Z31+'Res .95+% Res Furnace - Replace'!Z31+'Programmable Tstats - Tier 1'!Z31+'Programmable Tstats - Tier 2'!Z31+'Comm 95+% Furnace - NEW'!Z31+'Comm 95+% Furnace - Replace'!Z31+'Comm Custom'!Z31,0) -> 0 | AA31: =ROUND(+'Res .95+% Res Furnace - NEW'!AA31+'Res .95+% Res Furnace - Replace'!AA31+'Programmable Tstats - Tier 1'!AA31+'Programmable Tstats - Tier 2'!AA31+'Comm 95+% Furnace - NEW'!AA31+'Comm 95+% Furnace - Replace'!AA31+'Comm Custom'!AA31,0) -> 11911 | AB31: =ROUND(+'Res .95+% Res Furnace - NEW'!AB31+'Res .95+% Res Furnace - Replace'!AB31+'Programmable Tstats - Tier 1'!AB31+'Programmable Tstats - Tier 2'!AB31+'Comm 95+% Furnace - NEW'!AB31+'Comm 95+% Furnace - Replace'!AB31+'Comm Custom'!AB31,0) -> 34979 | AE31: 2039 | AF31: 37633 | AG31: 9257 | AH31: 46890 | AJ31: 0 | AK31: 0 | AL31: 0 | AN31: 46890 | AQ31: 2039 | AR31: 37633 | AS31: 9257 | AU31: =ROUND(+'Res .95+% Res Furnace - NEW'!AU31+'Res .95+% Res Furnace - Replace'!AU31+'Programmable Tstats - Tier 1'!AU31+'Programmable Tstats - Tier 2'!AU31+'Comm 95+% Furnace - NEW'!AU31+'Comm 95+% Furnace - Replace'!AU31+'Comm Custom'!AU31,0) -> 9067 | AW31: =ROUND(+'Res .95+% Res Furnace - NEW'!AW31+'Res .95+% Res Furnace - Replace'!AW31+'Programmable Tstats - Tier 1'!AW31+'Programmable Tstats - Tier 2'!AW31+'Comm 95+% Furnace - NEW'!AW31+'Comm 95+% Furnace - Replace'!AW31+'Comm Custom'!AW31,0) -> 15923 | AZ31: 71880 | BB31: =ROUND(+'Res .95+% Res Furnace - NEW'!BB31+'Res .95+% Res Furnace - Replace'!BB31+'Programmable Tstats - Tier 1'!BB31+'Programmable Tstats - Tier 2'!BB31+'Comm 95+% Furnace - NEW'!BB31+'Comm 95+% Furnace - Replace'!BB31+'Comm Custom'!BB31,0) -> 0 | BC31: =ROUND(+'Res .95+% Res Furnace - NEW'!BC31+'Res .95+% Res Furnace - Replace'!BC31+'Programmable Tstats - Tier 1'!BC31+'Programmable Tstats - Tier 2'!BC31+'Comm 95+% Furnace - NEW'!BC31+'Comm 95+% Furnace - Replace'!BC31+'Comm Custom'!BC31,0) -> 0 | BD31: 0 | BE31: 71880 | BH31: 2039 | BI31: =ROUND(+'Res .95+% Res Furnace - NEW'!BI31+'Res .95+% Res Furnace - Replace'!BI31+'Programmable Tstats - Tier 1'!BI31+'Programmable Tstats - Tier 2'!BI31+'Comm 95+% Furnace - NEW'!BI31+'Comm 95+% Furnace - Replace'!BI31+'Comm Custom'!BI31,0) -> 0 | BJ31: =ROUND(+'Res .95+% Res Furnace - NEW'!BJ31+'Res .95+% Res Furnace - Replace'!BJ31+'Programmable Tstats - Tier 1'!BJ31+'Programmable Tstats - Tier 2'!BJ31+'Comm 95+% Furnace - NEW'!BJ31+'Comm 95+% Furnace - Replace'!BJ31+'Comm Custom'!BJ31,0) -> 5226 | BL31: =ROUND(+'Res .95+% Res Furnace - NEW'!BL31+'Res .95+% Res Furnace - Replace'!BL31+'Programmable Tstats - Tier 1'!BL31+'Programmable Tstats - Tier 2'!BL31+'Comm 95+% Furnace - NEW'!BL31+'Comm 95+% Furnace - Replace'!BL31+'Comm Custom'!BL31,0) -> 68230 | BN31: =ROUND(+'Res .95+% Res Furnace - NEW'!BN31+'Res .95+% Res Furnace - Replace'!BN31+'Programmable Tstats - Tier 1'!BN31+'Programmable Tstats - Tier 2'!BN31+'Comm 95+% Furnace - NEW'!BN31+'Comm 95+% Furnace - Replace'!BN31+'Comm Custom'!BN31,0) -> 39493 | BP31: 107723 | BR31: =ROUND(+'Res .95+% Res Furnace - NEW'!BR31+'Res .95+% Res Furnace - Replace'!BR31+'Programmable Tstats - Tier 1'!BR31+'Programmable Tstats - Tier 2'!BR31+'Comm 95+% Furnace - NEW'!BR31+'Comm 95+% Furnace - Replace'!BR31+'Comm Custom'!BR31,0) -> 0 | BT31: 107723 | BW31: 2039 | BX31: 37633 | BY31: 9257 | BZ31: 9067 | CA31: 55957 | CC31: 0 | CD31: 0 | CE31: 0 | CG31: 55957 | DB31: =$J19 -> 5
E32: 24) Total Annual Dk Saved = | F32: =+'Res .95+% Res Furnace - NEW'!F32+'Res .95+% Res Furnace - Replace'!F32+'Programmable Tstats - Tier 1'!F32+'Programmable Tstats - Tier 2'!F32+'Comm 95+% Furnace - NEW'!F32+'Comm 95+% Furnace - Replace'!F32+'Comm Custom'!F32 -> 6476 | J32: 18 | L32: 2040 | M32: =ROUND(+'Res .95+% Res Furnace - NEW'!M32+'Res .95+% Res Furnace - Replace'!M32+'Programmable Tstats - Tier 1'!M32+'Programmable Tstats - Tier 2'!M32+'Comm 95+% Furnace - NEW'!M32+'Comm 95+% Furnace - Replace'!M32+'Comm Custom'!M32,0) -> 5226 | O32: =ROUND(+'Res .95+% Res Furnace - NEW'!O32+'Res .95+% Res Furnace - Replace'!O32+'Programmable Tstats - Tier 1'!O32+'Programmable Tstats - Tier 2'!O32+'Comm 95+% Furnace - NEW'!O32+'Comm 95+% Furnace - Replace'!O32+'Comm Custom'!O32,0) -> 38767 | Q32: =ROUND(+'Res .95+% Res Furnace - NEW'!Q32+'Res .95+% Res Furnace - Replace'!Q32+'Programmable Tstats - Tier 1'!Q32+'Programmable Tstats - Tier 2'!Q32+'Comm 95+% Furnace - NEW'!Q32+'Comm 95+% Furnace - Replace'!Q32+'Comm Custom'!Q32,0) -> 0 | R32: =ROUND(+'Res .95+% Res Furnace - NEW'!R32+'Res .95+% Res Furnace - Replace'!R32+'Programmable Tstats - Tier 1'!R32+'Programmable Tstats - Tier 2'!R32+'Comm 95+% Furnace - NEW'!R32+'Comm 95+% Furnace - Replace'!R32+'Comm Custom'!R32,0) -> 38767 | S32: =ROUND(+'Res .95+% Res Furnace - NEW'!S32+'Res .95+% Res Furnace - Replace'!S32+'Programmable Tstats - Tier 1'!S32+'Programmable Tstats - Tier 2'!S32+'Comm 95+% Furnace - NEW'!S32+'Comm 95+% Furnace - Replace'!S32+'Comm Custom'!S32,0) -> 52 | U32: =ROUND(+'Res .95+% Res Furnace - NEW'!U32+'Res .95+% Res Furnace - Replace'!U32+'Programmable Tstats - Tier 1'!U32+'Programmable Tstats - Tier 2'!U32+'Comm 95+% Furnace - NEW'!U32+'Comm 95+% Furnace - Replace'!U32+'Comm Custom'!U32,0) -> 9362 | V32: =ROUND(+'Res .95+% Res Furnace - NEW'!V32+'Res .95+% Res Furnace - Replace'!V32+'Programmable Tstats - Tier 1'!V32+'Programmable Tstats - Tier 2'!V32+'Comm 95+% Furnace - NEW'!V32+'Comm 95+% Furnace - Replace'!V32+'Comm Custom'!V32,0) -> 48129 | X32: =ROUND(+'Res .95+% Res Furnace - NEW'!X32+'Res .95+% Res Furnace - Replace'!X32+'Programmable Tstats - Tier 1'!X32+'Programmable Tstats - Tier 2'!X32+'Comm 95+% Furnace - NEW'!X32+'Comm 95+% Furnace - Replace'!X32+'Comm Custom'!X32,0) -> 12266 | Y32: =ROUND(+'Res .95+% Res Furnace - NEW'!Y32+'Res .95+% Res Furnace - Replace'!Y32+'Programmable Tstats - Tier 1'!Y32+'Programmable Tstats - Tier 2'!Y32+'Comm 95+% Furnace - NEW'!Y32+'Comm 95+% Furnace - Replace'!Y32+'Comm Custom'!Y32,0) -> 0 | Z32: =ROUND(+'Res .95+% Res Furnace - NEW'!Z32+'Res .95+% Res Furnace - Replace'!Z32+'Programmable Tstats - Tier 1'!Z32+'Programmable Tstats - Tier 2'!Z32+'Comm 95+% Furnace - NEW'!Z32+'Comm 95+% Furnace - Replace'!Z32+'Comm Custom'!Z32,0) -> 0 | AA32: =ROUND(+'Res .95+% Res Furnace - NEW'!AA32+'Res .95+% Res Furnace - Replace'!AA32+'Programmable Tstats - Tier 1'!AA32+'Programmable Tstats - Tier 2'!AA32+'Comm 95+% Furnace - NEW'!AA32+'Comm 95+% Furnace - Replace'!AA32+'Comm Custom'!AA32,0) -> 12266 | AB32: =ROUND(+'Res .95+% Res Furnace - NEW'!AB32+'Res .95+% Res Furnace - Replace'!AB32+'Programmable Tstats - Tier 1'!AB32+'Programmable Tstats - Tier 2'!AB32+'Comm 95+% Furnace - NEW'!AB32+'Comm 95+% Furnace - Replace'!AB32+'Comm Custom'!AB32,0) -> 35863 | AE32: 2040 | AF32: 38767 | AG32: 9362 | AH32: 48129 | AJ32: 0 | AK32: 0 | AL32: 0 | AN32: 48129 | AQ32: 2040 | AR32: 38767 | AS32: 9362 | AU32: =ROUND(+'Res .95+% Res Furnace - NEW'!AU32+'Res .95+% Res Furnace - Replace'!AU32+'Programmable Tstats - Tier 1'!AU32+'Programmable Tstats - Tier 2'!AU32+'Comm 95+% Furnace - NEW'!AU32+'Comm 95+% Furnace - Replace'!AU32+'Comm Custom'!AU32,0) -> 9252 | AW32: =ROUND(+'Res .95+% Res Furnace - NEW'!AW32+'Res .95+% Res Furnace - Replace'!AW32+'Programmable Tstats - Tier 1'!AW32+'Programmable Tstats - Tier 2'!AW32+'Comm 95+% Furnace - NEW'!AW32+'Comm 95+% Furnace - Replace'!AW32+'Comm Custom'!AW32,0) -> 16289 | AZ32: 73670 | BB32: =ROUND(+'Res .95+% Res Furnace - NEW'!BB32+'Res .95+% Res Furnace - Replace'!BB32+'Programmable Tstats - Tier 1'!BB32+'Programmable Tstats - Tier 2'!BB32+'Comm 95+% Furnace - NEW'!BB32+'Comm 95+% Furnace - Replace'!BB32+'Comm Custom'!BB32,0) -> 0 | BC32: =ROUND(+'Res .95+% Res Furnace - NEW'!BC32+'Res .95+% Res Furnace - Replace'!BC32+'Programmable Tstats - Tier 1'!BC32+'Programmable Tstats - Tier 2'!BC32+'Comm 95+% Furnace - NEW'!BC32+'Comm 95+% Furnace - Replace'!BC32+'Comm Custom'!BC32,0) -> 0 | BD32: 0 | BE32: 73670 | BH32: 2040 | BI32: =ROUND(+'Res .95+% Res Furnace - NEW'!BI32+'Res .95+% Res Furnace - Replace'!BI32+'Programmable Tstats - Tier 1'!BI32+'Programmable Tstats - Tier 2'!BI32+'Comm 95+% Furnace - NEW'!BI32+'Comm 95+% Furnace - Replace'!BI32+'Comm Custom'!BI32,0) -> 0 | BJ32: =ROUND(+'Res .95+% Res Furnace - NEW'!BJ32+'Res .95+% Res Furnace - Replace'!BJ32+'Programmable Tstats - Tier 1'!BJ32+'Programmable Tstats - Tier 2'!BJ32+'Comm 95+% Furnace - NEW'!BJ32+'Comm 95+% Furnace - Replace'!BJ32+'Comm Custom'!BJ32,0) -> 5226 | BL32: =ROUND(+'Res .95+% Res Furnace - NEW'!BL32+'Res .95+% Res Furnace - Replace'!BL32+'Programmable Tstats - Tier 1'!BL32+'Programmable Tstats - Tier 2'!BL32+'Comm 95+% Furnace - NEW'!BL32+'Comm 95+% Furnace - Replace'!BL32+'Comm Custom'!BL32,0) -> 70275 | BN32: =ROUND(+'Res .95+% Res Furnace - NEW'!BN32+'Res .95+% Res Furnace - Replace'!BN32+'Programmable Tstats - Tier 1'!BN32+'Programmable Tstats - Tier 2'!BN32+'Comm 95+% Furnace - NEW'!BN32+'Comm 95+% Furnace - Replace'!BN32+'Comm Custom'!BN32,0) -> 40618 | BP32: 110893 | BR32: =ROUND(+'Res .95+% Res Furnace - NEW'!BR32+'Res .95+% Res Furnace - Replace'!BR32+'Programmable Tstats - Tier 1'!BR32+'Programmable Tstats - Tier 2'!BR32+'Comm 95+% Furnace - NEW'!BR32+'Comm 95+% Furnace - Replace'!BR32+'Comm Custom'!BR32,0) -> 0 | BT32: 110893 | BW32: 2040 | BX32: 38767 | BY32: 9362 | BZ32: 9252 | CA32: 57381 | CC32: 0 | CD32: 0 | CE32: 0 | CG32: 57381 | DB32: =$J20 -> 6
A33: 9) Gas Environmental Damage Factor = | J33: 19 | L33: 2041 | M33: =ROUND(+'Res .95+% Res Furnace - NEW'!M33+'Res .95+% Res Furnace - Replace'!M33+'Programmable Tstats - Tier 1'!M33+'Programmable Tstats - Tier 2'!M33+'Comm 95+% Furnace - NEW'!M33+'Comm 95+% Furnace - Replace'!M33+'Comm Custom'!M33,0) -> 5226 | O33: =ROUND(+'Res .95+% Res Furnace - NEW'!O33+'Res .95+% Res Furnace - Replace'!O33+'Programmable Tstats - Tier 1'!O33+'Programmable Tstats - Tier 2'!O33+'Comm 95+% Furnace - NEW'!O33+'Comm 95+% Furnace - Replace'!O33+'Comm Custom'!O33,0) -> 39926 | Q33: =ROUND(+'Res .95+% Res Furnace - NEW'!Q33+'Res .95+% Res Furnace - Replace'!Q33+'Programmable Tstats - Tier 1'!Q33+'Programmable Tstats - Tier 2'!Q33+'Comm 95+% Furnace - NEW'!Q33+'Comm 95+% Furnace - Replace'!Q33+'Comm Custom'!Q33,0) -> 0 | R33: =ROUND(+'Res .95+% Res Furnace - NEW'!R33+'Res .95+% Res Furnace - Replace'!R33+'Programmable Tstats - Tier 1'!R33+'Programmable Tstats - Tier 2'!R33+'Comm 95+% Furnace - NEW'!R33+'Comm 95+% Furnace - Replace'!R33+'Comm Custom'!R33,0) -> 39926 | S33: =ROUND(+'Res .95+% Res Furnace - NEW'!S33+'Res .95+% Res Furnace - Replace'!S33+'Programmable Tstats - Tier 1'!S33+'Programmable Tstats - Tier 2'!S33+'Comm 95+% Furnace - NEW'!S33+'Comm 95+% Furnace - Replace'!S33+'Comm Custom'!S33,0) -> 52 | U33: =ROUND(+'Res .95+% Res Furnace - NEW'!U33+'Res .95+% Res Furnace - Replace'!U33+'Programmable Tstats - Tier 1'!U33+'Programmable Tstats - Tier 2'!U33+'Comm 95+% Furnace - NEW'!U33+'Comm 95+% Furnace - Replace'!U33+'Comm Custom'!U33,0) -> 9414 | V33: =ROUND(+'Res .95+% Res Furnace - NEW'!V33+'Res .95+% Res Furnace - Replace'!V33+'Programmable Tstats - Tier 1'!V33+'Programmable Tstats - Tier 2'!V33+'Comm 95+% Furnace - NEW'!V33+'Comm 95+% Furnace - Replace'!V33+'Comm Custom'!V33,0) -> 49340 | X33: =ROUND(+'Res .95+% Res Furnace - NEW'!X33+'Res .95+% Res Furnace - Replace'!X33+'Programmable Tstats - Tier 1'!X33+'Programmable Tstats - Tier 2'!X33+'Comm 95+% Furnace - NEW'!X33+'Comm 95+% Furnace - Replace'!X33+'Comm Custom'!X33,0) -> 12632 | Y33: =ROUND(+'Res .95+% Res Furnace - NEW'!Y33+'Res .95+% Res Furnace - Replace'!Y33+'Programmable Tstats - Tier 1'!Y33+'Programmable Tstats - Tier 2'!Y33+'Comm 95+% Furnace - NEW'!Y33+'Comm 95+% Furnace - Replace'!Y33+'Comm Custom'!Y33,0) -> 0 | Z33: =ROUND(+'Res .95+% Res Furnace - NEW'!Z33+'Res .95+% Res Furnace - Replace'!Z33+'Programmable Tstats - Tier 1'!Z33+'Programmable Tstats - Tier 2'!Z33+'Comm 95+% Furnace - NEW'!Z33+'Comm 95+% Furnace - Replace'!Z33+'Comm Custom'!Z33,0) -> 0 | AA33: =ROUND(+'Res .95+% Res Furnace - NEW'!AA33+'Res .95+% Res Furnace - Replace'!AA33+'Programmable Tstats - Tier 1'!AA33+'Programmable Tstats - Tier 2'!AA33+'Comm 95+% Furnace - NEW'!AA33+'Comm 95+% Furnace - Replace'!AA33+'Comm Custom'!AA33,0) -> 12632 | AB33: =ROUND(+'Res .95+% Res Furnace - NEW'!AB33+'Res .95+% Res Furnace - Replace'!AB33+'Programmable Tstats - Tier 1'!AB33+'Programmable Tstats - Tier 2'!AB33+'Comm 95+% Furnace - NEW'!AB33+'Comm 95+% Furnace - Replace'!AB33+'Comm Custom'!AB33,0) -> 36708 | AE33: 2041 | AF33: 39926 | AG33: 9414 | AH33: 49340 | AJ33: 0 | AK33: 0 | AL33: 0 | AN33: 49340 | AQ33: 2041 | AR33: 39926 | AS33: 9414 | AU33: =ROUND(+'Res .95+% Res Furnace - NEW'!AU33+'Res .95+% Res Furnace - Replace'!AU33+'Programmable Tstats - Tier 1'!AU33+'Programmable Tstats - Tier 2'!AU33+'Comm 95+% Furnace - NEW'!AU33+'Comm 95+% Furnace - Replace'!AU33+'Comm Custom'!AU33,0) -> 9622 | AW33: =ROUND(+'Res .95+% Res Furnace - NEW'!AW33+'Res .95+% Res Furnace - Replace'!AW33+'Programmable Tstats - Tier 1'!AW33+'Programmable Tstats - Tier 2'!AW33+'Comm 95+% Furnace - NEW'!AW33+'Comm 95+% Furnace - Replace'!AW33+'Comm Custom'!AW33,0) -> 16667 | AZ33: 75629 | BB33: =ROUND(+'Res .95+% Res Furnace - NEW'!BB33+'Res .95+% Res Furnace - Replace'!BB33+'Programmable Tstats - Tier 1'!BB33+'Programmable Tstats - Tier 2'!BB33+'Comm 95+% Furnace - NEW'!BB33+'Comm 95+% Furnace - Replace'!BB33+'Comm Custom'!BB33,0) -> 0 | BC33: =ROUND(+'Res .95+% Res Furnace - NEW'!BC33+'Res .95+% Res Furnace - Replace'!BC33+'Programmable Tstats - Tier 1'!BC33+'Programmable Tstats - Tier 2'!BC33+'Comm 95+% Furnace - NEW'!BC33+'Comm 95+% Furnace - Replace'!BC33+'Comm Custom'!BC33,0) -> 0 | BD33: 0 | BE33: 75629 | BH33: 2041 | BI33: =ROUND(+'Res .95+% Res Furnace - NEW'!BI33+'Res .95+% Res Furnace - Replace'!BI33+'Programmable Tstats - Tier 1'!BI33+'Programmable Tstats - Tier 2'!BI33+'Comm 95+% Furnace - NEW'!BI33+'Comm 95+% Furnace - Replace'!BI33+'Comm Custom'!BI33,0) -> 0 | BJ33: =ROUND(+'Res .95+% Res Furnace - NEW'!BJ33+'Res .95+% Res Furnace - Replace'!BJ33+'Programmable Tstats - Tier 1'!BJ33+'Programmable Tstats - Tier 2'!BJ33+'Comm 95+% Furnace - NEW'!BJ33+'Comm 95+% Furnace - Replace'!BJ33+'Comm Custom'!BJ33,0) -> 5226 | BL33: =ROUND(+'Res .95+% Res Furnace - NEW'!BL33+'Res .95+% Res Furnace - Replace'!BL33+'Programmable Tstats - Tier 1'!BL33+'Programmable Tstats - Tier 2'!BL33+'Comm 95+% Furnace - NEW'!BL33+'Comm 95+% Furnace - Replace'!BL33+'Comm Custom'!BL33,0) -> 72389 | BN33: =ROUND(+'Res .95+% Res Furnace - NEW'!BN33+'Res .95+% Res Furnace - Replace'!BN33+'Programmable Tstats - Tier 1'!BN33+'Programmable Tstats - Tier 2'!BN33+'Comm 95+% Furnace - NEW'!BN33+'Comm 95+% Furnace - Replace'!BN33+'Comm Custom'!BN33,0) -> 41898 | BP33: 114287 | BR33: =ROUND(+'Res .95+% Res Furnace - NEW'!BR33+'Res .95+% Res Furnace - Replace'!BR33+'Programmable Tstats - Tier 1'!BR33+'Programmable Tstats - Tier 2'!BR33+'Comm 95+% Furnace - NEW'!BR33+'Comm 95+% Furnace - Replace'!BR33+'Comm Custom'!BR33,0) -> 0 | BT33: 114287 | BW33: 2041 | BX33: 39926 | BY33: 9414 | BZ33: 9622 | CA33: 58962 | CC33: 0 | CD33: 0 | CE33: 0 | CG33: 58962
A34: Escalation Rate = | E34: 25) Incentive/Participant = | J34: 20 | L34: 2042 | M34: =ROUND(+'Res .95+% Res Furnace - NEW'!M34+'Res .95+% Res Furnace - Replace'!M34+'Programmable Tstats - Tier 1'!M34+'Programmable Tstats - Tier 2'!M34+'Comm 95+% Furnace - NEW'!M34+'Comm 95+% Furnace - Replace'!M34+'Comm Custom'!M34,0) -> 0 | O34: =ROUND(+'Res .95+% Res Furnace - NEW'!O34+'Res .95+% Res Furnace - Replace'!O34+'Programmable Tstats - Tier 1'!O34+'Programmable Tstats - Tier 2'!O34+'Comm 95+% Furnace - NEW'!O34+'Comm 95+% Furnace - Replace'!O34+'Comm Custom'!O34,0) -> 0 | Q34: =ROUND(+'Res .95+% Res Furnace - NEW'!Q34+'Res .95+% Res Furnace - Replace'!Q34+'Programmable Tstats - Tier 1'!Q34+'Programmable Tstats - Tier 2'!Q34+'Comm 95+% Furnace - NEW'!Q34+'Comm 95+% Furnace - Replace'!Q34+'Comm Custom'!Q34,0) -> 0 | R34: =ROUND(+'Res .95+% Res Furnace - NEW'!R34+'Res .95+% Res Furnace - Replace'!R34+'Programmable Tstats - Tier 1'!R34+'Programmable Tstats - Tier 2'!R34+'Comm 95+% Furnace - NEW'!R34+'Comm 95+% Furnace - Replace'!R34+'Comm Custom'!R34,0) -> 0 | S34: =ROUND(+'Res .95+% Res Furnace - NEW'!S34+'Res .95+% Res Furnace - Replace'!S34+'Programmable Tstats - Tier 1'!S34+'Programmable Tstats - Tier 2'!S34+'Comm 95+% Furnace - NEW'!S34+'Comm 95+% Furnace - Replace'!S34+'Comm Custom'!S34,0) -> 0 | U34: =ROUND(+'Res .95+% Res Furnace - NEW'!U34+'Res .95+% Res Furnace - Replace'!U34+'Programmable Tstats - Tier 1'!U34+'Programmable Tstats - Tier 2'!U34+'Comm 95+% Furnace - NEW'!U34+'Comm 95+% Furnace - Replace'!U34+'Comm Custom'!U34,0) -> 0 | V34: =ROUND(+'Res .95+% Res Furnace - NEW'!V34+'Res .95+% Res Furnace - Replace'!V34+'Programmable Tstats - Tier 1'!V34+'Programmable Tstats - Tier 2'!V34+'Comm 95+% Furnace - NEW'!V34+'Comm 95+% Furnace - Replace'!V34+'Comm Custom'!V34,0) -> 0 | X34: =ROUND(+'Res .95+% Res Furnace - NEW'!X34+'Res .95+% Res Furnace - Replace'!X34+'Programmable Tstats - Tier 1'!X34+'Programmable Tstats - Tier 2'!X34+'Comm 95+% Furnace - NEW'!X34+'Comm 95+% Furnace - Replace'!X34+'Comm Custom'!X34,0) -> 0 | Y34: =ROUND(+'Res .95+% Res Furnace - NEW'!Y34+'Res .95+% Res Furnace - Replace'!Y34+'Programmable Tstats - Tier 1'!Y34+'Programmable Tstats - Tier 2'!Y34+'Comm 95+% Furnace - NEW'!Y34+'Comm 95+% Furnace - Replace'!Y34+'Comm Custom'!Y34,0) -> 0 | Z34: =ROUND(+'Res .95+% Res Furnace - NEW'!Z34+'Res .95+% Res Furnace - Replace'!Z34+'Programmable Tstats - Tier 1'!Z34+'Programmable Tstats - Tier 2'!Z34+'Comm 95+% Furnace - NEW'!Z34+'Comm 95+% Furnace - Replace'!Z34+'Comm Custom'!Z34,0) -> 0 | AA34: =ROUND(+'Res .95+% Res Furnace - NEW'!AA34+'Res .95+% Res Furnace - Replace'!AA34+'Programmable Tstats - Tier 1'!AA34+'Programmable Tstats - Tier 2'!AA34+'Comm 95+% Furnace - NEW'!AA34+'Comm 95+% Furnace - Replace'!AA34+'Comm Custom'!AA34,0) -> 0 | AB34: =ROUND(+'Res .95+% Res Furnace - NEW'!AB34+'Res .95+% Res Furnace - Replace'!AB34+'Programmable Tstats - Tier 1'!AB34+'Programmable Tstats - Tier 2'!AB34+'Comm 95+% Furnace - NEW'!AB34+'Comm 95+% Furnace - Replace'!AB34+'Comm Custom'!AB34,0) -> 0 | AE34: 2042 | AF34: 0 | AG34: 0 | AH34: 0 | AJ34: 0 | AK34: 0 | AL34: 0 | AN34: 0 | AQ34: 2042 | AR34: 0 | AS34: 0 | AU34: =ROUND(+'Res .95+% Res Furnace - NEW'!AU34+'Res .95+% Res Furnace - Replace'!AU34+'Programmable Tstats - Tier 1'!AU34+'Programmable Tstats - Tier 2'!AU34+'Comm 95+% Furnace - NEW'!AU34+'Comm 95+% Furnace - Replace'!AU34+'Comm Custom'!AU34,0) -> 0 | AW34: =ROUND(+'Res .95+% Res Furnace - NEW'!AW34+'Res .95+% Res Furnace - Replace'!AW34+'Programmable Tstats - Tier 1'!AW34+'Programmable Tstats - Tier 2'!AW34+'Comm 95+% Furnace - NEW'!AW34+'Comm 95+% Furnace - Replace'!AW34+'Comm Custom'!AW34,0) -> 0 | AZ34: 0 | BB34: =ROUND(+'Res .95+% Res Furnace - NEW'!BB34+'Res .95+% Res Furnace - Replace'!BB34+'Programmable Tstats - Tier 1'!BB34+'Programmable Tstats - Tier 2'!BB34+'Comm 95+% Furnace - NEW'!BB34+'Comm 95+% Furnace - Replace'!BB34+'Comm Custom'!BB34,0) -> 0 | BC34: =ROUND(+'Res .95+% Res Furnace - NEW'!BC34+'Res .95+% Res Furnace - Replace'!BC34+'Programmable Tstats - Tier 1'!BC34+'Programmable Tstats - Tier 2'!BC34+'Comm 95+% Furnace - NEW'!BC34+'Comm 95+% Furnace - Replace'!BC34+'Comm Custom'!BC34,0) -> 0 | BD34: 0 | BE34: 0 | BH34: 2042 | BI34: =ROUND(+'Res .95+% Res Furnace - NEW'!BI34+'Res .95+% Res Furnace - Replace'!BI34+'Programmable Tstats - Tier 1'!BI34+'Programmable Tstats - Tier 2'!BI34+'Comm 95+% Furnace - NEW'!BI34+'Comm 95+% Furnace - Replace'!BI34+'Comm Custom'!BI34,0) -> 0 | BJ34: =ROUND(+'Res .95+% Res Furnace - NEW'!BJ34+'Res .95+% Res Furnace - Replace'!BJ34+'Programmable Tstats - Tier 1'!BJ34+'Programmable Tstats - Tier 2'!BJ34+'Comm 95+% Furnace - NEW'!BJ34+'Comm 95+% Furnace - Replace'!BJ34+'Comm Custom'!BJ34,0) -> 0 | BL34: =ROUND(+'Res .95+% Res Furnace - NEW'!BL34+'Res .95+% Res Furnace - Replace'!BL34+'Programmable Tstats - Tier 1'!BL34+'Programmable Tstats - Tier 2'!BL34+'Comm 95+% Furnace - NEW'!BL34+'Comm 95+% Furnace - Replace'!BL34+'Comm Custom'!BL34,0) -> 0 | BN34: =ROUND(+'Res .95+% Res Furnace - NEW'!BN34+'Res .95+% Res Furnace - Replace'!BN34+'Programmable Tstats - Tier 1'!BN34+'Programmable Tstats - Tier 2'!BN34+'Comm 95+% Furnace - NEW'!BN34+'Comm 95+% Furnace - Replace'!BN34+'Comm Custom'!BN34,0) -> 0 | BP34: 0 | BR34: =ROUND(+'Res .95+% Res Furnace - NEW'!BR34+'Res .95+% Res Furnace - Replace'!BR34+'Programmable Tstats - Tier 1'!BR34+'Programmable Tstats - Tier 2'!BR34+'Comm 95+% Furnace - NEW'!BR34+'Comm 95+% Furnace - Replace'!BR34+'Comm Custom'!BR34,0) -> 0 | BT34: 0 | BW34: 2042 | BX34: 0 | BY34: 0 | BZ34: 0 | CA34: 0 | CC34: 0 | CD34: 0 | CE34: 0 | CG34: 0
J35: 21 | L35: 2043 | M35: =ROUND(+'Res .95+% Res Furnace - NEW'!M35+'Res .95+% Res Furnace - Replace'!M35+'Programmable Tstats - Tier 1'!M35+'Programmable Tstats - Tier 2'!M35+'Comm 95+% Furnace - NEW'!M35+'Comm 95+% Furnace - Replace'!M35+'Comm Custom'!M35,0) -> 0 | O35: =ROUND(+'Res .95+% Res Furnace - NEW'!O35+'Res .95+% Res Furnace - Replace'!O35+'Programmable Tstats - Tier 1'!O35+'Programmable Tstats - Tier 2'!O35+'Comm 95+% Furnace - NEW'!O35+'Comm 95+% Furnace - Replace'!O35+'Comm Custom'!O35,0) -> 0 | Q35: =ROUND(+'Res .95+% Res Furnace - NEW'!Q35+'Res .95+% Res Furnace - Replace'!Q35+'Programmable Tstats - Tier 1'!Q35+'Programmable Tstats - Tier 2'!Q35+'Comm 95+% Furnace - NEW'!Q35+'Comm 95+% Furnace - Replace'!Q35+'Comm Custom'!Q35,0) -> 0 | R35: =ROUND(+'Res .95+% Res Furnace - NEW'!R35+'Res .95+% Res Furnace - Replace'!R35+'Programmable Tstats - Tier 1'!R35+'Programmable Tstats - Tier 2'!R35+'Comm 95+% Furnace - NEW'!R35+'Comm 95+% Furnace - Replace'!R35+'Comm Custom'!R35,0) -> 0 | S35: =ROUND(+'Res .95+% Res Furnace - NEW'!S35+'Res .95+% Res Furnace - Replace'!S35+'Programmable Tstats - Tier 1'!S35+'Programmable Tstats - Tier 2'!S35+'Comm 95+% Furnace - NEW'!S35+'Comm 95+% Furnace - Replace'!S35+'Comm Custom'!S35,0) -> 0 | U35: =ROUND(+'Res .95+% Res Furnace - NEW'!U35+'Res .95+% Res Furnace - Replace'!U35+'Programmable Tstats - Tier 1'!U35+'Programmable Tstats - Tier 2'!U35+'Comm 95+% Furnace - NEW'!U35+'Comm 95+% Furnace - Replace'!U35+'Comm Custom'!U35,0) -> 0 | V35: =ROUND(+'Res .95+% Res Furnace - NEW'!V35+'Res .95+% Res Furnace - Replace'!V35+'Programmable Tstats - Tier 1'!V35+'Programmable Tstats - Tier 2'!V35+'Comm 95+% Furnace - NEW'!V35+'Comm 95+% Furnace - Replace'!V35+'Comm Custom'!V35,0) -> 0 | X35: =ROUND(+'Res .95+% Res Furnace - NEW'!X35+'Res .95+% Res Furnace - Replace'!X35+'Programmable Tstats - Tier 1'!X35+'Programmable Tstats - Tier 2'!X35+'Comm 95+% Furnace - NEW'!X35+'Comm 95+% Furnace - Replace'!X35+'Comm Custom'!X35,0) -> 0 | Y35: =ROUND(+'Res .95+% Res Furnace - NEW'!Y35+'Res .95+% Res Furnace - Replace'!Y35+'Programmable Tstats - Tier 1'!Y35+'Programmable Tstats - Tier 2'!Y35+'Comm 95+% Furnace - NEW'!Y35+'Comm 95+% Furnace - Replace'!Y35+'Comm Custom'!Y35,0) -> 0 | Z35: =ROUND(+'Res .95+% Res Furnace - NEW'!Z35+'Res .95+% Res Furnace - Replace'!Z35+'Programmable Tstats - Tier 1'!Z35+'Programmable Tstats - Tier 2'!Z35+'Comm 95+% Furnace - NEW'!Z35+'Comm 95+% Furnace - Replace'!Z35+'Comm Custom'!Z35,0) -> 0 | AA35: =ROUND(+'Res .95+% Res Furnace - NEW'!AA35+'Res .95+% Res Furnace - Replace'!AA35+'Programmable Tstats - Tier 1'!AA35+'Programmable Tstats - Tier 2'!AA35+'Comm 95+% Furnace - NEW'!AA35+'Comm 95+% Furnace - Replace'!AA35+'Comm Custom'!AA35,0) -> 0 | AB35: =ROUND(+'Res .95+% Res Furnace - NEW'!AB35+'Res .95+% Res Furnace - Replace'!AB35+'Programmable Tstats - Tier 1'!AB35+'Programmable Tstats - Tier 2'!AB35+'Comm 95+% Furnace - NEW'!AB35+'Comm 95+% Furnace - Replace'!AB35+'Comm Custom'!AB35,0) -> 0 | AE35: 2043 | AF35: =+R35 -> 0 | AG35: =+U35 -> 0 | AH35: =+AG35+AF35 -> 0 | AJ35: =ROUND(Y35,0) -> 0 | AK35: =ROUND(Z35,0) -> 0 | AL35: =SUM(AJ35:AK35) -> 0 | AN35: =+AH35-AL35 -> 0 | AQ35: 2043 | AR35: 0 | AS35: 0 | AU35: =ROUND(+'Res .95+% Res Furnace - NEW'!AU35+'Res .95+% Res Furnace - Replace'!AU35+'Programmable Tstats - Tier 1'!AU35+'Programmable Tstats - Tier 2'!AU35+'Comm 95+% Furnace - NEW'!AU35+'Comm 95+% Furnace - Replace'!AU35+'Comm Custom'!AU35,0) -> 0 | AW35: =ROUND(+'Res .95+% Res Furnace - NEW'!AW35+'Res .95+% Res Furnace - Replace'!AW35+'Programmable Tstats - Tier 1'!AW35+'Programmable Tstats - Tier 2'!AW35+'Comm 95+% Furnace - NEW'!AW35+'Comm 95+% Furnace - Replace'!AW35+'Comm Custom'!AW35,0) -> 0 | AZ35: 0 | BB35: =ROUND(+'Res .95+% Res Furnace - NEW'!BB35+'Res .95+% Res Furnace - Replace'!BB35+'Programmable Tstats - Tier 1'!BB35+'Programmable Tstats - Tier 2'!BB35+'Comm 95+% Furnace - NEW'!BB35+'Comm 95+% Furnace - Replace'!BB35+'Comm Custom'!BB35,0) -> 0 | BC35: =ROUND(+'Res .95+% Res Furnace - NEW'!BC35+'Res .95+% Res Furnace - Replace'!BC35+'Programmable Tstats - Tier 1'!BC35+'Programmable Tstats - Tier 2'!BC35+'Comm 95+% Furnace - NEW'!BC35+'Comm 95+% Furnace - Replace'!BC35+'Comm Custom'!BC35,0) -> 0 | BD35: 0 | BE35: 0 | BH35: 2043 | BI35: =ROUND(+'Res .95+% Res Furnace - NEW'!BI35+'Res .95+% Res Furnace - Replace'!BI35+'Programmable Tstats - Tier 1'!BI35+'Programmable Tstats - Tier 2'!BI35+'Comm 95+% Furnace - NEW'!BI35+'Comm 95+% Furnace - Replace'!BI35+'Comm Custom'!BI35,0) -> 0 | BJ35: =ROUND(+'Res .95+% Res Furnace - NEW'!BJ35+'Res .95+% Res Furnace - Replace'!BJ35+'Programmable Tstats - Tier 1'!BJ35+'Programmable Tstats - Tier 2'!BJ35+'Comm 95+% Furnace - NEW'!BJ35+'Comm 95+% Furnace - Replace'!BJ35+'Comm Custom'!BJ35,0) -> 0 | BL35: =ROUND(+'Res .95+% Res Furnace - NEW'!BL35+'Res .95+% Res Furnace - Replace'!BL35+'Programmable Tstats - Tier 1'!BL35+'Programmable Tstats - Tier 2'!BL35+'Comm 95+% Furnace - NEW'!BL35+'Comm 95+% Furnace - Replace'!BL35+'Comm Custom'!BL35,0) -> 0 | BN35: =ROUND(+'Res .95+% Res Furnace - NEW'!BN35+'Res .95+% Res Furnace - Replace'!BN35+'Programmable Tstats - Tier 1'!BN35+'Programmable Tstats - Tier 2'!BN35+'Comm 95+% Furnace - NEW'!BN35+'Comm 95+% Furnace - Replace'!BN35+'Comm Custom'!BN35,0) -> 0 | BP35: 0 | BR35: =ROUND(+'Res .95+% Res Furnace - NEW'!BR35+'Res .95+% Res Furnace - Replace'!BR35+'Programmable Tstats - Tier 1'!BR35+'Programmable Tstats - Tier 2'!BR35+'Comm 95+% Furnace - NEW'!BR35+'Comm 95+% Furnace - Replace'!BR35+'Comm Custom'!BR35,0) -> 0 | BT35: 0 | BW35: 2043 | BX35: 0 | BY35: =U35 -> 0 | BZ35: =AU35 -> 0 | CA35: =SUM(BX35:BZ35) -> 0 | CC35: =BB35 -> 0 | CD35: =BC35 -> 0 | CE35: =SUM(CC35:CD35) -> 0 | CG35: =CA35-CE35 -> 0 | DB35: =$J21 -> 7
A36: 10) Non Gas Fuel Environmental Damage Factor = | E36: 26) Distribution Delivery Charge | J36: 22 | L36: 2044 | M36: =ROUND(+'Res .95+% Res Furnace - NEW'!M36+'Res .95+% Res Furnace - Replace'!M36+'Programmable Tstats - Tier 1'!M36+'Programmable Tstats - Tier 2'!M36+'Comm 95+% Furnace - NEW'!M36+'Comm 95+% Furnace - Replace'!M36+'Comm Custom'!M36,0) -> 0 | O36: =ROUND(+'Res .95+% Res Furnace - NEW'!O36+'Res .95+% Res Furnace - Replace'!O36+'Programmable Tstats - Tier 1'!O36+'Programmable Tstats - Tier 2'!O36+'Comm 95+% Furnace - NEW'!O36+'Comm 95+% Furnace - Replace'!O36+'Comm Custom'!O36,0) -> 0 | Q36: =ROUND(+'Res .95+% Res Furnace - NEW'!Q36+'Res .95+% Res Furnace - Replace'!Q36+'Programmable Tstats - Tier 1'!Q36+'Programmable Tstats - Tier 2'!Q36+'Comm 95+% Furnace - NEW'!Q36+'Comm 95+% Furnace - Replace'!Q36+'Comm Custom'!Q36,0) -> 0 | R36: =ROUND(+'Res .95+% Res Furnace - NEW'!R36+'Res .95+% Res Furnace - Replace'!R36+'Programmable Tstats - Tier 1'!R36+'Programmable Tstats - Tier 2'!R36+'Comm 95+% Furnace - NEW'!R36+'Comm 95+% Furnace - Replace'!R36+'Comm Custom'!R36,0) -> 0 | S36: =ROUND(+'Res .95+% Res Furnace - NEW'!S36+'Res .95+% Res Furnace - Replace'!S36+'Programmable Tstats - Tier 1'!S36+'Programmable Tstats - Tier 2'!S36+'Comm 95+% Furnace - NEW'!S36+'Comm 95+% Furnace - Replace'!S36+'Comm Custom'!S36,0) -> 0 | U36: =ROUND(+'Res .95+% Res Furnace - NEW'!U36+'Res .95+% Res Furnace - Replace'!U36+'Programmable Tstats - Tier 1'!U36+'Programmable Tstats - Tier 2'!U36+'Comm 95+% Furnace - NEW'!U36+'Comm 95+% Furnace - Replace'!U36+'Comm Custom'!U36,0) -> 0 | V36: =ROUND(+'Res .95+% Res Furnace - NEW'!V36+'Res .95+% Res Furnace - Replace'!V36+'Programmable Tstats - Tier 1'!V36+'Programmable Tstats - Tier 2'!V36+'Comm 95+% Furnace - NEW'!V36+'Comm 95+% Furnace - Replace'!V36+'Comm Custom'!V36,0) -> 0 | X36: =ROUND(+'Res .95+% Res Furnace - NEW'!X36+'Res .95+% Res Furnace - Replace'!X36+'Programmable Tstats - Tier 1'!X36+'Programmable Tstats - Tier 2'!X36+'Comm 95+% Furnace - NEW'!X36+'Comm 95+% Furnace - Replace'!X36+'Comm Custom'!X36,0) -> 0 | Y36: =ROUND(+'Res .95+% Res Furnace - NEW'!Y36+'Res .95+% Res Furnace - Replace'!Y36+'Programmable Tstats - Tier 1'!Y36+'Programmable Tstats - Tier 2'!Y36+'Comm 95+% Furnace - NEW'!Y36+'Comm 95+% Furnace - Replace'!Y36+'Comm Custom'!Y36,0) -> 0 | Z36: =ROUND(+'Res .95+% Res Furnace - NEW'!Z36+'Res .95+% Res Furnace - Replace'!Z36+'Programmable Tstats - Tier 1'!Z36+'Programmable Tstats - Tier 2'!Z36+'Comm 95+% Furnace - NEW'!Z36+'Comm 95+% Furnace - Replace'!Z36+'Comm Custom'!Z36,0) -> 0 | AA36: =ROUND(+'Res .95+% Res Furnace - NEW'!AA36+'Res .95+% Res Furnace - Replace'!AA36+'Programmable Tstats - Tier 1'!AA36+'Programmable Tstats - Tier 2'!AA36+'Comm 95+% Furnace - NEW'!AA36+'Comm 95+% Furnace - Replace'!AA36+'Comm Custom'!AA36,0) -> 0 | AB36: =ROUND(+'Res .95+% Res Furnace - NEW'!AB36+'Res .95+% Res Furnace - Replace'!AB36+'Programmable Tstats - Tier 1'!AB36+'Programmable Tstats - Tier 2'!AB36+'Comm 95+% Furnace - NEW'!AB36+'Comm 95+% Furnace - Replace'!AB36+'Comm Custom'!AB36,0) -> 0 | AE36: 2044 | AF36: 0 | AG36: 0 | AH36: 0 | AJ36: 0 | AK36: 0 | AL36: 0 | AN36: 0 | AQ36: 2044 | AR36: 0 | AS36: 0 | AU36: =ROUND(+'Res .95+% Res Furnace - NEW'!AU36+'Res .95+% Res Furnace - Replace'!AU36+'Programmable Tstats - Tier 1'!AU36+'Programmable Tstats - Tier 2'!AU36+'Comm 95+% Furnace - NEW'!AU36+'Comm 95+% Furnace - Replace'!AU36+'Comm Custom'!AU36,0) -> 0 | AW36: =ROUND(+'Res .95+% Res Furnace - NEW'!AW36+'Res .95+% Res Furnace - Replace'!AW36+'Programmable Tstats - Tier 1'!AW36+'Programmable Tstats - Tier 2'!AW36+'Comm 95+% Furnace - NEW'!AW36+'Comm 95+% Furnace - Replace'!AW36+'Comm Custom'!AW36,0) -> 0 | AZ36: 0 | BB36: =ROUND(+'Res .95+% Res Furnace - NEW'!BB36+'Res .95+% Res Furnace - Replace'!BB36+'Programmable Tstats - Tier 1'!BB36+'Programmable Tstats - Tier 2'!BB36+'Comm 95+% Furnace - NEW'!BB36+'Comm 95+% Furnace - Replace'!BB36+'Comm Custom'!BB36,0) -> 0 | BC36: =ROUND(+'Res .95+% Res Furnace - NEW'!BC36+'Res .95+% Res Furnace - Replace'!BC36+'Programmable Tstats - Tier 1'!BC36+'Programmable Tstats - Tier 2'!BC36+'Comm 95+% Furnace - NEW'!BC36+'Comm 95+% Furnace - Replace'!BC36+'Comm Custom'!BC36,0) -> 0 | BD36: 0 | BE36: 0 | BH36: 2044 | BI36: =ROUND(+'Res .95+% Res Furnace - NEW'!BI36+'Res .95+% Res Furnace - Replace'!BI36+'Programmable Tstats - Tier 1'!BI36+'Programmable Tstats - Tier 2'!BI36+'Comm 95+% Furnace - NEW'!BI36+'Comm 95+% Furnace - Replace'!BI36+'Comm Custom'!BI36,0) -> 0 | BJ36: =ROUND(+'Res .95+% Res Furnace - NEW'!BJ36+'Res .95+% Res Furnace - Replace'!BJ36+'Programmable Tstats - Tier 1'!BJ36+'Programmable Tstats - Tier 2'!BJ36+'Comm 95+% Furnace - NEW'!BJ36+'Comm 95+% Furnace - Replace'!BJ36+'Comm Custom'!BJ36,0) -> 0 | BL36: =ROUND(+'Res .95+% Res Furnace - NEW'!BL36+'Res .95+% Res Furnace - Replace'!BL36+'Programmable Tstats - Tier 1'!BL36+'Programmable Tstats - Tier 2'!BL36+'Comm 95+% Furnace - NEW'!BL36+'Comm 95+% Furnace - Replace'!BL36+'Comm Custom'!BL36,0) -> 0 | BN36: =ROUND(+'Res .95+% Res Furnace - NEW'!BN36+'Res .95+% Res Furnace - Replace'!BN36+'Programmable Tstats - Tier 1'!BN36+'Programmable Tstats - Tier 2'!BN36+'Comm 95+% Furnace - NEW'!BN36+'Comm 95+% Furnace - Replace'!BN36+'Comm Custom'!BN36,0) -> 0 | BP36: 0 | BR36: =ROUND(+'Res .95+% Res Furnace - NEW'!BR36+'Res .95+% Res Furnace - Replace'!BR36+'Programmable Tstats - Tier 1'!BR36+'Programmable Tstats - Tier 2'!BR36+'Comm 95+% Furnace - NEW'!BR36+'Comm 95+% Furnace - Replace'!BR36+'Comm Custom'!BR36,0) -> 0 | BT36: 0 | BW36: 2044 | BX36: 0 | BY36: 0 | BZ36: 0 | CA36: 0 | CC36: 0 | CD36: 0 | CE36: 0 | CG36: 0
A37: Escalation Rate = | DB37: =$J22 -> 8
E38: 27) Effective Income Tax Rate = | K38: Total = | M38: =SUM(M14:M36) -> 117020 | V38: =SUM(V14:V36) -> 865747 | AA38: =SUM(AA14:AA36) -> 332562 | AB38: =SUM(AB14:AB36) -> 533185 | AD38: Total = | AH38: =SUM(AH14:AH36) -> 865747 | AL38: =SUM(AL14:AL36) -> 118188 | AN38: =SUM(AN14:AN36) -> 747559 | AP38: Total = | AZ38: =SUM(AZ14:AZ36) -> 1314253 | BD38: =SUM(BD14:BD36) -> 248891 | BE38: =SUM(BE14:BE36) -> 1065362 | BG38: Total = | BJ38: =SUM(BJ14:BJ36) -> 117020 | BP38: =SUM(BP14:BP36) -> 1976275 | BR38: =SUM(BR14:BR36) -> 231087 | BT38: =SUM(BT14:BT36) -> 1745188 | BZ38: Total = | CA38: =SUM(CA14:CA36) -> 1014690 | CE38: =SUM(CE14:CE36) -> 248891 | CG38: =SUM(CG14:CG36) -> 765799
A39: 11) Participant Discount Rate = | C39: =+'Gas Input Table Summary'!$D$26 -> 0.1032 | E39: (Federal & State Taxes) | T39: NPV = | V39: =ROUND(V14+NPV($C$41,V15:V36),0) -> 473612 | AA39: =ROUND(AA14+NPV($C$41,AA15:AA36),0) -> 234508 | AB39: =ROUND(AB14+NPV($C$41,AB15:AB36),0) -> 239104 | AG39: NPV = | AH39: =ROUND(AH14+NPV($C$41,AH15:AH36),0) -> 473612 | AL39: =ROUND(AL14+NPV($C$41,AL15:AL36),0) -> 118188 | AN39: =+AH39-AL39 -> 355424 | AW39: NPV = | AZ39: =ROUND(AZ14+NPV($C$43,AZ15:AZ36),0) -> 1065242 | BD39: =ROUND(BD14+NPV($C$43,BD15:BD36),0) -> 248891 | BE39: =AZ39-BD39 -> 816351 | BN39: NPV = | BP39: =ROUND(BP14+NPV($C$39,BP15:BP36),0) -> 915163 | BR39: =ROUND(BR14+NPV($C$39,BR15:BR36),0) -> 231087 | BT39: =ROUND(BT14+NPV($C$39,BT15:BT36),0) -> 684076 | BZ39: NPV = | CA39: =ROUND(CA14+NPV($C$41,CA15:CA36),0) -> 551837 | CE39: =ROUND(CE14+NPV($C$41,CE15:CE36),0) -> 248891 | CG39: =ROUND(CG14+NPV($C$41,CG15:CG36),0) -> 302946
DB40: =$J23 -> 9
A41: 12) Utility Discount Rate = | C41: =+'Gas Input Table Summary'!$D$27 -> 0.07216 | E41: Test Results | F41: NPV | G41: B/C | K41: Total NPV = | N41: =AB39 -> 239104 | AD41: Total NPV = | AG41: =AN39 -> 355424 | AP41: Total NPV = | AS41: =BE39 -> 816351 | BG41: Total NPV = | BJ41: =BT39 -> 684076 | BV41: Total NPV = | BY41: =CG39 -> 302946 | DB41: =$J24 -> 10
E42: Ratepayer Impact Measure Test | F42: =N41 -> 239104 | G42: =N42 -> 2.02 | K42: Benefit/Cost Ratio = | N42: =ROUND(V39/AA39,2) -> 2.02 | AD42: Benefit/Cost Ratio = | AG42: =ROUND(AH39/AL39,2) -> 4.01 | AP42: Benefit/Cost Ratio = | AS42: =ROUND(AZ39/BD39,2) -> 4.28 | BG42: Benefit/Cost Ratio = | BJ42: =ROUND(BP39/BR39,20) -> 3.960253065 | BV42: Benefit/Cost Ratio = | BY42: =ROUND(CA39/CE39,2) -> 2.22 | DB42: =$J25 -> 11
A43: 13) Societal Discount Rate = | C43: =+'Gas Input Table Summary'!$D$28 -> 0.0224 | E43: Utility Cost Test | F43: =AG41 -> 355424 | G43: =AG42 -> 4.01 | DB43: =$J26 -> 12
E44: Societal Test | F44: =AS41 -> 816351 | G44: =AS42 -> 4.28 | J44: Worksheet Calculations | BV44: Worksheet Calculations
A45: 14) General Input Data Year = | C45: =+'Gas Input Table Summary'!$D$29 -> 2022 | E45: Participant Test | F45: =BJ41 -> 684076 | G45: =BJ42 -> 3.960253065 | J45: (A) | K45: = Average Dk/Participant Saved (21) x Number of Participants (23) for Project Life (20) | T45: (I) | U45: = (G) x (H) | AD45: Worksheet Calculations | AP45: Worksheet Calculations | BG45: Worksheet Calculations | BV45: (A) | BW45: = Table 1 (F)
E46: Total Resource Cost Test | F46: =BY41 -> 302946 | G46: =BY42 -> 2.22 | J46: (B) | K46: = Commodity Cost (3) escalated | T46: (J) | U46: = (F) + (I) | AD46: (A) | AE46: = Table 1 (F) | AP46: (A) | AQ46: = Table 1 (F) | AW46: (H) | AZ46: = Table 2 (F) | BG46: (A) | BH46: = Table 1 (N) | BL46: (G) | BM46: = (A) + (D) + (F) | BV46: (B) | BW46: = Table 1 (I)
A47: 15) Project Analysis Year 1 = | C47: =+'Total Program Inputs'!C6 -> 2022 | J47: (C) | K47: = (A) x (B) | T47: (K) | U47: = Distribution Delivery Charge (26) escalated. | AD47: (B) | AE47: = Table 1 (I) | AP47: (G) | AQ47: = Table 1 (I) | AW47: (I) | AZ47: = Direct Part. Costs (17) x No. of Part. (23) - Table 1 (N) | BG47: (B) | BH47: = Table 1 (A) | BL47: (H) | BM47: = Direct Participant Costs (17) x Number of Participants (23) | BV47: (C) | BW47: = Table 3 (D)
J48: (D) | K48: = Variable O&M Cost (6), escalated | T48: (L) | U48: = (A) x (K) x (1-Inverse of Tax Rate (27) | AD48: (C) | AE48: = Table 1 (J) | AP48: (C) | AQ48: = Non-Gas Fuel Cost (7), adjusted for losses (8), escalated.. | AW48: (J) | AZ48: = (H) + (I) | BG48: (C) | BH48: = Retail Rate (1) escalated. | BL48: (I) | BM48: = (G) - (H) | BV48: (D) | BW48: = (A) + (B) + (C)
J49: (E) | K49: = (A) x (D) | T49: (M) | U49: = Admin & Operating Costs (16a) | AD49: (D) | AE49: = Table 1 (M) | AP49: (D) | AQ49: = (C) x [Avg. Non-Gas Fuel Units/Part.Saved (22) x No. of Part. (23) | AW49: (K) | AZ49: = (G) - (J) | BG49: (D) | BH49: =(B) x (C) | BV49: (E) | BW49: = Table 3 (H) | DB49: =$J27 -> 13
J50: (F) | K50: = (C) + (E) | T50: (N) | U50: = Incentive Costs (16b) | AD50: (E) | AE50: = Table 1 (N) | AP50: (E) | AQ50: = Gas Environmental Damage Factor (9), escalated | BG50: (E) | BH50: = Non-Gas Fuel Retail Rate (2), escalated. | BV50: (F) | BW50: = Table 3 (I) | DB50: =$J28 -> 14
J51: (G) | K51: = (A) x Peak Reduction Factor (5) | T51: (O) | U51: = (L) + (M) + (N) | AD51: (F) | AE51: = (D) + (E) | AP51: (F) | AQ51: = Table 1 (A) x (E) | BG51: (F) | BH51: = (E) x [Avg. Non-Gas Fuel Units/Part.Saved (22) x No. of Part. (23) | BV51: (G) | BW51: = (E) + (F) | DB51: =$J29 -> 15
J52: (H) | K52: = Demand Cost (4) escalated. | T52: (P) | U52: = (J) - (O) | AD52: (G) | AE52: = (C) - (F) | AP52: (G) | AQ52: = (A) + (B) + (D) + (F) | BV52: (H) | BW52: = (D) - (G)
AB59: =+V57/AA57 -> 

Sheet Res .95+% Res Furnace - NEW
A1: NATURAL GAS CONSERVATION PROGRAMS/DEMAND-SIDE MANAGEMENT | K1: Table 1 | AD1: Table 2 | AP1: Table 3 | BG1: Table 4 | BV1: Table 5
A2: BEN/COST ANALYSIS FOR GAS CONSERVATION | K2: Ratepayer Impact Measure Test | AD2: Utility Cost Test | AP2: Societal Test | BG2: Participant Test | BV2: Total Resource Cost Test
A4: Company: | B4: Montana-Dakota Utilities Co. | K4: Company: | M4: =B4 -> Montana-Dakota Utilities Co. | AD4: Company: | AF4: =B4 -> Montana-Dakota Utilities Co. | AP4: Company: | AR4: =AF4 -> Montana-Dakota Utilities Co. | BH4: Company: | BI4: =AR4 -> Montana-Dakota Utilities Co. | BW4: Company: | BX4: =BI4 -> Montana-Dakota Utilities Co.
A5: Project: | B5: Residential 95+% AFUE Furnace - New | K5: Project: | M5: =$B$5 -> Residential 95+% AFUE Furnace - New | AD5: Project: | AF5: =$B$5 -> Residential 95+% AFUE Furnace - New | AP5: Project: | AR5: =$B$5 -> Residential 95+% AFUE Furnace - New | BH5: Project: | BI5: =$B$5 -> Residential 95+% AFUE Furnace - New | BW5: Project: | BX5: =$B$5 -> Residential 95+% AFUE Furnace - New
A6: Program Years: | B6: ='Total Program'!$B$6 -> 2022
N7: Benefits | X7: Costs | AF7: Benefits | AJ7: Costs | AR7: Benefits | BB7: Costs | BI7: Benefits | BR7: Costs | BX7: Benefits | CC7: Costs
A8: Input Data | F8: =+'Total Program Inputs'!C6 -> 2022 | AB8: Annual | AN8: Annual | AT8: Non-Gas | BE8: Annual | BT8: Annual | CG8: Annual
M9: Total | N9: Gas | O9: Gas | P9: Variable | Q9: Variable | R9: Total | S9: Peak Dk | T9: Demand | U9: Total | W9: Distribution | Y9: Program | AA9: Total | AB9: Benefits | AF9: Total | AG9: Total | AH9: Annual | AJ9: Program | AL9: Utility | AN9: Benefits | AR9: Total | AS9: Total | AT9: Energy | AU9: Non-Gas | AV9: Environmental | AW9: Environmental | AZ9: Annual | BB9: Utility | BC9: Participants' | BD9: Annual | BE9: Benefits | BJ9: Total | BL9: Gas | BM9: Non-Gas | BN9: Non-Gas | BP9: Total | BR9: Direct | BT9: Benefits | BX9: Total | BY9: Total | BZ9: Non-Gas | CA9: Total | CC9: Utility | CD9: Participants' | CG9: Benefits
A10: 1) Retail Rate ($/Dk) = | C10: =+'Gas Input Table Summary'!$D$7 -> 7.99 | E10: 16) Utility Project Costs | M10: Energy | N10: Commodity | O10: Commodity | P10: O & M | Q10: O & M | R10: Energy | S10: Demand | T10: Savings | U10: Demand | V10: Total | W10: Delivery | X10: Lost | Y10: Admin | Z10: Incentive | AA10: Program | AB10: Less | AF10: Energy | AG10: Demand | AH10: Total | AJ10: Admin | AK10: Incentive | AL10: Program | AN10: Less | AR10: Energy | AS10: Demand | AT10: Savings | AU10: Energy | AV10: Damage | AW10: Damage | AZ10: Total | BB10: Program | BC10: Costs Net | BD10: Total | BE10: Less | BI10: Incentives | BJ10: Energy | BK10: Retail | BL10: Bill | BM10: Fuel | BN10: Energy | BP10: Annual | BR10: Participant | BT10: Less | BX10: Energy | BY10: Demand | BZ10: Energy | CA10: Annual | CC10: Program | CD10: Costs Net | CE10: Total | CG10: Less
A11: Escalation Rate = | C11: =+'Gas Input Table Summary'!$D$8 -> 0.03 | E11: 16a) Administrative & Operating Costs = | F11: =+'Total Program Inputs'!M11 -> 2102 | J11: t | M11: Reduction | N11: Cost/Dk | O11: Savings | P11: Cost/Dk | Q11: Savings | R11: Savings | S11: Reduction | T11: Per Unit | U11: Savings | V11: Savings | W11: Charge | X11: Margin | Y11: Costs | Z11: Costs | AA11: Costs | AB11: Costs | AF11: Savings | AG11: Savings | AH11: Savings | AJ11: Costs | AK11: Costs | AL11: Costs | AN11: Costs | AR11: Savings | AS11: Savings | AT11: ($/Part.) | AU11: Savings | AV11: Savings/Dk | AW11: Savings | AZ11: Savings | BB11: Costs | BC11: of Rebate | BD11: Costs | BE11: Costs | BI11: Received | BJ11: Reduction | BK11: Rate | BL11: Savings | BM11: Retail Rate | BN11: Savings | BP11: Benefits | BR11: Costs | BT11: Costs | BX11: Savings | BY11: Savings | BZ11: Savings | CA11: Benefits | CC11: Costs | CD11: of Rebate | CE11: Costs | CG11: Costs
E12: 16b) Incentive Costs = | F12: =+'Total Program Inputs'!I11 -> 11850 | L12: Year | M12: (A) | N12: (B) | O12: (C) | P12: (D) | Q12: (E) | R12: (F) | S12: (G) | T12: (H) | U12: (I) | V12: (J) | W12: (K) | X12: (L) | Y12: (M) | Z12: (N) | AA12: (O) | AB12: (P) | AE12: Year | AF12: (A) | AG12: (B) | AH12: (C) | AJ12: (D) | AK12: (E) | AL12: (F) | AN12: (G) | AQ12: Year | AR12: (A) | AS12: (B) | AT12: (C) | AU12: (D) | AV12: (E) | AW12: (F) | AZ12: (G) | BB12: (H) | BC12: (I) | BD12: (J) | BE12: (K) | BH12: Year | BI12: (A) | BJ12: (B) | BK12: (C) | BL12: (D) | BM12: (E) | BN12: (F) | BP12: (G) | BR12: (H) | BT12: (I) | BW12: Year | BX12: (A) | BY12: (B) | BZ12: (C) | CA12: (D) | CC12: (E) | CD12: (F) | CE12: (G) | CG12: (H)
A13: 2) Non-Gas Fuel Retail Rate ($/Fuel Unit) = | C13: =+'Gas Input Table Summary'!$D$9 -> 0.12936 | E13: 16c) Total Utility Project Costs = | F13: =SUM(F11:F12) -> 13952
A14: Escalation Rate = | C14: =+'Gas Input Table Summary'!$D$10 -> 0.03 | J14: =$C$47-$C$45 -> 0 | L14: =$C$47 -> 2022 | M14: =ROUND(IF($C$47+$F$23>L14,F25*F30,0),0) -> 444 | N14: =ROUND($C$17*(1+$C$18)^J14,3) -> 4.357 | O14: =ROUND(M14*N14,0) -> 1935 | P14: =ROUND($C$25*(1+$C$26)^J14,3) -> 0 | Q14: =ROUND(M14*P14,0) -> 0 | R14: =O14+Q14 -> 1935 | S14: =ROUND(M14*$C$23,1) -> 4.4 | T14: =ROUND($C$20*(1+$C$21)^J14,0) -> 149 | U14: =ROUND(S14*T14,0) -> 656 | V14: =ROUND(+U14+R14,0) -> 2591 | W14: =ROUND($H$36*(1+$C$11)^J14,3) -> 1.836 | X14: =ROUND((1-$H$38)*(W14*M14),0) -> 644 | Y14: =ROUND($F$11,0) -> 2102 | Z14: =ROUND($F$12,0) -> 11850 | AA14: =SUM(X14:Z14) -> 14596 | AB14: =V14-AA14 -> -12005 | AE14: =$C$47 -> 2022 | AF14: =+R14 -> 1935 | AG14: =+U14 -> 656 | AH14: =+AG14+AF14 -> 2591 | AJ14: =ROUND(Y14,0) -> 2102 | AK14: =ROUND(Z14,0) -> 11850 | AL14: =SUM(AJ14:AK14) -> 13952 | AN14: =+AH14-AL14 -> -11361 | AQ14: =$C$47 -> 2022 | AR14: =AF14 -> 1935 | AS14: =+AG14 -> 656 | AT14: =ROUND(($C$28/(1-$C$31))*(1+$C$29)^J14,3) -> 0.03 | AU14: =ROUND(IF($C$47+$F$23>$AQ14,$F$30*$F$27,0)*AT14,0) -> 0 | AV14: =ROUND($C$33*(1+$C$34)^J14,3) -> 2.07 | AW14: =ROUND(AV14*M14,0) -> 919 | AZ14: =ROUND(AR14+AS14+AU14+AW14+AY14,0) -> 3510 | BB14: =ROUND($F$13,0) -> 13952 | BC14: =ROUND((F15*F30)-Z14,0) -> 1185 | BD14: =BB14+BC14 -> 15137 | BE14: =AZ14-BD14 -> -11627 | BH14: =$C$47 -> 2022 | BI14: =+F12 -> 11850 | BJ14: =+M14 -> 444 | BK14: =ROUND($C$10*(1+$C$11)^J14,3) -> 7.99 | BL14: =ROUND(BJ14*BK14,0) -> 3548 | BM14: =ROUND($C$13*(1+$C$14)^J14,3) -> 0.129 | BN14: =ROUND(IF($C$47+$F$23>$BH14,$F$30*$F$27,0)*BM14,0) -> 0 | BP14: =BI14+BL14+BN14+BO14 -> 15398 | BR14: =ROUND(F15*F30,0) -> 13035 | BT14: =BP14-BR14 -> 2363 | BW14: =$C$47 -> 2022 | BX14: =$R14 -> 1935 | BY14: =U14 -> 656 | BZ14: =AU14 -> 0 | CA14: =SUM(BX14:BZ14) -> 2591 | CC14: =BB14 -> 13952 | CD14: =BC14 -> 1185 | CE14: =SUM(CC14:CD14) -> 15137 | CG14: =CA14-CE14 -> -12546
A15: Non-Gas Fuel Units (ie. kWh,Gallons, etc) = | C15: =+'Gas Input Table Summary'!$D$11 -> Kwh | E15: 17) Direct Participant Costs ($/Part.) = | F15: =ROUND('Database Inputs'!K10,0) -> 165 | J15: =J14+1 -> 1 | L15: =L14+1 -> 2023 | M15: =ROUND(IF($C$47+$F$23>L15,$F$25*$F$30,0)+IF($C$48+$G$23>L15,$G$25*$G$30,0),0) -> 444 | N15: =ROUND($C$17*(1+$C$18)^J15,3) -> 4.488 | O15: =ROUND(M15*N15,0) -> 1993 | P15: 0 | Q15: =ROUND(M15*P15,0) -> 0 | R15: =O15+Q15 -> 1993 | S15: =ROUND(M15*$C$23,1) -> 4.4 | T15: =ROUND($C$20*(1+$C$21)^J15,0) -> 151 | U15: =ROUND(S15*T15,0) -> 664 | V15: =ROUND(+U15+R15,0) -> 2657 | W15: =ROUND($H$36*(1+$C$11)^J15,3) -> 1.891 | X15: =ROUND((1-$H$38)*(W15*M15),0) -> 663 | Y15: =ROUND($G$11,0) -> 0 | Z15: =ROUND($G$12,0) -> 0 | AA15: =SUM(X15:Z15) -> 663 | AB15: =V15-AA15 -> 1994 | AE15: =AE14+1 -> 2023 | AF15: =+R15 -> 1993 | AG15: =+U15 -> 664 | AH15: =+AG15+AF15 -> 2657 | AJ15: =ROUND(Y15,0) -> 0 | AK15: 0 | AL15: =SUM(AJ15:AK15) -> 0 | AN15: =+AH15-AL15 -> 2657 | AQ15: =AQ14+1 -> 2023 | AR15: 1993 | AS15: 664 | AT15: =ROUND(($C$28/(1-$C$31))*(1+$C$29)^J15,3) -> 0.03 | AU15: =ROUND((IF($C$47+$F$23>$AQ15,$F$27*$F$30,0)+IF($C$48+$G$23>AQ15,$G$27*$G$30,0))*AT15,0) -> 0 | AV15: =ROUND($C$33*(1+$C$34)^J15,3) -> 2.118 | AW15: =ROUND(AV15*M15,0) -> 940 | AZ15: =ROUND(AR15+AS15+AU15+AW15+AY15,0) -> 3597 | BB15: =ROUND($G$13,0) -> 0 | BC15: =ROUND(($G$15*$G$30)-$Z$15,0) -> 0 | BD15: =BB15+BC15 -> 0 | BE15: =AZ15-BD15 -> 3597 | BH15: =BH14+1 -> 2023 | BI15: =+G12 -> 0 | BJ15: 444 | BK15: =ROUND($C$10*(1+$C$11)^J15,3) -> 8.23 | BL15: =ROUND(BJ15*BK15,0) -> 3654 | BM15: =ROUND($C$13*(1+$C$14)^J15,3) -> 0.133 | BN15: =ROUND((IF($C$47+$F$23>BH15,$F$27*$F$30,0)+IF($C$48+$G$23>BH15,$G$27*$G$30,0))*BM15,0) -> 0 | BP15: =BI15+BL15+BN15+BO15 -> 3654 | BR15: =ROUND($G$15*$G$30,0) -> 0 | BT15: =BP15-BR15 -> 3654 | BW15: =BW14+1 -> 2023 | BX15: 1993 | BY15: =U15 -> 664 | BZ15: =AU15 -> 0 | CA15: =SUM(BX15:BZ15) -> 2657 | CC15: =BB15 -> 0 | CD15: 0 | CE15: =SUM(CC15:CD15) -> 0 | CG15: =CA15-CE15 -> 2657
J16: 2 | L16: 2024 | M16: =ROUND(IF($C$47+$F$23>L16,$F$25*$F$30,0)+IF($C$48+$G$23>L16,$G$25*$G$30,0)+IF($C$49+$H$23>L16,$H$25*$H$30,0),0) -> 444 | N16: =ROUND($C$17*(1+$C$18)^J16,3) -> 4.622 | O16: =ROUND(M16*N16,0) -> 2052 | P16: 0 | Q16: 0 | R16: =O16+Q16 -> 2052 | S16: =ROUND(M16*$C$23,1) -> 4.4 | T16: =ROUND($C$20*(1+$C$21)^J16,0) -> 152 | U16: =ROUND(S16*T16,0) -> 669 | V16: 2721 | W16: 1.948 | X16: =ROUND((1-$H$38)*(W16*M16),0) -> 683 | Y16: =ROUND($H$11,0) -> 0 | Z16: =ROUND($H$12,0) -> 0 | AA16: 683 | AB16: 2038 | AE16: 2024 | AF16: =+R16 -> 2052 | AG16: =+U16 -> 669 | AH16: =+AG16+AF16 -> 2721 | AJ16: 0 | AK16: 0 | AL16: =SUM(AJ16:AK16) -> 0 | AN16: 2721 | AQ16: 2024 | AR16: 2052 | AS16: 669 | AT16: 0.031 | AU16: =ROUND((IF($C$47+$F$23>$AQ16,$F$27*$F$30,0)+IF($C$48+$G$23>AQ16,$G$27*$G$30,0)+IF($C$49+$H$23>AQ16,$H$27*$H$30,0))*AT16,0) -> 0 | AV16: 2.166 | AW16: 962 | AZ16: 3683 | BB16: =ROUND($H$13,0) -> 0 | BC16: =ROUND(($H$15*$H$30)-$Z$16,0) -> 0 | BD16: 0 | BE16: =AZ16-BD16 -> 3683 | BH16: 2024 | BI16: =ROUND(H12,0) -> 0 | BJ16: 444 | BK16: 8.477 | BL16: =ROUND(BJ16*BK16,0) -> 3764 | BM16: 0.137 | BN16: =ROUND((IF($C$47+$F$23>BH16,$F$27*$F$30,0)+IF($C$49+$H$23>BH16,$H$27*$H$30,0)+IF($C$48+$G$23>BH16,$G$27*$G$30,0))*BM16,0) -> 0 | BP16: =BI16+BL16+BN16+BO16 -> 3764 | BR16: =ROUND($H$15*$H$30,0) -> 0 | BT16: 3764 | BW16: 2024 | BX16: 2052 | BY16: 669 | BZ16: 0 | CA16: 2721 | CC16: 0 | CD16: 0 | CE16: 0 | CG16: =CA16-CE16 -> 2721
A17: 3) Commodity Cost ($/Dk) = | C17: =+'Gas Input Table Summary'!$D$12 -> 4.357 | E17: 18) Participant Non-Energy Costs (Annual $/Part.) = | F17: =+'Gas Input Table Summary'!$D$35 -> 0 | J17: 3 | L17: 2025 | M17: =ROUND(IF($C$47+$F$23>L17,$F$25*$F$30,0)+IF($C$48+$G$23>L17,$G$25*$G$30,0)+IF($C$49+$H$23>L17,$H$25*$H$30,0),0) -> 444 | N17: 4.761 | O17: 2114 | P17: 0 | Q17: 0 | R17: =O17+Q17 -> 2114 | S17: 4.4 | T17: 154 | U17: 678 | V17: 2792 | W17: =ROUND($H$36*(1+$C$11)^J17,3) -> 2.006 | X17: =ROUND((1-$H$38)*(W17*M17),0) -> 704 | Y17: 0 | Z17: 0 | AA17: 704 | AB17: 2088 | AE17: 2025 | AF17: 2114 | AG17: 678 | AH17: 2792 | AJ17: 0 | AK17: 0 | AL17: 0 | AN17: 2792 | AQ17: 2025 | AR17: 2114 | AS17: 678 | AT17: 0.032 | AU17: =ROUND((IF($C$47+$F$23>$AQ17,$F$27*$F$30,0)+IF($C$48+$G$23>AQ17,$G$27*$G$30,0)+IF($C$49+$H$23>AQ17,$H$27*$H$30,0))*AT17,0) -> 0 | AV17: 2.216 | AW17: 984 | AZ17: 3776 | BB17: 0 | BC17: 0 | BD17: 0 | BE17: 3776 | BH17: 2025 | BI17: 0 | BJ17: 444 | BK17: 8.731 | BL17: 3877 | BM17: 0.141 | BN17: =ROUND((IF($C$47+$F$23>BH17,$F$27*$F$30,0)+IF($C$49+$H$23>BH17,$H$27*$H$30,0)+IF($C$48+$G$23>BH17,$G$27*$G$30,0))*BM17,0) -> 0 | BP17: 3877 | BR17: =+BC17 -> 0 | BT17: 3877 | BW17: 2025 | BX17: 2114 | BY17: 678 | BZ17: 0 | CA17: 2792 | CC17: 0 | CD17: 0 | CE17: 0 | CG17: 2792
A18: Escalation Rate = | C18: =+'Gas Input Table Summary'!$D$13 -> 0.03 | E18: Escalation Rate = | F18: =+'Gas Input Table Summary'!$D$38 -> 0 | J18: 4 | L18: 2026 | M18: =ROUND(IF($C$47+$F$23>L18,$F$25*$F$30,0)+IF($C$48+$G$23>L18,$G$25*$G$30,0)+IF($C$49+$H$23>L18,$H$25*$H$30,0),0) -> 444 | N18: 4.904 | O18: 2177 | P18: 0 | Q18: 0 | R18: 2177 | S18: 4.4 | T18: 155 | U18: 682 | V18: =ROUND(+U18+R18,0) -> 2859 | W18: 2.066 | X18: 725 | Y18: 0 | Z18: 0 | AA18: 725 | AB18: 2134 | AE18: 2026 | AF18: 2177 | AG18: 682 | AH18: 2859 | AJ18: 0 | AK18: 0 | AL18: 0 | AN18: 2859 | AQ18: 2026 | AR18: 2177 | AS18: 682 | AT18: 0.033 | AU18: 0 | AV18: 2.267 | AW18: 1007 | AZ18: 3866 | BB18: 0 | BC18: 0 | BD18: 0 | BE18: 3866 | BH18: 2026 | BI18: 0 | BJ18: 444 | BK18: 8.993 | BL18: 3993 | BM18: 0.146 | BN18: 0 | BP18: 3993 | BR18: 0 | BT18: 3993 | BW18: 2026 | BX18: 2177 | BY18: 682 | BZ18: 0 | CA18: 2859 | CC18: 0 | CD18: 0 | CE18: 0 | CG18: 2859 | DB18: t
J19: 5 | L19: 2027 | M19: 444 | N19: 5.051 | O19: 2243 | P19: 0 | Q19: 0 | R19: 2243 | S19: 4.4 | T19: 157 | U19: 691 | V19: 2934 | W19: 2.128 | X19: 746 | Y19: 0 | Z19: 0 | AA19: 746 | AB19: 2188 | AE19: 2027 | AF19: 2243 | AG19: 691 | AH19: 2934 | AJ19: 0 | AK19: 0 | AL19: 0 | AN19: 2934 | AQ19: 2027 | AR19: 2243 | AS19: 691 | AT19: 0.034 | AU19: 0 | AV19: 2.319 | AW19: 1030 | AZ19: 3964 | BB19: 0 | BC19: 0 | BD19: 0 | BE19: 3964 | BH19: 2027 | BI19: 0 | BJ19: 444 | BK19: 9.263 | BL19: 4113 | BM19: 0.15 | BN19: 0 | BP19: 4113 | BR19: 0 | BT19: 4113 | BW19: 2027 | BX19: 2243 | BY19: 691 | BZ19: 0 | CA19: 2934 | CC19: 0 | CD19: 0 | CE19: 0 | CG19: 2934
A20: 4) Demand Cost ($/Unit/Yr) = | C20: =+'Gas Input Table Summary'!$D$14 -> 149.39 | E20: 19) Participant Non-Energy Savings (Annual $/Part) = | F20: =+'Gas Input Table Summary'!$D$41 -> 0 | J20: 6 | L20: 2028 | M20: 444 | N20: 5.202 | O20: 2310 | P20: 0 | Q20: 0 | R20: 2310 | S20: 4.4 | T20: 159 | U20: 700 | V20: 3010 | W20: =ROUND($H$36*(1+$C$11)^J20,3) -> 2.192 | X20: 769 | Y20: 0 | Z20: 0 | AA20: 769 | AB20: 2241 | AE20: 2028 | AF20: 2310 | AG20: 700 | AH20: 3010 | AJ20: 0 | AK20: 0 | AL20: 0 | AN20: 3010 | AQ20: 2028 | AR20: 2310 | AS20: 700 | AT20: 0.035 | AU20: =ROUND((IF($C$47+$F$23>$AQ20,$F$27*$F$30,0)+IF($C$48+$G$23>AQ20,$G$27*$G$30,0)+IF($C$49+$H$23>AQ20,$H$27*$H$30,0))*AT20,0) -> 0 | AV20: 2.373 | AW20: 1054 | AZ20: 4064 | BB20: 0 | BC20: 0 | BD20: 0 | BE20: 4064 | BH20: 2028 | BI20: 0 | BJ20: 444 | BK20: 9.54 | BL20: 4236 | BM20: 0.154 | BN20: =ROUND((IF($C$47+$F$23>BH20,$F$27*$F$30,0)+IF($C$49+$H$23>BH20,$H$27*$H$30,0)+IF($C$48+$G$23>BH20,$G$27*$G$30,0))*BM20,0) -> 0 | BP20: 4236 | BR20: 0 | BT20: 4236 | BW20: 2028 | BX20: 2310 | BY20: 700 | BZ20: 0 | CA20: 3010 | CC20: 0 | CD20: 0 | CE20: 0 | CG20: 3010
A21: Escalation Rate = | C21: =+'Gas Input Table Summary'!$D$15 -> 0.01 | E21: Escalation Rate = | F21: =+'Gas Input Table Summary'!$D$44 -> 0 | J21: 7 | L21: 2029 | M21: 444 | N21: 5.359 | O21: 2379 | P21: 0 | Q21: 0 | R21: 2379 | S21: 4.4 | T21: 160 | U21: 704 | V21: 3083 | W21: 2.258 | X21: 792 | Y21: 0 | Z21: 0 | AA21: 792 | AB21: 2291 | AE21: 2029 | AF21: 2379 | AG21: 704 | AH21: 3083 | AJ21: 0 | AK21: 0 | AL21: 0 | AN21: 3083 | AQ21: 2029 | AR21: 2379 | AS21: 704 | AT21: 0.036 | AU21: 0 | AV21: 2.427 | AW21: 1078 | AZ21: 4161 | BB21: 0 | BC21: 0 | BD21: 0 | BE21: 4161 | BH21: 2029 | BI21: 0 | BJ21: 444 | BK21: 9.827 | BL21: 4363 | BM21: 0.159 | BN21: 0 | BP21: 4363 | BR21: 0 | BT21: 4363 | BW21: 2029 | BX21: 2379 | BY21: 704 | BZ21: 0 | CA21: 3083 | CC21: 0 | CD21: 0 | CE21: 0 | CG21: 3083 | DB21: =$J14 -> 0
J22: 8 | L22: 2030 | M22: 444 | N22: 5.519 | O22: 2450 | P22: 0 | Q22: 0 | R22: 2450 | S22: 4.4 | T22: 162 | U22: 713 | V22: 3163 | W22: 2.326 | X22: 816 | Y22: 0 | Z22: 0 | AA22: 816 | AB22: 2347 | AE22: 2030 | AF22: 2450 | AG22: 713 | AH22: 3163 | AJ22: 0 | AK22: 0 | AL22: 0 | AN22: 3163 | AQ22: 2030 | AR22: 2450 | AS22: 713 | AT22: 0.037 | AU22: 0 | AV22: 2.483 | AW22: 1102 | AZ22: 4265 | BB22: 0 | BC22: 0 | BD22: 0 | BE22: 4265 | BH22: 2030 | BI22: 0 | BJ22: 444 | BK22: 10.121 | BL22: 4494 | BM22: 0.164 | BN22: 0 | BP22: 4494 | BR22: 0 | BT22: 4494 | BW22: 2030 | BX22: 2450 | BY22: 713 | BZ22: 0 | CA22: 3163 | CC22: 0 | CD22: 0 | CE22: 0 | CG22: 3163 | DB22: =$J15 -> 1
A23: 5) Peak Reduction Factor = | C23: =+'Gas Input Table Summary'!$D$16 -> 0.01 | E23: 20) Project Life (Years) = | F23: =ROUND('Database Inputs'!D10,0) -> 20 | J23: 9 | L23: 2031 | M23: 444 | N23: 5.685 | O23: 2524 | P23: 0 | Q23: 0 | R23: 2524 | S23: 4.4 | T23: 163 | U23: 717 | V23: 3241 | W23: 2.396 | X23: 840 | Y23: 0 | Z23: 0 | AA23: 840 | AB23: 2401 | AE23: 2031 | AF23: 2524 | AG23: 717 | AH23: 3241 | AJ23: 0 | AK23: 0 | AL23: 0 | AN23: 3241 | AQ23: 2031 | AR23: 2524 | AS23: 717 | AT23: 0.039 | AU23: 0 | AV23: 2.54 | AW23: 1128 | AZ23: 4369 | BB23: 0 | BC23: 0 | BD23: 0 | BE23: 4369 | BH23: 2031 | BI23: 0 | BJ23: 444 | BK23: 10.425 | BL23: 4629 | BM23: 0.169 | BN23: 0 | BP23: 4629 | BR23: 0 | BT23: 4629 | BW23: 2031 | BX23: 2524 | BY23: 717 | BZ23: 0 | CA23: 3241 | CC23: 0 | CD23: 0 | CE23: 0 | CG23: 3241 | DB23: =$J16 -> 2
J24: 10 | L24: 2032 | M24: 444 | N24: 5.855 | O24: 2600 | P24: 0 | Q24: 0 | R24: 2600 | S24: 4.4 | T24: 165 | U24: 726 | V24: 3326 | W24: 2.467 | X24: 865 | Y24: 0 | Z24: 0 | AA24: 865 | AB24: 2461 | AE24: 2032 | AF24: 2600 | AG24: 726 | AH24: 3326 | AJ24: 0 | AK24: 0 | AL24: 0 | AN24: 3326 | AQ24: 2032 | AR24: 2600 | AS24: 726 | AT24: 0.04 | AU24: 0 | AV24: 2.599 | AW24: 1154 | AZ24: 4480 | BB24: 0 | BC24: 0 | BD24: 0 | BE24: 4480 | BH24: 2032 | BI24: 0 | BJ24: 444 | BK24: 10.738 | BL24: 4768 | BM24: 0.174 | BN24: 0 | BP24: 4768 | BR24: 0 | BT24: 4768 | BW24: 2032 | BX24: 2600 | BY24: 726 | BZ24: 0 | CA24: =SUM(BX24:BZ24) -> 3326 | CC24: 0 | CD24: 0 | CE24: 0 | CG24: 3326 | DB24: =$J17 -> 3
A25: 6) Variable O&M ($/Dk) = | C25: =+'Gas Input Table Summary'!$D$17 -> 0 | E25: 21) Avg. Dk/Part. Saved = | F25: =+ROUND(F32/F30,3) -> 5.62 | J25: 11 | L25: 2033 | M25: 444 | N25: 6.031 | O25: 2678 | P25: 0 | Q25: 0 | R25: 2678 | S25: 4.4 | T25: 167 | U25: 735 | V25: 3413 | W25: 2.541 | X25: 891 | Y25: 0 | Z25: 0 | AA25: 891 | AB25: 2522 | AE25: 2033 | AF25: 2678 | AG25: 735 | AH25: 3413 | AJ25: 0 | AK25: 0 | AL25: 0 | AN25: 3413 | AQ25: 2033 | AR25: 2678 | AS25: 735 | AT25: 0.041 | AU25: 0 | AV25: 2.658 | AW25: =ROUND(AV25*M25,0) -> 1180 | AZ25: 4593 | BB25: 0 | BC25: 0 | BD25: 0 | BE25: 4593 | BH25: 2033 | BI25: 0 | BJ25: 444 | BK25: 11.06 | BL25: 4911 | BM25: 0.179 | BN25: 0 | BP25: 4911 | BR25: 0 | BT25: 4911 | BW25: 2033 | BX25: 2678 | BY25: 735 | BZ25: 0 | CA25: 3413 | CC25: 0 | CD25: 0 | CE25: 0 | CG25: 3413
A26: Escalation Rate = | C26: =+'Gas Input Table Summary'!$D$18 -> 0 | J26: 12 | L26: 2034 | M26: 444 | N26: =ROUND($C$17*(1+$C$18)^J26,3) -> 6.212 | O26: 2758 | P26: 0 | Q26: 0 | R26: 2758 | S26: 4.4 | T26: 168 | U26: 739 | V26: 3497 | W26: 2.618 | X26: 918 | Y26: 0 | Z26: 0 | AA26: 918 | AB26: 2579 | AE26: 2034 | AF26: 2758 | AG26: 739 | AH26: 3497 | AJ26: 0 | AK26: 0 | AL26: 0 | AN26: 3497 | AQ26: 2034 | AR26: 2758 | AS26: 739 | AT26: 0.042 | AU26: 0 | AV26: 2.719 | AW26: =ROUND(AV26*M26,0) -> 1207 | AZ26: 4704 | BB26: 0 | BC26: 0 | BD26: 0 | BE26: 4704 | BH26: 2034 | BI26: 0 | BJ26: 444 | BK26: 11.392 | BL26: 5058 | BM26: 0.184 | BN26: 0 | BP26: 5058 | BR26: 0 | BT26: 5058 | BW26: 2034 | BX26: 2758 | BY26: 739 | BZ26: 0 | CA26: 3497 | CC26: 0 | CD26: 0 | CE26: 0 | CG26: 3497
E27: 22) Avg Non-Gas Fuel Units/Part. Saved = | F27: =+'Database Inputs'!H10 -> 0 | J27: 13 | L27: 2035 | M27: 444 | N27: 6.398 | O27: 2841 | P27: 0 | Q27: 0 | R27: 2841 | S27: 4.4 | T27: 170 | U27: =ROUND(S27*T27,0) -> 748 | V27: 3589 | W27: =ROUND($H$36*(1+$C$11)^J27,3) -> 2.696 | X27: 946 | Y27: 0 | Z27: 0 | AA27: 946 | AB27: 2643 | AE27: 2035 | AF27: 2841 | AG27: 748 | AH27: 3589 | AJ27: 0 | AK27: 0 | AL27: 0 | AN27: 3589 | AQ27: 2035 | AR27: 2841 | AS27: 748 | AT27: 0.043 | AU27: 0 | AV27: 2.782 | AW27: 1235 | AZ27: 4824 | BB27: 0 | BC27: 0 | BD27: 0 | BE27: 4824 | BH27: 2035 | BI27: 0 | BJ27: 444 | BK27: 11.734 | BL27: 5210 | BM27: 0.19 | BN27: 0 | BP27: 5210 | BR27: 0 | BT27: 5210 | BW27: 2035 | BX27: 2841 | BY27: 748 | BZ27: 0 | CA27: 3589 | CC27: 0 | CD27: 0 | CE27: 0 | CG27: 3589
A28: 7) Non-Gas Fuel Cost ($/Fuel Unit) = | C28: =+'Gas Input Table Summary'!$D$19 -> 0.02736 | E28: 22a) Avg Additional Non-Gas Fuel Units/ Part. Used = | F28: 0 | J28: 14 | L28: 2036 | M28: 444 | N28: 6.59 | O28: 2926 | P28: 0 | Q28: 0 | R28: 2926 | S28: 4.4 | T28: 172 | U28: 757 | V28: 3683 | W28: 2.777 | X28: 974 | Y28: 0 | Z28: 0 | AA28: 974 | AB28: 2709 | AE28: 2036 | AF28: 2926 | AG28: 757 | AH28: 3683 | AJ28: 0 | AK28: 0 | AL28: 0 | AN28: 3683 | AQ28: 2036 | AR28: 2926 | AS28: 757 | AT28: 0.045 | AU28: 0 | AV28: 2.846 | AW28: 1264 | AZ28: 4947 | BB28: 0 | BC28: 0 | BD28: 0 | BE28: 4947 | BH28: 2036 | BI28: 0 | BJ28: 444 | BK28: 12.086 | BL28: 5366 | BM28: 0.196 | BN28: 0 | BP28: 5366 | BR28: 0 | BT28: 5366 | BW28: 2036 | BX28: 2926 | BY28: 757 | BZ28: 0 | CA28: 3683 | CC28: 0 | CD28: 0 | CE28: 0 | CG28: 3683
A29: Escalation Rate = | C29: =+'Gas Input Table Summary'!$D$20 -> 0.03 | J29: 15 | L29: 2037 | M29: 444 | N29: 6.788 | O29: 3014 | P29: 0 | Q29: 0 | R29: 3014 | S29: 4.4 | T29: 173 | U29: 761 | V29: 3775 | W29: 2.86 | X29: =ROUND((1-$H$38)*(W29*M29),0) -> 1003 | Y29: 0 | Z29: 0 | AA29: 1003 | AB29: 2772 | AE29: 2037 | AF29: 3014 | AG29: 761 | AH29: 3775 | AJ29: 0 | AK29: 0 | AL29: 0 | AN29: 3775 | AQ29: 2037 | AR29: 3014 | AS29: 761 | AT29: 0.046 | AU29: 0 | AV29: 2.911 | AW29: 1292 | AZ29: 5067 | BB29: 0 | BC29: 0 | BD29: 0 | BE29: 5067 | BH29: 2037 | BI29: 0 | BJ29: 444 | BK29: 12.448 | BL29: 5527 | BM29: 0.202 | BN29: 0 | BP29: 5527 | BR29: 0 | BT29: 5527 | BW29: 2037 | BX29: 3014 | BY29: 761 | BZ29: 0 | CA29: 3775 | CC29: 0 | CD29: 0 | CE29: 0 | CG29: 3775
E30: 23) Number of Participants = | F30: =ROUND('Database Inputs'!C10,0) -> 79 | J30: 16 | L30: 2038 | M30: 444 | N30: 6.992 | O30: 3104 | P30: 0 | Q30: 0 | R30: 3104 | S30: 4.4 | T30: 175 | U30: 770 | V30: =ROUND(+U30+R30,0) -> 3874 | W30: 2.946 | X30: =ROUND((1-$H$38)*(W30*M30),0) -> 1033 | Y30: 0 | Z30: 0 | AA30: 1033 | AB30: 2841 | AE30: 2038 | AF30: 3104 | AG30: 770 | AH30: 3874 | AJ30: 0 | AK30: 0 | AL30: 0 | AN30: 3874 | AQ30: 2038 | AR30: 3104 | AS30: 770 | AT30: 0.047 | AU30: 0 | AV30: 2.978 | AW30: 1322 | AZ30: 5196 | BB30: 0 | BC30: 0 | BD30: 0 | BE30: 5196 | BH30: 2038 | BI30: 0 | BJ30: 444 | BK30: 12.822 | BL30: 5693 | BM30: 0.208 | BN30: 0 | BP30: 5693 | BR30: 0 | BT30: 5693 | BW30: 2038 | BX30: 3104 | BY30: 770 | BZ30: 0 | CA30: 3874 | CC30: 0 | CD30: 0 | CE30: 0 | CG30: 3874 | DB30: =$J18 -> 4
A31: 8) Non-Gas Fuel Loss Factor | C31: =+'Gas Input Table Summary'!$D$21 -> 0.073 | J31: 17 | L31: 2039 | M31: =ROUND(IF($C$47+$F$23>L31,$F$25*$F$30,0)+IF($C$48+$G$23>L31,$G$25*$G$30,0)+IF($C$49+$H$23>L31,$H$25*$H$30,0),0) -> 444 | N31: 7.201 | O31: 3197 | P31: 0 | Q31: 0 | R31: 3197 | S31: 4.4 | T31: 177 | U31: 779 | V31: =ROUND(+U31+R31,0) -> 3976 | W31: 3.035 | X31: 1065 | Y31: 0 | Z31: 0 | AA31: 1065 | AB31: 2911 | AE31: 2039 | AF31: 3197 | AG31: 779 | AH31: 3976 | AJ31: 0 | AK31: 0 | AL31: 0 | AN31: 3976 | AQ31: 2039 | AR31: 3197 | AS31: 779 | AT31: 0.049 | AU31: 0 | AV31: 3.047 | AW31: 1353 | AZ31: 5329 | BB31: 0 | BC31: 0 | BD31: 0 | BE31: 5329 | BH31: 2039 | BI31: 0 | BJ31: 444 | BK31: 13.206 | BL31: 5863 | BM31: 0.214 | BN31: 0 | BP31: 5863 | BR31: 0 | BT31: 5863 | BW31: 2039 | BX31: 3197 | BY31: 779 | BZ31: 0 | CA31: 3976 | CC31: 0 | CD31: 0 | CE31: 0 | CG31: 3976 | DB31: =$J19 -> 5
E32: 24) Total Annual Dk Saved = | F32: =+'Total Program Inputs'!G11 -> 444 | J32: 18 | L32: 2040 | M32: 444 | N32: 7.418 | O32: 3294 | P32: 0 | Q32: 0 | R32: 3294 | S32: 4.4 | T32: 179 | U32: 788 | V32: 4082 | W32: 3.126 | X32: 1096 | Y32: 0 | Z32: 0 | AA32: 1096 | AB32: 2986 | AE32: 2040 | AF32: 3294 | AG32: 788 | AH32: 4082 | AJ32: 0 | AK32: 0 | AL32: 0 | AN32: 4082 | AQ32: 2040 | AR32: 3294 | AS32: 788 | AT32: 0.05 | AU32: 0 | AV32: 3.117 | AW32: 1384 | AZ32: 5466 | BB32: 0 | BC32: 0 | BD32: 0 | BE32: 5466 | BH32: 2040 | BI32: 0 | BJ32: 444 | BK32: 13.602 | BL32: 6039 | BM32: 0.22 | BN32: 0 | BP32: 6039 | BR32: 0 | BT32: 6039 | BW32: 2040 | BX32: 3294 | BY32: 788 | BZ32: 0 | CA32: 4082 | CC32: 0 | CD32: 0 | CE32: 0 | CG32: 4082 | DB32: =$J20 -> 6
A33: 9) Gas Environmental Damage Factor = | C33: =+'Gas Input Table Summary'!$D$22 -> 2.07 | J33: 19 | L33: 2041 | M33: 444 | N33: 7.64 | O33: 3392 | P33: 0 | Q33: 0 | R33: 3392 | S33: 4.4 | T33: 180 | U33: 792 | V33: 4184 | W33: 3.219 | X33: 1129 | Y33: 0 | Z33: 0 | AA33: 1129 | AB33: 3055 | AE33: 2041 | AF33: 3392 | AG33: 792 | AH33: 4184 | AJ33: 0 | AK33: 0 | AL33: 0 | AN33: 4184 | AQ33: 2041 | AR33: 3392 | AS33: 792 | AT33: 0.052 | AU33: 0 | AV33: 3.189 | AW33: 1416 | AZ33: 5600 | BB33: 0 | BC33: 0 | BD33: 0 | BE33: 5600 | BH33: 2041 | BI33: 0 | BJ33: 444 | BK33: 14.011 | BL33: 6221 | BM33: 0.227 | BN33: 0 | BP33: 6221 | BR33: 0 | BT33: 6221 | BW33: 2041 | BX33: 3392 | BY33: 792 | BZ33: 0 | CA33: 4184 | CC33: 0 | CD33: 0 | CE33: 0 | CG33: 4184
A34: Escalation Rate = | C34: =+'Gas Input Table Summary'!$D$23 -> 0.023 | E34: 25) Incentive/Participant = | F34: =ROUND('Database Inputs'!L10,0) -> 150 | J34: 20 | L34: 2042 | M34: =ROUND(IF($C$47+$F$23>L34,$F$25*$F$30,0)+IF($C$48+$G$23>L34,$G$25*$G$30,0)+IF($C$49+$H$23>L34,$H$25*$H$30,0),0) -> 0 | N34: 7.869 | O34: 0 | P34: 0 | Q34: 0 | R34: 0 | S34: 0 | T34: 182 | U34: 0 | V34: 0 | W34: 3.316 | X34: 0 | Y34: 0 | Z34: 0 | AA34: 0 | AB34: 0 | AE34: 2042 | AF34: =+R34 -> 0 | AG34: 0 | AH34: 0 | AJ34: 0 | AK34: 0 | AL34: 0 | AN34: 0 | AQ34: 2042 | AR34: 0 | AS34: 0 | AT34: 0.053 | AU34: 0 | AV34: 3.262 | AW34: 0 | AZ34: 0 | BB34: 0 | BC34: 0 | BD34: 0 | BE34: 0 | BH34: 2042 | BI34: 0 | BJ34: 0 | BK34: 14.431 | BL34: 0 | BM34: 0.234 | BN34: 0 | BP34: 0 | BR34: 0 | BT34: 0 | BW34: 2042 | BX34: 0 | BY34: 0 | BZ34: 0 | CA34: 0 | CC34: 0 | CD34: 0 | CE34: 0 | CG34: 0
J35: 21 | L35: 2043 | M35: =ROUND(IF($C$47+$F$23>L35,$F$25*$F$30,0)+IF($C$48+$G$23>L35,$G$25*$G$30,0)+IF($C$49+$H$23>L35,$H$25*$H$30,0),0) -> 0 | N35: =ROUND($C$17*(1+$C$18)^J35,3) -> 8.105 | O35: =ROUND(M35*N35,0) -> 0 | P35: =ROUND($C$25*(1+$C$26)^J35,3) -> 0 | Q35: =ROUND(M35*P35,0) -> 0 | R35: =O35+Q35 -> 0 | S35: =ROUND(M35*$C$23,1) -> 0 | T35: =ROUND($C$20*(1+$C$21)^J35,0) -> 184 | U35: =ROUND(S35*T35,0) -> 0 | V35: =ROUND(+U35+R35,0) -> 0 | W35: =ROUND($H$36*(1+$C$11)^J35,3) -> 3.416 | X35: =ROUND((1-$H$38)*(W35*M35),0) -> 0 | Y35: 0 | Z35: 0 | AA35: =SUM(X35:Z35) -> 0 | AB35: =V35-AA35 -> 0 | AE35: 2043 | AF35: =+R35 -> 0 | AG35: =+U35 -> 0 | AH35: =+AG35+AF35 -> 0 | AJ35: =ROUND(Y35,0) -> 0 | AK35: =ROUND(Z35,0) -> 0 | AL35: =SUM(AJ35:AK35) -> 0 | AN35: =+AH35-AL35 -> 0 | AQ35: 2043 | AR35: =AF35 -> 0 | AS35: =+AG35 -> 0 | AT35: =ROUND(($C$28/(1-$C$31))*(1+$C$29)^J35,3) -> 0.055 | AU35: =ROUND((IF($C$47+$F$23>$AQ35,$F$27*$F$30,0)+IF($C$48+$G$23>AQ35,$G$27*$G$30,0)+IF($C$49+$H$23>AQ35,$H$27*$H$30,0))*AT35,0) -> 0 | AV35: =ROUND($C$33*(1+$C$34)^J35,3) -> 3.337 | AW35: =ROUND(AV35*M35,0) -> 0 | AZ35: =ROUND(AR35+AS35+AU35+AW35+AY35,0) -> 0 | BB35: 0 | BC35: 0 | BD35: =BB35+BC35 -> 0 | BE35: =AZ35-BD35 -> 0 | BH35: 2043 | BI35: 0 | BJ35: =+M35 -> 0 | BK35: =ROUND($C$10*(1+$C$11)^J35,3) -> 14.864 | BL35: =ROUND(BJ35*BK35,0) -> 0 | BM35: =ROUND($C$13*(1+$C$14)^J35,3) -> 0.241 | BN35: =ROUND((IF($C$47+$F$23>BH35,$F$27*$F$30,0)+IF($C$49+$H$23>BH35,$H$27*$H$30,0)+IF($C$48+$G$23>BH35,$G$27*$G$30,0))*BM35,0) -> 0 | BP35: =BI35+BL35+BN35+BO35 -> 0 | BR35: =+BC35 -> 0 | BT35: =BP35-BR35 -> 0 | BW35: 2043 | BX35: 0 | BY35: =U35 -> 0 | BZ35: =AU35 -> 0 | CA35: =SUM(BX35:BZ35) -> 0 | CC35: =BB35 -> 0 | CD35: =BC35 -> 0 | CE35: =SUM(CC35:CD35) -> 0 | CG35: =CA35-CE35 -> 0 | DB35: =$J21 -> 7
A36: 10) Non Gas Fuel Environmental Damage Factor = | C36: =+'Gas Input Table Summary'!$D$24 -> 0 | E36: 26) Distribution Delivery Charge | H36: =+'Gas Input Table Summary'!$D$58 -> 1.836 | J36: 22 | L36: 2044 | M36: =ROUND(IF($C$47+$F$23>L36,$F$25*$F$30,0)+IF($C$48+$G$23>L36,$G$25*$G$30,0)+IF($C$49+$H$23>L36,$H$25*$H$30,0),0) -> 0 | N36: 8.348 | O36: 0 | P36: 0 | Q36: 0 | R36: 0 | S36: 0 | T36: 186 | U36: 0 | V36: =ROUND(+U36+R36,0) -> 0 | W36: 3.518 | X36: 0 | Y36: 0 | Z36: 0 | AA36: 0 | AB36: 0 | AE36: 2044 | AF36: 0 | AG36: 0 | AH36: 0 | AJ36: 0 | AK36: 0 | AL36: 0 | AN36: 0 | AQ36: 2044 | AR36: =AF36 -> 0 | AS36: 0 | AT36: 0.057 | AU36: 0 | AV36: 3.414 | AW36: 0 | AZ36: 0 | BB36: 0 | BC36: 0 | BD36: 0 | BE36: 0 | BH36: 2044 | BI36: 0 | BJ36: 0 | BK36: 15.31 | BL36: 0 | BM36: 0.248 | BN36: 0 | BP36: 0 | BR36: 0 | BT36: =BP36-BR36 -> 0 | BW36: 2044 | BX36: 0 | BY36: 0 | BZ36: 0 | CA36: 0 | CC36: 0 | CD36: 0 | CE36: 0 | CG36: 0
A37: Escalation Rate = | C37: =+'Gas Input Table Summary'!$D$25 -> 0 | DB37: =$J22 -> 8
E38: 27) Effective Income Tax Rate = | H38: =+'Gas Input Table Summary'!$D$59 -> 0.21 | K38: Total = | M38: =SUM(M14:M36) -> 8880 | V38: =SUM(V14:V36) -> 66450 | AA38: =SUM(AA14:AA36) -> 31254 | AB38: =SUM(AB14:AB36) -> 35196 | AD38: Total = | AH38: =SUM(AH14:AH36) -> 66450 | AL38: =SUM(AL14:AL36) -> 13952 | AN38: =SUM(AN14:AN36) -> 52498 | AP38: Total = | AZ38: =SUM(AZ14:AZ36) -> 89461 | BD38: =SUM(BD14:BD36) -> 15137 | BE38: =SUM(BE14:BE36) -> 74324 | BG38: Total = | BJ38: =SUM(BJ14:BJ36) -> 8880 | BP38: =SUM(BP14:BP36) -> 107177 | BR38: =SUM(BR14:BR36) -> 13035 | BT38: =SUM(BT14:BT36) -> 94142 | BZ38: Total = | CA38: =SUM(CA14:CA36) -> 66450 | CE38: =SUM(CE14:CE36) -> 15137 | CG38: =SUM(CG14:CG36) -> 51313
A39: 11) Participant Discount Rate = | C39: =+'Gas Input Table Summary'!$D$26 -> 0.1032 | E39: (Federal & State Taxes) | T39: NPV = | V39: =ROUND(V14+NPV($C$41,V15:V36),0) -> 35044 | AA39: =ROUND(AA14+NPV($C$41,AA15:AA36),0) -> 22986 | AB39: =ROUND(AB14+NPV($C$41,AB15:AB36),0) -> 12057 | AG39: NPV = | AH39: =ROUND(AH14+NPV($C$41,AH15:AH36),0) -> 35044 | AL39: =ROUND(AL14+NPV($C$41,AL15:AL36),0) -> 13952 | AN39: =+AH39-AL39 -> 21092 | AW39: NPV = | AZ39: =ROUND(AZ14+NPV($C$43,AZ15:AZ36),0) -> 71766 | BD39: =ROUND(BD14+NPV($C$43,BD15:BD36),0) -> 15137 | BE39: =AZ39-BD39 -> 56629 | BN39: NPV = | BP39: =ROUND(BP14+NPV($C$39,BP15:BP36),0) -> 51774 | BR39: =ROUND(BR14+NPV($C$39,BR15:BR36),0) -> 13035 | BT39: =ROUND(BT14+NPV($C$39,BT15:BT36),0) -> 38739 | BZ39: NPV = | CA39: =ROUND(CA14+NPV($C$41,CA15:CA36),0) -> 35044 | CE39: =ROUND(CE14+NPV($C$41,CE15:CE36),0) -> 15137 | CG39: =ROUND(CG14+NPV($C$41,CG15:CG36),0) -> 19907
DB40: =$J23 -> 9
A41: 12) Utility Discount Rate = | C41: =+'Gas Input Table Summary'!$D$27 -> 0.07216 | E41: Test Results | F41: NPV | G41: B/C | K41: Total NPV = | N41: =AB39 -> 12057 | AD41: Total NPV = | AG41: =AN39 -> 21092 | AP41: Total NPV = | AS41: =BE39 -> 56629 | BG41: Total NPV = | BJ41: =BT39 -> 38739 | BV41: Total NPV = | BY41: =CG39 -> 19907 | DB41: =$J24 -> 10
E42: Ratepayer Impact Measure Test | F42: =N41 -> 12057 | G42: =N42 -> 1.52 | K42: Benefit/Cost Ratio = | N42: =ROUND(V39/AA39,2) -> 1.52 | AD42: Benefit/Cost Ratio = | AG42: =ROUND(AH39/AL39,2) -> 2.51 | AP42: Benefit/Cost Ratio = | AS42: =ROUND(AZ39/BD39,2) -> 4.74 | BG42: Benefit/Cost Ratio = | BJ42: =ROUND(BP39/BR39,2) -> 3.97 | BV42: Benefit/Cost Ratio = | BY42: =ROUND(CA39/CE39,2) -> 2.32 | DB42: =$J25 -> 11
A43: 13) Societal Discount Rate = | C43: =+'Gas Input Table Summary'!$D$28 -> 0.0224 | E43: Utility Cost Test | F43: =AG41 -> 21092 | G43: =AG42 -> 2.51 | DB43: =$J26 -> 12
E44: Societal Test | F44: =AS41 -> 56629 | G44: =AS42 -> 4.74 | J44: Worksheet Calculations | BV44: Worksheet Calculations
A45: 14) General Input Data Year = | C45: =+'Gas Input Table Summary'!$D$29 -> 2022 | E45: Participant Test | F45: =BJ41 -> 38739 | G45: =BJ42 -> 3.97 | J45: (A) | K45: = Average Dk/Participant Saved (21) x Number of Participants (23) for Project Life (20) | T45: (I) | U45: = (G) x (H) | AD45: Worksheet Calculations | AP45: Worksheet Calculations | BG45: Worksheet Calculations | BV45: (A) | BW45: = Table 1 (F)
E46: Total Resource Cost Test | F46: =BY41 -> 19907 | G46: =BY42 -> 2.32 | J46: (B) | K46: = Commodity Cost (3) escalated | T46: (J) | U46: = (F) + (I) | AD46: (A) | AE46: = Table 1 (F) | AP46: (A) | AQ46: = Table 1 (F) | AW46: (H) | AZ46: = Table 2 (F) | BG46: (A) | BH46: = Table 1 (N) | BL46: (G) | BM46: = (A) + (D) + (F) | BV46: (B) | BW46: = Table 1 (I)
A47: 15) Project Analysis Year 1 = | C47: =+'Total Program Inputs'!C6 -> 2022 | J47: (C) | K47: = (A) x (B) | T47: (K) | U47: = Distribution Delivery Charge (26) escalated. | AD47: (B) | AE47: = Table 1 (I) | AP47: (G) | AQ47: = Table 1 (I) | AW47: (I) | AZ47: = Direct Part. Costs (17) x No. of Part. (23) - Table 1 (N) | BG47: (B) | BH47: = Table 1 (A) | BL47: (H) | BM47: = Direct Participant Costs (17) x Number of Participants (23) | BV47: (C) | BW47: = Table 3 (D)
J48: (D) | K48: = Variable O&M Cost (6), escalated | T48: (L) | U48: = (A) x (K) x (1-Inverse of Tax Rate (27) | AD48: (C) | AE48: = Table 1 (J) | AP48: (C) | AQ48: = Non-Gas Fuel Cost (7), adjusted for losses (8), escalated.. | AW48: (J) | AZ48: = (H) + (I) | BG48: (C) | BH48: = Retail Rate (1) escalated. | BL48: (I) | BM48: = (G) - (H) | BV48: (D) | BW48: = (A) + (B) + (C)
J49: (E) | K49: = (A) x (D) | T49: (M) | U49: = Admin & Operating Costs (16a) | AD49: (D) | AE49: = Table 1 (M) | AP49: (D) | AQ49: = (C) x [Avg. Non-Gas Fuel Units/Part.Saved (22) x No. of Part. (23) | AW49: (K) | AZ49: = (G) - (J) | BG49: (D) | BH49: =(B) x (C) | BV49: (E) | BW49: = Table 3 (H) | DB49: =$J27 -> 13
J50: (F) | K50: = (C) + (E) | T50: (N) | U50: = Incentive Costs (16b) | AD50: (E) | AE50: = Table 1 (N) | AP50: (E) | AQ50: = Gas Environmental Damage Factor (9), escalated | BG50: (E) | BH50: = Non-Gas Fuel Retail Rate (2), escalated. | BV50: (F) | BW50: = Table 3 (I) | DB50: =$J28 -> 14
J51: (G) | K51: = (A) x Peak Reduction Factor (5) | T51: (O) | U51: = (L) + (M) + (N) | AD51: (F) | AE51: = (D) + (E) | AP51: (F) | AQ51: = Table 1 (A) x (E) | BG51: (F) | BH51: = (E) x [Avg. Non-Gas Fuel Units/Part.Saved (22) x No. of Part. (23) | BV51: (G) | BW51: = (E) + (F) | DB51: =$J29 -> 15
J52: (H) | K52: = Demand Cost (4) escalated. | T52: (P) | U52: = (J) - (O) | AD52: (G) | AE52: = (C) - (F) | AP52: (G) | AQ52: = (A) + (B) + (D) + (F) | BV52: (H) | BW52: = (D) - (G)

Sheet Res .95+% Res Furnace - Replace
A1: NATURAL GAS CONSERVATION PROGRAMS/DEMAND-SIDE MANAGEMENT | K1: Table 1 | AD1: Table 2 | AP1: Table 3 | BG1: Table 4 | BV1: Table 5
A2: BEN/COST ANALYSIS FOR GAS CONSERVATION | K2: Ratepayer Impact Measure Test | AD2: Utility Cost Test | AP2: Societal Test | BG2: Participant Test | BV2: Total Resource Cost Test
A4: Company: | B4: Montana-Dakota Utilities Co. | K4: Company: | M4: =B4 -> Montana-Dakota Utilities Co. | AD4: Company: | AF4: =B4 -> Montana-Dakota Utilities Co. | AP4: Company: | AR4: =AF4 -> Montana-Dakota Utilities Co. | BH4: Company: | BI4: =AR4 -> Montana-Dakota Utilities Co. | BW4: Company: | BX4: =BI4 -> Montana-Dakota Utilities Co.
A5: Project: | B5: Residential 95+% AFUE Furnace - Replacement | K5: Project: | M5: =$B$5 -> Residential 95+% AFUE Furnace - Replacement | AD5: Project: | AF5: =$B$5 -> Residential 95+% AFUE Furnace - Replacement | AP5: Project: | AR5: =$B$5 -> Residential 95+% AFUE Furnace - Replacement | BH5: Project: | BI5: =$B$5 -> Residential 95+% AFUE Furnace - Replacement | BW5: Project: | BX5: =$B$5 -> Residential 95+% AFUE Furnace - Replacement
A6: Program Years: | B6: ='Total Program'!$B$6 -> 2022
N7: Benefits | X7: Costs | AF7: Benefits | AJ7: Costs | AR7: Benefits | BB7: Costs | BI7: Benefits | BR7: Costs | BX7: Benefits | CC7: Costs
A8: Input Data | F8: =+'Total Program Inputs'!C6 -> 2022 | AB8: Annual | AN8: Annual | AT8: Non-Gas | BE8: Annual | BT8: Annual | CG8: Annual
M9: Total | N9: Gas | O9: Gas | P9: Variable | Q9: Variable | R9: Total | S9: Peak Dk | T9: Demand | U9: Total | W9: Distribution | Y9: Program | AA9: Total | AB9: Benefits | AF9: Total | AG9: Total | AH9: Annual | AJ9: Program | AL9: Utility | AN9: Benefits | AR9: Total | AS9: Total | AT9: Energy | AU9: Non-Gas | AV9: Environmental | AW9: Environmental | AZ9: Annual | BB9: Utility | BC9: Participants' | BD9: Annual | BE9: Benefits | BJ9: Total | BL9: Gas | BM9: Non-Gas | BN9: Non-Gas | BP9: Total | BR9: Direct | BT9: Benefits | BX9: Total | BY9: Total | BZ9: Non-Gas | CA9: Total | CC9: Utility | CD9: Participants' | CG9: Benefits
A10: 1) Retail Rate ($/Dk) = | C10: =+'Gas Input Table Summary'!$D$7 -> 7.99 | E10: 16) Utility Project Costs | M10: Energy | N10: Commodity | O10: Commodity | P10: O & M | Q10: O & M | R10: Energy | S10: Demand | T10: Savings | U10: Demand | V10: Total | W10: Delivery | X10: Lost | Y10: Admin | Z10: Incentive | AA10: Program | AB10: Less | AF10: Energy | AG10: Demand | AH10: Total | AJ10: Admin | AK10: Incentive | AL10: Program | AN10: Less | AR10: Energy | AS10: Demand | AT10: Savings | AU10: Energy | AV10: Damage | AW10: Damage | AZ10: Total | BB10: Program | BC10: Costs Net | BD10: Total | BE10: Less | BI10: Incentives | BJ10: Energy | BK10: Retail | BL10: Bill | BM10: Fuel | BN10: Energy | BP10: Annual | BR10: Participant | BT10: Less | BX10: Energy | BY10: Demand | BZ10: Energy | CA10: Annual | CC10: Program | CD10: Costs Net | CE10: Total | CG10: Less
A11: Escalation Rate = | C11: =+'Gas Input Table Summary'!$D$8 -> 0.03 | E11: 16a) Administrative & Operating Costs = | F11: =+'Total Program Inputs'!M12 -> 12557 | J11: t | M11: Reduction | N11: Cost/Dk | O11: Savings | P11: Cost/Dk | Q11: Savings | R11: Savings | S11: Reduction | T11: Per Unit | U11: Savings | V11: Savings | W11: Charge | X11: Margin | Y11: Costs | Z11: Costs | AA11: Costs | AB11: Costs | AF11: Savings | AG11: Savings | AH11: Savings | AJ11: Costs | AK11: Costs | AL11: Costs | AN11: Costs | AR11: Savings | AS11: Savings | AT11: ($/Part.) | AU11: Savings | AV11: Savings/Dk | AW11: Savings | AZ11: Savings | BB11: Costs | BC11: of Rebate | BD11: Costs | BE11: Costs | BI11: Received | BJ11: Reduction | BK11: Rate | BL11: Savings | BM11: Retail Rate | BN11: Savings | BP11: Benefits | BR11: Costs | BT11: Costs | BX11: Savings | BY11: Savings | BZ11: Savings | CA11: Benefits | CC11: Costs | CD11: of Rebate | CE11: Costs | CG11: Costs
E12: 16b) Incentive Costs = | F12: =+'Total Program Inputs'!I12 -> 70800 | L12: Year | M12: (A) | N12: (B) | O12: (C) | P12: (D) | Q12: (E) | R12: (F) | S12: (G) | T12: (H) | U12: (I) | V12: (J) | W12: (K) | X12: (L) | Y12: (M) | Z12: (N) | AA12: (O) | AB12: (P) | AE12: Year | AF12: (A) | AG12: (B) | AH12: (C) | AJ12: (D) | AK12: (E) | AL12: (F) | AN12: (G) | AQ12: Year | AR12: (A) | AS12: (B) | AT12: (C) | AU12: (D) | AV12: (E) | AW12: (F) | AZ12: (G) | BB12: (H) | BC12: (I) | BD12: (J) | BE12: (K) | BH12: Year | BI12: (A) | BJ12: (B) | BK12: (C) | BL12: (D) | BM12: (E) | BN12: (F) | BP12: (G) | BR12: (H) | BT12: (I) | BW12: Year | BX12: (A) | BY12: (B) | BZ12: (C) | CA12: (D) | CC12: (E) | CD12: (F) | CE12: (G) | CG12: (H)
A13: 2) Non-Gas Fuel Retail Rate ($/Fuel Unit) = | C13: =+'Gas Input Table Summary'!$D$9 -> 0.12936 | E13: 16c) Total Utility Project Costs = | F13: =SUM(F11:F12) -> 83357
A14: Escalation Rate = | C14: =+'Gas Input Table Summary'!$D$10 -> 0.03 | J14: =$C$47-$C$45 -> 0 | L14: =$C$47 -> 2022 | M14: =ROUND(IF($C$47+$F$23>L14,F25*F30,0),0) -> 4258 | N14: =ROUND($C$17*(1+$C$18)^J14,3) -> 4.357 | O14: =ROUND(M14*N14,0) -> 18552 | P14: =ROUND($C$25*(1+$C$26)^J14,3) -> 0 | Q14: =ROUND(M14*P14,0) -> 0 | R14: =O14+Q14 -> 18552 | S14: =ROUND(M14*$C$23,1) -> 42.6 | T14: =ROUND($C$20*(1+$C$21)^J14,0) -> 149 | U14: =ROUND(S14*T14,0) -> 6347 | V14: =ROUND(+U14+R14,0) -> 24899 | W14: =ROUND($H$36*(1+$C$11)^J14,3) -> 1.836 | X14: =ROUND((1-$H$38)*(W14*M14),0) -> 6176 | Y14: =ROUND($F$11,0) -> 12557 | Z14: =ROUND($F$12,0) -> 70800 | AA14: =SUM(X14:Z14) -> 89533 | AB14: =V14-AA14 -> -64634 | AE14: =$C$47 -> 2022 | AF14: =+R14 -> 18552 | AG14: =+U14 -> 6347 | AH14: =+AG14+AF14 -> 24899 | AJ14: =ROUND(Y14,0) -> 12557 | AK14: =ROUND(Z14,0) -> 70800 | AL14: =SUM(AJ14:AK14) -> 83357 | AN14: =+AH14-AL14 -> -58458 | AQ14: =$C$47 -> 2022 | AR14: =AF14 -> 18552 | AS14: =+AG14 -> 6347 | AT14: =ROUND(($C$28/(1-$C$31))*(1+$C$29)^J14,3) -> 0.03 | AU14: =ROUND(IF($C$47+$F$23>$AQ14,$F$30*$F$27,0)*AT14,0) -> 5098 | AV14: =ROUND($C$33*(1+$C$34)^J14,3) -> 2.07 | AW14: =ROUND(AV14*M14,0) -> 8814 | AZ14: =ROUND(AR14+AS14+AU14+AW14+AY14,0) -> 38811 | BB14: =ROUND($F$13,0) -> 83357 | BC14: =ROUND((F15*F30)-Z14,0) -> 102896 | BD14: =BB14+BC14 -> 186253 | BE14: =AZ14-BD14 -> -147442 | BH14: =$C$47 -> 2022 | BI14: =+F12 -> 70800 | BJ14: =+M14 -> 4258 | BK14: =ROUND($C$10*(1+$C$11)^J14,3) -> 7.99 | BL14: =ROUND(BJ14*BK14,0) -> 34021 | BM14: =ROUND($C$13*(1+$C$14)^J14,3) -> 0.129 | BN14: =ROUND(IF($C$47+$F$23>$BH14,$F$30*$F$27,0)*BM14,0) -> 21920 | BP14: =BI14+BL14+BN14+BO14 -> 126741 | BR14: =ROUND(F15*F30,0) -> 173696 | BT14: =BP14-BR14 -> -46955 | BW14: =$C$47 -> 2022 | BX14: =$R14 -> 18552 | BY14: =U14 -> 6347 | BZ14: =AU14 -> 5098 | CA14: =SUM(BX14:BZ14) -> 29997 | CC14: =BB14 -> 83357 | CD14: =BC14 -> 102896 | CE14: =SUM(CC14:CD14) -> 186253 | CG14: =CA14-CE14 -> -156256
A15: Non-Gas Fuel Units (ie. kWh,Gallons, etc) = | C15: =+'Gas Input Table Summary'!$D$11 -> Kwh | E15: 17) Direct Participant Costs ($/Part.) = | F15: =ROUND('Database Inputs'!K11,0) -> 736 | J15: =J14+1 -> 1 | L15: =L14+1 -> 2023 | M15: =ROUND(IF($C$47+$F$23>L15,$F$25*$F$30,0)+IF($C$48+$G$23>L15,$G$25*$G$30,0),0) -> 4258 | N15: 4.488 | O15: 19110 | P15: 0 | Q15: =ROUND(M15*P15,0) -> 0 | R15: =O15+Q15 -> 19110 | S15: =ROUND(M15*$C$23,1) -> 42.6 | T15: =ROUND($C$20*(1+$C$21)^J15,0) -> 151 | U15: =ROUND(S15*T15,0) -> 6433 | V15: =ROUND(+U15+R15,0) -> 25543 | W15: =ROUND($H$36*(1+$C$11)^J15,3) -> 1.891 | X15: =ROUND((1-$H$38)*(W15*M15),0) -> 6361 | Y15: =ROUND($G$11,0) -> 0 | Z15: =ROUND($G$12,0) -> 0 | AA15: =SUM(X15:Z15) -> 6361 | AB15: =V15-AA15 -> 19182 | AE15: =AE14+1 -> 2023 | AF15: 19110 | AG15: 6433 | AH15: =+AG15+AF15 -> 25543 | AJ15: =ROUND(Y15,0) -> 0 | AK15: 0 | AL15: 0 | AN15: 25543 | AQ15: =AQ14+1 -> 2023 | AR15: 19110 | AS15: =+AG15 -> 6433 | AT15: =ROUND(($C$28/(1-$C$31))*(1+$C$29)^J15,3) -> 0.03 | AU15: =ROUND((IF($C$47+$F$23>$AQ15,$F$27*$F$30,0)+IF($C$48+$G$23>AQ15,$G$27*$G$30,0))*AT15,0) -> 5098 | AV15: =ROUND($C$33*(1+$C$34)^J15,3) -> 2.118 | AW15: =ROUND(AV15*M15,0) -> 9018 | AZ15: =ROUND(AR15+AS15+AU15+AW15+AY15,0) -> 39659 | BB15: =ROUND($G$13,0) -> 0 | BC15: =ROUND(($G$15*$G$30)-$Z$15,0) -> 0 | BD15: =BB15+BC15 -> 0 | BE15: 39659 | BH15: =BH14+1 -> 2023 | BI15: =+G12 -> 0 | BJ15: 4258 | BK15: =ROUND($C$10*(1+$C$11)^J15,3) -> 8.23 | BL15: =ROUND(BJ15*BK15,0) -> 35043 | BM15: =ROUND($C$13*(1+$C$14)^J15,3) -> 0.133 | BN15: =ROUND((IF($C$47+$F$23>BH15,$F$27*$F$30,0)+IF($C$48+$G$23>BH15,$G$27*$G$30,0))*BM15,0) -> 22599 | BP15: 57642 | BR15: =ROUND($G$15*$G$30,0) -> 0 | BT15: =BP15-BR15 -> 57642 | BW15: =BW14+1 -> 2023 | BX15: 19110 | BY15: =U15 -> 6433 | BZ15: =AU15 -> 5098 | CA15: =SUM(BX15:BZ15) -> 30641 | CC15: =BB15 -> 0 | CD15: 0 | CE15: =SUM(CC15:CD15) -> 0 | CG15: =CA15-CE15 -> 30641
J16: 2 | L16: 2024 | M16: =ROUND(IF($C$47+$F$23>L16,$F$25*$F$30,0)+IF($C$48+$G$23>L16,$G$25*$G$30,0)+IF($C$49+$H$23>L16,$H$25*$H$30,0),0) -> 4258 | N16: 4.622 | O16: 19680 | P16: 0 | Q16: 0 | R16: 19680 | S16: 42.6 | T16: 152 | U16: =ROUND(S16*T16,0) -> 6475 | V16: =ROUND(+U16+R16,0) -> 26155 | W16: 1.948 | X16: 6553 | Y16: =ROUND($H$11,0) -> 0 | Z16: =ROUND($H$12,0) -> 0 | AA16: =SUM(X16:Z16) -> 6553 | AB16: =V16-AA16 -> 19602 | AE16: 2024 | AF16: 19680 | AG16: 6475 | AH16: =+AG16+AF16 -> 26155 | AJ16: 0 | AK16: 0 | AL16: =SUM(AJ16:AK16) -> 0 | AN16: =+AH16-AL16 -> 26155 | AQ16: 2024 | AR16: 19680 | AS16: 6475 | AT16: =ROUND(($C$28/(1-$C$31))*(1+$C$29)^J16,3) -> 0.031 | AU16: =ROUND((IF($C$47+$F$23>$AQ16,$F$27*$F$30,0)+IF($C$48+$G$23>AQ16,$G$27*$G$30,0)+IF($C$49+$H$23>AQ16,$H$27*$H$30,0))*AT16,0) -> 5268 | AV16: =ROUND($C$33*(1+$C$34)^J16,3) -> 2.166 | AW16: =ROUND(AV16*M16,0) -> 9223 | AZ16: =ROUND(AR16+AS16+AU16+AW16+AY16,0) -> 40646 | BB16: =ROUND($H$13,0) -> 0 | BC16: =ROUND(($H$15*$H$30)-$Z$16,0) -> 0 | BD16: =BB16+BC16 -> 0 | BE16: 40646 | BH16: 2024 | BI16: =ROUND(H12,0) -> 0 | BJ16: 4258 | BK16: 8.477 | BL16: =ROUND(BJ16*BK16,0) -> 36095 | BM16: 0.137 | BN16: =ROUND((IF($C$47+$F$23>BH16,$F$27*$F$30,0)+IF($C$49+$H$23>BH16,$H$27*$H$30,0)+IF($C$48+$G$23>BH16,$G$27*$G$30,0))*BM16,0) -> 23279 | BP16: =BI16+BL16+BN16+BO16 -> 59374 | BR16: =ROUND($H$15*$H$30,0) -> 0 | BT16: =BP16-BR16 -> 59374 | BW16: 2024 | BX16: 19680 | BY16: 6475 | BZ16: 5268 | CA16: =SUM(BX16:BZ16) -> 31423 | CC16: 0 | CD16: 0 | CE16: =SUM(CC16:CD16) -> 0 | CG16: =CA16-CE16 -> 31423
A17: 3) Commodity Cost ($/Dk) = | C17: =+'Gas Input Table Summary'!$D$12 -> 4.357 | E17: 18) Participant Non-Energy Costs (Annual $/Part.) = | F17: =+'Gas Input Table Summary'!$D$35 -> 0 | J17: 3 | L17: 2025 | M17: =ROUND(IF($C$47+$F$23>L17,$F$25*$F$30,0)+IF($C$48+$G$23>L17,$G$25*$G$30,0)+IF($C$49+$H$23>L17,$H$25*$H$30,0),0) -> 4258 | N17: 4.761 | O17: 20272 | P17: 0 | Q17: 0 | R17: 20272 | S17: 42.6 | T17: 154 | U17: 6560 | V17: 26832 | W17: 2.006 | X17: 6748 | Y17: 0 | Z17: 0 | AA17: 6748 | AB17: =V17-AA17 -> 20084 | AE17: 2025 | AF17: 20272 | AG17: 6560 | AH17: 26832 | AJ17: 0 | AK17: 0 | AL17: 0 | AN17: 26832 | AQ17: 2025 | AR17: 20272 | AS17: 6560 | AT17: 0.032 | AU17: =ROUND((IF($C$47+$F$23>$AQ17,$F$27*$F$30,0)+IF($C$48+$G$23>AQ17,$G$27*$G$30,0)+IF($C$49+$H$23>AQ17,$H$27*$H$30,0))*AT17,0) -> 5437 | AV17: 2.216 | AW17: 9436 | AZ17: 41705 | BB17: 0 | BC17: 0 | BD17: 0 | BE17: 41705 | BH17: 2025 | BI17: 0 | BJ17: 4258 | BK17: 8.731 | BL17: 37177 | BM17: 0.141 | BN17: =ROUND((IF($C$47+$F$23>BH17,$F$27*$F$30,0)+IF($C$49+$H$23>BH17,$H$27*$H$30,0)+IF($C$48+$G$23>BH17,$G$27*$G$30,0))*BM17,0) -> 23959 | BP17: 61136 | BR17: =+BC17 -> 0 | BT17: 61136 | BW17: 2025 | BX17: 20272 | BY17: 6560 | BZ17: 5437 | CA17: 32269 | CC17: 0 | CD17: 0 | CE17: 0 | CG17: 32269
A18: Escalation Rate = | C18: =+'Gas Input Table Summary'!$D$13 -> 0.03 | E18: Escalation Rate = | F18: =+'Gas Input Table Summary'!$D$38 -> 0 | J18: 4 | L18: 2026 | M18: 4258 | N18: 4.904 | O18: 20881 | P18: 0 | Q18: 0 | R18: 20881 | S18: 42.6 | T18: 155 | U18: 6603 | V18: 27484 | W18: 2.066 | X18: 6950 | Y18: 0 | Z18: 0 | AA18: 6950 | AB18: 20534 | AE18: 2026 | AF18: 20881 | AG18: 6603 | AH18: 27484 | AJ18: 0 | AK18: 0 | AL18: 0 | AN18: 27484 | AQ18: 2026 | AR18: 20881 | AS18: 6603 | AT18: 0.033 | AU18: 5607 | AV18: 2.267 | AW18: 9653 | AZ18: 42744 | BB18: 0 | BC18: 0 | BD18: 0 | BE18: 42744 | BH18: 2026 | BI18: 0 | BJ18: 4258 | BK18: 8.993 | BL18: 38292 | BM18: 0.146 | BN18: 24808 | BP18: 63100 | BR18: 0 | BT18: 63100 | BW18: 2026 | BX18: 20881 | BY18: 6603 | BZ18: 5607 | CA18: 33091 | CC18: 0 | CD18: 0 | CE18: 0 | CG18: 33091 | DB18: t
J19: 5 | L19: 2027 | M19: 4258 | N19: 5.051 | O19: 21507 | P19: 0 | Q19: 0 | R19: 21507 | S19: 42.6 | T19: 157 | U19: 6688 | V19: 28195 | W19: 2.128 | X19: 7158 | Y19: 0 | Z19: 0 | AA19: 7158 | AB19: 21037 | AE19: 2027 | AF19: 21507 | AG19: 6688 | AH19: 28195 | AJ19: 0 | AK19: 0 | AL19: 0 | AN19: 28195 | AQ19: 2027 | AR19: 21507 | AS19: 6688 | AT19: 0.034 | AU19: 5777 | AV19: 2.319 | AW19: 9874 | AZ19: 43846 | BB19: 0 | BC19: 0 | BD19: 0 | BE19: 43846 | BH19: 2027 | BI19: 0 | BJ19: 4258 | BK19: 9.263 | BL19: 39442 | BM19: 0.15 | BN19: 25488 | BP19: 64930 | BR19: 0 | BT19: 64930 | BW19: 2027 | BX19: 21507 | BY19: 6688 | BZ19: 5777 | CA19: 33972 | CC19: 0 | CD19: 0 | CE19: 0 | CG19: 33972
A20: 4) Demand Cost ($/Unit/Yr) = | C20: =+'Gas Input Table Summary'!$D$14 -> 149.39 | E20: 19) Participant Non-Energy Savings (Annual $/Part) = | F20: =+'Gas Input Table Summary'!$D$41 -> 0 | J20: 6 | L20: 2028 | M20: 4258 | N20: 5.202 | O20: 22150 | P20: 0 | Q20: 0 | R20: 22150 | S20: 42.6 | T20: 159 | U20: 6773 | V20: 28923 | W20: 2.192 | X20: 7373 | Y20: 0 | Z20: 0 | AA20: 7373 | AB20: 21550 | AE20: 2028 | AF20: 22150 | AG20: 6773 | AH20: 28923 | AJ20: 0 | AK20: 0 | AL20: 0 | AN20: 28923 | AQ20: 2028 | AR20: 22150 | AS20: 6773 | AT20: 0.035 | AU20: 5947 | AV20: 2.373 | AW20: 10104 | AZ20: 44974 | BB20: 0 | BC20: 0 | BD20: 0 | BE20: 44974 | BH20: 2028 | BI20: 0 | BJ20: 4258 | BK20: 9.54 | BL20: 40621 | BM20: 0.154 | BN20: 26168 | BP20: 66789 | BR20: 0 | BT20: 66789 | BW20: 2028 | BX20: 22150 | BY20: 6773 | BZ20: 5947 | CA20: 34870 | CC20: 0 | CD20: 0 | CE20: 0 | CG20: 34870
A21: Escalation Rate = | C21: =+'Gas Input Table Summary'!$D$15 -> 0.01 | E21: Escalation Rate = | F21: =+'Gas Input Table Summary'!$D$44 -> 0 | J21: 7 | L21: 2029 | M21: 4258 | N21: 5.359 | O21: 22819 | P21: 0 | Q21: 0 | R21: 22819 | S21: 42.6 | T21: 160 | U21: 6816 | V21: 29635 | W21: 2.258 | X21: 7596 | Y21: 0 | Z21: 0 | AA21: 7596 | AB21: 22039 | AE21: 2029 | AF21: 22819 | AG21: 6816 | AH21: 29635 | AJ21: 0 | AK21: 0 | AL21: 0 | AN21: 29635 | AQ21: 2029 | AR21: 22819 | AS21: 6816 | AT21: 0.036 | AU21: 6117 | AV21: 2.427 | AW21: 10334 | AZ21: 46086 | BB21: 0 | BC21: 0 | BD21: 0 | BE21: 46086 | BH21: 2029 | BI21: 0 | BJ21: 4258 | BK21: 9.827 | BL21: 41843 | BM21: 0.159 | BN21: 27017 | BP21: 68860 | BR21: 0 | BT21: 68860 | BW21: 2029 | BX21: 22819 | BY21: 6816 | BZ21: 6117 | CA21: 35752 | CC21: 0 | CD21: 0 | CE21: 0 | CG21: 35752 | DB21: =$J14 -> 0
J22: 8 | L22: 2030 | M22: 4258 | N22: 5.519 | O22: 23500 | P22: 0 | Q22: 0 | R22: 23500 | S22: 42.6 | T22: 162 | U22: 6901 | V22: 30401 | W22: 2.326 | X22: 7824 | Y22: 0 | Z22: 0 | AA22: 7824 | AB22: 22577 | AE22: 2030 | AF22: 23500 | AG22: 6901 | AH22: 30401 | AJ22: 0 | AK22: 0 | AL22: 0 | AN22: 30401 | AQ22: 2030 | AR22: 23500 | AS22: 6901 | AT22: 0.037 | AU22: 6287 | AV22: 2.483 | AW22: 10573 | AZ22: 47261 | BB22: 0 | BC22: 0 | BD22: 0 | BE22: 47261 | BH22: 2030 | BI22: 0 | BJ22: 4258 | BK22: 10.121 | BL22: 43095 | BM22: 0.164 | BN22: 27867 | BP22: 70962 | BR22: 0 | BT22: 70962 | BW22: 2030 | BX22: 23500 | BY22: 6901 | BZ22: 6287 | CA22: 36688 | CC22: 0 | CD22: 0 | CE22: 0 | CG22: 36688 | DB22: =$J15 -> 1
A23: 5) Peak Reduction Factor = | C23: =+'Gas Input Table Summary'!$D$16 -> 0.01 | E23: 20) Project Life (Years) = | F23: =ROUND('Database Inputs'!D11,0) -> 20 | J23: 9 | L23: 2031 | M23: 4258 | N23: 5.685 | O23: 24207 | P23: 0 | Q23: 0 | R23: 24207 | S23: 42.6 | T23: 163 | U23: 6944 | V23: 31151 | W23: 2.396 | X23: 8060 | Y23: 0 | Z23: 0 | AA23: 8060 | AB23: 23091 | AE23: 2031 | AF23: 24207 | AG23: 6944 | AH23: 31151 | AJ23: 0 | AK23: 0 | AL23: 0 | AN23: 31151 | AQ23: 2031 | AR23: 24207 | AS23: 6944 | AT23: 0.039 | AU23: 6627 | AV23: 2.54 | AW23: 10815 | AZ23: 48593 | BB23: 0 | BC23: 0 | BD23: 0 | BE23: 48593 | BH23: 2031 | BI23: 0 | BJ23: 4258 | BK23: 10.425 | BL23: 44390 | BM23: 0.169 | BN23: 28716 | BP23: 73106 | BR23: 0 | BT23: 73106 | BW23: 2031 | BX23: 24207 | BY23: 6944 | BZ23: 6627 | CA23: 37778 | CC23: 0 | CD23: 0 | CE23: 0 | CG23: 37778 | DB23: =$J16 -> 2
J24: 10 | L24: 2032 | M24: 4258 | N24: 5.855 | O24: 24931 | P24: 0 | Q24: 0 | R24: 24931 | S24: 42.6 | T24: 165 | U24: 7029 | V24: 31960 | W24: 2.467 | X24: 8299 | Y24: 0 | Z24: 0 | AA24: 8299 | AB24: 23661 | AE24: 2032 | AF24: 24931 | AG24: 7029 | AH24: 31960 | AJ24: 0 | AK24: 0 | AL24: 0 | AN24: 31960 | AQ24: 2032 | AR24: 24931 | AS24: 7029 | AT24: 0.04 | AU24: 6797 | AV24: 2.599 | AW24: 11067 | AZ24: 49824 | BB24: 0 | BC24: 0 | BD24: 0 | BE24: 49824 | BH24: 2032 | BI24: 0 | BJ24: 4258 | BK24: 10.738 | BL24: 45722 | BM24: 0.174 | BN24: 29566 | BP24: 75288 | BR24: 0 | BT24: 75288 | BW24: 2032 | BX24: 24931 | BY24: 7029 | BZ24: 6797 | CA24: 38757 | CC24: 0 | CD24: 0 | CE24: 0 | CG24: 38757 | DB24: =$J17 -> 3
A25: 6) Variable O&M ($/Dk) = | C25: =+'Gas Input Table Summary'!$D$17 -> 0 | E25: 21) Avg. Dk/Part. Saved = | F25: =+ROUND(F32/F30,3) -> 18.042 | J25: 11 | L25: 2033 | M25: 4258 | N25: 6.031 | O25: 25680 | P25: 0 | Q25: 0 | R25: 25680 | S25: 42.6 | T25: 167 | U25: 7114 | V25: 32794 | W25: 2.541 | X25: 8547 | Y25: 0 | Z25: 0 | AA25: 8547 | AB25: 24247 | AE25: 2033 | AF25: 25680 | AG25: 7114 | AH25: 32794 | AJ25: 0 | AK25: 0 | AL25: 0 | AN25: 32794 | AQ25: 2033 | AR25: 25680 | AS25: 7114 | AT25: 0.041 | AU25: 6967 | AV25: 2.658 | AW25: 11318 | AZ25: 51079 | BB25: 0 | BC25: 0 | BD25: 0 | BE25: 51079 | BH25: 2033 | BI25: 0 | BJ25: 4258 | BK25: 11.06 | BL25: 47093 | BM25: 0.179 | BN25: 30416 | BP25: 77509 | BR25: 0 | BT25: 77509 | BW25: 2033 | BX25: 25680 | BY25: 7114 | BZ25: 6967 | CA25: 39761 | CC25: 0 | CD25: 0 | CE25: 0 | CG25: 39761
A26: Escalation Rate = | C26: =+'Gas Input Table Summary'!$D$18 -> 0 | J26: 12 | L26: 2034 | M26: 4258 | N26: 6.212 | O26: 26451 | P26: 0 | Q26: 0 | R26: 26451 | S26: 42.6 | T26: 168 | U26: 7157 | V26: 33608 | W26: 2.618 | X26: 8806 | Y26: 0 | Z26: 0 | AA26: 8806 | AB26: 24802 | AE26: 2034 | AF26: 26451 | AG26: 7157 | AH26: 33608 | AJ26: 0 | AK26: 0 | AL26: 0 | AN26: 33608 | AQ26: 2034 | AR26: 26451 | AS26: 7157 | AT26: 0.042 | AU26: 7137 | AV26: 2.719 | AW26: 11578 | AZ26: 52323 | BB26: 0 | BC26: 0 | BD26: 0 | BE26: 52323 | BH26: 2034 | BI26: 0 | BJ26: 4258 | BK26: 11.392 | BL26: 48507 | BM26: 0.184 | BN26: 31265 | BP26: 79772 | BR26: 0 | BT26: 79772 | BW26: 2034 | BX26: 26451 | BY26: 7157 | BZ26: 7137 | CA26: 40745 | CC26: 0 | CD26: 0 | CE26: 0 | CG26: 40745
E27: 22) Avg Non-Gas Fuel Units/Part. Saved = | F27: =+'Database Inputs'!H11 -> 720 | J27: 13 | L27: 2035 | M27: 4258 | N27: 6.398 | O27: 27243 | P27: 0 | Q27: 0 | R27: 27243 | S27: 42.6 | T27: 170 | U27: 7242 | V27: 34485 | W27: 2.696 | X27: 9069 | Y27: 0 | Z27: 0 | AA27: 9069 | AB27: 25416 | AE27: 2035 | AF27: 27243 | AG27: 7242 | AH27: 34485 | AJ27: 0 | AK27: 0 | AL27: 0 | AN27: 34485 | AQ27: 2035 | AR27: 27243 | AS27: 7242 | AT27: 0.043 | AU27: 7307 | AV27: 2.782 | AW27: 11846 | AZ27: 53638 | BB27: 0 | BC27: 0 | BD27: 0 | BE27: 53638 | BH27: 2035 | BI27: 0 | BJ27: 4258 | BK27: 11.734 | BL27: 49963 | BM27: 0.19 | BN27: 32285 | BP27: 82248 | BR27: 0 | BT27: 82248 | BW27: 2035 | BX27: 27243 | BY27: 7242 | BZ27: 7307 | CA27: 41792 | CC27: 0 | CD27: 0 | CE27: 0 | CG27: 41792
A28: 7) Non-Gas Fuel Cost ($/Fuel Unit) = | C28: =+'Gas Input Table Summary'!$D$19 -> 0.02736 | E28: 22a) Avg Additional Non-Gas Fuel Units/ Part. Used = | F28: 0 | J28: 14 | L28: 2036 | M28: 4258 | N28: 6.59 | O28: 28060 | P28: 0 | Q28: 0 | R28: 28060 | S28: 42.6 | T28: 172 | U28: 7327 | V28: 35387 | W28: 2.777 | X28: 9341 | Y28: 0 | Z28: 0 | AA28: 9341 | AB28: 26046 | AE28: 2036 | AF28: 28060 | AG28: 7327 | AH28: 35387 | AJ28: 0 | AK28: 0 | AL28: 0 | AN28: 35387 | AQ28: 2036 | AR28: 28060 | AS28: 7327 | AT28: 0.045 | AU28: 7646 | AV28: 2.846 | AW28: 12118 | AZ28: 55151 | BB28: 0 | BC28: 0 | BD28: 0 | BE28: 55151 | BH28: 2036 | BI28: 0 | BJ28: 4258 | BK28: 12.086 | BL28: 51462 | BM28: 0.196 | BN28: 33304 | BP28: 84766 | BR28: 0 | BT28: 84766 | BW28: 2036 | BX28: 28060 | BY28: 7327 | BZ28: 7646 | CA28: 43033 | CC28: 0 | CD28: 0 | CE28: 0 | CG28: 43033
A29: Escalation Rate = | C29: =+'Gas Input Table Summary'!$D$20 -> 0.03 | J29: 15 | L29: 2037 | M29: 4258 | N29: 6.788 | O29: 28903 | P29: 0 | Q29: 0 | R29: 28903 | S29: 42.6 | T29: 173 | U29: 7370 | V29: 36273 | W29: 2.86 | X29: 9621 | Y29: 0 | Z29: 0 | AA29: 9621 | AB29: 26652 | AE29: 2037 | AF29: 28903 | AG29: 7370 | AH29: 36273 | AJ29: 0 | AK29: 0 | AL29: 0 | AN29: 36273 | AQ29: 2037 | AR29: 28903 | AS29: 7370 | AT29: 0.046 | AU29: 7816 | AV29: 2.911 | AW29: 12395 | AZ29: 56484 | BB29: 0 | BC29: 0 | BD29: 0 | BE29: 56484 | BH29: 2037 | BI29: 0 | BJ29: 4258 | BK29: 12.448 | BL29: 53004 | BM29: 0.202 | BN29: 34324 | BP29: 87328 | BR29: 0 | BT29: 87328 | BW29: 2037 | BX29: 28903 | BY29: 7370 | BZ29: 7816 | CA29: 44089 | CC29: 0 | CD29: 0 | CE29: 0 | CG29: 44089
E30: 23) Number of Participants = | F30: =ROUND('Database Inputs'!C11,0) -> 236 | J30: 16 | L30: 2038 | M30: 4258 | N30: 6.992 | O30: 29772 | P30: 0 | Q30: 0 | R30: 29772 | S30: 42.6 | T30: 175 | U30: 7455 | V30: 37227 | W30: 2.946 | X30: 9910 | Y30: 0 | Z30: 0 | AA30: 9910 | AB30: 27317 | AE30: 2038 | AF30: 29772 | AG30: 7455 | AH30: 37227 | AJ30: 0 | AK30: 0 | AL30: 0 | AN30: 37227 | AQ30: 2038 | AR30: 29772 | AS30: 7455 | AT30: 0.047 | AU30: 7986 | AV30: 2.978 | AW30: 12680 | AZ30: 57893 | BB30: 0 | BC30: 0 | BD30: 0 | BE30: 57893 | BH30: 2038 | BI30: 0 | BJ30: 4258 | BK30: 12.822 | BL30: 54596 | BM30: 0.208 | BN30: 35343 | BP30: 89939 | BR30: 0 | BT30: 89939 | BW30: 2038 | BX30: 29772 | BY30: 7455 | BZ30: 7986 | CA30: 45213 | CC30: 0 | CD30: 0 | CE30: 0 | CG30: 45213 | DB30: =$J18 -> 4
A31: 8) Non-Gas Fuel Loss Factor | C31: =+'Gas Input Table Summary'!$D$21 -> 0.073 | J31: 17 | L31: 2039 | M31: 4258 | N31: 7.201 | O31: 30662 | P31: 0 | Q31: 0 | R31: 30662 | S31: 42.6 | T31: 177 | U31: 7540 | V31: 38202 | W31: 3.035 | X31: 10209 | Y31: 0 | Z31: 0 | AA31: 10209 | AB31: 27993 | AE31: 2039 | AF31: 30662 | AG31: 7540 | AH31: 38202 | AJ31: 0 | AK31: 0 | AL31: 0 | AN31: 38202 | AQ31: 2039 | AR31: 30662 | AS31: 7540 | AT31: 0.049 | AU31: 8326 | AV31: 3.047 | AW31: 12974 | AZ31: 59502 | BB31: 0 | BC31: 0 | BD31: 0 | BE31: 59502 | BH31: 2039 | BI31: 0 | BJ31: 4258 | BK31: 13.206 | BL31: 56231 | BM31: 0.214 | BN31: 36363 | BP31: 92594 | BR31: 0 | BT31: 92594 | BW31: 2039 | BX31: 30662 | BY31: 7540 | BZ31: 8326 | CA31: 46528 | CC31: 0 | CD31: 0 | CE31: 0 | CG31: 46528 | DB31: =$J19 -> 5
E32: 24) Total Annual Dk Saved = | F32: =+'Total Program Inputs'!G12 -> 4258 | J32: 18 | L32: 2040 | M32: 4258 | N32: 7.418 | O32: 31586 | P32: 0 | Q32: 0 | R32: 31586 | S32: 42.6 | T32: 179 | U32: 7625 | V32: 39211 | W32: 3.126 | X32: 10515 | Y32: 0 | Z32: 0 | AA32: 10515 | AB32: 28696 | AE32: 2040 | AF32: 31586 | AG32: 7625 | AH32: 39211 | AJ32: 0 | AK32: 0 | AL32: 0 | AN32: 39211 | AQ32: 2040 | AR32: 31586 | AS32: 7625 | AT32: 0.05 | AU32: 8496 | AV32: 3.117 | AW32: 13272 | AZ32: 60979 | BB32: 0 | BC32: 0 | BD32: 0 | BE32: 60979 | BH32: 2040 | BI32: 0 | BJ32: 4258 | BK32: 13.602 | BL32: 57917 | BM32: 0.22 | BN32: 37382 | BP32: 95299 | BR32: 0 | BT32: 95299 | BW32: 2040 | BX32: 31586 | BY32: 7625 | BZ32: 8496 | CA32: 47707 | CC32: 0 | CD32: 0 | CE32: 0 | CG32: 47707 | DB32: =$J20 -> 6
A33: 9) Gas Environmental Damage Factor = | C33: =+'Gas Input Table Summary'!$D$22 -> 2.07 | J33: 19 | L33: 2041 | M33: 4258 | N33: 7.64 | O33: 32531 | P33: 0 | Q33: 0 | R33: 32531 | S33: 42.6 | T33: 180 | U33: 7668 | V33: 40199 | W33: 3.219 | X33: 10828 | Y33: 0 | Z33: 0 | AA33: 10828 | AB33: 29371 | AE33: 2041 | AF33: 32531 | AG33: 7668 | AH33: 40199 | AJ33: 0 | AK33: 0 | AL33: 0 | AN33: 40199 | AQ33: 2041 | AR33: 32531 | AS33: 7668 | AT33: 0.052 | AU33: 8836 | AV33: 3.189 | AW33: 13579 | AZ33: 62614 | BB33: 0 | BC33: 0 | BD33: 0 | BE33: 62614 | BH33: 2041 | BI33: 0 | BJ33: 4258 | BK33: 14.011 | BL33: 59659 | BM33: 0.227 | BN33: 38572 | BP33: 98231 | BR33: 0 | BT33: 98231 | BW33: 2041 | BX33: 32531 | BY33: 7668 | BZ33: 8836 | CA33: 49035 | CC33: 0 | CD33: 0 | CE33: 0 | CG33: 49035
A34: Escalation Rate = | C34: =+'Gas Input Table Summary'!$D$23 -> 0.023 | E34: 25) Incentive/Participant = | F34: =ROUND('Database Inputs'!L11,0) -> 300 | J34: 20 | L34: 2042 | M34: 0 | N34: 7.869 | O34: 0 | P34: 0 | Q34: 0 | R34: 0 | S34: 0 | T34: 182 | U34: 0 | V34: 0 | W34: 3.316 | X34: 0 | Y34: 0 | Z34: 0 | AA34: 0 | AB34: 0 | AE34: 2042 | AF34: 0 | AG34: 0 | AH34: 0 | AJ34: 0 | AK34: 0 | AL34: 0 | AN34: 0 | AQ34: 2042 | AR34: 0 | AS34: 0 | AT34: 0.053 | AU34: 0 | AV34: 3.262 | AW34: 0 | AZ34: 0 | BB34: 0 | BC34: 0 | BD34: 0 | BE34: 0 | BH34: 2042 | BI34: 0 | BJ34: 0 | BK34: 14.431 | BL34: 0 | BM34: 0.234 | BN34: 0 | BP34: 0 | BR34: 0 | BT34: 0 | BW34: 2042 | BX34: 0 | BY34: 0 | BZ34: 0 | CA34: 0 | CC34: 0 | CD34: 0 | CE34: 0 | CG34: 0
J35: 21 | L35: 2043 | M35: =ROUND(IF($C$47+$F$23>L35,$F$25*$F$30,0)+IF($C$48+$G$23>L35,$G$25*$G$30,0)+IF($C$49+$H$23>L35,$H$25*$H$30,0),0) -> 0 | N35: =ROUND($C$17*(1+$C$18)^J35,3) -> 8.105 | O35: =ROUND(M35*N35,0) -> 0 | P35: =ROUND($C$25*(1+$C$26)^J35,3) -> 0 | Q35: =ROUND(M35*P35,0) -> 0 | R35: =O35+Q35 -> 0 | S35: =ROUND(M35*$C$23,1) -> 0 | T35: =ROUND($C$20*(1+$C$21)^J35,0) -> 184 | U35: =ROUND(S35*T35,0) -> 0 | V35: =ROUND(+U35+R35,0) -> 0 | W35: =ROUND($H$36*(1+$C$11)^J35,3) -> 3.416 | X35: =ROUND((1-$H$38)*(W35*M35),0) -> 0 | Y35: 0 | Z35: 0 | AA35: =SUM(X35:Z35) -> 0 | AB35: =V35-AA35 -> 0 | AE35: 2043 | AF35: =+R35 -> 0 | AG35: =+U35 -> 0 | AH35: =+AG35+AF35 -> 0 | AJ35: =ROUND(Y35,0) -> 0 | AK35: =ROUND(Z35,0) -> 0 | AL35: =SUM(AJ35:AK35) -> 0 | AN35: =+AH35-AL35 -> 0 | AQ35: 2043 | AR35: =AF35 -> 0 | AS35: =+AG35 -> 0 | AT35: =ROUND(($C$28/(1-$C$31))*(1+$C$29)^J35,3) -> 0.055 | AU35: =ROUND((IF($C$47+$F$23>$AQ35,$F$27*$F$30,0)+IF($C$48+$G$23>AQ35,$G$27*$G$30,0)+IF($C$49+$H$23>AQ35,$H$27*$H$30,0))*AT35,0) -> 0 | AV35: =ROUND($C$33*(1+$C$34)^J35,3) -> 3.337 | AW35: =ROUND(AV35*M35,0) -> 0 | AZ35: =ROUND(AR35+AS35+AU35+AW35+AY35,0) -> 0 | BB35: 0 | BC35: 0 | BD35: =BB35+BC35 -> 0 | BE35: =AZ35-BD35 -> 0 | BH35: 2043 | BI35: 0 | BJ35: =+M35 -> 0 | BK35: =ROUND($C$10*(1+$C$11)^J35,3) -> 14.864 | BL35: =ROUND(BJ35*BK35,0) -> 0 | BM35: =ROUND($C$13*(1+$C$14)^J35,3) -> 0.241 | BN35: =ROUND((IF($C$47+$F$23>BH35,$F$27*$F$30,0)+IF($C$49+$H$23>BH35,$H$27*$H$30,0)+IF($C$48+$G$23>BH35,$G$27*$G$30,0))*BM35,0) -> 0 | BP35: =BI35+BL35+BN35+BO35 -> 0 | BR35: =+BC35 -> 0 | BT35: =BP35-BR35 -> 0 | BW35: 2043 | BX35: 0 | BY35: =U35 -> 0 | BZ35: =AU35 -> 0 | CA35: =SUM(BX35:BZ35) -> 0 | CC35: =BB35 -> 0 | CD35: =BC35 -> 0 | CE35: =SUM(CC35:CD35) -> 0 | CG35: =CA35-CE35 -> 0 | DB35: =$J21 -> 7
A36: 10) Non Gas Fuel Environmental Damage Factor = | C36: =+'Gas Input Table Summary'!$D$24 -> 0 | E36: 26) Distribution Delivery Charge | H36: =+'Gas Input Table Summary'!D58 -> 1.836 | J36: 22 | L36: 2044 | M36: 0 | N36: 8.348 | O36: 0 | P36: 0 | Q36: 0 | R36: 0 | S36: 0 | T36: 186 | U36: 0 | V36: 0 | W36: 3.518 | X36: 0 | Y36: 0 | Z36: 0 | AA36: 0 | AB36: 0 | AE36: 2044 | AF36: 0 | AG36: 0 | AH36: 0 | AJ36: 0 | AK36: 0 | AL36: 0 | AN36: 0 | AQ36: 2044 | AR36: 0 | AS36: 0 | AT36: 0.057 | AU36: 0 | AV36: 3.414 | AW36: 0 | AZ36: 0 | BB36: 0 | BC36: 0 | BD36: 0 | BE36: 0 | BH36: 2044 | BI36: 0 | BJ36: 0 | BK36: 15.31 | BL36: 0 | BM36: 0.248 | BN36: 0 | BP36: 0 | BR36: 0 | BT36: 0 | BW36: 2044 | BX36: 0 | BY36: 0 | BZ36: 0 | CA36: 0 | CC36: 0 | CD36: 0 | CE36: 0 | CG36: 0
A37: Escalation Rate = | C37: =+'Gas Input Table Summary'!$D$25 -> 0 | DB37: =$J22 -> 8
E38: 27) Effective Income Tax Rate = | H38: =+'Gas Input Table Summary'!D59 -> 0.21 | K38: Total = | M38: =SUM(M14:M36) -> 85160 | V38: =SUM(V14:V36) -> 638564 | AA38: =SUM(AA14:AA36) -> 249301 | AB38: =SUM(AB14:AB36) -> 389263 | AD38: Total = | AH38: =SUM(AH14:AH36) -> 638564 | AL38: =SUM(AL14:AL36) -> 83357 | AN38: =SUM(AN14:AN36) -> 555207 | AP38: Total = | AZ38: =SUM(AZ14:AZ36) -> 993812 | BD38: =SUM(BD14:BD36) -> 186253 | BE38: =SUM(BE14:BE36) -> 807559 | BG38: Total = | BJ38: =SUM(BJ14:BJ36) -> 85160 | BP38: =SUM(BP14:BP36) -> 1575614 | BR38: =SUM(BR14:BR36) -> 173696 | BT38: =SUM(BT14:BT36) -> 1401918 | BZ38: Total = | CA38: =SUM(CA14:CA36) -> 773141 | CE38: =SUM(CE14:CE36) -> 186253 | CG38: =SUM(CG14:CG36) -> 586888
A39: 11) Participant Discount Rate = | C39: =+'Gas Input Table Summary'!$D$26 -> 0.1032 | E39: (Federal & State Taxes) | T39: NPV = | V39: =ROUND(V14+NPV($C$41,V15:V36),0) -> 336778 | AA39: =ROUND(AA14+NPV($C$41,AA15:AA36),0) -> 170006 | AB39: =ROUND(AB14+NPV($C$41,AB15:AB36),0) -> 166772 | AG39: NPV = | AH39: =ROUND(AH14+NPV($C$41,AH15:AH36),0) -> 336778 | AL39: =ROUND(AL14+NPV($C$41,AL15:AL36),0) -> 83357 | AN39: =+AH39-AL39 -> 253421 | AW39: NPV = | AZ39: =ROUND(AZ14+NPV($C$43,AZ15:AZ36),0) -> 796831 | BD39: =ROUND(BD14+NPV($C$43,BD15:BD36),0) -> 186253 | BE39: =AZ39-BD39 -> 610578 | BN39: NPV = | BP39: =ROUND(BP14+NPV($C$39,BP15:BP36),0) -> 700897 | BR39: =ROUND(BR14+NPV($C$39,BR15:BR36),0) -> 173696 | BT39: =ROUND(BT14+NPV($C$39,BT15:BT36),0) -> 527201 | BZ39: NPV = | CA39: =ROUND(CA14+NPV($C$41,CA15:CA36),0) -> 407000 | CE39: =ROUND(CE14+NPV($C$41,CE15:CE36),0) -> 186253 | CG39: =ROUND(CG14+NPV($C$41,CG15:CG36),0) -> 220747
DB40: =$J23 -> 9
A41: 12) Utility Discount Rate = | C41: =+'Gas Input Table Summary'!$D$27 -> 0.07216 | E41: Test Results | F41: NPV | G41: B/C | K41: Total NPV = | N41: =AB39 -> 166772 | AD41: Total NPV = | AG41: =AN39 -> 253421 | AP41: Total NPV = | AS41: =BE39 -> 610578 | BG41: Total NPV = | BJ41: =BT39 -> 527201 | BV41: Total NPV = | BY41: =CG39 -> 220747 | DB41: =$J24 -> 10
E42: Ratepayer Impact Measure Test | F42: =N41 -> 166772 | G42: =N42 -> 1.98 | K42: Benefit/Cost Ratio = | N42: =ROUND(V39/AA39,2) -> 1.98 | AD42: Benefit/Cost Ratio = | AG42: =ROUND(AH39/AL39,2) -> 4.04 | AP42: Benefit/Cost Ratio = | AS42: =ROUND(AZ39/BD39,2) -> 4.28 | BG42: Benefit/Cost Ratio = | BJ42: =ROUND(BP39/BR39,2) -> 4.04 | BV42: Benefit/Cost Ratio = | BY42: =ROUND(CA39/CE39,2) -> 2.19 | DB42: =$J25 -> 11
A43: 13) Societal Discount Rate = | C43: =+'Gas Input Table Summary'!$D$28 -> 0.0224 | E43: Utility Cost Test | F43: =AG41 -> 253421 | G43: =AG42 -> 4.04 | DB43: =$J26 -> 12
E44: Societal Test | F44: =AS41 -> 610578 | G44: =AS42 -> 4.28 | J44: Worksheet Calculations | BV44: Worksheet Calculations
A45: 14) General Input Data Year = | C45: =+'Gas Input Table Summary'!$D$29 -> 2022 | E45: Participant Test | F45: =BJ41 -> 527201 | G45: =BJ42 -> 4.04 | J45: (A) | K45: = Average Dk/Participant Saved (21) x Number of Participants (23) for Project Life (20) | T45: (I) | U45: = (G) x (H) | AD45: Worksheet Calculations | AP45: Worksheet Calculations | BG45: Worksheet Calculations | BV45: (A) | BW45: = Table 1 (F)
E46: Total Resource Cost Test | F46: =BY41 -> 220747 | G46: =BY42 -> 2.19 | J46: (B) | K46: = Commodity Cost (3) escalated | T46: (J) | U46: = (F) + (I) | AD46: (A) | AE46: = Table 1 (F) | AP46: (A) | AQ46: = Table 1 (F) | AW46: (H) | AZ46: = Table 2 (F) | BG46: (A) | BH46: = Table 1 (N) | BL46: (G) | BM46: = (A) + (D) + (F) | BV46: (B) | BW46: = Table 1 (I)
A47: 15) Project Analysis Year 1 = | C47: =+'Total Program Inputs'!C6 -> 2022 | J47: (C) | K47: = (A) x (B) | T47: (K) | U47: = Distribution Delivery Charge (26) escalated. | AD47: (B) | AE47: = Table 1 (I) | AP47: (G) | AQ47: = Table 1 (I) | AW47: (I) | AZ47: = Direct Part. Costs (17) x No. of Part. (23) - Table 1 (N) | BG47: (B) | BH47: = Table 1 (A) | BL47: (H) | BM47: = Direct Participant Costs (17) x Number of Participants (23) | BV47: (C) | BW47: = Table 3 (D)
J48: (D) | K48: = Variable O&M Cost (6), escalated | T48: (L) | U48: = (A) x (K) x (1-Inverse of Tax Rate (27) | AD48: (C) | AE48: = Table 1 (J) | AP48: (C) | AQ48: = Non-Gas Fuel Cost (7), adjusted for losses (8), escalated.. | AW48: (J) | AZ48: = (H) + (I) | BG48: (C) | BH48: = Retail Rate (1) escalated. | BL48: (I) | BM48: = (G) - (H) | BV48: (D) | BW48: = (A) + (B) + (C)
J49: (E) | K49: = (A) x (D) | T49: (M) | U49: = Admin & Operating Costs (16a) | AD49: (D) | AE49: = Table 1 (M) | AP49: (D) | AQ49: = (C) x [Avg. Non-Gas Fuel Units/Part.Saved (22) x No. of Part. (23) | AW49: (K) | AZ49: = (G) - (J) | BG49: (D) | BH49: =(B) x (C) | BV49: (E) | BW49: = Table 3 (H) | DB49: =$J27 -> 13
J50: (F) | K50: = (C) + (E) | T50: (N) | U50: = Incentive Costs (16b) | AD50: (E) | AE50: = Table 1 (N) | AP50: (E) | AQ50: = Gas Environmental Damage Factor (9), escalated | BG50: (E) | BH50: = Non-Gas Fuel Retail Rate (2), escalated. | BV50: (F) | BW50: = Table 3 (I) | DB50: =$J28 -> 14
J51: (G) | K51: = (A) x Peak Reduction Factor (5) | T51: (O) | U51: = (L) + (M) + (N) | AD51: (F) | AE51: = (D) + (E) | AP51: (F) | AQ51: = Table 1 (A) x (E) | BG51: (F) | BH51: = (E) x [Avg. Non-Gas Fuel Units/Part.Saved (22) x No. of Part. (23) | BV51: (G) | BW51: = (E) + (F) | DB51: =$J29 -> 15
J52: (H) | K52: = Demand Cost (4) escalated. | T52: (P) | U52: = (J) - (O) | AD52: (G) | AE52: = (C) - (F) | AP52: (G) | AQ52: = (A) + (B) + (D) + (F) | BV52: (H) | BW52: = (D) - (G)

Sheet Programmable Tstats - Tier 1
A1: NATURAL GAS CONSERVATION PROGRAMS/DEMAND-SIDE MANAGEMENT | K1: Table 1 | AD1: Table 2 | AP1: Table 3 | BG1: Table 4 | BV1: Table 5
A2: BEN/COST ANALYSIS FOR GAS CONSERVATION | K2: Ratepayer Impact Measure Test | AD2: Utility Cost Test | AP2: Societal Test | BG2: Participant Test | BV2: Total Resource Cost Test
A4: Company: | B4: Montana-Dakota Utilities Co. | K4: Company: | M4: =B4 -> Montana-Dakota Utilities Co. | AD4: Company: | AF4: =B4 -> Montana-Dakota Utilities Co. | AP4: Company: | AR4: =AF4 -> Montana-Dakota Utilities Co. | BH4: Company: | BI4: =AR4 -> Montana-Dakota Utilities Co. | BW4: Company: | BX4: =BI4 -> Montana-Dakota Utilities Co.
A5: Project: | B5: ='Database Inputs'!A12 -> Programmable Thermostats - Tier 1 | K5: Project: | M5: =$B$5 -> Programmable Thermostats - Tier 1 | AD5: Project: | AF5: =$B$5 -> Programmable Thermostats - Tier 1 | AP5: Project: | AR5: =$B$5 -> Programmable Thermostats - Tier 1 | BH5: Project: | BI5: =$B$5 -> Programmable Thermostats - Tier 1 | BW5: Project: | BX5: =$B$5 -> Programmable Thermostats - Tier 1
A6: Program Years: | B6: ='Total Program'!$B$6 -> 2022
N7: Benefits | X7: Costs | AF7: Benefits | AJ7: Costs | AR7: Benefits | BB7: Costs | BI7: Benefits | BR7: Costs | BX7: Benefits | CC7: Costs
A8: Input Data | F8: =+'Total Program Inputs'!C6 -> 2022 | AB8: Annual | AN8: Annual | AT8: Non-Gas | BE8: Annual | BT8: Annual | CG8: Annual
M9: Total | N9: Gas | O9: Gas | P9: Variable | Q9: Variable | R9: Total | S9: Peak Dk | T9: Demand | U9: Total | W9: Distribution | Y9: Program | AA9: Total | AB9: Benefits | AF9: Total | AG9: Total | AH9: Annual | AJ9: Program | AL9: Utility | AN9: Benefits | AR9: Total | AS9: Total | AT9: Energy | AU9: Non-Gas | AV9: Environmental | AW9: Environmental | AZ9: Annual | BB9: Utility | BC9: Participants' | BD9: Annual | BE9: Benefits | BJ9: Total | BL9: Gas | BM9: Non-Gas | BN9: Non-Gas | BP9: Total | BR9: Direct | BT9: Benefits | BX9: Total | BY9: Total | BZ9: Non-Gas | CA9: Total | CC9: Utility | CD9: Participants' | CG9: Benefits
A10: 1) Retail Rate ($/Dk) = | C10: =+'Gas Input Table Summary'!$D$7 -> 7.99 | E10: 16) Utility Project Costs | M10: Energy | N10: Commodity | O10: Commodity | P10: O & M | Q10: O & M | R10: Energy | S10: Demand | T10: Savings | U10: Demand | V10: Total | W10: Delivery | X10: Lost | Y10: Admin | Z10: Incentive | AA10: Program | AB10: Less | AF10: Energy | AG10: Demand | AH10: Total | AJ10: Admin | AK10: Incentive | AL10: Program | AN10: Less | AR10: Energy | AS10: Demand | AT10: Savings | AU10: Energy | AV10: Damage | AW10: Damage | AZ10: Total | BB10: Program | BC10: Costs Net | BD10: Total | BE10: Less | BI10: Incentives | BJ10: Energy | BK10: Retail | BL10: Bill | BM10: Fuel | BN10: Energy | BP10: Annual | BR10: Participant | BT10: Less | BX10: Energy | BY10: Demand | BZ10: Energy | CA10: Annual | CC10: Program | CD10: Costs Net | CE10: Total | CG10: Less
A11: Escalation Rate = | C11: =+'Gas Input Table Summary'!$D$8 -> 0.03 | E11: 16a) Administrative & Operating Costs = | F11: =+'Total Program Inputs'!M13 -> 171 | J11: t | M11: Reduction | N11: Cost/Dk | O11: Savings | P11: Cost/Dk | Q11: Savings | R11: Savings | S11: Reduction | T11: Per Unit | U11: Savings | V11: Savings | W11: Charge | X11: Margin | Y11: Costs | Z11: Costs | AA11: Costs | AB11: Costs | AF11: Savings | AG11: Savings | AH11: Savings | AJ11: Costs | AK11: Costs | AL11: Costs | AN11: Costs | AR11: Savings | AS11: Savings | AT11: ($/Part.) | AU11: Savings | AV11: Savings/Dk | AW11: Savings | AZ11: Savings | BB11: Costs | BC11: of Rebate | BD11: Costs | BE11: Costs | BI11: Received | BJ11: Reduction | BK11: Rate | BL11: Savings | BM11: Retail Rate | BN11: Savings | BP11: Benefits | BR11: Costs | BT11: Costs | BX11: Savings | BY11: Savings | BZ11: Savings | CA11: Benefits | CC11: Costs | CD11: of Rebate | CE11: Costs | CG11: Costs
E12: 16b) Incentive Costs = | F12: =+'Total Program Inputs'!I13 -> 960 | L12: Year | M12: (A) | N12: (B) | O12: (C) | P12: (D) | Q12: (E) | R12: (F) | S12: (G) | T12: (H) | U12: (I) | V12: (J) | W12: (K) | X12: (L) | Y12: (M) | Z12: (N) | AA12: (O) | AB12: (P) | AE12: Year | AF12: (A) | AG12: (B) | AH12: (C) | AJ12: (D) | AK12: (E) | AL12: (F) | AN12: (G) | AQ12: Year | AR12: (A) | AS12: (B) | AT12: (C) | AU12: (D) | AV12: (E) | AW12: (F) | AZ12: (G) | BB12: (H) | BC12: (I) | BD12: (J) | BE12: (K) | BH12: Year | BI12: (A) | BJ12: (B) | BK12: (C) | BL12: (D) | BM12: (E) | BN12: (F) | BP12: (G) | BR12: (H) | BT12: (I) | BW12: Year | BX12: (A) | BY12: (B) | BZ12: (C) | CA12: (D) | CC12: (E) | CD12: (F) | CE12: (G) | CG12: (H)
A13: 2) Non-Gas Fuel Retail Rate ($/Fuel Unit) = | C13: =+'Gas Input Table Summary'!$D$9 -> 0.12936 | E13: 16c) Total Utility Project Costs = | F13: =SUM(F11:F12) -> 1131
A14: Escalation Rate = | C14: =+'Gas Input Table Summary'!$D$10 -> 0.03 | J14: =$C$47-$C$45 -> 0 | L14: =$C$47 -> 2022 | M14: =ROUND(IF($C$47+$F$23>L14,F25*F30,0),0) -> 147 | N14: =ROUND($C$17*(1+$C$18)^J14,3) -> 4.357 | O14: =ROUND(M14*N14,0) -> 640 | P14: =ROUND($C$25*(1+$C$26)^J14,3) -> 0 | Q14: =ROUND(M14*P14,0) -> 0 | R14: =O14+Q14 -> 640 | S14: =ROUND(M14*$C$23,1) -> 1.5 | T14: =ROUND($C$20*(1+$C$21)^J14,0) -> 149 | U14: =ROUND(S14*T14,0) -> 224 | V14: =ROUND(+U14+R14,0) -> 864 | W14: =ROUND($H$36*(1+$C$11)^J14,3) -> 1.836 | X14: =ROUND((1-$H$38)*(W14*M14),0) -> 213 | Y14: =ROUND($F$11,0) -> 171 | Z14: =ROUND($F$12,0) -> 960 | AA14: =SUM(X14:Z14) -> 1344 | AB14: =V14-AA14 -> -480 | AE14: =$C$47 -> 2022 | AF14: =+R14 -> 640 | AG14: =+U14 -> 224 | AH14: =+AG14+AF14 -> 864 | AJ14: =ROUND(Y14,0) -> 171 | AK14: =ROUND(Z14,0) -> 960 | AL14: =SUM(AJ14:AK14) -> 1131 | AN14: =+AH14-AL14 -> -267 | AQ14: =$C$47 -> 2022 | AR14: =AF14 -> 640 | AS14: =+AG14 -> 224 | AT14: =ROUND(($C$28/(1-$C$31))*(1+$C$29)^J14,3) -> 0.03 | AU14: =ROUND(IF($C$47+$F$23>$AQ14,$F$30*$F$27,0)*AT14,0) -> 0 | AV14: =ROUND($C$33*(1+$C$34)^J14,3) -> 2.07 | AW14: =ROUND(AV14*M14,0) -> 304 | AZ14: =ROUND(AR14+AS14+AU14+AW14+AY14,0) -> 1168 | BB14: =ROUND($F$13,0) -> 1131 | BC14: =ROUND((F15*F30)-Z14,0) -> 960 | BD14: =BB14+BC14 -> 2091 | BE14: =AZ14-BD14 -> -923 | BH14: =$C$47 -> 2022 | BI14: =+F12 -> 960 | BJ14: =+M14 -> 147 | BK14: =ROUND($C$10*(1+$C$11)^J14,3) -> 7.99 | BL14: =ROUND(BJ14*BK14,0) -> 1175 | BM14: =ROUND($C$13*(1+$C$14)^J14,3) -> 0.129 | BN14: =ROUND(IF($C$47+$F$23>$BH14,$F$30*$F$27,0)*BM14,0) -> 0 | BP14: =BI14+BL14+BN14+BO14 -> 2135 | BR14: =ROUND(F15*F30,0) -> 1920 | BT14: =BP14-BR14 -> 215 | BW14: =$C$47 -> 2022 | BX14: =$R14 -> 640 | BY14: =U14 -> 224 | BZ14: =AU14 -> 0 | CA14: =SUM(BX14:BZ14) -> 864 | CC14: =BB14 -> 1131 | CD14: =BC14 -> 960 | CE14: =SUM(CC14:CD14) -> 2091 | CG14: =CA14-CE14 -> -1227
A15: Non-Gas Fuel Units (ie. kWh,Gallons, etc) = | C15: =+'Gas Input Table Summary'!$D$11 -> Kwh | E15: 17) Direct Participant Costs ($/Part.) = | F15: =ROUND('Database Inputs'!K12,0) -> 30 | J15: =J14+1 -> 1 | L15: =L14+1 -> 2023 | M15: =ROUND(IF($C$47+$F$23>L15,$F$25*$F$30,0)+IF($C$48+$G$23>L15,$G$25*$G$30,0),0) -> 147 | N15: 4.488 | O15: 660 | P15: 0 | Q15: =ROUND(M15*P15,0) -> 0 | R15: 660 | S15: 1.5 | T15: 151 | U15: =ROUND(S15*T15,0) -> 227 | V15: =ROUND(+U15+R15,0) -> 887 | W15: =ROUND($H$36*(1+$C$11)^J15,3) -> 1.891 | X15: =ROUND((1-$H$38)*(W15*M15),0) -> 220 | Y15: =ROUND($G$11,0) -> 0 | Z15: =ROUND($G$12,0) -> 0 | AA15: =SUM(X15:Z15) -> 220 | AB15: 667 | AE15: =AE14+1 -> 2023 | AF15: 660 | AG15: 227 | AH15: =+AG15+AF15 -> 887 | AJ15: =ROUND(Y15,0) -> 0 | AK15: 0 | AL15: 0 | AN15: =+AH15-AL15 -> 887 | AQ15: =AQ14+1 -> 2023 | AR15: 660 | AS15: 227 | AT15: 0.03 | AU15: =ROUND((IF($C$47+$F$23>$AQ15,$F$27*$F$30,0)+IF($C$48+$G$23>AQ15,$G$27*$G$30,0))*AT15,0) -> 0 | AV15: 2.118 | AW15: 311 | AZ15: =ROUND(AR15+AS15+AU15+AW15+AY15,0) -> 1198 | BB15: =ROUND($G$13,0) -> 0 | BC15: =ROUND(($G$15*$G$30)-$Z$15,0) -> 0 | BD15: =BB15+BC15 -> 0 | BE15: =AZ15-BD15 -> 1198 | BH15: =BH14+1 -> 2023 | BI15: =+G12 -> 0 | BJ15: 147 | BK15: 8.23 | BL15: =ROUND(BJ15*BK15,0) -> 1210 | BM15: 0.133 | BN15: =ROUND((IF($C$47+$F$23>BH15,$F$27*$F$30,0)+IF($C$48+$G$23>BH15,$G$27*$G$30,0))*BM15,0) -> 0 | BP15: 1210 | BR15: =ROUND($G$15*$G$30,0) -> 0 | BT15: =BP15-BR15 -> 1210 | BW15: =BW14+1 -> 2023 | BX15: 660 | BY15: =U15 -> 227 | BZ15: =AU15 -> 0 | CA15: =SUM(BX15:BZ15) -> 887 | CC15: =BB15 -> 0 | CD15: 0 | CE15: =SUM(CC15:CD15) -> 0 | CG15: =CA15-CE15 -> 887
J16: 2 | L16: 2024 | M16: =ROUND(IF($C$47+$F$23>L16,$F$25*$F$30,0)+IF($C$48+$G$23>L16,$G$25*$G$30,0)+IF($C$49+$H$23>L16,$H$25*$H$30,0),0) -> 147 | N16: 4.622 | O16: 679 | P16: 0 | Q16: 0 | R16: 679 | S16: 1.5 | T16: =ROUND($C$20*(1+$C$21)^J16,0) -> 152 | U16: =ROUND(S16*T16,0) -> 228 | V16: =ROUND(+U16+R16,0) -> 907 | W16: =ROUND($H$36*(1+$C$11)^J16,3) -> 1.948 | X16: =ROUND((1-$H$38)*(W16*M16),0) -> 226 | Y16: =ROUND($H$11,0) -> 0 | Z16: =ROUND($H$12,0) -> 0 | AA16: =SUM(X16:Z16) -> 226 | AB16: =V16-AA16 -> 681 | AE16: 2024 | AF16: 679 | AG16: 228 | AH16: =+AG16+AF16 -> 907 | AJ16: 0 | AK16: 0 | AL16: =SUM(AJ16:AK16) -> 0 | AN16: =+AH16-AL16 -> 907 | AQ16: 2024 | AR16: 679 | AS16: 228 | AT16: =ROUND(($C$28/(1-$C$31))*(1+$C$29)^J16,3) -> 0.031 | AU16: =ROUND((IF($C$47+$F$23>$AQ16,$F$27*$F$30,0)+IF($C$48+$G$23>AQ16,$G$27*$G$30,0)+IF($C$49+$H$23>AQ16,$H$27*$H$30,0))*AT16,0) -> 0 | AV16: =ROUND($C$33*(1+$C$34)^J16,3) -> 2.166 | AW16: =ROUND(AV16*M16,0) -> 318 | AZ16: =ROUND(AR16+AS16+AU16+AW16+AY16,0) -> 1225 | BB16: =ROUND($H$13,0) -> 0 | BC16: =ROUND(($H$15*$H$30)-$Z$16,0) -> 0 | BD16: =BB16+BC16 -> 0 | BE16: 1225 | BH16: 2024 | BI16: =ROUND(H12,0) -> 0 | BJ16: 147 | BK16: =ROUND($C$10*(1+$C$11)^J16,3) -> 8.477 | BL16: =ROUND(BJ16*BK16,0) -> 1246 | BM16: =ROUND($C$13*(1+$C$14)^J16,3) -> 0.137 | BN16: =ROUND((IF($C$47+$F$23>BH16,$F$27*$F$30,0)+IF($C$49+$H$23>BH16,$H$27*$H$30,0)+IF($C$48+$G$23>BH16,$G$27*$G$30,0))*BM16,0) -> 0 | BP16: =BI16+BL16+BN16+BO16 -> 1246 | BR16: =ROUND($H$15*$H$30,0) -> 0 | BT16: =BP16-BR16 -> 1246 | BW16: 2024 | BX16: 679 | BY16: 228 | BZ16: 0 | CA16: 907 | CC16: 0 | CD16: 0 | CE16: =SUM(CC16:CD16) -> 0 | CG16: =CA16-CE16 -> 907
A17: 3) Commodity Cost ($/Dk) = | C17: =+'Gas Input Table Summary'!$D$12 -> 4.357 | E17: 18) Participant Non-Energy Costs (Annual $/Part.) = | F17: =+'Gas Input Table Summary'!$D$35 -> 0 | J17: 3 | L17: 2025 | M17: =ROUND(IF($C$47+$F$23>L17,$F$25*$F$30,0)+IF($C$48+$G$23>L17,$G$25*$G$30,0)+IF($C$49+$H$23>L17,$H$25*$H$30,0),0) -> 147 | N17: =ROUND($C$17*(1+$C$18)^J17,3) -> 4.761 | O17: 700 | P17: 0 | Q17: 0 | R17: 700 | S17: 1.5 | T17: 154 | U17: =ROUND(S17*T17,0) -> 231 | V17: 931 | W17: 2.006 | X17: 233 | Y17: 0 | Z17: 0 | AA17: 233 | AB17: 698 | AE17: 2025 | AF17: 700 | AG17: 231 | AH17: 931 | AJ17: 0 | AK17: 0 | AL17: 0 | AN17: 931 | AQ17: 2025 | AR17: 700 | AS17: 231 | AT17: 0.032 | AU17: =ROUND((IF($C$47+$F$23>$AQ17,$F$27*$F$30,0)+IF($C$48+$G$23>AQ17,$G$27*$G$30,0)+IF($C$49+$H$23>AQ17,$H$27*$H$30,0))*AT17,0) -> 0 | AV17: 2.216 | AW17: 326 | AZ17: 1257 | BB17: 0 | BC17: 0 | BD17: 0 | BE17: 1257 | BH17: 2025 | BI17: 0 | BJ17: 147 | BK17: 8.731 | BL17: =ROUND(BJ17*BK17,0) -> 1283 | BM17: 0.141 | BN17: =ROUND((IF($C$47+$F$23>BH17,$F$27*$F$30,0)+IF($C$49+$H$23>BH17,$H$27*$H$30,0)+IF($C$48+$G$23>BH17,$G$27*$G$30,0))*BM17,0) -> 0 | BP17: 1283 | BR17: =+BC17 -> 0 | BT17: 1283 | BW17: 2025 | BX17: 700 | BY17: 231 | BZ17: 0 | CA17: 931 | CC17: 0 | CD17: 0 | CE17: 0 | CG17: =CA17-CE17 -> 931
A18: Escalation Rate = | C18: =+'Gas Input Table Summary'!$D$13 -> 0.03 | E18: Escalation Rate = | F18: =+'Gas Input Table Summary'!$D$38 -> 0 | J18: 4 | L18: 2026 | M18: 147 | N18: 4.904 | O18: 721 | P18: 0 | Q18: 0 | R18: 721 | S18: 1.5 | T18: 155 | U18: 233 | V18: 954 | W18: 2.066 | X18: 240 | Y18: 0 | Z18: 0 | AA18: 240 | AB18: 714 | AE18: 2026 | AF18: 721 | AG18: 233 | AH18: 954 | AJ18: 0 | AK18: 0 | AL18: 0 | AN18: 954 | AQ18: 2026 | AR18: 721 | AS18: 233 | AT18: 0.033 | AU18: =ROUND((IF($C$47+$F$23>$AQ18,$F$27*$F$30,0)+IF($C$48+$G$23>AQ18,$G$27*$G$30,0)+IF($C$49+$H$23>AQ18,$H$27*$H$30,0))*AT18,0) -> 0 | AV18: 2.267 | AW18: 333 | AZ18: 1287 | BB18: 0 | BC18: 0 | BD18: 0 | BE18: 1287 | BH18: 2026 | BI18: 0 | BJ18: 147 | BK18: 8.993 | BL18: 1322 | BM18: 0.146 | BN18: 0 | BP18: 1322 | BR18: 0 | BT18: 1322 | BW18: 2026 | BX18: 721 | BY18: 233 | BZ18: 0 | CA18: 954 | CC18: 0 | CD18: 0 | CE18: 0 | CG18: 954 | DB18: t
J19: 5 | L19: 2027 | M19: 147 | N19: =ROUND($C$17*(1+$C$18)^J19,3) -> 5.051 | O19: =ROUND(M19*N19,0) -> 742 | P19: 0 | Q19: 0 | R19: =O19+Q19 -> 742 | S19: =ROUND(M19*$C$23,1) -> 1.5 | T19: 157 | U19: 236 | V19: 978 | W19: 2.128 | X19: 247 | Y19: 0 | Z19: 0 | AA19: 247 | AB19: 731 | AE19: 2027 | AF19: 742 | AG19: 236 | AH19: 978 | AJ19: 0 | AK19: 0 | AL19: 0 | AN19: 978 | AQ19: 2027 | AR19: 742 | AS19: 236 | AT19: 0.034 | AU19: 0 | AV19: =ROUND($C$33*(1+$C$34)^J19,3) -> 2.319 | AW19: 341 | AZ19: 1319 | BB19: 0 | BC19: 0 | BD19: 0 | BE19: 1319 | BH19: 2027 | BI19: 0 | BJ19: 147 | BK19: 9.263 | BL19: 1362 | BM19: 0.15 | BN19: 0 | BP19: 1362 | BR19: 0 | BT19: 1362 | BW19: 2027 | BX19: 742 | BY19: 236 | BZ19: 0 | CA19: 978 | CC19: 0 | CD19: 0 | CE19: 0 | CG19: 978
A20: 4) Demand Cost ($/Unit/Yr) = | C20: =+'Gas Input Table Summary'!$D$14 -> 149.39 | E20: 19) Participant Non-Energy Savings (Annual $/Part) = | F20: =+'Gas Input Table Summary'!$D$41 -> 0 | J20: 6 | L20: 2028 | M20: 147 | N20: 5.202 | O20: 765 | P20: 0 | Q20: 0 | R20: 765 | S20: 1.5 | T20: 159 | U20: 239 | V20: 1004 | W20: 2.192 | X20: 255 | Y20: 0 | Z20: 0 | AA20: 255 | AB20: 749 | AE20: 2028 | AF20: 765 | AG20: 239 | AH20: 1004 | AJ20: 0 | AK20: 0 | AL20: 0 | AN20: 1004 | AQ20: 2028 | AR20: 765 | AS20: 239 | AT20: 0.035 | AU20: 0 | AV20: 2.373 | AW20: 349 | AZ20: 1353 | BB20: 0 | BC20: 0 | BD20: 0 | BE20: 1353 | BH20: 2028 | BI20: 0 | BJ20: 147 | BK20: 9.54 | BL20: 1402 | BM20: 0.154 | BN20: 0 | BP20: 1402 | BR20: 0 | BT20: 1402 | BW20: 2028 | BX20: 765 | BY20: 239 | BZ20: 0 | CA20: =SUM(BX20:BZ20) -> 1004 | CC20: 0 | CD20: 0 | CE20: 0 | CG20: 1004
A21: Escalation Rate = | C21: =+'Gas Input Table Summary'!$D$15 -> 0.01 | E21: Escalation Rate = | F21: =+'Gas Input Table Summary'!$D$44 -> 0 | J21: 7 | L21: 2029 | M21: 147 | N21: 5.359 | O21: 788 | P21: 0 | Q21: 0 | R21: 788 | S21: 1.5 | T21: 160 | U21: 240 | V21: 1028 | W21: 2.258 | X21: 262 | Y21: 0 | Z21: 0 | AA21: 262 | AB21: 766 | AE21: 2029 | AF21: 788 | AG21: 240 | AH21: 1028 | AJ21: 0 | AK21: 0 | AL21: 0 | AN21: 1028 | AQ21: 2029 | AR21: 788 | AS21: 240 | AT21: 0.036 | AU21: 0 | AV21: 2.427 | AW21: 357 | AZ21: 1385 | BB21: 0 | BC21: 0 | BD21: 0 | BE21: 1385 | BH21: 2029 | BI21: 0 | BJ21: 147 | BK21: 9.827 | BL21: 1445 | BM21: 0.159 | BN21: 0 | BP21: 1445 | BR21: 0 | BT21: 1445 | BW21: 2029 | BX21: 788 | BY21: 240 | BZ21: 0 | CA21: 1028 | CC21: 0 | CD21: 0 | CE21: 0 | CG21: 1028 | DB21: =$J14 -> 0
J22: 8 | L22: 2030 | M22: 147 | N22: 5.519 | O22: 811 | P22: 0 | Q22: 0 | R22: 811 | S22: 1.5 | T22: 162 | U22: 243 | V22: 1054 | W22: 2.326 | X22: 270 | Y22: 0 | Z22: 0 | AA22: 270 | AB22: 784 | AE22: 2030 | AF22: 811 | AG22: 243 | AH22: 1054 | AJ22: 0 | AK22: 0 | AL22: 0 | AN22: 1054 | AQ22: 2030 | AR22: 811 | AS22: 243 | AT22: 0.037 | AU22: 0 | AV22: 2.483 | AW22: 365 | AZ22: 1419 | BB22: 0 | BC22: 0 | BD22: 0 | BE22: 1419 | BH22: 2030 | BI22: 0 | BJ22: 147 | BK22: 10.121 | BL22: 1488 | BM22: 0.164 | BN22: 0 | BP22: 1488 | BR22: 0 | BT22: 1488 | BW22: 2030 | BX22: 811 | BY22: 243 | BZ22: 0 | CA22: 1054 | CC22: 0 | CD22: 0 | CE22: 0 | CG22: 1054 | DB22: =$J15 -> 1
A23: 5) Peak Reduction Factor = | C23: =+'Gas Input Table Summary'!$D$16 -> 0.01 | E23: 20) Project Life (Years) = | F23: =ROUND('Database Inputs'!D12,0) -> 10 | J23: 9 | L23: 2031 | M23: 147 | N23: 5.685 | O23: 836 | P23: 0 | Q23: 0 | R23: 836 | S23: 1.5 | T23: 163 | U23: 245 | V23: 1081 | W23: 2.396 | X23: 278 | Y23: 0 | Z23: 0 | AA23: 278 | AB23: 803 | AE23: 2031 | AF23: 836 | AG23: 245 | AH23: 1081 | AJ23: 0 | AK23: 0 | AL23: 0 | AN23: 1081 | AQ23: 2031 | AR23: 836 | AS23: 245 | AT23: 0.039 | AU23: 0 | AV23: 2.54 | AW23: 373 | AZ23: 1454 | BB23: 0 | BC23: 0 | BD23: 0 | BE23: 1454 | BH23: 2031 | BI23: 0 | BJ23: 147 | BK23: 10.425 | BL23: 1532 | BM23: 0.169 | BN23: 0 | BP23: 1532 | BR23: 0 | BT23: 1532 | BW23: 2031 | BX23: 836 | BY23: 245 | BZ23: 0 | CA23: 1081 | CC23: 0 | CD23: 0 | CE23: 0 | CG23: 1081 | DB23: =$J16 -> 2
J24: 10 | L24: 2032 | M24: =ROUND(IF($C$47+$F$23>L24,$F$25*$F$30,0)+IF($C$48+$G$23>L24,$G$25*$G$30,0)+IF($C$49+$H$23>L24,$H$25*$H$30,0),0) -> 0 | N24: 5.855 | O24: 0 | P24: 0 | Q24: 0 | R24: 0 | S24: 0 | T24: 165 | U24: 0 | V24: 0 | W24: 2.467 | X24: 0 | Y24: 0 | Z24: 0 | AA24: 0 | AB24: 0 | AE24: 2032 | AF24: 0 | AG24: 0 | AH24: 0 | AJ24: 0 | AK24: 0 | AL24: 0 | AN24: 0 | AQ24: 2032 | AR24: 0 | AS24: 0 | AT24: 0.04 | AU24: 0 | AV24: 2.599 | AW24: 0 | AZ24: 0 | BB24: 0 | BC24: 0 | BD24: 0 | BE24: 0 | BH24: 2032 | BI24: 0 | BJ24: 0 | BK24: 10.738 | BL24: 0 | BM24: 0.174 | BN24: 0 | BP24: 0 | BR24: 0 | BT24: 0 | BW24: 2032 | BX24: 0 | BY24: 0 | BZ24: 0 | CA24: 0 | CC24: 0 | CD24: 0 | CE24: 0 | CG24: 0 | DB24: =$J17 -> 3
A25: 6) Variable O&M ($/Dk) = | C25: =+'Gas Input Table Summary'!$D$17 -> 0 | E25: 21) Avg. Dk/Part. Saved = | F25: =+ROUND(F32/F30,3) -> 2.297 | J25: 11 | L25: 2033 | M25: =ROUND(IF($C$47+$F$23>L25,$F$25*$F$30,0)+IF($C$48+$G$23>L25,$G$25*$G$30,0)+IF($C$49+$H$23>L25,$H$25*$H$30,0),0) -> 0 | N25: =ROUND($C$17*(1+$C$18)^J25,3) -> 6.031 | O25: =ROUND(M25*N25,0) -> 0 | P25: 0 | Q25: 0 | R25: 0 | S25: =ROUND(M25*$C$23,1) -> 0 | T25: =ROUND($C$20*(1+$C$21)^J25,0) -> 167 | U25: 0 | V25: 0 | W25: 2.541 | X25: 0 | Y25: 0 | Z25: 0 | AA25: 0 | AB25: 0 | AE25: 2033 | AF25: 0 | AG25: 0 | AH25: 0 | AJ25: 0 | AK25: 0 | AL25: 0 | AN25: 0 | AQ25: 2033 | AR25: 0 | AS25: 0 | AT25: 0.041 | AU25: 0 | AV25: 2.658 | AW25: 0 | AZ25: 0 | BB25: 0 | BC25: 0 | BD25: 0 | BE25: 0 | BH25: 2033 | BI25: 0 | BJ25: 0 | BK25: 11.06 | BL25: 0 | BM25: 0.179 | BN25: 0 | BP25: 0 | BR25: 0 | BT25: 0 | BW25: 2033 | BX25: 0 | BY25: 0 | BZ25: 0 | CA25: 0 | CC25: 0 | CD25: 0 | CE25: 0 | CG25: 0
A26: Escalation Rate = | C26: =+'Gas Input Table Summary'!$D$18 -> 0 | J26: 12 | L26: 2034 | M26: 0 | N26: 6.212 | O26: 0 | P26: 0 | Q26: 0 | R26: 0 | S26: 0 | T26: 168 | U26: 0 | V26: 0 | W26: 2.618 | X26: 0 | Y26: 0 | Z26: 0 | AA26: 0 | AB26: 0 | AE26: 2034 | AF26: 0 | AG26: 0 | AH26: 0 | AJ26: 0 | AK26: 0 | AL26: 0 | AN26: 0 | AQ26: 2034 | AR26: 0 | AS26: 0 | AT26: 0.042 | AU26: 0 | AV26: 2.719 | AW26: 0 | AZ26: 0 | BB26: 0 | BC26: 0 | BD26: 0 | BE26: 0 | BH26: 2034 | BI26: 0 | BJ26: 0 | BK26: 11.392 | BL26: 0 | BM26: 0.184 | BN26: 0 | BP26: 0 | BR26: 0 | BT26: 0 | BW26: 2034 | BX26: 0 | BY26: 0 | BZ26: 0 | CA26: 0 | CC26: 0 | CD26: 0 | CE26: 0 | CG26: 0
E27: 22) Avg Non-Gas Fuel Units/Part. Saved = | F27: =+'Database Inputs'!H12 -> 0 | J27: 13 | L27: 2035 | M27: 0 | N27: =ROUND($C$17*(1+$C$18)^J27,3) -> 6.398 | O27: 0 | P27: 0 | Q27: 0 | R27: 0 | S27: 0 | T27: 170 | U27: 0 | V27: 0 | W27: 2.696 | X27: 0 | Y27: 0 | Z27: 0 | AA27: 0 | AB27: 0 | AE27: 2035 | AF27: 0 | AG27: 0 | AH27: 0 | AJ27: 0 | AK27: 0 | AL27: 0 | AN27: 0 | AQ27: 2035 | AR27: 0 | AS27: 0 | AT27: 0.043 | AU27: 0 | AV27: 2.782 | AW27: 0 | AZ27: 0 | BB27: 0 | BC27: 0 | BD27: 0 | BE27: 0 | BH27: 2035 | BI27: 0 | BJ27: 0 | BK27: 11.734 | BL27: 0 | BM27: 0.19 | BN27: 0 | BP27: 0 | BR27: 0 | BT27: 0 | BW27: 2035 | BX27: 0 | BY27: 0 | BZ27: 0 | CA27: 0 | CC27: 0 | CD27: 0 | CE27: 0 | CG27: 0
A28: 7) Non-Gas Fuel Cost ($/Fuel Unit) = | C28: =+'Gas Input Table Summary'!$D$19 -> 0.02736 | E28: 22a) Avg Additional Non-Gas Fuel Units/ Part. Used = | F28: 0 | J28: 14 | L28: 2036 | M28: 0 | N28: 6.59 | O28: 0 | P28: 0 | Q28: 0 | R28: 0 | S28: 0 | T28: 172 | U28: 0 | V28: 0 | W28: 2.777 | X28: 0 | Y28: 0 | Z28: 0 | AA28: 0 | AB28: 0 | AE28: 2036 | AF28: 0 | AG28: 0 | AH28: 0 | AJ28: 0 | AK28: 0 | AL28: 0 | AN28: 0 | AQ28: 2036 | AR28: 0 | AS28: 0 | AT28: 0.045 | AU28: 0 | AV28: 2.846 | AW28: 0 | AZ28: 0 | BB28: 0 | BC28: 0 | BD28: 0 | BE28: 0 | BH28: 2036 | BI28: 0 | BJ28: 0 | BK28: 12.086 | BL28: 0 | BM28: 0.196 | BN28: 0 | BP28: 0 | BR28: 0 | BT28: 0 | BW28: 2036 | BX28: 0 | BY28: 0 | BZ28: 0 | CA28: 0 | CC28: 0 | CD28: 0 | CE28: 0 | CG28: 0
A29: Escalation Rate = | C29: =+'Gas Input Table Summary'!$D$20 -> 0.03 | J29: 15 | L29: 2037 | M29: 0 | N29: 6.788 | O29: 0 | P29: 0 | Q29: 0 | R29: 0 | S29: 0 | T29: 173 | U29: 0 | V29: 0 | W29: 2.86 | X29: 0 | Y29: 0 | Z29: 0 | AA29: 0 | AB29: 0 | AE29: 2037 | AF29: 0 | AG29: 0 | AH29: 0 | AJ29: 0 | AK29: 0 | AL29: 0 | AN29: 0 | AQ29: 2037 | AR29: 0 | AS29: 0 | AT29: 0.046 | AU29: 0 | AV29: 2.911 | AW29: 0 | AZ29: 0 | BB29: 0 | BC29: 0 | BD29: 0 | BE29: 0 | BH29: 2037 | BI29: 0 | BJ29: 0 | BK29: 12.448 | BL29: 0 | BM29: 0.202 | BN29: 0 | BP29: 0 | BR29: 0 | BT29: 0 | BW29: 2037 | BX29: 0 | BY29: 0 | BZ29: 0 | CA29: 0 | CC29: 0 | CD29: 0 | CE29: 0 | CG29: 0
E30: 23) Number of Participants = | F30: =ROUND('Database Inputs'!C12,0) -> 64 | J30: 16 | L30: 2038 | M30: 0 | N30: 6.992 | O30: 0 | P30: 0 | Q30: 0 | R30: 0 | S30: 0 | T30: 175 | U30: 0 | V30: 0 | W30: 2.946 | X30: 0 | Y30: 0 | Z30: 0 | AA30: 0 | AB30: 0 | AE30: 2038 | AF30: 0 | AG30: 0 | AH30: 0 | AJ30: 0 | AK30: 0 | AL30: 0 | AN30: 0 | AQ30: 2038 | AR30: 0 | AS30: 0 | AT30: 0.047 | AU30: 0 | AV30: 2.978 | AW30: 0 | AZ30: 0 | BB30: 0 | BC30: 0 | BD30: 0 | BE30: 0 | BH30: 2038 | BI30: 0 | BJ30: 0 | BK30: 12.822 | BL30: 0 | BM30: 0.208 | BN30: 0 | BP30: 0 | BR30: 0 | BT30: 0 | BW30: 2038 | BX30: 0 | BY30: 0 | BZ30: 0 | CA30: 0 | CC30: 0 | CD30: 0 | CE30: 0 | CG30: 0 | DB30: =$J18 -> 4
A31: 8) Non-Gas Fuel Loss Factor | C31: =+'Gas Input Table Summary'!$D$21 -> 0.073 | J31: 17 | L31: 2039 | M31: 0 | N31: 7.201 | O31: 0 | P31: 0 | Q31: 0 | R31: 0 | S31: 0 | T31: 177 | U31: 0 | V31: 0 | W31: 3.035 | X31: 0 | Y31: 0 | Z31: 0 | AA31: 0 | AB31: 0 | AE31: 2039 | AF31: 0 | AG31: 0 | AH31: 0 | AJ31: 0 | AK31: 0 | AL31: 0 | AN31: 0 | AQ31: 2039 | AR31: 0 | AS31: 0 | AT31: 0.049 | AU31: 0 | AV31: 3.047 | AW31: 0 | AZ31: 0 | BB31: 0 | BC31: 0 | BD31: 0 | BE31: 0 | BH31: 2039 | BI31: 0 | BJ31: 0 | BK31: 13.206 | BL31: 0 | BM31: 0.214 | BN31: 0 | BP31: 0 | BR31: 0 | BT31: 0 | BW31: 2039 | BX31: 0 | BY31: 0 | BZ31: 0 | CA31: 0 | CC31: 0 | CD31: 0 | CE31: 0 | CG31: 0 | DB31: =$J19 -> 5
E32: 24) Total Annual Dk Saved = | F32: =+'Total Program Inputs'!G13 -> 147 | J32: 18 | L32: 2040 | M32: 0 | N32: 7.418 | O32: 0 | P32: 0 | Q32: 0 | R32: 0 | S32: 0 | T32: 179 | U32: 0 | V32: 0 | W32: 3.126 | X32: 0 | Y32: 0 | Z32: 0 | AA32: 0 | AB32: 0 | AE32: 2040 | AF32: 0 | AG32: 0 | AH32: 0 | AJ32: 0 | AK32: 0 | AL32: 0 | AN32: 0 | AQ32: 2040 | AR32: 0 | AS32: 0 | AT32: 0.05 | AU32: 0 | AV32: 3.117 | AW32: 0 | AZ32: 0 | BB32: 0 | BC32: 0 | BD32: 0 | BE32: 0 | BH32: 2040 | BI32: 0 | BJ32: 0 | BK32: 13.602 | BL32: 0 | BM32: 0.22 | BN32: 0 | BP32: 0 | BR32: 0 | BT32: 0 | BW32: 2040 | BX32: 0 | BY32: 0 | BZ32: 0 | CA32: 0 | CC32: 0 | CD32: 0 | CE32: 0 | CG32: 0 | DB32: =$J20 -> 6
A33: 9) Gas Environmental Damage Factor = | C33: =+'Gas Input Table Summary'!$D$22 -> 2.07 | J33: 19 | L33: 2041 | M33: 0 | N33: 7.64 | O33: 0 | P33: 0 | Q33: 0 | R33: 0 | S33: 0 | T33: 180 | U33: 0 | V33: 0 | W33: 3.219 | X33: 0 | Y33: 0 | Z33: 0 | AA33: 0 | AB33: 0 | AE33: 2041 | AF33: 0 | AG33: 0 | AH33: 0 | AJ33: 0 | AK33: 0 | AL33: 0 | AN33: 0 | AQ33: 2041 | AR33: 0 | AS33: 0 | AT33: 0.052 | AU33: 0 | AV33: 3.189 | AW33: 0 | AZ33: 0 | BB33: 0 | BC33: 0 | BD33: 0 | BE33: 0 | BH33: 2041 | BI33: 0 | BJ33: 0 | BK33: 14.011 | BL33: 0 | BM33: 0.227 | BN33: 0 | BP33: 0 | BR33: 0 | BT33: 0 | BW33: 2041 | BX33: 0 | BY33: 0 | BZ33: 0 | CA33: 0 | CC33: 0 | CD33: 0 | CE33: 0 | CG33: 0
A34: Escalation Rate = | C34: =+'Gas Input Table Summary'!$D$23 -> 0.023 | E34: 25) Incentive/Participant = | F34: ='Database Inputs'!L12 -> 15 | J34: 20 | L34: 2042 | M34: 0 | N34: 7.869 | O34: 0 | P34: 0 | Q34: 0 | R34: 0 | S34: 0 | T34: 182 | U34: 0 | V34: 0 | W34: 3.316 | X34: 0 | Y34: 0 | Z34: 0 | AA34: 0 | AB34: 0 | AE34: 2042 | AF34: 0 | AG34: 0 | AH34: 0 | AJ34: 0 | AK34: 0 | AL34: 0 | AN34: 0 | AQ34: 2042 | AR34: 0 | AS34: 0 | AT34: 0.053 | AU34: 0 | AV34: 3.262 | AW34: 0 | AZ34: 0 | BB34: 0 | BC34: 0 | BD34: 0 | BE34: 0 | BH34: 2042 | BI34: 0 | BJ34: 0 | BK34: 14.431 | BL34: 0 | BM34: 0.234 | BN34: 0 | BP34: 0 | BR34: 0 | BT34: 0 | BW34: 2042 | BX34: 0 | BY34: 0 | BZ34: 0 | CA34: 0 | CC34: 0 | CD34: 0 | CE34: 0 | CG34: 0
J35: 21 | L35: 2043 | M35: =ROUND(IF($C$47+$F$23>L35,$F$25*$F$30,0)+IF($C$48+$G$23>L35,$G$25*$G$30,0)+IF($C$49+$H$23>L35,$H$25*$H$30,0),0) -> 0 | N35: =ROUND($C$17*(1+$C$18)^J35,3) -> 8.105 | O35: =ROUND(M35*N35,0) -> 0 | P35: =ROUND($C$25*(1+$C$26)^J35,3) -> 0 | Q35: =ROUND(M35*P35,0) -> 0 | R35: =O35+Q35 -> 0 | S35: =ROUND(M35*$C$23,1) -> 0 | T35: =ROUND($C$20*(1+$C$21)^J35,0) -> 184 | U35: =ROUND(S35*T35,0) -> 0 | V35: =ROUND(+U35+R35,0) -> 0 | W35: =ROUND($H$36*(1+$C$11)^J35,3) -> 3.416 | X35: =ROUND((1-$H$38)*(W35*M35),0) -> 0 | Y35: 0 | Z35: 0 | AA35: =SUM(X35:Z35) -> 0 | AB35: =V35-AA35 -> 0 | AE35: 2043 | AF35: =+R35 -> 0 | AG35: =+U35 -> 0 | AH35: =+AG35+AF35 -> 0 | AJ35: =ROUND(Y35,0) -> 0 | AK35: =ROUND(Z35,0) -> 0 | AL35: =SUM(AJ35:AK35) -> 0 | AN35: =+AH35-AL35 -> 0 | AQ35: 2043 | AR35: =AF35 -> 0 | AS35: =+AG35 -> 0 | AT35: =ROUND(($C$28/(1-$C$31))*(1+$C$29)^J35,3) -> 0.055 | AU35: =ROUND((IF($C$47+$F$23>$AQ35,$F$27*$F$30,0)+IF($C$48+$G$23>AQ35,$G$27*$G$30,0)+IF($C$49+$H$23>AQ35,$H$27*$H$30,0))*AT35,0) -> 0 | AV35: =ROUND($C$33*(1+$C$34)^J35,3) -> 3.337 | AW35: =ROUND(AV35*M35,0) -> 0 | AZ35: =ROUND(AR35+AS35+AU35+AW35+AY35,0) -> 0 | BB35: 0 | BC35: 0 | BD35: =BB35+BC35 -> 0 | BE35: =AZ35-BD35 -> 0 | BH35: 2043 | BI35: 0 | BJ35: =+M35 -> 0 | BK35: =ROUND($C$10*(1+$C$11)^J35,3) -> 14.864 | BL35: =ROUND(BJ35*BK35,0) -> 0 | BM35: =ROUND($C$13*(1+$C$14)^J35,3) -> 0.241 | BN35: =ROUND((IF($C$47+$F$23>BH35,$F$27*$F$30,0)+IF($C$49+$H$23>BH35,$H$27*$H$30,0)+IF($C$48+$G$23>BH35,$G$27*$G$30,0))*BM35,0) -> 0 | BP35: =BI35+BL35+BN35+BO35 -> 0 | BR35: =+BC35 -> 0 | BT35: =BP35-BR35 -> 0 | BW35: 2043 | BX35: 0 | BY35: =U35 -> 0 | BZ35: =AU35 -> 0 | CA35: =SUM(BX35:BZ35) -> 0 | CC35: =BB35 -> 0 | CD35: =BC35 -> 0 | CE35: =SUM(CC35:CD35) -> 0 | CG35: =CA35-CE35 -> 0 | DB35: =$J21 -> 7
A36: 10) Non Gas Fuel Environmental Damage Factor = | C36: =+'Gas Input Table Summary'!$D$24 -> 0 | E36: 26) Distribution Delivery Charge | H36: =+'Gas Input Table Summary'!D58 -> 1.836 | J36: 22 | L36: 2044 | M36: 0 | N36: 8.348 | O36: 0 | P36: 0 | Q36: 0 | R36: 0 | S36: 0 | T36: 186 | U36: 0 | V36: 0 | W36: 3.518 | X36: 0 | Y36: 0 | Z36: 0 | AA36: 0 | AB36: 0 | AE36: 2044 | AF36: 0 | AG36: 0 | AH36: 0 | AJ36: 0 | AK36: 0 | AL36: 0 | AN36: 0 | AQ36: 2044 | AR36: 0 | AS36: 0 | AT36: 0.057 | AU36: 0 | AV36: 3.414 | AW36: 0 | AZ36: 0 | BB36: 0 | BC36: 0 | BD36: 0 | BE36: 0 | BH36: 2044 | BI36: 0 | BJ36: 0 | BK36: 15.31 | BL36: 0 | BM36: 0.248 | BN36: 0 | BP36: 0 | BR36: 0 | BT36: 0 | BW36: 2044 | BX36: 0 | BY36: 0 | BZ36: 0 | CA36: 0 | CC36: 0 | CD36: 0 | CE36: 0 | CG36: 0
A37: Escalation Rate = | C37: =+'Gas Input Table Summary'!$D$25 -> 0 | DB37: =$J22 -> 8
E38: 27) Effective Income Tax Rate = | H38: =+'Gas Input Table Summary'!D59 -> 0.21 | K38: Total = | M38: =SUM(M14:M36) -> 1470 | V38: =SUM(V14:V36) -> 9688 | AA38: =SUM(AA14:AA36) -> 3575 | AB38: =SUM(AB14:AB36) -> 6113 | AD38: Total = | AH38: =SUM(AH14:AH36) -> 9688 | AL38: =SUM(AL14:AL36) -> 1131 | AN38: =SUM(AN14:AN36) -> 8557 | AP38: Total = | AZ38: =SUM(AZ14:AZ36) -> 13065 | BD38: =SUM(BD14:BD36) -> 2091 | BE38: =SUM(BE14:BE36) -> 10974 | BG38: Total = | BJ38: =SUM(BJ14:BJ36) -> 1470 | BP38: =SUM(BP14:BP36) -> 14425 | BR38: =SUM(BR14:BR36) -> 1920 | BT38: =SUM(BT14:BT36) -> 12505 | BZ38: Total = | CA38: =SUM(CA14:CA36) -> 9688 | CE38: =SUM(CE14:CE36) -> 2091 | CG38: =SUM(CG14:CG36) -> 7597
A39: 11) Participant Discount Rate = | C39: =+'Gas Input Table Summary'!$D$26 -> 0.1032 | E39: (Federal & State Taxes) | T39: NPV = | V39: =ROUND(V14+NPV($C$41,V15:V36),0) -> 7121 | AA39: =ROUND(AA14+NPV($C$41,AA15:AA36),0) -> 2923 | AB39: =ROUND(AB14+NPV($C$41,AB15:AB36),0) -> 4199 | AG39: NPV = | AH39: =ROUND(AH14+NPV($C$41,AH15:AH36),0) -> 7121 | AL39: =ROUND(AL14+NPV($C$41,AL15:AL36),0) -> 1131 | AN39: =+AH39-AL39 -> 5990 | AW39: NPV = | AZ39: =ROUND(AZ14+NPV($C$43,AZ15:AZ36),0) -> 11797 | BD39: =ROUND(BD14+NPV($C$43,BD15:BD36),0) -> 2091 | BE39: =AZ39-BD39 -> 9706 | BN39: NPV = | BP39: =ROUND(BP14+NPV($C$39,BP15:BP36),0) -> 9753 | BR39: =ROUND(BR14+NPV($C$39,BR15:BR36),0) -> 1920 | BT39: =ROUND(BT14+NPV($C$39,BT15:BT36),0) -> 7833 | BZ39: NPV = | CA39: =ROUND(CA14+NPV($C$41,CA15:CA36),0) -> 7121 | CE39: =ROUND(CE14+NPV($C$41,CE15:CE36),0) -> 2091 | CG39: =ROUND(CG14+NPV($C$41,CG15:CG36),0) -> 5030
DB40: =$J23 -> 9
A41: 12) Utility Discount Rate = | C41: =+'Gas Input Table Summary'!$D$27 -> 0.07216 | E41: Test Results | F41: NPV | G41: B/C | K41: Total NPV = | N41: =AB39 -> 4199 | AD41: Total NPV = | AG41: =AN39 -> 5990 | AP41: Total NPV = | AS41: =BE39 -> 9706 | BG41: Total NPV = | BJ41: =BT39 -> 7833 | BV41: Total NPV = | BY41: =CG39 -> 5030 | DB41: =$J24 -> 10
E42: Ratepayer Impact Measure Test | F42: =N41 -> 4199 | G42: =N42 -> 2.44 | K42: Benefit/Cost Ratio = | N42: =ROUND(V39/AA39,2) -> 2.44 | AD42: Benefit/Cost Ratio = | AG42: =ROUND(AH39/AL39,2) -> 6.3 | AP42: Benefit/Cost Ratio = | AS42: =ROUND(AZ39/BD39,2) -> 5.64 | BG42: Benefit/Cost Ratio = | BJ42: =ROUND(BP39/BR39,2) -> 5.08 | BV42: Benefit/Cost Ratio = | BY42: =ROUND(CA39/CE39,2) -> 3.41 | DB42: =$J25 -> 11
A43: 13) Societal Discount Rate = | C43: =+'Gas Input Table Summary'!$D$28 -> 0.0224 | E43: Utility Cost Test | F43: =AG41 -> 5990 | G43: =AG42 -> 6.3 | DB43: =$J26 -> 12
E44: Societal Test | F44: =AS41 -> 9706 | G44: =AS42 -> 5.64 | J44: Worksheet Calculations | BV44: Worksheet Calculations
A45: 14) General Input Data Year = | C45: =+'Gas Input Table Summary'!$D$29 -> 2022 | E45: Participant Test | F45: =BJ41 -> 7833 | G45: =BJ42 -> 5.08 | J45: (A) | K45: = Average Dk/Participant Saved (21) x Number of Participants (23) for Project Life (20) | T45: (I) | U45: = (G) x (H) | AD45: Worksheet Calculations | AP45: Worksheet Calculations | BG45: Worksheet Calculations | BV45: (A) | BW45: = Table 1 (F)
E46: Total Resource Cost Test | F46: =BY41 -> 5030 | G46: =BY42 -> 3.41 | J46: (B) | K46: = Commodity Cost (3) escalated | T46: (J) | U46: = (F) + (I) | AD46: (A) | AE46: = Table 1 (F) | AP46: (A) | AQ46: = Table 1 (F) | AW46: (H) | AZ46: = Table 2 (F) | BG46: (A) | BH46: = Table 1 (N) | BL46: (G) | BM46: = (A) + (D) + (F) | BV46: (B) | BW46: = Table 1 (I)
A47: 15) Project Analysis Year 1 = | C47: =+'Total Program Inputs'!C6 -> 2022 | J47: (C) | K47: = (A) x (B) | T47: (K) | U47: = Distribution Delivery Charge (26) escalated. | AD47: (B) | AE47: = Table 1 (I) | AP47: (G) | AQ47: = Table 1 (I) | AW47: (I) | AZ47: = Direct Part. Costs (17) x No. of Part. (23) - Table 1 (N) | BG47: (B) | BH47: = Table 1 (A) | BL47: (H) | BM47: = Direct Participant Costs (17) x Number of Participants (23) | BV47: (C) | BW47: = Table 3 (D)
J48: (D) | K48: = Variable O&M Cost (6), escalated | T48: (L) | U48: = (A) x (K) x (1-Inverse of Tax Rate (27) | AD48: (C) | AE48: = Table 1 (J) | AP48: (C) | AQ48: = Non-Gas Fuel Cost (7), adjusted for losses (8), escalated.. | AW48: (J) | AZ48: = (H) + (I) | BG48: (C) | BH48: = Retail Rate (1) escalated. | BL48: (I) | BM48: = (G) - (H) | BV48: (D) | BW48: = (A) + (B) + (C)
J49: (E) | K49: = (A) x (D) | T49: (M) | U49: = Admin & Operating Costs (16a) | AD49: (D) | AE49: = Table 1 (M) | AP49: (D) | AQ49: = (C) x [Avg. Non-Gas Fuel Units/Part.Saved (22) x No. of Part. (23) | AW49: (K) | AZ49: = (G) - (J) | BG49: (D) | BH49: =(B) x (C) | BV49: (E) | BW49: = Table 3 (H) | DB49: =$J27 -> 13
J50: (F) | K50: = (C) + (E) | T50: (N) | U50: = Incentive Costs (16b) | AD50: (E) | AE50: = Table 1 (N) | AP50: (E) | AQ50: = Gas Environmental Damage Factor (9), escalated | BG50: (E) | BH50: = Non-Gas Fuel Retail Rate (2), escalated. | BV50: (F) | BW50: = Table 3 (I) | DB50: =$J28 -> 14
J51: (G) | K51: = (A) x Peak Reduction Factor (5) | T51: (O) | U51: = (L) + (M) + (N) | AD51: (F) | AE51: = (D) + (E) | AP51: (F) | AQ51: = Table 1 (A) x (E) | BG51: (F) | BH51: = (E) x [Avg. Non-Gas Fuel Units/Part.Saved (22) x No. of Part. (23) | BV51: (G) | BW51: = (E) + (F) | DB51: =$J29 -> 15
J52: (H) | K52: = Demand Cost (4) escalated. | T52: (P) | U52: = (J) - (O) | AD52: (G) | AE52: = (C) - (F) | AP52: (G) | AQ52: = (A) + (B) + (D) + (F) | BV52: (H) | BW52: = (D) - (G)

Sheet Programmable Tstats - Tier 2
A1: NATURAL GAS CONSERVATION PROGRAMS/DEMAND-SIDE MANAGEMENT | K1: Table 1 | AD1: Table 2 | AP1: Table 3 | BG1: Table 4 | BV1: Table 5
A2: BEN/COST ANALYSIS FOR GAS CONSERVATION | K2: Ratepayer Impact Measure Test | AD2: Utility Cost Test | AP2: Societal Test | BG2: Participant Test | BV2: Total Resource Cost Test
A4: Company: | B4: Montana-Dakota Utilities Co. | K4: Company: | M4: =B4 -> Montana-Dakota Utilities Co. | AD4: Company: | AF4: =B4 -> Montana-Dakota Utilities Co. | AP4: Company: | AR4: =AF4 -> Montana-Dakota Utilities Co. | BH4: Company: | BI4: =AR4 -> Montana-Dakota Utilities Co. | BW4: Company: | BX4: =BI4 -> Montana-Dakota Utilities Co.
A5: Project: | B5: ='Database Inputs'!A13 -> Programmable Thermostats - Tier 2 | K5: Project: | M5: =$B$5 -> Programmable Thermostats - Tier 2 | AD5: Project: | AF5: =$B$5 -> Programmable Thermostats - Tier 2 | AP5: Project: | AR5: =$B$5 -> Programmable Thermostats - Tier 2 | BH5: Project: | BI5: =$B$5 -> Programmable Thermostats - Tier 2 | BW5: Project: | BX5: =$B$5 -> Programmable Thermostats - Tier 2
A6: Program Years: | B6: ='Total Program'!$B$6 -> 2022
N7: Benefits | X7: Costs | AF7: Benefits | AJ7: Costs | AR7: Benefits | BB7: Costs | BI7: Benefits | BR7: Costs | BX7: Benefits | CC7: Costs
A8: Input Data | F8: =+'Total Program Inputs'!C6 -> 2022 | AB8: Annual | AN8: Annual | AT8: Non-Gas | BE8: Annual | BT8: Annual | CG8: Annual
M9: Total | N9: Gas | O9: Gas | P9: Variable | Q9: Variable | R9: Total | S9: Peak Dk | T9: Demand | U9: Total | W9: Distribution | Y9: Program | AA9: Total | AB9: Benefits | AF9: Total | AG9: Total | AH9: Annual | AJ9: Program | AL9: Utility | AN9: Benefits | AR9: Total | AS9: Total | AT9: Energy | AU9: Non-Gas | AV9: Environmental | AW9: Environmental | AZ9: Annual | BB9: Utility | BC9: Participants' | BD9: Annual | BE9: Benefits | BJ9: Total | BL9: Gas | BM9: Non-Gas | BN9: Non-Gas | BP9: Total | BR9: Direct | BT9: Benefits | BX9: Total | BY9: Total | BZ9: Non-Gas | CA9: Total | CC9: Utility | CD9: Participants' | CG9: Benefits
A10: 1) Retail Rate ($/Dk) = | C10: =+'Gas Input Table Summary'!$D$7 -> 7.99 | E10: 16) Utility Project Costs | M10: Energy | N10: Commodity | O10: Commodity | P10: O & M | Q10: O & M | R10: Energy | S10: Demand | T10: Savings | U10: Demand | V10: Total | W10: Delivery | X10: Lost | Y10: Admin | Z10: Incentive | AA10: Program | AB10: Less | AF10: Energy | AG10: Demand | AH10: Total | AJ10: Admin | AK10: Incentive | AL10: Program | AN10: Less | AR10: Energy | AS10: Demand | AT10: Savings | AU10: Energy | AV10: Damage | AW10: Damage | AZ10: Total | BB10: Program | BC10: Costs Net | BD10: Total | BE10: Less | BI10: Incentives | BJ10: Energy | BK10: Retail | BL10: Bill | BM10: Fuel | BN10: Energy | BP10: Annual | BR10: Participant | BT10: Less | BX10: Energy | BY10: Demand | BZ10: Energy | CA10: Annual | CC10: Program | CD10: Costs Net | CE10: Total | CG10: Less
A11: Escalation Rate = | C11: =+'Gas Input Table Summary'!$D$8 -> 0.03 | E11: 16a) Administrative & Operating Costs = | F11: =+'Total Program Inputs'!M14 -> 1830 | J11: t | M11: Reduction | N11: Cost/Dk | O11: Savings | P11: Cost/Dk | Q11: Savings | R11: Savings | S11: Reduction | T11: Per Unit | U11: Savings | V11: Savings | W11: Charge | X11: Margin | Y11: Costs | Z11: Costs | AA11: Costs | AB11: Costs | AF11: Savings | AG11: Savings | AH11: Savings | AJ11: Costs | AK11: Costs | AL11: Costs | AN11: Costs | AR11: Savings | AS11: Savings | AT11: ($/Part.) | AU11: Savings | AV11: Savings/Dk | AW11: Savings | AZ11: Savings | BB11: Costs | BC11: of Rebate | BD11: Costs | BE11: Costs | BI11: Received | BJ11: Reduction | BK11: Rate | BL11: Savings | BM11: Retail Rate | BN11: Savings | BP11: Benefits | BR11: Costs | BT11: Costs | BX11: Savings | BY11: Savings | BZ11: Savings | CA11: Benefits | CC11: Costs | CD11: of Rebate | CE11: Costs | CG11: Costs
E12: 16b) Incentive Costs = | F12: =+'Total Program Inputs'!I14 -> 10324 | L12: Year | M12: (A) | N12: (B) | O12: (C) | P12: (D) | Q12: (E) | R12: (F) | S12: (G) | T12: (H) | U12: (I) | V12: (J) | W12: (K) | X12: (L) | Y12: (M) | Z12: (N) | AA12: (O) | AB12: (P) | AE12: Year | AF12: (A) | AG12: (B) | AH12: (C) | AJ12: (D) | AK12: (E) | AL12: (F) | AN12: (G) | AQ12: Year | AR12: (A) | AS12: (B) | AT12: (C) | AU12: (D) | AV12: (E) | AW12: (F) | AZ12: (G) | BB12: (H) | BC12: (I) | BD12: (J) | BE12: (K) | BH12: Year | BI12: (A) | BJ12: (B) | BK12: (C) | BL12: (D) | BM12: (E) | BN12: (F) | BP12: (G) | BR12: (H) | BT12: (I) | BW12: Year | BX12: (A) | BY12: (B) | BZ12: (C) | CA12: (D) | CC12: (E) | CD12: (F) | CE12: (G) | CG12: (H)
A13: 2) Non-Gas Fuel Retail Rate ($/Fuel Unit) = | C13: =+'Gas Input Table Summary'!$D$9 -> 0.12936 | E13: 16c) Total Utility Project Costs = | F13: =SUM(F11:F12) -> 12154
A14: Escalation Rate = | C14: =+'Gas Input Table Summary'!$D$10 -> 0.03 | J14: =$C$47-$C$45 -> 0 | L14: =$C$47 -> 2022 | M14: =ROUND(IF($C$47+$F$23>L14,F25*F30,0),0) -> 1103 | N14: =ROUND($C$17*(1+$C$18)^J14,3) -> 4.357 | O14: =ROUND(M14*N14,0) -> 4806 | P14: =ROUND($C$25*(1+$C$26)^J14,3) -> 0 | Q14: =ROUND(M14*P14,0) -> 0 | R14: =O14+Q14 -> 4806 | S14: =ROUND(M14*$C$23,1) -> 11 | T14: =ROUND($C$20*(1+$C$21)^J14,0) -> 149 | U14: =ROUND(S14*T14,0) -> 1639 | V14: =ROUND(+U14+R14,0) -> 6445 | W14: =ROUND($H$36*(1+$C$11)^J14,3) -> 1.836 | X14: =ROUND((1-$H$38)*(W14*M14),0) -> 1600 | Y14: =ROUND($F$11,0) -> 1830 | Z14: =ROUND($F$12,0) -> 10324 | AA14: =SUM(X14:Z14) -> 13754 | AB14: =V14-AA14 -> -7309 | AE14: =$C$47 -> 2022 | AF14: =+R14 -> 4806 | AG14: =+U14 -> 1639 | AH14: =+AG14+AF14 -> 6445 | AJ14: =ROUND(Y14,0) -> 1830 | AK14: =ROUND(Z14,0) -> 10324 | AL14: =SUM(AJ14:AK14) -> 12154 | AN14: =+AH14-AL14 -> -5709 | AQ14: =$C$47 -> 2022 | AR14: =AF14 -> 4806 | AS14: =+AG14 -> 1639 | AT14: =ROUND(($C$28/(1-$C$31))*(1+$C$29)^J14,3) -> 0.03 | AU14: =ROUND(IF($C$47+$F$23>$AQ14,$F$30*$F$27,0)*AT14,0) -> 213 | AV14: =ROUND($C$33*(1+$C$34)^J14,3) -> 2.07 | AW14: =ROUND(AV14*M14,0) -> 2283 | AZ14: =ROUND(AR14+AS14+AU14+AW14+AY14,0) -> 8941 | BB14: =ROUND($F$13,0) -> 12154 | BC14: =ROUND((F15*F30)-Z14,0) -> 16491 | BD14: =BB14+BC14 -> 28645 | BE14: =AZ14-BD14 -> -19704 | BH14: =$C$47 -> 2022 | BI14: =+F12 -> 10324 | BJ14: =+M14 -> 1103 | BK14: =ROUND($C$10*(1+$C$11)^J14,3) -> 7.99 | BL14: =ROUND(BJ14*BK14,0) -> 8813 | BM14: =ROUND($C$13*(1+$C$14)^J14,3) -> 0.129 | BN14: =ROUND(IF($C$47+$F$23>$BH14,$F$30*$F$27,0)*BM14,0) -> 915 | BP14: =BI14+BL14+BN14+BO14 -> 20052 | BR14: =ROUND(F15*F30,0) -> 26815 | BT14: =BP14-BR14 -> -6763 | BW14: =$C$47 -> 2022 | BX14: =$R14 -> 4806 | BY14: =U14 -> 1639 | BZ14: =AU14 -> 213 | CA14: =SUM(BX14:BZ14) -> 6658 | CC14: =BB14 -> 12154 | CD14: =BC14 -> 16491 | CE14: =SUM(CC14:CD14) -> 28645 | CG14: =CA14-CE14 -> -21987
A15: Non-Gas Fuel Units (ie. kWh,Gallons, etc) = | C15: =+'Gas Input Table Summary'!$D$11 -> Kwh | E15: 17) Direct Participant Costs ($/Part.) = | F15: =ROUND('Database Inputs'!K13,0) -> 155 | J15: =J14+1 -> 1 | L15: =L14+1 -> 2023 | M15: =ROUND(IF($C$47+$F$23>L15,$F$25*$F$30,0)+IF($C$48+$G$23>L15,$G$25*$G$30,0),0) -> 1103 | N15: 4.488 | O15: 4950 | P15: 0 | Q15: =ROUND(M15*P15,0) -> 0 | R15: 4950 | S15: 11 | T15: 151 | U15: =ROUND(S15*T15,0) -> 1661 | V15: =ROUND(+U15+R15,0) -> 6611 | W15: 1.891 | X15: 1648 | Y15: =ROUND($G$11,0) -> 0 | Z15: =ROUND($G$12,0) -> 0 | AA15: 1648 | AB15: 4963 | AE15: =AE14+1 -> 2023 | AF15: =+R15 -> 4950 | AG15: =+U15 -> 1661 | AH15: =+AG15+AF15 -> 6611 | AJ15: =ROUND(Y15,0) -> 0 | AK15: 0 | AL15: 0 | AN15: =+AH15-AL15 -> 6611 | AQ15: =AQ14+1 -> 2023 | AR15: 4950 | AS15: 1661 | AT15: 0.03 | AU15: =ROUND((IF($C$47+$F$23>$AQ15,$F$27*$F$30,0)+IF($C$48+$G$23>AQ15,$G$27*$G$30,0))*AT15,0) -> 213 | AV15: 2.118 | AW15: 2336 | AZ15: =ROUND(AR15+AS15+AU15+AW15+AY15,0) -> 9160 | BB15: =ROUND($G$13,0) -> 0 | BC15: =ROUND(($G$15*$G$30)-$Z$15,0) -> 0 | BD15: =BB15+BC15 -> 0 | BE15: 9160 | BH15: =BH14+1 -> 2023 | BI15: =+G12 -> 0 | BJ15: 1103 | BK15: 8.23 | BL15: =ROUND(BJ15*BK15,0) -> 9078 | BM15: 0.133 | BN15: =ROUND((IF($C$47+$F$23>BH15,$F$27*$F$30,0)+IF($C$48+$G$23>BH15,$G$27*$G$30,0))*BM15,0) -> 943 | BP15: 10021 | BR15: =ROUND($G$15*$G$30,0) -> 0 | BT15: =BP15-BR15 -> 10021 | BW15: =BW14+1 -> 2023 | BX15: 4950 | BY15: =U15 -> 1661 | BZ15: =AU15 -> 213 | CA15: =SUM(BX15:BZ15) -> 6824 | CC15: =BB15 -> 0 | CD15: 0 | CE15: =SUM(CC15:CD15) -> 0 | CG15: =CA15-CE15 -> 6824
J16: 2 | L16: 2024 | M16: =ROUND(IF($C$47+$F$23>L16,$F$25*$F$30,0)+IF($C$48+$G$23>L16,$G$25*$G$30,0)+IF($C$49+$H$23>L16,$H$25*$H$30,0),0) -> 1103 | N16: =ROUND($C$17*(1+$C$18)^J16,3) -> 4.622 | O16: =ROUND(M16*N16,0) -> 5098 | P16: =ROUND($C$25*(1+$C$26)^J16,3) -> 0 | Q16: 0 | R16: =O16+Q16 -> 5098 | S16: =ROUND(M16*$C$23,1) -> 11 | T16: =ROUND($C$20*(1+$C$21)^J16,0) -> 152 | U16: =ROUND(S16*T16,0) -> 1672 | V16: =ROUND(+U16+R16,0) -> 6770 | W16: =ROUND($H$36*(1+$C$11)^J16,3) -> 1.948 | X16: =ROUND((1-$H$38)*(W16*M16),0) -> 1697 | Y16: =ROUND($H$11,0) -> 0 | Z16: =ROUND($H$12,0) -> 0 | AA16: 1697 | AB16: =V16-AA16 -> 5073 | AE16: 2024 | AF16: 5098 | AG16: 1672 | AH16: =+AG16+AF16 -> 6770 | AJ16: 0 | AK16: 0 | AL16: 0 | AN16: 6770 | AQ16: 2024 | AR16: 5098 | AS16: 1672 | AT16: =ROUND(($C$28/(1-$C$31))*(1+$C$29)^J16,3) -> 0.031 | AU16: =ROUND((IF($C$47+$F$23>$AQ16,$F$27*$F$30,0)+IF($C$48+$G$23>AQ16,$G$27*$G$30,0)+IF($C$49+$H$23>AQ16,$H$27*$H$30,0))*AT16,0) -> 220 | AV16: 2.166 | AW16: 2389 | AZ16: 9379 | BB16: =ROUND($H$13,0) -> 0 | BC16: =ROUND(($H$15*$H$30)-$Z$16,0) -> 0 | BD16: 0 | BE16: 9379 | BH16: 2024 | BI16: =ROUND(H12,0) -> 0 | BJ16: 1103 | BK16: 8.477 | BL16: =ROUND(BJ16*BK16,0) -> 9350 | BM16: 0.137 | BN16: =ROUND((IF($C$47+$F$23>BH16,$F$27*$F$30,0)+IF($C$49+$H$23>BH16,$H$27*$H$30,0)+IF($C$48+$G$23>BH16,$G$27*$G$30,0))*BM16,0) -> 972 | BP16: 10322 | BR16: =ROUND($H$15*$H$30,0) -> 0 | BT16: 10322 | BW16: 2024 | BX16: 5098 | BY16: 1672 | BZ16: 220 | CA16: 6990 | CC16: 0 | CD16: 0 | CE16: 0 | CG16: =CA16-CE16 -> 6990
A17: 3) Commodity Cost ($/Dk) = | C17: =+'Gas Input Table Summary'!$D$12 -> 4.357 | E17: 18) Participant Non-Energy Costs (Annual $/Part.) = | F17: =+'Gas Input Table Summary'!D35 -> 0 | J17: 3 | L17: 2025 | M17: =ROUND(IF($C$47+$F$23>L17,$F$25*$F$30,0)+IF($C$48+$G$23>L17,$G$25*$G$30,0)+IF($C$49+$H$23>L17,$H$25*$H$30,0),0) -> 1103 | N17: 4.761 | O17: 5251 | P17: 0 | Q17: 0 | R17: 5251 | S17: 11 | T17: 154 | U17: =ROUND(S17*T17,0) -> 1694 | V17: 6945 | W17: 2.006 | X17: 1748 | Y17: 0 | Z17: 0 | AA17: 1748 | AB17: 5197 | AE17: 2025 | AF17: 5251 | AG17: 1694 | AH17: 6945 | AJ17: 0 | AK17: 0 | AL17: 0 | AN17: 6945 | AQ17: 2025 | AR17: 5251 | AS17: 1694 | AT17: =ROUND(($C$28/(1-$C$31))*(1+$C$29)^J17,3) -> 0.032 | AU17: =ROUND((IF($C$47+$F$23>$AQ17,$F$27*$F$30,0)+IF($C$48+$G$23>AQ17,$G$27*$G$30,0)+IF($C$49+$H$23>AQ17,$H$27*$H$30,0))*AT17,0) -> 227 | AV17: 2.216 | AW17: 2444 | AZ17: 9616 | BB17: 0 | BC17: 0 | BD17: 0 | BE17: 9616 | BH17: 2025 | BI17: 0 | BJ17: 1103 | BK17: 8.731 | BL17: 9630 | BM17: 0.141 | BN17: =ROUND((IF($C$47+$F$23>BH17,$F$27*$F$30,0)+IF($C$49+$H$23>BH17,$H$27*$H$30,0)+IF($C$48+$G$23>BH17,$G$27*$G$30,0))*BM17,0) -> 1000 | BP17: 10630 | BR17: =+BC17 -> 0 | BT17: 10630 | BW17: 2025 | BX17: 5251 | BY17: 1694 | BZ17: 227 | CA17: 7172 | CC17: 0 | CD17: 0 | CE17: 0 | CG17: 7172
A18: Escalation Rate = | C18: =+'Gas Input Table Summary'!$D$13 -> 0.03 | E18: Escalation Rate = | F18: =+'Gas Input Table Summary'!D38 -> 0 | J18: 4 | L18: 2026 | M18: 1103 | N18: 4.904 | O18: 5409 | P18: 0 | Q18: 0 | R18: 5409 | S18: 11 | T18: 155 | U18: 1705 | V18: 7114 | W18: 2.066 | X18: 1800 | Y18: 0 | Z18: 0 | AA18: 1800 | AB18: 5314 | AE18: 2026 | AF18: 5409 | AG18: 1705 | AH18: 7114 | AJ18: 0 | AK18: 0 | AL18: 0 | AN18: 7114 | AQ18: 2026 | AR18: 5409 | AS18: 1705 | AT18: 0.033 | AU18: 234 | AV18: 2.267 | AW18: 2501 | AZ18: 9849 | BB18: 0 | BC18: 0 | BD18: 0 | BE18: 9849 | BH18: 2026 | BI18: 0 | BJ18: 1103 | BK18: 8.993 | BL18: 9919 | BM18: 0.146 | BN18: 1036 | BP18: 10955 | BR18: 0 | BT18: 10955 | BW18: 2026 | BX18: 5409 | BY18: 1705 | BZ18: 234 | CA18: 7348 | CC18: 0 | CD18: 0 | CE18: 0 | CG18: 7348 | DB18: t
J19: 5 | L19: 2027 | M19: =ROUND(IF($C$47+$F$23>L19,$F$25*$F$30,0)+IF($C$48+$G$23>L19,$G$25*$G$30,0)+IF($C$49+$H$23>L19,$H$25*$H$30,0),0) -> 1103 | N19: 5.051 | O19: 5571 | P19: 0 | Q19: 0 | R19: 5571 | S19: 11 | T19: 157 | U19: 1727 | V19: 7298 | W19: 2.128 | X19: 1854 | Y19: 0 | Z19: 0 | AA19: 1854 | AB19: 5444 | AE19: 2027 | AF19: 5571 | AG19: 1727 | AH19: 7298 | AJ19: 0 | AK19: 0 | AL19: 0 | AN19: 7298 | AQ19: 2027 | AR19: 5571 | AS19: 1727 | AT19: 0.034 | AU19: 241 | AV19: 2.319 | AW19: 2558 | AZ19: 10097 | BB19: 0 | BC19: 0 | BD19: 0 | BE19: 10097 | BH19: 2027 | BI19: 0 | BJ19: 1103 | BK19: 9.263 | BL19: 10217 | BM19: 0.15 | BN19: 1064 | BP19: 11281 | BR19: 0 | BT19: 11281 | BW19: 2027 | BX19: 5571 | BY19: 1727 | BZ19: 241 | CA19: 7539 | CC19: 0 | CD19: 0 | CE19: 0 | CG19: 7539
A20: 4) Demand Cost ($/Unit/Yr) = | C20: =+'Gas Input Table Summary'!$D$14 -> 149.39 | E20: 19) Participant Non-Energy Savings (Annual $/Part) = | F20: =+'Gas Input Table Summary'!D41 -> 0 | J20: 6 | L20: 2028 | M20: 1103 | N20: 5.202 | O20: 5738 | P20: 0 | Q20: 0 | R20: 5738 | S20: 11 | T20: 159 | U20: 1749 | V20: 7487 | W20: 2.192 | X20: 1910 | Y20: 0 | Z20: 0 | AA20: 1910 | AB20: 5577 | AE20: 2028 | AF20: 5738 | AG20: 1749 | AH20: 7487 | AJ20: 0 | AK20: 0 | AL20: 0 | AN20: 7487 | AQ20: 2028 | AR20: 5738 | AS20: 1749 | AT20: 0.035 | AU20: 248 | AV20: 2.373 | AW20: 2617 | AZ20: 10352 | BB20: 0 | BC20: 0 | BD20: 0 | BE20: 10352 | BH20: 2028 | BI20: 0 | BJ20: 1103 | BK20: 9.54 | BL20: 10523 | BM20: 0.154 | BN20: 1092 | BP20: 11615 | BR20: 0 | BT20: 11615 | BW20: 2028 | BX20: 5738 | BY20: 1749 | BZ20: 248 | CA20: 7735 | CC20: 0 | CD20: 0 | CE20: 0 | CG20: 7735
A21: Escalation Rate = | C21: =+'Gas Input Table Summary'!$D$15 -> 0.01 | E21: Escalation Rate = | F21: =+'Gas Input Table Summary'!D44 -> 0 | J21: 7 | L21: 2029 | M21: 1103 | N21: 5.359 | O21: 5911 | P21: 0 | Q21: 0 | R21: 5911 | S21: 11 | T21: 160 | U21: 1760 | V21: 7671 | W21: 2.258 | X21: 1968 | Y21: 0 | Z21: 0 | AA21: 1968 | AB21: 5703 | AE21: 2029 | AF21: 5911 | AG21: 1760 | AH21: 7671 | AJ21: 0 | AK21: 0 | AL21: 0 | AN21: 7671 | AQ21: 2029 | AR21: 5911 | AS21: 1760 | AT21: 0.036 | AU21: 255 | AV21: 2.427 | AW21: 2677 | AZ21: 10603 | BB21: 0 | BC21: 0 | BD21: 0 | BE21: 10603 | BH21: 2029 | BI21: 0 | BJ21: 1103 | BK21: 9.827 | BL21: 10839 | BM21: 0.159 | BN21: 1128 | BP21: 11967 | BR21: 0 | BT21: 11967 | BW21: 2029 | BX21: 5911 | BY21: 1760 | BZ21: 255 | CA21: 7926 | CC21: 0 | CD21: 0 | CE21: 0 | CG21: 7926 | DB21: =$J14 -> 0
J22: 8 | L22: 2030 | M22: 1103 | N22: 5.519 | O22: 6087 | P22: 0 | Q22: 0 | R22: 6087 | S22: 11 | T22: 162 | U22: 1782 | V22: 7869 | W22: 2.326 | X22: 2027 | Y22: 0 | Z22: 0 | AA22: 2027 | AB22: 5842 | AE22: 2030 | AF22: 6087 | AG22: 1782 | AH22: 7869 | AJ22: 0 | AK22: 0 | AL22: 0 | AN22: 7869 | AQ22: 2030 | AR22: 6087 | AS22: 1782 | AT22: 0.037 | AU22: 262 | AV22: 2.483 | AW22: 2739 | AZ22: 10870 | BB22: 0 | BC22: 0 | BD22: 0 | BE22: 10870 | BH22: 2030 | BI22: 0 | BJ22: 1103 | BK22: 10.121 | BL22: 11163 | BM22: 0.164 | BN22: 1163 | BP22: 12326 | BR22: 0 | BT22: 12326 | BW22: 2030 | BX22: 6087 | BY22: 1782 | BZ22: 262 | CA22: 8131 | CC22: 0 | CD22: 0 | CE22: 0 | CG22: 8131 | DB22: =$J15 -> 1
A23: 5) Peak Reduction Factor = | C23: =+'Gas Input Table Summary'!$D$16 -> 0.01 | E23: 20) Project Life (Years) = | F23: =ROUND('Database Inputs'!D13,0) -> 10 | J23: 9 | L23: 2031 | M23: 1103 | N23: 5.685 | O23: 6271 | P23: 0 | Q23: 0 | R23: 6271 | S23: 11 | T23: 163 | U23: 1793 | V23: 8064 | W23: 2.396 | X23: 2088 | Y23: 0 | Z23: 0 | AA23: 2088 | AB23: 5976 | AE23: 2031 | AF23: 6271 | AG23: 1793 | AH23: 8064 | AJ23: 0 | AK23: 0 | AL23: 0 | AN23: 8064 | AQ23: 2031 | AR23: 6271 | AS23: 1793 | AT23: 0.039 | AU23: 277 | AV23: 2.54 | AW23: 2802 | AZ23: 11143 | BB23: 0 | BC23: 0 | BD23: 0 | BE23: 11143 | BH23: 2031 | BI23: 0 | BJ23: 1103 | BK23: 10.425 | BL23: 11499 | BM23: 0.169 | BN23: 1199 | BP23: 12698 | BR23: 0 | BT23: 12698 | BW23: 2031 | BX23: 6271 | BY23: 1793 | BZ23: 277 | CA23: 8341 | CC23: 0 | CD23: 0 | CE23: 0 | CG23: 8341 | DB23: =$J16 -> 2
J24: 10 | L24: 2032 | M24: 0 | N24: 5.855 | O24: 0 | P24: 0 | Q24: 0 | R24: 0 | S24: 0 | T24: 165 | U24: 0 | V24: 0 | W24: 2.467 | X24: 0 | Y24: 0 | Z24: 0 | AA24: 0 | AB24: 0 | AE24: 2032 | AF24: 0 | AG24: 0 | AH24: 0 | AJ24: 0 | AK24: 0 | AL24: 0 | AN24: 0 | AQ24: 2032 | AR24: 0 | AS24: 0 | AT24: 0.04 | AU24: 0 | AV24: 2.599 | AW24: 0 | AZ24: 0 | BB24: 0 | BC24: 0 | BD24: 0 | BE24: 0 | BH24: 2032 | BI24: 0 | BJ24: 0 | BK24: 10.738 | BL24: 0 | BM24: 0.174 | BN24: 0 | BP24: 0 | BR24: 0 | BT24: 0 | BW24: 2032 | BX24: 0 | BY24: 0 | BZ24: 0 | CA24: 0 | CC24: 0 | CD24: 0 | CE24: 0 | CG24: 0 | DB24: =$J17 -> 3
A25: 6) Variable O&M ($/Dk) = | C25: =+'Gas Input Table Summary'!$D$17 -> 0 | E25: 21) Avg. Dk/Part. Saved = | F25: =+ROUND(F32/F30,3) -> 6.376 | J25: 11 | L25: 2033 | M25: 0 | N25: 6.031 | O25: 0 | P25: 0 | Q25: 0 | R25: 0 | S25: 0 | T25: 167 | U25: 0 | V25: 0 | W25: 2.541 | X25: 0 | Y25: 0 | Z25: 0 | AA25: 0 | AB25: 0 | AE25: 2033 | AF25: 0 | AG25: 0 | AH25: 0 | AJ25: 0 | AK25: 0 | AL25: 0 | AN25: 0 | AQ25: 2033 | AR25: 0 | AS25: 0 | AT25: 0.041 | AU25: 0 | AV25: 2.658 | AW25: 0 | AZ25: 0 | BB25: 0 | BC25: 0 | BD25: 0 | BE25: 0 | BH25: 2033 | BI25: 0 | BJ25: 0 | BK25: 11.06 | BL25: 0 | BM25: 0.179 | BN25: 0 | BP25: 0 | BR25: 0 | BT25: 0 | BW25: 2033 | BX25: 0 | BY25: 0 | BZ25: 0 | CA25: 0 | CC25: 0 | CD25: 0 | CE25: 0 | CG25: 0
A26: Escalation Rate = | C26: =+'Gas Input Table Summary'!$D$18 -> 0 | J26: 12 | L26: 2034 | M26: 0 | N26: 6.212 | O26: 0 | P26: 0 | Q26: 0 | R26: 0 | S26: 0 | T26: 168 | U26: 0 | V26: 0 | W26: 2.618 | X26: 0 | Y26: 0 | Z26: 0 | AA26: 0 | AB26: 0 | AE26: 2034 | AF26: 0 | AG26: 0 | AH26: 0 | AJ26: 0 | AK26: 0 | AL26: 0 | AN26: 0 | AQ26: 2034 | AR26: 0 | AS26: 0 | AT26: 0.042 | AU26: 0 | AV26: 2.719 | AW26: 0 | AZ26: 0 | BB26: 0 | BC26: 0 | BD26: 0 | BE26: 0 | BH26: 2034 | BI26: 0 | BJ26: 0 | BK26: 11.392 | BL26: 0 | BM26: 0.184 | BN26: 0 | BP26: 0 | BR26: 0 | BT26: 0 | BW26: 2034 | BX26: 0 | BY26: 0 | BZ26: 0 | CA26: 0 | CC26: 0 | CD26: 0 | CE26: 0 | CG26: 0
E27: 22) Avg Non-Gas Fuel Units/Part. Saved = | F27: =+'Database Inputs'!H13 -> 41 | J27: 13 | L27: 2035 | M27: 0 | N27: 6.398 | O27: 0 | P27: 0 | Q27: 0 | R27: 0 | S27: 0 | T27: 170 | U27: 0 | V27: 0 | W27: 2.696 | X27: 0 | Y27: 0 | Z27: 0 | AA27: 0 | AB27: 0 | AE27: 2035 | AF27: 0 | AG27: 0 | AH27: 0 | AJ27: 0 | AK27: 0 | AL27: 0 | AN27: 0 | AQ27: 2035 | AR27: 0 | AS27: 0 | AT27: 0.043 | AU27: 0 | AV27: 2.782 | AW27: 0 | AZ27: 0 | BB27: 0 | BC27: 0 | BD27: 0 | BE27: 0 | BH27: 2035 | BI27: 0 | BJ27: 0 | BK27: 11.734 | BL27: 0 | BM27: 0.19 | BN27: 0 | BP27: 0 | BR27: 0 | BT27: 0 | BW27: 2035 | BX27: 0 | BY27: 0 | BZ27: 0 | CA27: 0 | CC27: 0 | CD27: 0 | CE27: 0 | CG27: 0
A28: 7) Non-Gas Fuel Cost ($/Fuel Unit) = | C28: =+'Gas Input Table Summary'!$D$19 -> 0.02736 | E28: 22a) Avg Additional Non-Gas Fuel Units/ Part. Used = | F28: 0 | J28: 14 | L28: 2036 | M28: 0 | N28: 6.59 | O28: 0 | P28: 0 | Q28: 0 | R28: 0 | S28: 0 | T28: 172 | U28: 0 | V28: 0 | W28: 2.777 | X28: 0 | Y28: 0 | Z28: 0 | AA28: 0 | AB28: 0 | AE28: 2036 | AF28: 0 | AG28: 0 | AH28: 0 | AJ28: 0 | AK28: 0 | AL28: 0 | AN28: 0 | AQ28: 2036 | AR28: 0 | AS28: 0 | AT28: 0.045 | AU28: 0 | AV28: 2.846 | AW28: 0 | AZ28: 0 | BB28: 0 | BC28: 0 | BD28: 0 | BE28: 0 | BH28: 2036 | BI28: 0 | BJ28: 0 | BK28: 12.086 | BL28: 0 | BM28: 0.196 | BN28: 0 | BP28: 0 | BR28: 0 | BT28: 0 | BW28: 2036 | BX28: 0 | BY28: 0 | BZ28: 0 | CA28: 0 | CC28: 0 | CD28: 0 | CE28: 0 | CG28: 0
A29: Escalation Rate = | C29: =+'Gas Input Table Summary'!$D$20 -> 0.03 | J29: 15 | L29: 2037 | M29: 0 | N29: 6.788 | O29: 0 | P29: 0 | Q29: 0 | R29: 0 | S29: 0 | T29: 173 | U29: 0 | V29: 0 | W29: 2.86 | X29: 0 | Y29: 0 | Z29: 0 | AA29: 0 | AB29: 0 | AE29: 2037 | AF29: 0 | AG29: 0 | AH29: 0 | AJ29: 0 | AK29: 0 | AL29: 0 | AN29: 0 | AQ29: 2037 | AR29: 0 | AS29: 0 | AT29: 0.046 | AU29: 0 | AV29: 2.911 | AW29: 0 | AZ29: 0 | BB29: 0 | BC29: 0 | BD29: 0 | BE29: 0 | BH29: 2037 | BI29: 0 | BJ29: 0 | BK29: 12.448 | BL29: 0 | BM29: 0.202 | BN29: 0 | BP29: 0 | BR29: 0 | BT29: 0 | BW29: 2037 | BX29: 0 | BY29: 0 | BZ29: 0 | CA29: 0 | CC29: 0 | CD29: 0 | CE29: 0 | CG29: 0
E30: 23) Number of Participants = | F30: =ROUND('Database Inputs'!C13,0) -> 173 | J30: 16 | L30: 2038 | M30: 0 | N30: 6.992 | O30: 0 | P30: 0 | Q30: 0 | R30: 0 | S30: 0 | T30: 175 | U30: 0 | V30: 0 | W30: 2.946 | X30: 0 | Y30: 0 | Z30: 0 | AA30: 0 | AB30: 0 | AE30: 2038 | AF30: 0 | AG30: 0 | AH30: 0 | AJ30: 0 | AK30: 0 | AL30: 0 | AN30: 0 | AQ30: 2038 | AR30: 0 | AS30: 0 | AT30: 0.047 | AU30: 0 | AV30: 2.978 | AW30: 0 | AZ30: 0 | BB30: 0 | BC30: 0 | BD30: 0 | BE30: 0 | BH30: 2038 | BI30: 0 | BJ30: 0 | BK30: 12.822 | BL30: 0 | BM30: 0.208 | BN30: 0 | BP30: 0 | BR30: 0 | BT30: 0 | BW30: 2038 | BX30: 0 | BY30: 0 | BZ30: 0 | CA30: 0 | CC30: 0 | CD30: 0 | CE30: 0 | CG30: 0 | DB30: =$J18 -> 4
A31: 8) Non-Gas Fuel Loss Factor | C31: =+'Gas Input Table Summary'!$D$21 -> 0.073 | J31: 17 | L31: 2039 | M31: 0 | N31: 7.201 | O31: 0 | P31: 0 | Q31: 0 | R31: 0 | S31: 0 | T31: 177 | U31: 0 | V31: 0 | W31: 3.035 | X31: 0 | Y31: 0 | Z31: 0 | AA31: 0 | AB31: 0 | AE31: 2039 | AF31: 0 | AG31: 0 | AH31: 0 | AJ31: 0 | AK31: 0 | AL31: 0 | AN31: 0 | AQ31: 2039 | AR31: 0 | AS31: 0 | AT31: 0.049 | AU31: 0 | AV31: 3.047 | AW31: 0 | AZ31: 0 | BB31: 0 | BC31: 0 | BD31: 0 | BE31: 0 | BH31: 2039 | BI31: 0 | BJ31: 0 | BK31: 13.206 | BL31: 0 | BM31: 0.214 | BN31: 0 | BP31: 0 | BR31: 0 | BT31: 0 | BW31: 2039 | BX31: 0 | BY31: 0 | BZ31: 0 | CA31: 0 | CC31: 0 | CD31: 0 | CE31: 0 | CG31: 0 | DB31: =$J19 -> 5
E32: 24) Total Annual Dk Saved = | F32: =+'Total Program Inputs'!G14 -> 1103 | J32: 18 | L32: 2040 | M32: 0 | N32: 7.418 | O32: 0 | P32: 0 | Q32: 0 | R32: 0 | S32: 0 | T32: 179 | U32: 0 | V32: 0 | W32: 3.126 | X32: 0 | Y32: 0 | Z32: 0 | AA32: 0 | AB32: 0 | AE32: 2040 | AF32: 0 | AG32: 0 | AH32: 0 | AJ32: 0 | AK32: 0 | AL32: 0 | AN32: 0 | AQ32: 2040 | AR32: 0 | AS32: 0 | AT32: 0.05 | AU32: 0 | AV32: 3.117 | AW32: 0 | AZ32: 0 | BB32: 0 | BC32: 0 | BD32: 0 | BE32: 0 | BH32: 2040 | BI32: 0 | BJ32: 0 | BK32: 13.602 | BL32: 0 | BM32: 0.22 | BN32: 0 | BP32: 0 | BR32: 0 | BT32: 0 | BW32: 2040 | BX32: 0 | BY32: 0 | BZ32: 0 | CA32: 0 | CC32: 0 | CD32: 0 | CE32: 0 | CG32: 0 | DB32: =$J20 -> 6
A33: 9) Gas Environmental Damage Factor = | C33: =+'Gas Input Table Summary'!$D$22 -> 2.07 | J33: 19 | L33: 2041 | M33: 0 | N33: 7.64 | O33: 0 | P33: 0 | Q33: 0 | R33: 0 | S33: 0 | T33: 180 | U33: 0 | V33: 0 | W33: 3.219 | X33: 0 | Y33: 0 | Z33: 0 | AA33: 0 | AB33: 0 | AE33: 2041 | AF33: 0 | AG33: 0 | AH33: 0 | AJ33: 0 | AK33: 0 | AL33: 0 | AN33: 0 | AQ33: 2041 | AR33: 0 | AS33: 0 | AT33: 0.052 | AU33: 0 | AV33: 3.189 | AW33: 0 | AZ33: 0 | BB33: 0 | BC33: 0 | BD33: 0 | BE33: 0 | BH33: 2041 | BI33: 0 | BJ33: 0 | BK33: 14.011 | BL33: 0 | BM33: 0.227 | BN33: 0 | BP33: 0 | BR33: 0 | BT33: 0 | BW33: 2041 | BX33: 0 | BY33: 0 | BZ33: 0 | CA33: 0 | CC33: 0 | CD33: 0 | CE33: 0 | CG33: 0
A34: Escalation Rate = | C34: =+'Gas Input Table Summary'!$D$23 -> 0.023 | E34: 25) Incentive/Participant = | F34: =ROUND('Database Inputs'!L13,0) -> 60 | J34: 20 | L34: 2042 | M34: 0 | N34: 7.869 | O34: 0 | P34: 0 | Q34: 0 | R34: 0 | S34: 0 | T34: 182 | U34: 0 | V34: 0 | W34: 3.316 | X34: 0 | Y34: 0 | Z34: 0 | AA34: 0 | AB34: 0 | AE34: 2042 | AF34: 0 | AG34: 0 | AH34: 0 | AJ34: 0 | AK34: 0 | AL34: 0 | AN34: 0 | AQ34: 2042 | AR34: 0 | AS34: 0 | AT34: 0.053 | AU34: 0 | AV34: 3.262 | AW34: 0 | AZ34: 0 | BB34: 0 | BC34: 0 | BD34: 0 | BE34: 0 | BH34: 2042 | BI34: 0 | BJ34: 0 | BK34: 14.431 | BL34: 0 | BM34: 0.234 | BN34: 0 | BP34: 0 | BR34: 0 | BT34: 0 | BW34: 2042 | BX34: 0 | BY34: 0 | BZ34: 0 | CA34: 0 | CC34: 0 | CD34: 0 | CE34: 0 | CG34: 0
J35: 21 | L35: 2043 | M35: =ROUND(IF($C$47+$F$23>L35,$F$25*$F$30,0)+IF($C$48+$G$23>L35,$G$25*$G$30,0)+IF($C$49+$H$23>L35,$H$25*$H$30,0),0) -> 0 | N35: =ROUND($C$17*(1+$C$18)^J35,3) -> 8.105 | O35: =ROUND(M35*N35,0) -> 0 | P35: =ROUND($C$25*(1+$C$26)^J35,3) -> 0 | Q35: =ROUND(M35*P35,0) -> 0 | R35: =O35+Q35 -> 0 | S35: =ROUND(M35*$C$23,1) -> 0 | T35: =ROUND($C$20*(1+$C$21)^J35,0) -> 184 | U35: =ROUND(S35*T35,0) -> 0 | V35: =ROUND(+U35+R35,0) -> 0 | W35: =ROUND($H$36*(1+$C$11)^J35,3) -> 3.416 | X35: =ROUND((1-$H$38)*(W35*M35),0) -> 0 | Y35: 0 | Z35: 0 | AA35: =SUM(X35:Z35) -> 0 | AB35: =V35-AA35 -> 0 | AE35: 2043 | AF35: =+R35 -> 0 | AG35: =+U35 -> 0 | AH35: =+AG35+AF35 -> 0 | AJ35: =ROUND(Y35,0) -> 0 | AK35: =ROUND(Z35,0) -> 0 | AL35: =SUM(AJ35:AK35) -> 0 | AN35: =+AH35-AL35 -> 0 | AQ35: 2043 | AR35: =AF35 -> 0 | AS35: =+AG35 -> 0 | AT35: =ROUND(($C$28/(1-$C$31))*(1+$C$29)^J35,3) -> 0.055 | AU35: =ROUND((IF($C$47+$F$23>$AQ35,$F$27*$F$30,0)+IF($C$48+$G$23>AQ35,$G$27*$G$30,0)+IF($C$49+$H$23>AQ35,$H$27*$H$30,0))*AT35,0) -> 0 | AV35: =ROUND($C$33*(1+$C$34)^J35,3) -> 3.337 | AW35: =ROUND(AV35*M35,0) -> 0 | AZ35: =ROUND(AR35+AS35+AU35+AW35+AY35,0) -> 0 | BB35: 0 | BC35: 0 | BD35: =BB35+BC35 -> 0 | BE35: =AZ35-BD35 -> 0 | BH35: 2043 | BI35: 0 | BJ35: =+M35 -> 0 | BK35: =ROUND($C$10*(1+$C$11)^J35,3) -> 14.864 | BL35: =ROUND(BJ35*BK35,0) -> 0 | BM35: =ROUND($C$13*(1+$C$14)^J35,3) -> 0.241 | BN35: =ROUND((IF($C$47+$F$23>BH35,$F$27*$F$30,0)+IF($C$49+$H$23>BH35,$H$27*$H$30,0)+IF($C$48+$G$23>BH35,$G$27*$G$30,0))*BM35,0) -> 0 | BP35: =BI35+BL35+BN35+BO35 -> 0 | BR35: =+BC35 -> 0 | BT35: =BP35-BR35 -> 0 | BW35: 2043 | BX35: 0 | BY35: =U35 -> 0 | BZ35: =AU35 -> 0 | CA35: =SUM(BX35:BZ35) -> 0 | CC35: =BB35 -> 0 | CD35: =BC35 -> 0 | CE35: =SUM(CC35:CD35) -> 0 | CG35: =CA35-CE35 -> 0 | DB35: =$J21 -> 7
A36: 10) Non Gas Fuel Environmental Damage Factor = | C36: =+'Gas Input Table Summary'!$D$24 -> 0 | E36: 26) Distribution Delivery Charge | H36: =+'Gas Input Table Summary'!D58 -> 1.836 | J36: 22 | L36: 2044 | M36: 0 | N36: 8.348 | O36: 0 | P36: 0 | Q36: 0 | R36: 0 | S36: 0 | T36: 186 | U36: 0 | V36: 0 | W36: 3.518 | X36: 0 | Y36: 0 | Z36: 0 | AA36: 0 | AB36: 0 | AE36: 2044 | AF36: 0 | AG36: 0 | AH36: 0 | AJ36: 0 | AK36: 0 | AL36: 0 | AN36: 0 | AQ36: 2044 | AR36: 0 | AS36: 0 | AT36: 0.057 | AU36: 0 | AV36: 3.414 | AW36: 0 | AZ36: 0 | BB36: 0 | BC36: 0 | BD36: 0 | BE36: 0 | BH36: 2044 | BI36: 0 | BJ36: 0 | BK36: 15.31 | BL36: 0 | BM36: 0.248 | BN36: 0 | BP36: 0 | BR36: 0 | BT36: 0 | BW36: 2044 | BX36: 0 | BY36: 0 | BZ36: 0 | CA36: 0 | CC36: 0 | CD36: 0 | CE36: 0 | CG36: 0
A37: Escalation Rate = | C37: =+'Gas Input Table Summary'!$D$25 -> 0 | DB37: =$J22 -> 8
E38: 27) Effective Income Tax Rate = | H38: =+'Gas Input Table Summary'!D59 -> 0.21 | K38: Total = | M38: =SUM(M14:M36) -> 11030 | V38: =SUM(V14:V36) -> 72274 | AA38: =SUM(AA14:AA36) -> 30494 | AB38: =SUM(AB14:AB36) -> 41780 | AD38: Total = | AH38: =SUM(AH14:AH36) -> 72274 | AL38: =SUM(AL14:AL36) -> 12154 | AN38: =SUM(AN14:AN36) -> 60120 | AP38: Total = | AZ38: =SUM(AZ14:AZ36) -> 100010 | BD38: =SUM(BD14:BD36) -> 28645 | BE38: =SUM(BE14:BE36) -> 71365 | BG38: Total = | BJ38: =SUM(BJ14:BJ36) -> 11030 | BP38: =SUM(BP14:BP36) -> 121867 | BR38: =SUM(BR14:BR36) -> 26815 | BT38: =SUM(BT14:BT36) -> 95052 | BZ38: Total = | CA38: =SUM(CA14:CA36) -> 74664 | CE38: =SUM(CE14:CE36) -> 28645 | CG38: =SUM(CG14:CG36) -> 46019
A39: 11) Participant Discount Rate = | C39: =+'Gas Input Table Summary'!$D$26 -> 0.1032 | E39: (Federal & State Taxes) | T39: NPV = | V39: =ROUND(V14+NPV($C$41,V15:V36),0) -> 53123 | AA39: =ROUND(AA14+NPV($C$41,AA15:AA36),0) -> 25598 | AB39: =ROUND(AB14+NPV($C$41,AB15:AB36),0) -> 27525 | AG39: NPV = | AH39: =ROUND(AH14+NPV($C$41,AH15:AH36),0) -> 53123 | AL39: =ROUND(AL14+NPV($C$41,AL15:AL36),0) -> 12154 | AN39: =+AH39-AL39 -> 40969 | AW39: NPV = | AZ39: =ROUND(AZ14+NPV($C$43,AZ15:AZ36),0) -> 90300 | BD39: =ROUND(BD14+NPV($C$43,BD15:BD36),0) -> 28645 | BE39: =AZ39-BD39 -> 61655 | BN39: NPV = | BP39: =ROUND(BP14+NPV($C$39,BP15:BP36),0) -> 83158 | BR39: =ROUND(BR14+NPV($C$39,BR15:BR36),0) -> 26815 | BT39: =ROUND(BT14+NPV($C$39,BT15:BT36),0) -> 56343 | BZ39: NPV = | CA39: =ROUND(CA14+NPV($C$41,CA15:CA36),0) -> 54875 | CE39: =ROUND(CE14+NPV($C$41,CE15:CE36),0) -> 28645 | CG39: =ROUND(CG14+NPV($C$41,CG15:CG36),0) -> 26230
DB40: =$J23 -> 9
A41: 12) Utility Discount Rate = | C41: =+'Gas Input Table Summary'!$D$27 -> 0.07216 | E41: Test Results | F41: NPV | G41: B/C | K41: Total NPV = | N41: =AB39 -> 27525 | AD41: Total NPV = | AG41: =AN39 -> 40969 | AP41: Total NPV = | AS41: =BE39 -> 61655 | BG41: Total NPV = | BJ41: =BT39 -> 56343 | BV41: Total NPV = | BY41: =CG39 -> 26230 | DB41: =$J24 -> 10
E42: Ratepayer Impact Measure Test | F42: =N41 -> 27525 | G42: =N42 -> 2.08 | K42: Benefit/Cost Ratio = | N42: =ROUND(V39/AA39,2) -> 2.08 | AD42: Benefit/Cost Ratio = | AG42: =ROUND(AH39/AL39,2) -> 4.37 | AP42: Benefit/Cost Ratio = | AS42: =ROUND(AZ39/BD39,2) -> 3.15 | BG42: Benefit/Cost Ratio = | BJ42: =ROUND(BP39/BR39,2) -> 3.1 | BV42: Benefit/Cost Ratio = | BY42: =ROUND(CA39/CE39,2) -> 1.92 | DB42: =$J25 -> 11
A43: 13) Societal Discount Rate = | C43: =+'Gas Input Table Summary'!$D$28 -> 0.0224 | E43: Utility Cost Test | F43: =AG41 -> 40969 | G43: =AG42 -> 4.37 | DB43: =$J26 -> 12
E44: Societal Test | F44: =AS41 -> 61655 | G44: =AS42 -> 3.15 | J44: Worksheet Calculations | BV44: Worksheet Calculations
A45: 14) General Input Data Year = | C45: =+'Gas Input Table Summary'!$D$29 -> 2022 | E45: Participant Test | F45: =BJ41 -> 56343 | G45: =BJ42 -> 3.1 | J45: (A) | K45: = Average Dk/Participant Saved (21) x Number of Participants (23) for Project Life (20) | T45: (I) | U45: = (G) x (H) | AD45: Worksheet Calculations | AP45: Worksheet Calculations | BG45: Worksheet Calculations | BV45: (A) | BW45: = Table 1 (F)
E46: Total Resource Cost Test | F46: =BY41 -> 26230 | G46: =BY42 -> 1.92 | J46: (B) | K46: = Commodity Cost (3) escalated | T46: (J) | U46: = (F) + (I) | AD46: (A) | AE46: = Table 1 (F) | AP46: (A) | AQ46: = Table 1 (F) | AW46: (H) | AZ46: = Table 2 (F) | BG46: (A) | BH46: = Table 1 (N) | BL46: (G) | BM46: = (A) + (D) + (F) | BV46: (B) | BW46: = Table 1 (I)
A47: 15) Project Analysis Year 1 = | C47: =+'Total Program Inputs'!C6 -> 2022 | J47: (C) | K47: = (A) x (B) | T47: (K) | U47: = Distribution Delivery Charge (26) escalated. | AD47: (B) | AE47: = Table 1 (I) | AP47: (G) | AQ47: = Table 1 (I) | AW47: (I) | AZ47: = Direct Part. Costs (17) x No. of Part. (23) - Table 1 (N) | BG47: (B) | BH47: = Table 1 (A) | BL47: (H) | BM47: = Direct Participant Costs (17) x Number of Participants (23) | BV47: (C) | BW47: = Table 3 (D)
J48: (D) | K48: = Variable O&M Cost (6), escalated | T48: (L) | U48: = (A) x (K) x (1-Inverse of Tax Rate (27) | AD48: (C) | AE48: = Table 1 (J) | AP48: (C) | AQ48: = Non-Gas Fuel Cost (7), adjusted for losses (8), escalated.. | AW48: (J) | AZ48: = (H) + (I) | BG48: (C) | BH48: = Retail Rate (1) escalated. | BL48: (I) | BM48: = (G) - (H) | BV48: (D) | BW48: = (A) + (B) + (C)
J49: (E) | K49: = (A) x (D) | T49: (M) | U49: = Admin & Operating Costs (16a) | AD49: (D) | AE49: = Table 1 (M) | AP49: (D) | AQ49: = (C) x [Avg. Non-Gas Fuel Units/Part.Saved (22) x No. of Part. (23) | AW49: (K) | AZ49: = (G) - (J) | BG49: (D) | BH49: =(B) x (C) | BV49: (E) | BW49: = Table 3 (H) | DB49: =$J27 -> 13
J50: (F) | K50: = (C) + (E) | T50: (N) | U50: = Incentive Costs (16b) | AD50: (E) | AE50: = Table 1 (N) | AP50: (E) | AQ50: = Gas Environmental Damage Factor (9), escalated | BG50: (E) | BH50: = Non-Gas Fuel Retail Rate (2), escalated. | BV50: (F) | BW50: = Table 3 (I) | DB50: =$J28 -> 14
J51: (G) | K51: = (A) x Peak Reduction Factor (5) | T51: (O) | U51: = (L) + (M) + (N) | AD51: (F) | AE51: = (D) + (E) | AP51: (F) | AQ51: = Table 1 (A) x (E) | BG51: (F) | BH51: = (E) x [Avg. Non-Gas Fuel Units/Part.Saved (22) x No. of Part. (23) | BV51: (G) | BW51: = (E) + (F) | DB51: =$J29 -> 15
J52: (H) | K52: = Demand Cost (4) escalated. | T52: (P) | U52: = (J) - (O) | AD52: (G) | AE52: = (C) - (F) | AP52: (G) | AQ52: = (A) + (B) + (D) + (F) | BV52: (H) | BW52: = (D) - (G)

Sheet Comm 95+% Furnace - NEW
A1: NATURAL GAS CONSERVATION PROGRAMS/DEMAND-SIDE MANAGEMENT | K1: Table 1 | AD1: Table 2 | AP1: Table 3 | BG1: Table 4 | BV1: Table 5
A2: BEN/COST ANALYSIS FOR GAS CONSERVATION | K2: Ratepayer Impact Measure Test | AD2: Utility Cost Test | AP2: Societal Test | BG2: Participant Test | BV2: Total Resource Cost Test
A4: Company: | B4: Montana-Dakota Utilities Co. | K4: Company: | M4: =B4 -> Montana-Dakota Utilities Co. | AD4: Company: | AF4: =B4 -> Montana-Dakota Utilities Co. | AP4: Company: | AR4: =AF4 -> Montana-Dakota Utilities Co. | BH4: Company: | BI4: =AR4 -> Montana-Dakota Utilities Co. | BW4: Company: | BX4: =BI4 -> Montana-Dakota Utilities Co.
A5: Project: | B5: Commercial 95+% AFUE Furnace - New | K5: Project: | M5: =$B$5 -> Commercial 95+% AFUE Furnace - New | AD5: Project: | AF5: =$B$5 -> Commercial 95+% AFUE Furnace - New | AP5: Project: | AR5: =$B$5 -> Commercial 95+% AFUE Furnace - New | BH5: Project: | BI5: =$B$5 -> Commercial 95+% AFUE Furnace - New | BW5: Project: | BX5: =$B$5 -> Commercial 95+% AFUE Furnace - New
A6: Program Years: | B6: ='Total Program'!$B$6 -> 2022
N7: Benefits | X7: Costs | AF7: Benefits | AJ7: Costs | AR7: Benefits | BB7: Costs | BI7: Benefits | BR7: Costs | BX7: Benefits | CC7: Costs
A8: Input Data | F8: =+'Total Program Inputs'!C6 -> 2022 | AB8: Annual | AN8: Annual | AT8: Non-Gas | BE8: Annual | BT8: Annual | CG8: Annual
M9: Total | N9: Gas | O9: Gas | P9: Variable | Q9: Variable | R9: Total | S9: Peak Dk | T9: Demand | U9: Total | W9: Distribution | Y9: Program | AA9: Total | AB9: Benefits | AF9: Total | AG9: Total | AH9: Annual | AJ9: Program | AL9: Utility | AN9: Benefits | AR9: Total | AS9: Total | AT9: Energy | AU9: Non-Gas | AV9: Environmental | AW9: Environmental | AZ9: Annual | BB9: Utility | BC9: Participants' | BD9: Annual | BE9: Benefits | BJ9: Total | BL9: Gas | BM9: Non-Gas | BN9: Non-Gas | BP9: Total | BR9: Direct | BT9: Benefits | BX9: Total | BY9: Total | BZ9: Non-Gas | CA9: Total | CC9: Utility | CD9: Participants' | CG9: Benefits
A10: 1) Retail Rate ($/Dk) = | C10: =+'Gas Input Table Summary'!$E$7 -> 7.084 | E10: 16) Utility Project Costs | M10: Energy | N10: Commodity | O10: Commodity | P10: O & M | Q10: O & M | R10: Energy | S10: Demand | T10: Savings | U10: Demand | V10: Total | W10: Delivery | X10: Lost | Y10: Admin | Z10: Incentive | AA10: Program | AB10: Less | AF10: Energy | AG10: Demand | AH10: Total | AJ10: Admin | AK10: Incentive | AL10: Program | AN10: Less | AR10: Energy | AS10: Demand | AT10: Savings | AU10: Energy | AV10: Damage | AW10: Damage | AZ10: Total | BB10: Program | BC10: Costs Net | BD10: Total | BE10: Less | BI10: Incentives | BJ10: Energy | BK10: Retail | BL10: Bill | BM10: Fuel | BN10: Energy | BP10: Annual | BR10: Participant | BT10: Less | BX10: Energy | BY10: Demand | BZ10: Energy | CA10: Annual | CC10: Program | CD10: Costs Net | CE10: Total | CG10: Less
A11: Escalation Rate = | C11: =+'Gas Input Table Summary'!$E$8 -> 0.03 | E11: 16a) Administrative & Operating Costs = | F11: =+'Total Program Inputs'!M18 -> 26 | J11: t | M11: Reduction | N11: Cost/Dk | O11: Savings | P11: Cost/Dk | Q11: Savings | R11: Savings | S11: Reduction | T11: Per Unit | U11: Savings | V11: Savings | W11: Charge | X11: Margin | Y11: Costs | Z11: Costs | AA11: Costs | AB11: Costs | AF11: Savings | AG11: Savings | AH11: Savings | AJ11: Costs | AK11: Costs | AL11: Costs | AN11: Costs | AR11: Savings | AS11: Savings | AT11: ($/Part.) | AU11: Savings | AV11: Savings/Dk | AW11: Savings | AZ11: Savings | BB11: Costs | BC11: of Rebate | BD11: Costs | BE11: Costs | BI11: Received | BJ11: Reduction | BK11: Rate | BL11: Savings | BM11: Retail Rate | BN11: Savings | BP11: Benefits | BR11: Costs | BT11: Costs | BX11: Savings | BY11: Savings | BZ11: Savings | CA11: Benefits | CC11: Costs | CD11: of Rebate | CE11: Costs | CG11: Costs
E12: 16b) Incentive Costs = | F12: =+'Total Program Inputs'!I18 -> 150 | L12: Year | M12: (A) | N12: (B) | O12: (C) | P12: (D) | Q12: (E) | R12: (F) | S12: (G) | T12: (H) | U12: (I) | V12: (J) | W12: (K) | X12: (L) | Y12: (M) | Z12: (N) | AA12: (O) | AB12: (P) | AE12: Year | AF12: (A) | AG12: (B) | AH12: (C) | AJ12: (D) | AK12: (E) | AL12: (F) | AN12: (G) | AQ12: Year | AR12: (A) | AS12: (B) | AT12: (C) | AU12: (D) | AV12: (E) | AW12: (F) | AZ12: (G) | BB12: (H) | BC12: (I) | BD12: (J) | BE12: (K) | BH12: Year | BI12: (A) | BJ12: (B) | BK12: (C) | BL12: (D) | BM12: (E) | BN12: (F) | BP12: (G) | BR12: (H) | BT12: (I) | BW12: Year | BX12: (A) | BY12: (B) | BZ12: (C) | CA12: (D) | CC12: (E) | CD12: (F) | CE12: (G) | CG12: (H)
A13: 2) Non-Gas Fuel Retail Rate ($/Fuel Unit) = | C13: =+'Gas Input Table Summary'!$E$9 -> 0.12552 | E13: 16c) Total Utility Project Costs = | F13: =SUM(F11:F12) -> 176
